Workbook

Sheet Input
C4: Input required by drop down | L4: Latest update 2017-05-30 ASc
C5: Input required by entering value
C6: Output values
B7: Date
B8: Customer
B9: Project
B10: Reference
B12: Step 1: | C12: About Your Application | H12: Step 2: | I12: PC and Gear selection
B13: Select unit of measure | C13: Metric | D13: Vertical application? *
A14: =IF(Data!E25=1,1,0) -> 0 | B14: =IF(Data!E25<>0,"Max force is " &Data!G25&" "&"["&Data!E16&"]","Max force Fx"&" "&"["&Data!E16&"]") -> Max force Fx [N] | C14: 1 | D14: =Data!A51 ->  | H14: PC-version * | L14: =IF(OR(Data!B141=1,Input!L15="-"),"Invalid Configuration","Cylinder mounting") -> Cylinder mounting
B15: Force active during stop? * | C15: No | D15: =Data!A52&" "&Data!D52 ->  | H15: LX-In Line | L15: F-Feet Kit
B16: ="Total mass to move"&" "&"["&Data!N16&"]" -> Total mass to move [kg] | C16: 0 | H16: Ratio | I16: =Data!G59 -> 1
A17: =IF(Data!E26=1,1,0) -> 0 | B17: =IF(Data!E26<>0,"Max Radial Force is "&Data!G26 &" "&"["&Data!E16&"]","Radial Force Fy or Fz"&" "&"["&Data!E16&"]") -> Radial Force Fy or Fz [N] | C17: 0 | H17: Efficiency | I17: =Data!E59 -> 90% | L17: Rod End
A18: =IF(Data!E28=1,1,0) -> 0 | B18: =IF(AND(Data!B16=1,C18>1200),"Max stroke is 1200 mm",IF(AND(Data!B16=2,C18>1200/25.4),"Max stroke is 47 inch","Stroke"&" "&"["&Data!D16&"]")) -> Stroke [mm] | C18: 1 | H18: Idle torque [Nm] | I18: =Data!F59 -> 0.00 | L18: C-Front Clevis
A19: =IF(Data!$E$30=1,1,0) -> 0 | B19: =IF(AND(Data!B16=1,C19>1666),"Max Speed is 1666 mm/s",IF(AND(Data!B16=2,C19>65),"Max Speed is 65 Inches/s","Speed"&" "&"["&Data!G16&"]")) -> Speed [mm/s] | C19: 1
A20: =IF(Data!$E$32=1,1,0) -> 0 | B20: =IF(AND(Data!B16=1,C20>10),"Max Accel. is 10 m/s²",IF(AND(Data!B16=2,C20>393),"Max Accel. is 393 Inches/s²","Acceleration"&" "&"["&Data!H16&"]")) -> Acceleration [m/s²] | C20: 1 | H20: Gear Selection (Optional) | L20: =IF(Data!E83=2,"Micron gear part number","") -> 
B21: fm factor * | C21: 1 | H21: No Gear
B22: =IF(C25*C22>30,"Not possible","Cycles per minute") -> Cycles per minute | C22: 1 | H22: Type | I22: NT23 | L22: =IF(AND(Data!$E$83=2,Data!$J$150=4),"Please check if motor fits to Micron gear",Data!I106) -> 
B23: =IF(C23>24,"Not possible","Working hours per day") -> Working hours per day | C23: 1 | H23: Ratio | I23: 3
B24: =IF(C24>365,"Not possible","Working days per year") -> Working days per year | C24: 1 | H24: Ratio | I24: 3
B25: Time for one stroke [s] | C25: =Data!C48 -> 1.0 | H25: Efficiency | I25: 93%
B26: ="Average speed"&" "&"["&Data!G16&"]" -> Average speed [mm/s] | C26: =Data!L27 -> 1.0 | H26: Idle torque | I26: 0.001
B27: Duty cycle | C27: =C25*C22*2/60 -> 3% | H27: Inertia (kg cm²) | I27: 0.0760
B29: Step 3: | C29: Motor Selection | H29: =IF(Data!$J$150=1,Data!$AL$142,"") -> Motor perfomance of AKM22E
B31: Type of motor * | C31: =IF(Data!D143=1,"Invalid Configuration",IF(Data!$J$150=1,"Input voltage (VAC)",IF(Data!$J$150=2,"Input voltage (VDC)",""))) -> Input voltage (VAC) | E31: =IF(OR(Data!C141=1,Data!C143=1),"Invalid Configuration","Select size") -> Select size | H31: Motor curve | K31: 4. PC32, Lead 10 mm
B32: 1. Kollmorgen AKM Servo | C32: 240 | E32: AKM22E
B33: =IF(Data!D141=1,"Invalid Configuration",IF(Data!$J$150=1,"Brake","Rear Shaft")) -> Brake | C33: =IF(Data!E141=1,"Invalid Configuration",IF(Data!$J$150=1,"Feedback","Sealing Option")) -> Feedback
B34: No | C34: R-Resolver (standard)
B36: =IF(Data!J150<4,"Motor Data For" &" "&E32, "Motor data Customer Supplied Motor") -> Motor Data For AKM22E | E36: Motor part number
B37: =Data!D207 -> Cont. torque (Stall) [Nm] | C37: 10 | D37: =Data!D150 -> 0.9 | E37: =IF(Data!$J$150=1,LOOKUP(Data!$R$205,Data!$R$209:$R$246,Data!$Q$209:$Q$246),IF(Data!$J$150=2,LOOKUP(Data!$B$150,Data!$Y$357:$Y$380,Data!$AI$357:$AI$380),"")) -> AKM22E-ANCNR-00
B38: =Data!E207 -> Peak torque [Nm] | C38: 10 | D38: =Data!E150 -> 2.8 | E38: RediMount ID**
B39: =Data!F207 -> Rated torque [Nm] | C39: 10 | D39: =Data!F150 -> 0.7 | E39: =Data!S108 -> 004
B40: =Data!G207 -> Rated speed [rpm] | C40: 4000 | D40: =Data!G150 -> 8000.0
B41: =Data!H207 -> Inertia [kg cm²] | C41: 0.5 | D41: =Data!H150 -> 0.16
B42: Max speed [rpm] | D42: =Calc!B71 -> 8000
B45: PC unit Data | F45: Required Motor Data | K45: Additional Data
C46: Life time | D46: Required Input | E46: System Inertia | F46: Motor | G46: Motor torque | H46: motor torque | I46: Motor Torque | J46: Motor | L46: Inertia balance
B47: Unit part number *** | C47: Years | D47: torque | E47: kg cm² | F47: speed | G47: constant speed | H47: acceleration | I47: (TRMS) | J47: Performance | L47: (max 7 for "OK")
D48: Nm | F48: rpm | G48: Nm | H48: Nm | I48: Nm
B49: =IF(AND(J49="OK",Data!$C$59<>3,Data!AD138=1),"Motor dimensions out of range",IF(J49="OK",Data!X93,"")) -> PC25LX004B03-01FC1 | C49: =IF(AND(J49="OK",$C$47="Hours"),Data!X83,IF(AND(J49="OK",$C$47="Years"),Data!Y83,IF(AND(J49="OK",$C$47="Millions of Cycles"),Data!Z83,""))) -> >50 | D49: =Data!V7 -> 0.05 | E49: =Data!AN21 -> 0.01 | F49: =IF(Data!$E$83=2,Data!$D$90*Data!M7,Data!$L$115*Data!M7) -> 20 | G49: =Data!AK21 -> 0.06 | H49: =Data!AL21 -> 0.09 | I49: =Data!U116 -> 0.01 | J49: =IF(AND(G49<IF(Data!$J$150=2,Data!$X$361,IF(Data!$J$150=1,VLOOKUP(F49,Data!$AG$149:$AH$200,2,TRUE),Data!$F$149)),F49>Data!$M$153*Data!$T$149,H49<Data!$E$149,F49<=Data!$T$149*Data!$M$150,Data!AM21<7,I49<=Data!$F$149),"OK","Not OK") -> OK | K49: =IF(Data!AA138=1,1,0) -> 0 | L49: =Data!AM21 -> 1.05
B50: =IF(AND(J50="OK",Data!$C$59<>3,Data!AD139=1),"Motor dimensions out of range",IF(J50="OK",Data!X94,"")) -> PC25LX004B10-01FC1 | C50: =IF(AND(J50="OK",$C$47="Hours"),Data!X84,IF(AND(J50="OK",$C$47="Years"),Data!Y84,IF(AND(J50="OK",$C$47="Millions of Cycles"),Data!Z84,""))) -> >50 | D50: =Data!V8 -> 0.15 | E50: =Data!AN22 -> 0.01 | F50: =IF(Data!$E$83=2,Data!$D$90*Data!M8,Data!$L$115*Data!M8) -> 6 | G50: =Data!AK22 -> 0.17 | H50: =Data!AL22 -> 0.18 | I50: =Data!U117 -> 0.02 | J50: =IF(AND(G50<IF(Data!$J$150=2,Data!$X$361,IF(Data!$J$150=1,VLOOKUP(F50,Data!$AG$149:$AH$200,2,TRUE),Data!$F$149)),F50>Data!$M$153*Data!$T$149,H50<Data!$E$149,F50<=Data!$T$149*Data!$M$150,Data!AM22<7,I50<=Data!$F$149),"OK","Not OK") -> OK | K50: =IF(Data!AA139=1,1,0) -> 0 | L50: =Data!AM22 -> 1.05
B51: =IF(AND(J51="OK",Data!$C$59<>3,Data!AD140=1),"Motor dimensions out of range",IF(J51="OK",Data!X95,"")) -> PC32LX004B04-01FC1 | C51: =IF(AND(J51="OK",$C$47="Hours"),Data!X85,IF(AND(J51="OK",$C$47="Years"),Data!Y85,IF(AND(J51="OK",$C$47="Millions of Cycles"),Data!Z85,""))) -> >50 | D51: =Data!V9 -> 0.07 | E51: =Data!AN23 -> 0.02 | F51: =IF(Data!$E$83=2,Data!$D$90*Data!M9,Data!$L$115*Data!M9) -> 15 | G51: =Data!AK23 -> 0.08 | H51: =Data!AL23 -> 0.11 | I51: =Data!U118 -> 0.01 | J51: =IF(AND(G51<IF(Data!$J$150=2,Data!$X$361,IF(Data!$J$150=1,VLOOKUP(F51,Data!$AG$149:$AH$200,2,TRUE),Data!$F$149)),F51>Data!$M$153*Data!$T$149,H51<Data!$E$149,F51<=Data!$T$149*Data!$M$150,Data!AM23<7,I51<=Data!$F$149),"OK","Not OK") -> OK | K51: =IF(Data!AA140=1,1,0) -> 0 | L51: =Data!AM23 -> 1.10
B52: =IF(AND(J52="OK",Data!$C$59<>3,Data!AD141=1),"Motor dimensions out of range",IF(J52="OK",Data!X96,"")) -> PC32LX004B10-01FC1 | C52: =IF(AND(J52="OK",$C$47="Hours"),Data!X86,IF(AND(J52="OK",$C$47="Years"),Data!Y86,IF(AND(J52="OK",$C$47="Millions of Cycles"),Data!Z86,""))) -> >50 | D52: =Data!V10 -> 0.18 | E52: =Data!AN24 -> 0.02 | F52: =IF(Data!$E$83=2,Data!$D$90*Data!M10,Data!$L$115*Data!M10) -> 6 | G52: =Data!AK24 -> 0.20 | H52: =Data!AL24 -> 0.21 | I52: =Data!U119 -> 0.03 | J52: =IF(AND(G52<IF(Data!$J$150=2,Data!$X$361,IF(Data!$J$150=1,VLOOKUP(F52,Data!$AG$149:$AH$200,2,TRUE),Data!$F$149)),F52>Data!$M$153*Data!$T$149,H52<Data!$E$149,F52<=Data!$T$149*Data!$M$150,Data!AM24<7,I52<=Data!$F$149),"OK","Not OK") -> OK | K52: =IF(Data!AA141=1,1,0) -> 0 | L52: =Data!AM24 -> 1.10
B53: =IF(J53="OK",Data!X97,"") -> PC40LX004B05-01FC1 | C53: =IF(AND(J53="OK",$C$47="Hours"),Data!X87,IF(AND(J53="OK",$C$47="Years"),Data!Y87,IF(AND(J53="OK",$C$47="Millions of Cycles"),Data!Z87,""))) -> >50 | D53: =Data!V11 -> 0.10 | E53: =Data!AN25 -> 0.12 | F53: =IF(Data!$E$83=2,Data!$D$90*Data!M11,Data!$L$115*Data!M11) -> 12 | G53: =Data!AK25 -> 0.11 | H53: =Data!AL25 -> 0.15 | I53: =Data!U120 -> 0.01 | J53: =IF(AND(G53<IF(Data!$J$150=2,Data!$X$361,IF(Data!$J$150=1,VLOOKUP(F53,Data!$AG$149:$AH$200,2,TRUE),Data!$F$149)),F53>Data!$M$153*Data!$T$149,H53<Data!$E$149,F53<=Data!$T$149*Data!$M$150,Data!AM25<7,I53<=Data!$F$149),"OK","Not OK") -> OK | K53: =IF(Data!AA142=1,1,0) -> 0 | L53: =Data!AM25 -> 1.78
B54: =IF(J54="OK",Data!X98,"") -> PC40LX004B10-01FC1 | C54: =IF(AND(J54="OK",$C$47="Hours"),Data!X88,IF(AND(J54="OK",$C$47="Years"),Data!Y88,IF(AND(J54="OK",$C$47="Millions of Cycles"),Data!Z88,""))) -> >50 | D54: =Data!V12 -> 0.20 | E54: =Data!AN26 -> 0.12 | F54: =IF(Data!$E$83=2,Data!$D$90*Data!M12,Data!$L$115*Data!M12) -> 6 | G54: =Data!AK26 -> 0.22 | H54: =Data!AL26 -> 0.24 | I54: =Data!U121 -> 0.03 | J54: =IF(AND(G54<IF(Data!$J$150=2,Data!$X$361,IF(Data!$J$150=1,VLOOKUP(F54,Data!$AG$149:$AH$200,2,TRUE),Data!$F$149)),F54>Data!$M$153*Data!$T$149,H54<Data!$E$149,F54<=Data!$T$149*Data!$M$150,Data!AM26<7,I54<=Data!$F$149),"OK","Not OK") -> OK | K54: =IF(Data!AA143=1,1,0) -> 0 | L54: =Data!AM26 -> 1.78
B55: =IF(J55="OK",Data!X99,"") -> PC40LX004B20-01FC1 | C55: =IF(AND(J55="OK",$C$47="Hours"),Data!X89,IF(AND(J55="OK",$C$47="Years"),Data!Y89,IF(AND(J55="OK",$C$47="Millions of Cycles"),Data!Z89,""))) -> >50 | D55: =Data!V13 -> 0.30 | E55: =Data!AN27 -> 0.12 | F55: =IF(Data!$E$83=2,Data!$D$90*Data!M13,Data!$L$115*Data!M13) -> 3 | G55: =Data!AK27 -> 0.34 | H55: =Data!AL27 -> 0.35 | I55: =Data!U122 -> 0.04 | J55: =IF(AND(G55<IF(Data!$J$150=2,Data!$X$361,IF(Data!$J$150=1,VLOOKUP(F55,Data!$AG$149:$AH$200,2,TRUE),Data!$F$149)),F55>Data!$M$153*Data!$T$149,H55<Data!$E$149,F55<=Data!$T$149*Data!$M$150,Data!AM27<7,I55<=Data!$F$149),"OK","Not OK") -> OK | K55: =IF(Data!AA144=1,1,0) -> 0 | L55: =Data!AM27 -> 1.78
B57: * = Hover over for more information
B58: ** = Click to open RediMount ID tool; This tool is used to check motor and gear compatibility to PC-unit
B59: ***= If only the unit part number cell is blank the motor or the unit cannot handle the specified application. If a row is blank the unit cannot handle the current application data
B60: Notes:

Sheet fm factor
B2: Typical fm factors
B21: Calcualate your own specific fm factor below | L21: Example of fm factor
P23: = | Q23: =((P27*M27^3+P28*M28^3+P29*M29^3+P30*M30^3+P31*M31^3+P32*M32^3)/P34)^(1/3) -> 796 | R23: N
F24: = | G24: =((F27*C27^3+F28*C28^3+F29*C29^3+F30*C30^3+F31*C31^3+F32*C32^3)/F34)^(1/3) -> 1000 | H24: N
C26: Load | F26: Part of stroke | M26: Load | P26: Part of stroke
C27: 1000 | D27: N | F27: 400 | G27: mm | M27: 1000 | N27: N | P27: 400 | Q27: mm
C28: 1000 | D28: N | F28: 400 | G28: mm | M28: 200 | N28: N | P28: 400 | Q28: mm
C29: 0 | D29: N | F29: 0 | G29: mm | M29: 0 | N29: N | P29: 0 | Q29: mm
C30: 0 | D30: N | F30: 0 | G30: mm | M30: 0 | N30: N | P30: 0 | Q30: mm
C31: 0 | D31: N | F31: 0 | G31: mm | M31: 0 | N31: N | P31: 0 | Q31: mm
C32: 0 | D32: N | F32: 0 | G32: mm | M32: 0 | N32: N | P32: 0 | Q32: mm
B34: Max Load | C34: =MAX(C27:C32) -> 1000 | D34: N | F34: =SUM(F27:F32) -> 800 | G34: mm | L34: Max Load | M34: =MAX(M27:M32) -> 1000 | N34: N | P34: =SUM(P27:P32) -> 800 | Q34: mm
C36: = | D36: =$G$24/$C$34 -> 1.00 | M36: = | N36: =$Q$23/$M$34 -> 0.80

Sheet Information
B4: Dimensions for Bell house and Redimount flanges
B6: PC 25 LX | F6: PC 32 LX | J6: PC 40 LX
B7: Bell House Length | F7: Bell House Length | J7: Bell House Length
B8: Motor shaft Length [mm] | C8: Bell House Length, C [mm] | F8: Motor shaft Length [mm] | G8: Bell House Length, C [mm] | J8: Motor shaft Length [mm] | K8: Bell House Length, C [mm]
B9: 19-24 | C9: 52 | F9: 20-27 | G9: 59 | J9: 20-27 | K9: 62
B10: 24-29 | C10: 57 | F10: 27-34 | G10: 66 | J10: 27-34 | K10: 69
B11: 29-34 | C11: 62 | F11: 34-41 | G11: 73 | J11: 34-41 | K11: 76
B12: 34-39 | C12: 67
B14: Redimount Flange Motor Dimensions Compatibility | F14: Redimount Flange Motor Dimensions Compatibility | J14: Redimount Flange Motor Dimensions Compatibility
B15: Motor data | C15: Flange A[mm] | D15: Flange B [mm] | F15: Motor data | G15: Flange A[mm] | H15: Flange B [mm] | J15: Motor data | K15: Flange A[mm] | L15: Flange B [mm]
B16: Bolt circle diameter | C16: 43.8-48 | D16: 48-72 | F16: Bolt circle diameter | G16: 37-50 | H16: 50-99 | J16: Bolt circle diameter | K16: 37-72 | L16: 72-107
B17: Shaft Diameter | C17: 5-11 | F17: Shaft Diameter | G17: 5-16 | J17: Shaft Diameter | K17: 5-16
B18: Shaft Length | C18: 19-39 | F18: Shaft Length | G18: 20-41 | J18: Shaft Length | K18: 20-41
B19: Pilot Diameter | C19: 16-36 | D19: 16-54 | F19: Pilot Diameter | G19: 16-39 | H19: 16-75 | J19: Pilot Diameter | K19: 16-54 | L19: 16-85
B20: Pilot length | C20: max 4 | F20: Pilot length | G20: max 4 | J20: Pilot length | K20: max 4
B22: Weight of Unit [kg] | F22: Weight of Unit [kg] | J22: Weight of Unit [kg]
B23: 0.53+(Smax[mm] x 0.0021) | F23: 0.681+(Smax[mm] x 0.0034) | J23: 1.853+(Smax[mm] x 0.0052)
B25: PC 25 PA | F25: PC 32 PA | J25: PC 40 PA
B26: Redimount Flange Motor Dimensions Compatibility | F26: Redimount Flange Motor Dimensions Compatibility | J26: Redimount Flange Motor Dimensions Compatibility
B27: Motor data | C27: Flange C [mm] | D27: Flange D [mm] | F27: Motor data | G27: Flange C [mm] | H27: Flange D [mm] | J27: Motor data | K27: Flange C [mm] | L27: Flange D [mm]
B28: Bolt circle diameter | C28: 25-51 | D28: 51-72 | F28: Bolt circle diameter | G28: 25-72 | H28: 72-99 | J28: Bolt circle diameter | K28: 26-85 | L28: 85-107
B29: Shaft Diameter | C29: 5-10 | F29: Shaft Diameter | G29: 5-14 | J29: Shaft Diameter | K29: 5-16
B30: Shaft Length | C30: 13-35 | F30: Shaft Length | G30: 15-34 | J30: Shaft Length | K30: 15-41
B31: Pilot Diameter | C31: 16-39 | D31: 16-54 | F31: Pilot Diameter | G31: 16-54 | H31: 16-74 | J31: Pilot Diameter | K31: 16-64 | L31: 16-85
B32: Pilot length | C32: max 4 | F32: Pilot length | G32: max 4 | J32: Pilot length | K32: max 4
B33: Motor Square/diameter | C33: max 66.5 | F33: Motor Square/diameter | G33: max 82.5 | J33: Motor Square/diameter | K33: max 90.5
B35: Weight of Unit [kg] | F35: Weight of Unit [kg] | J35: Weight of Unit [kg]
B36: 0.778+(Smax[mm] x 0.0021) | F36: 1.221+(Smax[mm] x 0.0034) | J36: 2.318+(Smax[mm] x 0.0052)
B38: Dimensions PC25 | F38: Dimensions PC32 | J38: Dimensions PC40

Sheet Data (hidden)
C3: Catalogue values | AK3: Motor torque
C4: Pitch | D4: Max stroke | E4: Max rpm | F4: Max force Fx | G4: Max force Fy | H4: Max load torque My | I4: Max drive torque shaft | J4: Max torque coupling | K4: Cam nut | L4: C ballbearing | M4: Calc speed | N4: rpm | O4: Acc | P4: Fx | Q4: Fy | R4: Stroke | S4: idle torque | T4: idle torque | U4: Drive torque from load | V4: with acc | W4: Coupl | X4: Life ball bearing | Y4: Life ball nut | AA4: Critical speed | AB4: Critical speed check | AC4: Buckling Max S screw | AD4: Buckling Max S tube | AE4: Buckling check | AF4: Summa | AH4: Lifetime | AI4: J screw | AJ4: J Load | AK4: Drive torque constant | AL4: Drive torque acc | AM4: Inertia balance | AN4: System Inertia | AP4: Inertia Belt gear (PA)
A5: OK | C5: mm | D5: mm | F5: N | G5: N | H5: Nm | I5: Nm | J5: Nm | K5: N | L5: N | M5: rpm | N5: OK | O5: OK | P5: OK | Q5: OK | R5: OK | S5: Nm | T5: Nm | U5: Nm | V5: Nm | W5: OK | X5: h | Y5: h | AA5: rpm | AB5: OK | AC5: mm | AD5: mm | AE5: OK | AF5: OK | AH5: Years | AI5: kg cm² | AJ5: kg cm² | AK5: Nm | AP5: kg cm²
A7: =AF7 -> 0 | B7: PC25…B03 | C7: 3 | D7: 600 | E7: 8000 | F7: 1250 | G7: 20 | H7: 10 | I7: 4 | J7: 2.3 | K7: 2800 | L7: 5200 | M7: =Data!$M$28/Data!C7*60 -> 20 | N7: =IF(M7<=E7,0,1) -> 0 | O7: =IF(Data!$M$29>20,1,0) -> 0 | P7: =IF(Data!$M$23<=Data!F7,0,1) -> 0 | Q7: =IF(Data!$M$24<=Data!G7,0,1) -> 0 | R7: =IF(Data!$M$25<=Data!D7,0,1) -> 0 | S7: 0.05 | T7: =M7/E7*S7*2+S7 -> 0.050 | U7: =Data!$M$23*Data!C7/2000/PI()/0.8+Data!T7 -> 0.05 | V7: =(Data!$M$23+$M$26*Data!$M$29)*Data!C7/2000/PI()/0.8+T7 -> 0.05 | W7: =IF(V7<J7,0,1) -> 0 | X7: =1000000/60/M7*(L7/$R$25/(0.62*30+1.17*(Data!$M$23+$M$26*Data!$M$29+30)))^3 -> 709290110 | Y7: =1000000/60/M7*(K7/$R$25/(Data!$M$23+$M$26*Data!$M$29+30))^3 -> 614055699 | Z7: =MIN(X7:Y7) -> 614055699 | AA7: =0.8*1.56*1.2*10^8*8.9/(50+Data!$M$25)^2 -> 512443 | AB7: =IF(AA7>M7,0,1) -> 0 | AC7: =SQRT((PI())^2*2.1*10^6*0.03/(Data!$M$23+Data!$M$23/10*Data!$M$29)*0.8*2*10)/100*0.8*1000-50 -> 24009 | AD7: =(SQRT(PI()^2*2.1*1000000*0.5/4/(Data!$M$23/10+1))/100*0.8)*1000-50 -> 12227 | AE7: =IF(AND(AC7>Data!$M$25,Data!AD7>Data!$M$25),0,1) -> 0 | AF7: =AE7+AB7+W7+R7+Q7+P7+N7+O7 -> 0 | AG7: 1 | AH7: =Z7*60*$M$28/2/$M$25/Input!$C$22/Input!$C$23/Input!$C$24 -> 18421670974.5 | AI7: =($M$25+100)/1000*0.62/2*0.5^2 -> 0.0078275 | AJ7: =$M$26*($M$28/1000*60/2/3.14/Data!M7)^2*10^4 -> 0 | AK7: =$L$117+$F$59+U7/$L$116/$E$59/$L$115 -> 0.0565 | AL7: =V7/$L$116/$E$59/Data!$L$115+$L$117+$F$59+($H$149+$L$118+(Data!AJ7+Data!AI7)/Data!$L$115^2)*3.14/Data!$L$115*Data!M7/Data!$C$43/10000/30 -> 0.09162836893 | AM7: =($H$149+$L$118+(Data!AJ7+Data!AI7)/Data!$L$115^2)/$H$149 -> 1.05 | AN7: =IF(OR($C$59=1,$C$59=3),(AI7+AJ7)/$L$115^2+$L$118,(AI7+AJ7+AP7)/$L$115^2+$L$118) -> 0.01 | AP7: 0.5
A8: =AF8 -> 0 | B8: PC25…B10 | C8: 10 | D8: 600 | E8: 8000 | F8: 1250 | G8: 20 | H8: 10 | I8: 4 | J8: 2.3 | K8: 2500 | L8: 5200 | M8: =Data!$M$28/Data!C8*60 -> 6 | N8: =IF(M8<=E8,0,1) -> 0 | O8: =IF(Data!$M$29>20,1,0) -> 0 | P8: =IF(Data!$M$23<=Data!F8,0,1) -> 0 | Q8: =IF(Data!$M$24<=Data!G8,0,1) -> 0 | R8: =IF(Data!$M$25<=Data!D8,0,1) -> 0 | S8: 0.15 | T8: 0.150 | U8: =Data!$M$23*Data!C8/2000/PI()/0.8+Data!T8 -> 0.15 | V8: =(Data!$M$23+$M$26*Data!$M$29)*Data!C8/2000/PI()/0.8+T8 -> 0.15 | W8: =IF(V8<J8,0,1) -> 0 | X8: =1000000/60/M8*(L8/$R$25/(0.62*30+1.17*(Data!$M$23+$M$26*Data!$M$29+30)))^3 -> 2364300367 | Y8: =1000000/60/M8*(K8/$R$25/(Data!$M$23+$M$26*Data!$M$29+30))^3 -> 1456909059 | Z8: =MIN(X8:Y8) -> 1456909059 | AA8: =0.8*1.56*1.2*10^8*8.9/(50+Data!$M$25)^2 -> 512443 | AB8: =IF(AA8>M8,0,1) -> 0 | AC8: =SQRT((PI())^2*2.1*10^6*0.03/(Data!$M$23+Data!$M$23/10*Data!$M$29)*0.8*2*10)/100*0.8*1000-50 -> 24009 | AD8: =(SQRT(PI()^2*2.1*1000000*0.5/4/(Data!$M$23/10+1))/100*0.8)*1000-50 -> 12227 | AE8: =IF(AND(AC8>Data!$M$25,Data!AD8>Data!$M$25),0,1) -> 0 | AF8: =AE8+AB8+W8+R8+Q8+P8+N8+O8 -> 0 | AG8: 2 | AH8: =Z8*60*$M$28/2/$M$25/Input!$C$22/Input!$C$23/Input!$C$24 -> 43707271771.1 | AI8: =($M$25+100)/1000*0.62/2*0.5^2 -> 0.0078275 | AJ8: =$M$26*($M$28/1000*60/2/3.14/Data!M8)^2*10^4 -> 0 | AK8: 0.1691 | AL8: =V8/$L$116/$E$59/Data!$L$115+$L$117+$F$59+($H$149+$L$118+(Data!AJ8+Data!AI8)/Data!$L$115^2)*3.14/Data!$L$115*Data!M8/Data!$C$43/10000/30 -> 0.179666719 | AM8: =($H$149+$L$118+(Data!AJ8+Data!AI8)/Data!$L$115^2)/$H$149 -> 1.05 | AN8: 0.01 | AP8: 0.5
A9: 0 | B9: PC32…B04 | C9: 4 | D9: 1200 | E9: 6000 | F9: 3200 | G9: 20 | H9: 25 | I9: 9.2 | J9: 5.1 | K9: 4800 | L9: 7610 | M9: =Data!$M$28/Data!C9*60 -> 15 | N9: 0 | O9: =IF(Data!$M$29>20,1,0) -> 0 | P9: =IF(Data!$M$23<=Data!F9,0,1) -> 0 | Q9: =IF(Data!$M$24<=Data!G9,0,1) -> 0 | R9: =IF(Data!$M$25<=Data!D9,0,1) -> 0 | S9: 0.07 | T9: 0.070 | U9: =Data!$M$23*Data!C9/2000/PI()/0.8+Data!T9 -> 0.07 | V9: =(Data!$M$23+$M$26*Data!$M$29)*Data!C9/2000/PI()/0.8+T9 -> 0.07 | W9: 0 | X9: =1000000/60/M9*(L9/$R$25/(0.62*30+1.17*(Data!$M$23+$M$26*Data!$M$29+30)))^3 -> 2964193703 | Y9: =1000000/60/M9*(K9/$R$25/(Data!$M$23+$M$26*Data!$M$29+30))^3 -> 4124735658 | Z9: 2964193703 | AA9: =0.8*1.56*1.2*10^8*10.75/(50+Data!$M$25)^2 -> 618962 | AB9: 0 | AC9: =SQRT((PI())^2*2.1*10^6*0.07/(Data!$M$23+Data!$M$23/10*Data!$M$29)*0.8*2*10)/100*0.8*1000-50 -> 36700 | AD9: =(SQRT(PI()^2*2.1*1000000*0.5/4/(Data!$M$23/10+1))/100*0.8)*1000-50 -> 12227 | AE9: =IF(AND(AC9>Data!$M$25,Data!AD9>Data!$M$25),0,1) -> 0 | AF9: 0 | AG9: 3 | AH9: =Z9*60*$M$28/2/$M$25/Input!$C$22/Input!$C$23/Input!$C$24 -> 88925811077.6 | AI9: =(M25+100)/1000*0.89/2*0.6^2 -> 0.0161802 | AJ9: =$M$26*($M$28/1000*60/2/3.14/Data!M9)^2*10^4 -> 0 | AK9: 0.0791 | AL9: =V9/$L$116/$E$59/Data!$L$115+$L$117+$F$59+($H$149+$L$118+(Data!AJ9+Data!AI9)/Data!$L$115^2)*3.14/Data!$L$115*Data!M9/Data!$C$43/10000/30 -> 0.1067111522 | AM9: =($H$149+$L$118+(Data!AJ9+Data!AI9)/Data!$L$115^2)/$H$149 -> 1.10 | AN9: 0.02 | AP9: 0.6
A10: 0 | B10: PC32…B10 | C10: 10 | D10: 1200 | E10: 6000 | F10: 3200 | G10: 20 | H10: 25 | I10: 9.2 | J10: 5.1 | K10: 7300 | L10: 7610 | M10: =Data!$M$28/Data!C10*60 -> 6 | N10: 0 | O10: =IF(Data!$M$29>20,1,0) -> 0 | P10: =IF(Data!$M$23<=Data!F10,0,1) -> 0 | Q10: =IF(Data!$M$24<=Data!G10,0,1) -> 0 | R10: =IF(Data!$M$25<=Data!D10,0,1) -> 0 | S10: 0.18 | T10: 0.180 | U10: =Data!$M$23*Data!C10/2000/PI()/0.8+Data!T10 -> 0.18 | V10: =(Data!$M$23+$M$26*Data!$M$29)*Data!C10/2000/PI()/0.8+T10 -> 0.18 | W10: 0 | X10: =1000000/60/M10*(L10/$R$25/(0.62*30+1.17*(Data!$M$23+$M$26*Data!$M$29+30)))^3 -> 7410484256 | Y10: =1000000/60/M10*(K10/$R$25/(Data!$M$23+$M$26*Data!$M$29+30))^3 -> 36272793051 | Z10: 7410484256 | AA10: =0.8*1.56*1.2*10^8*10.75/(50+Data!$M$25)^2 -> 618962 | AB10: 0 | AC10: =SQRT((PI())^2*2.1*10^6*0.07/(Data!$M$23+Data!$M$23/10*Data!$M$29)*0.8*2*10)/100*0.8*1000-50 -> 36700 | AD10: =(SQRT(PI()^2*2.1*1000000*0.5/4/(Data!$M$23/10+1))/100*0.8)*1000-50 -> 12227 | AE10: =IF(AND(AC10>Data!$M$25,Data!AD10>Data!$M$25),0,1) -> 0 | AF10: 0 | AG10: 4 | AH10: =Z10*60*$M$28/2/$M$25/Input!$C$22/Input!$C$23/Input!$C$24 -> 222314527693.9 | AI10: =(M25+100)/1000*0.89/2*0.6^2 -> 0.0161802 | AJ10: =$M$26*($M$28/1000*60/2/3.14/Data!M10)^2*10^4 -> 0 | AK10: 0.2026 | AL10: =V10/$L$116/$E$59/Data!$L$115+$L$117+$F$59+($H$149+$L$118+(Data!AJ10+Data!AI10)/Data!$L$115^2)*3.14/Data!$L$115*Data!M10/Data!$C$43/10000/30 -> 0.213674602 | AM10: =($H$149+$L$118+(Data!AJ10+Data!AI10)/Data!$L$115^2)/$H$149 -> 1.10 | AN10: 0.02 | AP10: 0.6
A11: 0 | B11: PC40…B05 | C11: 5 | D11: 1200 | E11: 5000 | F11: 6000 | G11: 50 | H11: 25 | I11: 24 | J11: 5.8 | K11: 14800 | L11: 11200 | M11: =Data!$M$28/Data!C11*60 -> 12 | N11: 0 | O11: =IF(Data!$M$29>20,1,0) -> 0 | P11: =IF(Data!$M$23<=Data!F11,0,1) -> 0 | Q11: =IF(Data!$M$24<=Data!G11,0,1) -> 0 | R11: =IF(Data!$M$25<=Data!D11,0,1) -> 0 | S11: 0.1 | T11: 0.100 | U11: =Data!$M$23*Data!C11/2000/PI()/0.8+Data!T11 -> 0.10 | V11: =(Data!$M$23+$M$26*Data!$M$29)*Data!C11/2000/PI()/0.8+T11 -> 0.10 | W11: 0 | X11: =1000000/60/M11*(L11/$R$25/(0.62*30+1.17*(Data!$M$23+$M$26*Data!$M$29+30)))^3 -> 11811816487 | Y11: =1000000/60/M11*(K11/$R$25/(Data!$M$23+$M$26*Data!$M$29+30))^3 -> 151135876234 | Z11: 11811816487 | AA11: =0.8*1.56*1.2*10^8*18.25/(50+Data!$M$25)^2 -> 1050796 | AB11: 0 | AC11: =SQRT((PI())^2*2.1*10^6*0.55/(Data!$M$23+Data!$M$23/10*Data!$M$29)*0.8*2*10)/100*0.8*1000-50 -> 102964 | AD11: =(SQRT(PI()^2*2.1*1000000*1.4/4/(Data!$M$23/10+1))/100*0.8)*1000-50 -> 20494 | AE11: =IF(AND(AC11>Data!$M$25,Data!AD11>Data!$M$25),0,1) -> 0 | AF11: 0 | AG11: 5 | AH11: =Z11*60*$M$28/2/$M$25/Input!$C$22/Input!$C$23/Input!$C$24 -> 354354494621.8 | AI11: =($M$25+100)/1000*2.47/2*1^2 -> 0.124735 | AJ11: =$M$26*($M$28/1000*60/2/3.14/Data!M11)^2*10^4 -> 0 | AK11: 0.1127 | AL11: =V11/$L$116/$E$59/Data!$L$115+$L$117+$F$59+($H$149+$L$118+(Data!AJ11+Data!AI11)/Data!$L$115^2)*3.14/Data!$L$115*Data!M11/Data!$C$43/10000/30 -> 0.1485124031 | AM11: =($H$149+$L$118+(Data!AJ11+Data!AI11)/Data!$L$115^2)/$H$149 -> 1.78 | AN11: 0.12 | AP11: 0.8
A12: 0 | B12: PC40…B10 | C12: 10 | D12: 1200 | E12: 5000 | F12: 6000 | G12: 50 | H12: 25 | I12: 24 | J12: 5.8 | K12: 15200 | L12: 11200 | M12: =Data!$M$28/Data!C12*60 -> 6 | N12: 0 | O12: =IF(Data!$M$29>20,1,0) -> 0 | P12: =IF(Data!$M$23<=Data!F12,0,1) -> 0 | Q12: =IF(Data!$M$24<=Data!G12,0,1) -> 0 | R12: =IF(Data!$M$25<=Data!D12,0,1) -> 0 | S12: 0.2 | T12: 0.200 | U12: =Data!$M$23*Data!C12/2000/PI()/0.8+Data!T12 -> 0.20 | V12: =(Data!$M$23+$M$26*Data!$M$29)*Data!C12/2000/PI()/0.8+T12 -> 0.20 | W12: 0 | X12: =1000000/60/M12*(L12/$R$25/(0.62*30+1.17*(Data!$M$23+$M$26*Data!$M$29+30)))^3 -> 23623632975 | Y12: =1000000/60/M12*(K12/$R$25/(Data!$M$23+$M$26*Data!$M$29+30))^3 -> 327448632883 | Z12: 23623632975 | AA12: =0.8*1.56*1.2*10^8*18.25/(50+Data!$M$25)^2 -> 1050796 | AB12: 0 | AC12: =SQRT((PI())^2*2.1*10^6*0.55/(Data!$M$23+Data!$M$23/10*Data!$M$29)*0.8*2*10)/100*0.8*1000-50 -> 102964 | AD12: =(SQRT(PI()^2*2.1*1000000*1.4/4/(Data!$M$23/10+1))/100*0.8)*1000-50 -> 20494 | AE12: =IF(AND(AC12>Data!$M$25,Data!AD12>Data!$M$25),0,1) -> 0 | AF12: 0 | AG12: 6 | AH12: =Z12*60*$M$28/2/$M$25/Input!$C$22/Input!$C$23/Input!$C$24 -> 708708989243.6 | AI12: =($M$25+100)/1000*2.47/2*1^2 -> 0.124735 | AJ12: =$M$26*($M$28/1000*60/2/3.14/Data!M12)^2*10^4 -> 0 | AK12: 0.2250 | AL12: =V12/$L$116/$E$59/Data!$L$115+$L$117+$F$59+($H$149+$L$118+(Data!AJ12+Data!AI12)/Data!$L$115^2)*3.14/Data!$L$115*Data!M12/Data!$C$43/10000/30 -> 0.2428473989 | AM12: =($H$149+$L$118+(Data!AJ12+Data!AI12)/Data!$L$115^2)/$H$149 -> 1.78 | AN12: 0.12 | AP12: 0.8
A13: 0 | B13: PC40…B20 | C13: 20 | D13: 1200 | E13: 5000 | F13: 6000 | G13: 50 | H13: 25 | I13: 24 | J13: 5.8 | K13: 13600 | L13: 11200 | M13: =Data!$M$28/Data!C13*60 -> 3 | N13: 0 | O13: =IF(Data!$M$29>20,1,0) -> 0 | P13: =IF(Data!$M$23<=Data!F13,0,1) -> 0 | Q13: =IF(Data!$M$24<=Data!G13,0,1) -> 0 | R13: =IF(Data!$M$25<=Data!D13,0,1) -> 0 | S13: 0.3 | T13: =M13/E13*S13*2+S13 -> 0.300 | U13: =Data!$M$23*Data!C13/2000/PI()/0.8+Data!T13 -> 0.30 | V13: =(Data!$M$23+$M$26*Data!$M$29)*Data!C13/2000/PI()/0.8+T13 -> 0.30 | W13: 0 | X13: =1000000/60/M13*(L13/$R$25/(0.62*30+1.17*(Data!$M$23+$M$26*Data!$M$29+30)))^3 -> 47247265950 | Y13: =1000000/60/M13*(K13/$R$25/(Data!$M$23+$M$26*Data!$M$29+30))^3 -> 469093201153 | Z13: 47247265950 | AA13: =0.8*1.56*1.2*10^8*18.25/(50+Data!$M$25)^2 -> 1050796 | AB13: 0 | AC13: =SQRT((PI())^2*2.1*10^6*0.55/(Data!$M$23+Data!$M$23/10*Data!$M$29)*0.8*2*10)/100*0.8*1000-50 -> 102964 | AD13: =(SQRT(PI()^2*2.1*1000000*1.4/4/(Data!$M$23/10+1))/100*0.8)*1000-50 -> 20494 | AE13: =IF(AND(AC13>Data!$M$25,Data!AD13>Data!$M$25),0,1) -> 0 | AF13: 0 | AG13: 7 | AH13: =Z13*60*$M$28/2/$M$25/Input!$C$22/Input!$C$23/Input!$C$24 -> 1417417978487.3 | AI13: =($M$25+100)/1000*2.47/2*1^2 -> 0.124735 | AJ13: =$M$26*($M$28/1000*60/2/3.14/Data!M13)^2*10^4 -> 0 | AK13: 0.3382 | AL13: =V13/$L$116/$E$59/Data!$L$115+$L$117+$F$59+($H$149+$L$118+(Data!AJ13+Data!AI13)/Data!$L$115^2)*3.14/Data!$L$115*Data!M13/Data!$C$43/10000/30 -> 0.347094983 | AM13: =($H$149+$L$118+(Data!AJ13+Data!AI13)/Data!$L$115^2)/$H$149 -> 1.78 | AN13: 0.12 | AP13: 0.8
D15: ="Distance"& " "&"["&D16&"]" -> Distance [mm] | G15: ="Speed"&" " &"["&G16&"]" -> Speed [mm/s]
A16: =Input!C13 -> Metric | B16: =IF(A16="Metric ",1,2) -> 1 | C16: =VLOOKUP(B16,B17:C18,2) -> Metric | D16: =VLOOKUP(B16,B17:D18,3) -> mm | E16: =VLOOKUP(B16,B17:E18,4) -> N | G16: =VLOOKUP(B16,B17:G18,6) -> mm/s | H16: =VLOOKUP(B16,B17:H18,7) -> m/s² | K16: =VLOOKUP(B16,B17:K18,10) -> m/s | M16: =IF(B16=1,1,2.20462) -> 1 | N16: =VLOOKUP(B16,B17:N18,13) -> kg | P16: Att ändra: | AN16: (AI7+AJ7)/$AE$51^2+$AE$54
B17: 1 | C17: Metric | D17: mm | E17: N | F17: =IF(B16=1,1,25.4) -> 1 | G17: mm/s | H17: m/s² | I17: =IF($B$16=1,1,25.4) -> 1 | K17: m/s | N17: kg | P17: Livslängdsberäkningarna skall inte innehålla hastighet | AK17: NEW FORMULAS INCLUDING MICRON GEARS
B18: 2 | C18: Imperial | D18: inch | E18: lbf | F18: =IF(B16=1,1,4.44822) -> 1 | G18: inch /s | H18: inch/s² | I18: =IF($B$16=1,1,0.0254) -> 1 | K18: inch/s | N18: lb | P18: lägg in val av vertikal applikation och tvinga användaren till att ange både massa och kraft samt horizontell applikation med external guide | AF18: $AE$53+$S$56+U7/$AE$52/$R$56/$AE$51 | AK18: Drive Torque constant | AL18: Drive torque acc | AM18: Inertia balance | AN18: System inertia
P19: lägg in koll så att peak moment inte är längre en 1 sek | AE19: Kolumn AK: | AF19: (Idle Torque_gear+Idle Torque unit+Drive torque from load)/Efficiency_Gear/Efficiency_unit/Ratio_Gear | AQ19: TEST av system inertia
P20: Kolla så att T rms ligger 80 procent av cont toruque vid specifikt medelvarvtal. Om inte så ta annan motor.
AK21: =IF($E$83=1,$L$117+$F$59+U7/$L$116/$E$59/$L$115,$E$90+$F$59+U7/$G$90/$E$59/$D$90) -> 0.0565 | AL21: =IF($E$83=2,V7/$G$90/$E$59/$D$90+$E$90+$F$59+($H$149+$F$90+(AJ7+AI7)/$D$90^2)*3.14/$D$90*M7/$C$43/10000/30,V7/$L$116/$E$59/Data!$L$115+$L$117+$F$59+($H$149+$L$118+(Data!AJ7+Data!AI7)/Data!$L$115^2)*3.14/Data!$L$115*Data!M7/Data!$C$43/10000/30) -> 0.091628369 | AM21: =IF($E$83=2,(IF(OR($C$59=1,$C$59=3),($H$149+$F$90+(AJ7+AI7)/$D$90^2)/$H$149,($H$149+$F$90+(AJ7+AI7+AP7)/$D$90^2)/$H$149)),IF(OR($C$59=1,$C$59=3),($H$149+$L$118+(Data!AJ7+Data!AI7)/Data!$L$115^2)/$H$149,($H$149+$L$118+(Data!AJ7+Data!AI7+AP7)/Data!$L$115^2)/$H$149)) -> 1.05 | AN21: =IF($E$83=2,(IF(OR($C$59=1,$C$59=3),(AI7+AJ7)/$D$90^2+$F$90,(AI7+AJ7+AP7)/$D$90^2+$F$90)),IF(OR($C$59=1,$C$59=3),(AI7+AJ7)/$L$115^2+$L$118,(AI7+AJ7+AP7)/$L$115^2+$L$118)) -> 0.01 | AQ21: Fall1 | AS21: =IF(AND($E$83=3, $C$59<>2),AI7+AJ7,"NA") -> 0.01 | AT21: LX
AE22: Kolumn AL: | AF22: V7/$AE$52/$R$56/Data!$AE$51+$AE$53+$S$56+($H$68+$AE$54+(Data!AJ7+Data!AI7)/Data!$AE$51^2)*3,14/Data!$AE$51*Data!M7/Data!$C$43/10000/30 | AK22: 0.1691 | AL22: =IF($E$83=2,V8/$G$90/$E$59/$D$90+$E$90+$F$59+($H$149+$F$90+(AJ8+AI8)/$D$90^2)*3.14/$D$90*M8/$C$43/10000/30,V8/$L$116/$E$59/Data!$L$115+$L$117+$F$59+($H$149+$L$118+(Data!AJ8+Data!AI8)/Data!$L$115^2)*3.14/Data!$L$115*Data!M8/Data!$C$43/10000/30) -> 0.179666719 | AM22: =IF($E$83=2,(IF(OR($C$59=1,$C$59=3),($H$149+$F$90+(AJ8+AI8)/$D$90^2)/$H$149,($H$149+$F$90+(AJ8+AI8+AP8)/$D$90^2)/$H$149)),IF(OR($C$59=1,$C$59=3),($H$149+$L$118+(Data!AJ8+Data!AI8)/Data!$L$115^2)/$H$149,($H$149+$L$118+(Data!AJ8+Data!AI8+AP8)/Data!$L$115^2)/$H$149)) -> 1.05 | AN22: 0.01 | AQ22: Fall2 | AS22: =IF(AND($C$59=2,$E$83=3),AI7+AJ7+AP7,"NA") -> NA | AT22: PA
A23: STEP 1 | D23: 1= not OK, 0 = OK | K23: Fx | L23: =Input!C14 -> 1 | M23: =L23*F18 -> 1 | N23: C11 | R23: SEE COLUMN AP for fm factors | AF23: V7/Efficiency gear/R56/Ratio Gear+IdleTorque Gear+S56+(H68+Inertia Gear+(AJ7+AI7)/Ratio gear*exp2)3,14/Ratio Gear*M7/c43/10000/30 | AK23: 0.0791 | AL23: =IF($E$83=2,V9/$G$90/$E$59/$D$90+$E$90+$F$59+($H$149+$F$90+(AJ9+AI9)/$D$90^2)*3.14/$D$90*M9/$C$43/10000/30,V9/$L$116/$E$59/Data!$L$115+$L$117+$F$59+($H$149+$L$118+(Data!AJ9+Data!AI9)/Data!$L$115^2)*3.14/Data!$L$115*Data!M9/Data!$C$43/10000/30) -> 0.106711152 | AM23: =IF($E$83=2,(IF(OR($C$59=1,$C$59=3),($H$149+$F$90+(AJ9+AI9)/$D$90^2)/$H$149,($H$149+$F$90+(AJ9+AI9+AP9)/$D$90^2)/$H$149)),IF(OR($C$59=1,$C$59=3),($H$149+$L$118+(Data!AJ9+Data!AI9)/Data!$L$115^2)/$H$149,($H$149+$L$118+(Data!AJ9+Data!AI9+AP9)/Data!$L$115^2)/$H$149)) -> 1.10 | AN23: 0.02 | AQ23: Fall3 | AS23: =IF(AND($E$83=2,$C$59=1),AI7+AJ7+$F$90,"NA") -> NA | AT23: LX+Micron
A24: Fm factors | D24: Force OK? | G24: Max force | K24: Fy | L24: =Input!C17 -> 0 | M24: =L24*F18 -> 0 | N24: C13 | AK24: 0.2026 | AL24: =IF($E$83=2,V10/$G$90/$E$59/$D$90+$E$90+$F$59+($H$149+$F$90+(AJ10+AI10)/$D$90^2)*3.14/$D$90*M10/$C$43/10000/30,V10/$L$116/$E$59/Data!$L$115+$L$117+$F$59+($H$149+$L$118+(Data!AJ10+Data!AI10)/Data!$L$115^2)*3.14/Data!$L$115*Data!M10/Data!$C$43/10000/30) -> 0.213674602 | AM24: =IF($E$83=2,(IF(OR($C$59=1,$C$59=3),($H$149+$F$90+(AJ10+AI10)/$D$90^2)/$H$149,($H$149+$F$90+(AJ10+AI10+AP10)/$D$90^2)/$H$149)),IF(OR($C$59=1,$C$59=3),($H$149+$L$118+(Data!AJ10+Data!AI10)/Data!$L$115^2)/$H$149,($H$149+$L$118+(Data!AJ10+Data!AI10+AP10)/Data!$L$115^2)/$H$149)) -> 1.10 | AN24: 0.02 | AQ24: Fall4 | AS24: =IF(AND($E$83=2, $C$59=2),AI7+AJ7+$F$90+AP7,"NA") -> NA | AT24: PA+Micron
A25: 1 | D25: Fx | E25: =IF(AND(B16=1,M23>6000),1,IF(AND(B16=2,M23>6000),1,0)) -> 0 | G25: =IF(B16=1,6000,1348) -> 6000 | K25: Stroke | L25: =Input!C18 -> 1 | M25: =L25*F17 -> 1 | N25: C14 | Q25: fm | R25: =Input!C21 -> 1 | S25: =VLOOKUP(Input!C21,Data!Q26:S29,3) ->  | AE25: Kolumn AM: | AF25: ($H$68+AE54+(Data!AJ7+Data!AI7)/Data!$AE$51^2)/$H$68 | AK25: 0.1127 | AL25: =IF($E$83=2,V11/$G$90/$E$59/$D$90+$E$90+$F$59+($H$149+$F$90+(AJ11+AI11)/$D$90^2)*3.14/$D$90*M11/$C$43/10000/30,V11/$L$116/$E$59/Data!$L$115+$L$117+$F$59+($H$149+$L$118+(Data!AJ11+Data!AI11)/Data!$L$115^2)*3.14/Data!$L$115*Data!M11/Data!$C$43/10000/30) -> 0.148512403 | AM25: =IF($E$83=2,(IF(OR($C$59=1,$C$59=3),($H$149+$F$90+(AJ11+AI11)/$D$90^2)/$H$149,($H$149+$F$90+(AJ11+AI11+AP11)/$D$90^2)/$H$149)),IF(OR($C$59=1,$C$59=3),($H$149+$L$118+(Data!AJ11+Data!AI11)/Data!$L$115^2)/$H$149,($H$149+$L$118+(Data!AJ11+Data!AI11+AP11)/Data!$L$115^2)/$H$149)) -> 1.78 | AN25: 0.12 | AQ25: Fall5 | AS25: =IF(AND($C$59=2,$E$83=1),AI7+AJ7+$L$118+AP7,"NA") -> NA | AT25: PA+Cust
A26: 0.8 | D26: Fy Fz | E26: =IF(AND(B16=1,M24>50),1,IF(AND(B16=2,M24>50),1,0)) -> 0 | G26: =IF(B16=1,50,11) -> 50 | K26: Mass | L26: =Input!C16 -> 0 | M26: =L26/M16 -> 0 | N26: C12 | Q26: A: fm=1 | R26: 1 | S26: Typical application for lifting/lowering load or constant force | AF26: H68+inertia Gear+(AJ7+AI7)/Ratio Gear*exp2/H68 | AK26: 0.2250 | AL26: =IF($E$83=2,V12/$G$90/$E$59/$D$90+$E$90+$F$59+($H$149+$F$90+(AJ12+AI12)/$D$90^2)*3.14/$D$90*M12/$C$43/10000/30,V12/$L$116/$E$59/Data!$L$115+$L$117+$F$59+($H$149+$L$118+(Data!AJ12+Data!AI12)/Data!$L$115^2)*3.14/Data!$L$115*Data!M12/Data!$C$43/10000/30) -> 0.242847399 | AM26: =IF($E$83=2,(IF(OR($C$59=1,$C$59=3),($H$149+$F$90+(AJ12+AI12)/$D$90^2)/$H$149,($H$149+$F$90+(AJ12+AI12+AP12)/$D$90^2)/$H$149)),IF(OR($C$59=1,$C$59=3),($H$149+$L$118+(Data!AJ12+Data!AI12)/Data!$L$115^2)/$H$149,($H$149+$L$118+(Data!AJ12+Data!AI12+AP12)/Data!$L$115^2)/$H$149)) -> 1.78 | AN26: 0.12 | AQ26: Fall6 | AS26: =IF(AND($E$83=1,$C$59=1),AI7+AJ7+$L$118,"NA") -> NA | AT26: LX+Cust
A27: 0.7 | D27: Stroke OK? | G27: Max stroke | K27: Avr. Speed | L27: =M27/I17 -> 0.999000999 | M27: =C49*1000 -> 0.999000999 | N27: G14 | Q27: B: fm=0.8 | R27: 0.8 | S27: Typical application for feeding. High force forward, low return | AE27: Kolumn AN: | AF27: AI7+AJ7+$AE$54 | AK27: 0.3382 | AL27: =IF($E$83=2,V13/$G$90/$E$59/$D$90+$E$90+$F$59+($H$149+$F$90+(AJ13+AI13)/$D$90^2)*3.14/$D$90*M13/$C$43/10000/30,V13/$L$116/$E$59/Data!$L$115+$L$117+$F$59+($H$149+$L$118+(Data!AJ13+Data!AI13)/Data!$L$115^2)*3.14/Data!$L$115*Data!M13/Data!$C$43/10000/30) -> 0.347094983 | AM27: =IF($E$83=2,(IF(OR($C$59=1,$C$59=3),($H$149+$F$90+(AJ13+AI13)/$D$90^2)/$H$149,($H$149+$F$90+(AJ13+AI13+AP13)/$D$90^2)/$H$149)),IF(OR($C$59=1,$C$59=3),($H$149+$L$118+(Data!AJ13+Data!AI13)/Data!$L$115^2)/$H$149,($H$149+$L$118+(Data!AJ13+Data!AI13+AP13)/Data!$L$115^2)/$H$149)) -> 1.78 | AN27: 0.12
A28: 0.5 | D28: Stroke | E28: =IF(AND(B16=1,M25>1200),1,IF(AND(B16=2,M25>1200),1,0)) -> 0 | G28: =IF(B16=1,1200,47) -> 1200 | K28: Top speed | L28: =M28/I17 -> 1 | M28: =Input!C19*I17 -> 1 | N28: C15 | Q28: C: fm=0.5 | R28: 0.5 | S28: Typical application for pressing/cutting. High force at just one part of stroke | AF28: AI7+AJ7+Inertia Gear
D29: Speed OK? | G29: Max speed | K29: Acc | L29: =M29/I18 -> 1 | M29: =Input!C20*I18 -> 1 | N29: C16 | Q29: D:fm=0,7 | R29: 0.7 | S29: Typical application for compression spring. Increasing force.
D30: Speed | E30: =IF(AND(B16=1,M28>1666),1,IF(AND(B16=2,M28>1666),1,0)) -> 0 | G30: =IF(B16=1,1666,65) -> 1666 | M30: input
D31: Acc OK? | L31: =C16 -> Metric | M31: output
D32: Acc | E32: =IF(AND(B16=1,M29>10),1,IF(AND(B16=2,M29>10),1,0)) -> 0 | G32: =IF(B16=1,10,393) -> 10 | M32: Metric
D33: Sum | E33: =SUM(E25:E32) -> 0
B36: Customized profile
A38: Acceleration | C38: =M29 -> 1 | D38: m/s2 | I38: =IF((J42+J44)>H40,1,0) -> 0 | L38: =LOOKUP(Input!$C$15,Data!$M$39:$M$40,Data!$L$39:$L$40) -> 1 | M38: Force active during stop?
A39: Deceleration | C39: =C38 -> 1 | D39: m/s2 | I39: =IF(I38=1,J39,C41) -> 0.001 | J39: =I43*C38 -> 0.0316227766 | L39: 1 | M39: No | AP39: fm factors
A40: Distance (stroke) | C40: =M25 -> 1 | D40: mm | H40: =C40/1000 -> 0.001 | L40: 2 | M40: Yes | AP40: 1.00
A41: Speed | C41: =M28/1000 -> 0.001 | D41: m/s | AP41: 0.99
A42: Distance for acc. | C42: =1000*H42 -> 0 | D42: mm | H42: =IF(I38=0,J42,I42) -> 0.000 | I42: =H40*C39/(C39+C38) -> 0.0005 | J42: =C38*J43*J43/2 -> 5e-07 | AP42: 0.98
A43: Time for acc. | C43: =IF($I$168=0,J43,I43) -> 0.001 | D43: s | I43: =SQRT(2*I42/C38) -> 0.0316227766 | J43: =C41/C38 -> 0.001 | AP43: 0.97
A44: Distance for decel. | C44: =H44*1000 -> 0 | D44: mm | H44: =IF(I38=0,J44,I44) -> 0.000 | I44: =H40*C38/(C39+C38) -> 0.0005 | J44: =C39*J45*J45/2 -> 5e-07 | AP44: 0.96
A45: Time for decel. | C45: =IF($I$168=0,J45,I45) -> 0.001 | D45: s | I45: =SQRT(2*I44/C39) -> 0.0316227766 | J45: =C41/C39 -> 0.001 | K45: =IF(E33=0,0,"") -> 0 | L45: =IF(E33=0,H42*1000/F17,"") -> 0.001 | M45: =IF(E33=0,L45+H46*1000/F17,"") -> 1.000 | N45: =IF(E33=0,H40*1000/F17,"") -> 1 | AP45: 0.95
A46: Dist. at const speed | C46: =H46*1000 -> 1 | D46: mm | H46: =H40-H42-H44 -> 0.001 | J46: =IF((H42+H44)>H40,"Du når ej önskad max hastighet"," ") ->  | K46: =IF(E33=0,0,"") -> 0 | L46: =IF(E33=0,I39/I18*1000,"") -> 1 | M46: =L46 -> 1 | N46: =IF(E33=0,0,"") -> 0 | AP46: 0.94
A47: Time at const speed | C47: =H46/C41 -> 0.999 | D47: s | AP47: 0.93
A48: Cycle time | C48: =IF($I$168=0,J48,I48) -> 1.001 | D48: s | I48: =I43+I45 -> 0.0632455532 | J48: =C45+C43+C47 -> 1.001 | AP48: 0.92
A49: Average speed | C49: =H40/C48 -> 0.001 | D49: m/s | E49: =C49/4*60*1000 -> 14.98501499 | L49: Cycles per min | M49: =Input!C22 -> 1 | AP49: 0.91
A50: Pause time | C50: =((1-Input!$C$27)*60)/Input!$C$22 -> 57.998 | D50: s | E50: =C42/C43+C44/C45+C46/C47 -> 2 | F50: =E50/3 -> 0.6666666667 | G50: =(F50*60)/4 -> 10 | L50: Cycle time | M50: =C48 -> 1.001 | AP50: 0.90
A51: =IF(I38=1,"You will not reach full speed!"," ") ->  | L51: Duty Cycle | M51: =M49*M50*2/60 -> 3% | AP51: 0.89
A52: =IF(I38=1,"You will reach: "&ROUND(C52,0)," ") ->  | C52: =IF(AND(B16=1,I38=1),(I43*C38/I18)*1000,IF(I38=1,I43*C38/I18," ")) ->  | D52: =IF(I38=1,G16," ") ->  | AP52: 0.88
AP53: 0.87
AP54: 0.86
AP55: 0.85
AP56: 0.84
B57: STEP 2 | AP57: 0.83
C58: PC Version | D58: Type | E58: Efficency | F58: Idle Torque | G58: Ratio | AP58: 0.82
C59: =LOOKUP(Input!$H$15,Data!$D$60:$D$62,Data!$C$60:$C$62) -> 1 | D59: =VLOOKUP(C59,C60:F62,2,FALSE) -> LX-In Line | E59: =VLOOKUP(C59,C60:F62,3,FALSE) -> 90% | F59: =VLOOKUP(C59,C60:F62,4,FALSE) -> 0 | G59: =VLOOKUP(C59,C60:G62,5,FALSE) -> 1 | AP59: 0.81
C60: 1 | D60: LX-In Line | E60: 90% | F60: 0 | G60: 1 | AP60: 0.80
C61: 2 | D61: PA-Parallel | E61: 80% | F61: 0.1 | G61: 1 | AP61: 0.79
C62: 3 | D62: SX-No RediMount | E62: 90% | F62: 0 | G62: 1 | AP62: 0.78
AP63: 0.77
AP64: 0.76
C65: Cylinder mounting compatibility | AP65: 0.75
D66: 2 | E66: 3 | F66: 4 | G66: 5 | H66: 6 | I66: 7 | J66: 8 | AP66: 0.74
C67: SX-No RediMount | D67: X-Without cylinder mounting | E67: - | F67: - | G67: - | H67: M-Trunnion (movable) | I67: T-Front trunnion (fixed on to housing) | J67: P-Front mounting plate | AP67: 0.73
C68: LX-In Line | D68: X-Without cylinder mounting | E68: - | F68: - | G68: F-Feet Kit | H68: M-Trunnion (movable) | I68: T-Front trunnion (fixed on to housing) | J68: P-Front mounting plate | AP68: 0.72
C69: PA-Parallel | D69: X-Without cylinder mounting | E69: R-Rear Trunnion (fixed onto belt gear) | F69: C-Rear Clevis | G69: F-Feet Kit | H69: M-Trunnion (movable) | I69: T-Front trunnion (fixed on to housing) | J69: P-Front mounting plate | AP69: 0.71
AP70: 0.70
D71: Cylinder Mounting | H71: Rod End | AP71: 0.69
C72: =LOOKUP(Input!$L$15,Data!$D$73:$D$79,Data!$C$73:$C$79) -> 2 | D72: =Input!$L$15 -> F-Feet Kit | E72: PC-version | G72: =LOOKUP(Input!$L$18,Data!$H$73:$H$76,Data!$G$73:$G$76) -> 1 | I72: PC-version | AP72: 0.68
C73: 1 | D73: =VLOOKUP($D$59,$C$67:$J$69,C75+1,FALSE) -> - | E73: PA | G73: 1 | H73: C-Front Clevis | I73: PA,LX,SX | AP73: 0.67
C74: 2 | D74: =VLOOKUP($D$59,$C$67:$J$69,C76+1,FALSE) -> F-Feet Kit | E74: PA,LX | G74: 2 | H74: F-Female thread | I74: PA,LX,SX | P74: SENT TO INPUT AS OUTPUT IN TABLE AT BOTTOM | X74: RediMount ID | AP74: 0.66
C75: 3 | D75: =VLOOKUP($D$59,$C$67:$J$69,C77+1,FALSE) -> M-Trunnion (movable) | E75: PA,LX,SX | G75: 3 | H75: J-Spherical joint | I75: PA,LX,SX | W75: 1 | X75: AKM Servo | Y75: =IF(AND($J$150=1,B150<=14,$E$83<>2),LOOKUP($B$209,$R$209:$R$246,$N$209:$N$246),IF($C$90="NT23",127,"")) -> 004 | AP75: 0.65
C76: 4 | D76: =VLOOKUP($D$59,$C$67:$J$69,C79+1,FALSE) -> P-Front mounting plate | E76: PA,LX,SX | G76: 4 | H76: M-Male thread (standard) | I76: PA,LX,SX | O76: Current motor | P76: Current iput voltage | Q76: Current PC-type | R76: Current gear | W76: 2 | X76: PMX stepper | Y76: =IF($J$150=2,LOOKUP($B$150,$N$357:$N$380,$U$357:$U$380),"xxx") -> xxx | AP76: 0.64
C77: 5 | D77: =VLOOKUP($D$59,$C$67:$J$69,C74+1,FALSE) -> - | E77: PA | O77: =$C$150 -> AKM22E | P77: =$K$170 -> 240 | Q77: =$D$59 -> LX-In Line | R77: =$E$84 -> No Gear | W77: 3 | X77: Brushed DC motor | Y77: =IF(AND($J$150=3,$B$150<=2),LOOKUP(B378,B379:B380,I379:I380),"xxx") -> xxx | AP77: 0.63
C78: 6 | D78: =VLOOKUP($D$59,$C$67:$J$69,C78+1,FALSE) -> T-Front trunnion (fixed on to housing) | E78: PA,LX,SX | P78: 1=Villkor gäller | Q78: 0= Villkor gäller inte | AP78: 0.62
C79: 7 | D79: =VLOOKUP($D$59,$C$67:$J$69,C73+1,FALSE) -> X-Without cylinder mounting | E79: PA,LX,SX | O79: Kollar motorstorlek mot | P79: PC25 | Q79: PC32 | R79: PC40 | S79: Output Redimount | T79: Ouput PN | AP79: 0.61
O80: SX | P80: =IF($C$59=3,1,0) -> 0 | Q80: =IF($C$59=3,1,0) -> 0 | R80: =IF($C$59=3,1,0) -> 0 | S80: Unit without redimount | T80: XXX | AP80: 0.60
O81: LX utan växel | U81: AKM3 passar inte | W81: Drop down menu | X81: Life time | AP81: 0.59
C82: Type of Gear | D82: Nbr | E82: Current Choice | O82: 120;240 Volt | P82: =IF(AND($J$150=1,$J$170<3,$B$150>7,$C$59=1,$E$83=3),1,0) -> 0 | S82: No physical match between motor and PC-unit | T82: Try with a smaller motor | U82: PC25 LX utan växel | X82: Hours | Y82: Years | Z82: M. of Cycles | AP82: 0.58
C83: Customer Supplied | D83: 1 | E83: =LOOKUP(Input!H21,Data!C83:C85,Data!D83:D85) -> 3 | O83: 400 Volt | P83: =IF(AND($J$150=1,$J$170=3,$B$150>3,$C$59=1,$E$83=3),1,0) -> 0 | S83: No physical match between motor and PC-unit | T83: Try with a smaller motor | U83: PC25 PA | W83: Hours | X83: =IF(IF(X7<Y7,X7,Y7)>100000,">100 000",IF(X7<Y7,X7,Y7)) -> >100 000 | Y83: =IF(AH7>50,">50",AH7) -> >50 | Z83: =IF(Z7*3600/$M$25*$M$28/2/1000000>200,"> 200",Z7*3600/$M$25*$M$28/2/1000000) -> > 200 | AP83: 0.57
C84: Micron Gear | D84: 2 | E84: =Input!$H$21 -> No Gear | O84: PA | W84: Years | X84: >100 000 | Y84: >50 | Z84: > 200 | AP84: 0.56
C85: No Gear | D85: 3 | O85: 120;240 Volt | P85: =IF(AND($J$150=1,$J$170<3,$B$150>7,$C$59=2),1,0) -> 0 | Q85: =IF(AND($J$150=1,$C$59=2,$J$170<3,$B$150>10),1,0) -> 0 | S85: No physical match between motor and PC-unit | T85: Try with a smaller motor | U85: AKM4 passar inte | W85: Millions of cycles | X85: >100 000 | Y85: >50 | Z85: > 200 | AP85: 0.55
O86: 400 Volt | P86: =IF(AND($J$150=1,$J$170=3,$B$150>3,$C$59=2),1,0) -> 0 | Q86: =IF(AND($J$150=1,$C$59=2,$J$170=3,$B$150>6),1,0) -> 0 | S86: No physical match between motor and PC-unit | T86: Try with a smaller motor | U86: PC32 PA | X86: >100 000 | Y86: >50 | Z86: > 200 | AP86: 0.54
C87: Micron Gear Option | H87: Used in drop-down | O87: Errors motor size | P87: =SUM(P80:P86) -> 0 | Q87: =SUM(Q80:Q86) -> 0 | R87: 0 | U87: PC25 LX utan växel | X87: >100 000 | Y87: >50 | Z87: > 200 | AP87: 0.53
C88: Current Choice | X88: >100 000 | Y88: >50 | Z88: > 200 | AP88: 0.52
C89: Gear | D89: Ratio | E89: Idle Torque | F89: Inertia | G89: Efficiency | H89: NT23 | O89: Micron+cust.Motor | P89: =IF(AND($E$83=2,$J$150=4),1,0) -> 0 | Q89: =IF(AND($E$83=2,$J$150=4),1,0) -> 0 | R89: =IF(AND($E$83=2,$J$150=4),1,0) -> 0 | S89: 127 | T89: Redimount ID | X89: >100 000 | Y89: >50 | Z89: > 200 | AP89: 0.51
C90: =IF($E$83=2,Input!I22,0) -> 0 | D90: =IF($E$83=2,Input!I23,1) -> 1 | E90: =IF(AND(E83=2,$C$90="NT23"),VLOOKUP($D$90,$D$94:$K$98,6,FALSE),0) -> 0 | F90: =IF(AND($E$83=2,$C$90="NT23"),VLOOKUP($D$90,$D$94:$K$98,7,FALSE),0) -> 0 | G90: =IF(AND($E$83=2,$C$90="NT23"),VLOOKUP($D$90,$D$94:$K$98,8,FALSE),1) -> 1 | H90: Used in calculations | O90: Cust.Mot or gear | P90: =IF(OR($E$83=1,$J$150=4),1,0) -> 0 | Q90: =IF(OR($E$83=1,$J$150=4),1,0) -> 0 | R90: =IF(OR($E$83=1,$J$150=4),1,0) -> 0 | S90: Check motor and/or gear dimensions in RediMount Tool | T90: 999 | AP90: 0.50
C91: Gear active? | D91: FALSE | O91: Sum errors | P91: =SUM(P89:P90) -> 0 | Q91: =SUM(Q89:Q90) -> 0 | R91: =SUM(R89:R90) -> 0 | AP91: 0.49
C92: NT23 | E92: Torque [Nm] at specified rpm for 20 000 H life time | O92: Om AK105=0 | P92: =VLOOKUP($J$150,$W$75:$Y$77,3,FALSE) -> 004 | Q92: =VLOOKUP($J$150,$W$75:$Y$77,3,FALSE) -> 004 | R92: =VLOOKUP($J$150,$W$75:$Y$77,3,FALSE) -> 004 | X92: Sent to input | AP92: 0.48
C93: P/N | D93: Ratio | E93: 1000 | F93: 2000 | G93: 3000 | H93: 4000 | I93: Idle Torque | J93: Inertia | K93: Efficiency | L93: RediMount ID PC unit | W93: 1 | X93: =IF($C$59=3,CONCATENATE(P104,Q104,R104,"XXX",T104,U104,V104,W104,X104),IF(AND(Input!J49="OK",V104<>"-",LEFT(S104,1)<>"N",$E$83<>1,$J$150<>4),CONCATENATE(P104,Q104,R104,S104,T104,U104,V104,W104,X104),IF(AND($E$83=2,$J$150=4,$C$59<>3),CONCATENATE(P104,Q104,R104,Y75,T104,U104,V104,W104,X104),IF(OR($E$83=1,$J$150=4),CONCATENATE(P104,Q104,R104,"999",T104,U104,V104,W104,X104),CONCATENATE(P104,Q104,R104,"xxx",T104,U104,V104,W104,X104))))) -> PC25LX004B03-01FC1 | AP93: 0.47
C94: NT23-003 | D94: 3 | E94: 11.1 | F94: 9 | G94: 7.9 | H94: 7.3 | I94: 0.001 | J94: 0.076 | K94: 93% | L94: 127 | W94: 2 | X94: =IF($C$59=3,CONCATENATE(P105,Q105,R105,"XXX",T105,U105,V105,W105,X105),IF(AND(Input!J49="OK",V105<>"-",LEFT(S105,1)<>"N",$E$83<>1,$J$150<>4),CONCATENATE(P105,Q105,R105,S105,T105,U105,V105,W105,X105),IF(AND($E$83=2,$J$150=4,$C$59<>3),CONCATENATE(P105,Q105,R105,Y75,T105,U105,V105,W105,X105),IF(AND(Input!J50="OK",V105<>"-",LEFT(S105,1)<>"N",$E$83<>1,$J$150<>4),CONCATENATE(P105,Q105,R105,S105,T105,U105,V105,W105,X105),IF(AND($E$83=2,$J$150=4,$C$59<>3),CONCATENATE(P105,Q105,R105,$Y$75,T105,U105,V105,W105,X105),IF(OR($E$83=1,$J$150=4),CONCATENATE(P105,Q105,R105,"999",T105,U105,V105,W105,X105),CONCATENATE(P105,Q105,R105,"xxx",T105,U105,V105,W105,X105))))))) -> PC25LX004B10-01FC1 | AP94: 0.46
C95: NT23-005 | D95: 5 | E95: 11.9 | F95: 9.9 | G95: 8.8 | H95: 8 | I95: 0.001 | J95: 0.025 | K95: 93% | L95: 127 | P95: =IF($P$87<>0,VLOOKUP(1,$P$80:$T$86,5,FALSE),IF($R$91<>0,VLOOKUP(1,$P$89:$T$90,5,FALSE),$P$92)) -> 004 | W95: 3 | X95: =IF($C$59=3,CONCATENATE(P106,Q106,R106,"XXX",T106,U106,V106,W106,X106),IF(AND(Input!J49="OK",V106<>"-",LEFT(S106,1)<>"N",$E$83<>1,$J$150<>4),CONCATENATE(P106,Q106,R106,S106,T106,U106,V106,W106,X106),IF(AND($E$83=2,$J$150=4,$C$59<>3),CONCATENATE(P106,Q106,R106,Y75,T106,U106,V106,W106,X106),IF(AND(Input!J51="OK",V106<>"-",$C$59=2,LEFT(S106,1)="N",$E$83<>1,$J$150<>4),CONCATENATE(P106,Q106,R106,"xxx",T106,U106,V106,W106,X106),IF(AND($E$83=2,$J$150=4,$C$59<>3),CONCATENATE(P106,Q106,R106,$Y$75,T106,U106,V106,W106,X106),IF(OR($E$83=1,$J$150=4),CONCATENATE(P106,Q106,R106,"999",T106,U106,V106,W106,X106,),CONCATENATE(P106,Q106,R106,S106,T106,U106,V106,W106,X106))))))) -> PC32LX004B04-01FC1 | AP95: 0.45
C96: NT23-010 | D96: 10 | E96: 7.1 | F96: 6.6 | G96: 6.1 | H96: 5.9 | I96: 0.001 | J96: 0.016 | K96: 93% | L96: 127 | W96: 4 | X96: =IF($C$59=3,CONCATENATE(P107,Q107,R107,"XXX",T107,U107,V107,W107,X107),IF(AND(Input!J49="OK",V107<>"-",LEFT(S107,1)<>"N",$E$83<>1,$J$150<>4),CONCATENATE(P107,Q107,R107,S107,T107,U107,V107,W107,X107),IF(AND($E$83=2,$J$150=4,$C$59<>3),CONCATENATE(P107,Q107,R107,Y75,T107,U107,V107,W107,X107),IF(AND(Input!J52="OK",V107<>"-",$C$59=2,LEFT(S107,1)="N",$E$83<>1,$J$150<>4),CONCATENATE(P107,Q107,R107,"xxx",T107,U107,V107,W107,X107),IF(AND($E$83=2,$J$150=4,$C$59<>3),CONCATENATE(P107,Q107,R107,$Y$75,T107,U107,V107,W107,X107),IF(OR($E$83=1,$J$150=4),CONCATENATE(P107,Q107,R107,"999",T107,U107,V107,W107,X107,),CONCATENATE(P107,Q107,R107,S107,T107,U107,V107,W107,X107))))))) -> PC32LX004B10-01FC1 | AP96: 0.44
C97: NT23-015 | D97: 15 | E97: 14 | F97: 12.4 | G97: 11.9 | H97: 11.3 | I97: 0.001 | J97: 0.024 | K97: 88% | L97: 127 | W97: 5 | X97: =IF($C$59=3,CONCATENATE(P108,Q108,R108,"XXX",T108,U108,V108,W108,X108),IF(AND(Input!J49="OK",V108<>"-",LEFT(S108,1)<>"N",$E$83<>1,$J$150<>4),CONCATENATE(P108,Q108,R108,S108,T108,U108,V108,W108,X108),IF(AND($E$83=2,$J$150=4,$C$59<>3),CONCATENATE(P108,Q108,R108,Y75,T108,U108,V108,W108,X108),IF(AND(Input!J53="OK",V108<>"-",$E$83<>1,$J$150<>4),CONCATENATE(P108,Q108,R108,S108,T108,U108,V108,W108,X108),IF(AND($E$83=2,$J$150=4,$C$59<>3),CONCATENATE(P108,Q108,R108,$Y$75,T108,U108,V108,W108,X108),CONCATENATE(P108,Q108,R108,"999",T108,U108,V108,W108,X108,)))))) -> PC40LX004B05-01FC1 | AP97: 0.43
C98: NT23-025 | D98: 25 | E98: 9.8 | F98: 16 | G98: 14.1 | H98: 13 | I98: 0.001 | J98: 0.024 | K98: 88% | L98: 127 | W98: 6 | X98: =IF($C$59=3,CONCATENATE(P109,Q109,R109,"XXX",T109,U109,V109,W109,X109),IF(AND(Input!J49="OK",V109<>"-",LEFT(S109,1)<>"N",$E$83<>1,$J$150<>4),CONCATENATE(P109,Q109,R109,S109,T109,U109,V109,W109,X109),IF(AND($E$83=2,$J$150=4,$C$59<>3),CONCATENATE(P109,Q109,R109,Y75,T109,U109,V109,W109,X109),IF(AND(Input!J54="OK",V109<>"-",$E$83<>1,$J$150<>4),CONCATENATE(P109,Q109,R109,S109,T109,U109,V109,W109,X109),IF(AND($E$83=2,$J$150=4,$C$59<>3),CONCATENATE(P109,Q109,R109,$Y$75,T109,U109,V109,W109,X109),CONCATENATE(P109,Q109,R109,"999",T109,U109,V109,W109,X109,)))))) -> PC40LX004B10-01FC1 | AP98: 0.42
W99: 7 | X99: =IF($C$59=3,CONCATENATE(P110,Q110,R110,"XXX",T110,U110,V110,W110,X110),IF(AND(Input!J49="OK",V110<>"-",LEFT(S110,1)<>"N",$E$83<>1,$J$150<>4),CONCATENATE(P110,Q110,R110,S110,T110,U110,V110,W110,X110),IF(AND($E$83=2,$J$150=4,$C$59<>3),CONCATENATE(P110,Q110,R110,Y75,T110,U110,V110,W110,X110),IF(AND(Input!J55="OK",V110<>"-",$E$83<>1,$J$150<>4),CONCATENATE(P110,Q110,R110,S110,T110,U110,V110,W110,X110),IF(AND($E$83=2,$J$150=4,$C$59<>3),CONCATENATE(P110,Q110,R110,$Y$75,T110,U110,V110,W110,X110),CONCATENATE(P110,Q110,R110,"999",T110,U110,V110,W110,X110,)))))) -> PC40LX004B20-01FC1 | AP99: 0.41
C100: Micron Gear Part Numbers | AP100: 0.40
C101: INFO | G101: Choices made | O101: Full Part numbers PC | AP101: 0.39
D102: Current motor chosen | G102: Dynamic text depending on motor, gear and ratio | P102: Type | Q102: Size | R102: Tansmission | S102: Redimount ID | T102: Lead | U102: Stroke | V102: Cylinder Mounting | W102: Rod End | X102: Envrionmental | AP102: 0.38
D103: =C150 -> AKM22E | O103: Ordering key | P103: 1 | Q103: 2 | R103: 3 | S103: 4 | T103: 5 | U103: 6 | V103: 7 | W103: 8 | X103: 9 | AP103: 0.37
C104: Gear | D104: Motor | E104: RediMount ID Gear | F104: Building Part number | G104: Gear type and ratio | H104: RediMount ID | I104: Part number Sen to input | J104: Gear | K104: RediMount ID PC Unit | L104: Fits | O104: PC25…B03 | P104: PC | Q104: 25 | R104: =IF($C$59=1,"LX",IF($C$59=2,"PA",IF($C$59=3,"SX",""))) -> LX | S104: =Z115 -> 004 | T104: B03- | U104: ="0"&$C$40 -> 01 | V104: =LEFT(VLOOKUP($C$72,$C$73:$D$79,2,FALSE),1) -> F | W104: =LEFT(VLOOKUP($G$72,$G$73:$H$76,2,FALSE),1) -> C | X104: 1 | AP104: 0.36
C105: NT23 | D105: AKM1 | E105: RM60-130 | F105: NT23-003-0-RM60-130 | G105: =LOOKUP($D$90,$D$94:$D$98,$C$94:$C$98)&"-0-" ->  | H105: =IF(AND(J150=1,$E$83=2),LOOKUP(LEFT($C$150,4),$D$105:$D$108,$E$105:$E$108)) -> FALSE | I105: =IF(AND($J$150=1,$E$83=2),CONCATENATE($G$105,$H$105),IF($J$150<>1,"Only applicable with AKM","")) ->  | J105: NT17 | K105: 138 | L105: ALL | O105: PC25…B10 | P105: PC | Q105: 25 | R105: LX | S105: 004 | T105: B10- | U105: ="0"&$C$40 -> 01 | V105: F | W105: C | X105: 1 | AP105: 0.35
D106: AKM2 | E106: RM060-6 | F106: NT23-003-0-RM060-6 | I106: =IF(AND($J$150=1,$E$83=2),CONCATENATE($G$105,$H$105),IF($J$150<>1,"Only applicable with AKM","")) ->  | J106: NT23 | K106: 127 | L106: ALL | O106: PC32…B04 | P106: PC | Q106: 32 | R106: LX | S106: 004 | T106: B04- | U106: 01 | V106: F | W106: C | X106: 1 | AP106: 0.34
D107: AKM3 | E107: RM060-19 | F107: NT23-003-0-RM060-19 | I107: =IF(AND($J$150=1,$E$83=2,Input!J51="OK"),CONCATENATE($G$105,$H$105),IF($J$150<>1,"Only applicable with AKM","")) ->  | O107: PC32…B10 | P107: PC | Q107: 32 | R107: LX | S107: 004 | T107: B10- | U107: 01 | V107: F | W107: C | X107: 1 | AP107: 0.33
D108: AKM4 | E108: RM060-25 | F108: NT23-003-0-RM060-25 | I108: =IF(AND($J$150=1,$E$83=2,Input!J52="OK"),CONCATENATE($G$105,$H$105),IF($J$150<>1,"Only applicable with AKM","")) ->  | O108: PC40…B05 | P108: PC | Q108: 40 | R108: LX | S108: 004 | T108: B05- | U108: 01 | V108: F | W108: C | X108: 1 | AP108: 0.32
I109: =IF(AND($J$150=1,$E$83=2,Input!J53="OK"),CONCATENATE($G$105,$H$105),IF($J$150<>1,"Only applicable with AKM","")) ->  | O109: PC40…B10 | P109: PC | Q109: 40 | R109: LX | S109: 004 | T109: B10- | U109: 01 | V109: F | W109: C | X109: 1 | AP109: 0.31
I110: =IF(AND($J$150=1,$E$83=2,Input!J54="OK"),CONCATENATE($G$105,$H$105),IF($J$150<>1,"Only applicable with AKM","")) ->  | O110: PC40…B20 | P110: PC | Q110: 40 | R110: LX | S110: 004 | T110: B20- | U110: 01 | V110: F | W110: C | X110: 1 | AP110: 0.30
I111: =IF(AND($J$150=1,$E$83=2,Input!J55="OK"),CONCATENATE($G$105,$H$105),IF($J$150<>1,"Only applicable with AKM","")) ->  | AP111: 0.29
X112: RÄTTA FORMLER NEDAN, FÅNGAR INTE SX | AP112: 0.28
C113: Customer Supplied Gear option | AP113: 0.27
C114: Gear active? | D114: FALSE | Q114: Torque | X114: Unit | Y114: Output PN | Z114: Output redimount ID | AP114: 0.26
C115: 2 | F115: =VLOOKUP(C115,C116:F120,4) -> 65% - 80% | H115: =VLOOKUP(C115,C116:H120,6) -> 0.2 | K115: Ratio | L115: =IF($E$83=1,Input!I24,1) -> 1 | Q115: Acceleration | R115: Constant | S115: Decceleration | T115: Pause | U115: Trms | V115: RPMrms | W115: Vrms | X115: PC25…B03 | Y115: =IF($P$87<>0,VLOOKUP(1,$P$80:$T$86,5,FALSE),IF($R$91<>0,VLOOKUP(1,$P$89:$T$90,5,FALSE),$P$92)) -> 004 | Z115: =IF($P$87<>0,VLOOKUP(1,$P$80:$T$86,4,FALSE),IF($R$91<>0,VLOOKUP(1,$P$89:$T$90,4,FALSE),$P$92)) -> 004 | AP115: 0.25
C116: 1 | D116: Direct | F116: 95% - 100 % | H116: 0 | K116: Efficiency | L116: =IF($E$83=1,Input!I25,1) -> 100% | O116: 1 | Q116: =AL21 -> 0.091628369 | R116: =AK21 -> 0.0565 | S116: 0.091628369 | T116: =IF($L$38=1,0,AK21) -> 0 | U116: =SQRT((Q116^2*$Q$123+R116^2*$R$123+S116^2*$S$123+T116^2*$T$123)/SUM(Q123:T123)) -> 0.00737093022 | V116: =(ABS(($U$129/2+$U$130+$U$131/2)/$U$133*(M7-$W$129)+$W$129)*IF($C$90<>0,$D$90,$L$115)) -> 0 | W116: =V116/60*C7 -> 0 | X116: PC25…B10 | Y116: =IF($P$87<>0,VLOOKUP(1,$P$80:$T$86,5,FALSE),IF($R$91<>0,VLOOKUP(1,$P$89:$T$90,5,FALSE),$P$92)) -> 004 | Z116: =IF($P$87<>0,VLOOKUP(1,$P$80:$T$86,4,FALSE),IF($R$91<>0,VLOOKUP(1,$P$89:$T$90,4,FALSE),$P$92)) -> 004 | AP116: 0.24
C117: 2 | D117: Worm gear | F117: 65% - 80% | H117: 0.2 | K117: Idle Torque | L117: =IF($E$83=1,Input!I26,0) -> 0.000 | O117: 2 | Q117: 0.179666719 | R117: 0.1691 | S117: 0.179666719 | T117: 0 | U117: =SQRT((Q117^2*$Q$123+R117^2*$R$123+S117^2*$S$123+T117^2*$T$123)/SUM($Q$123:$T$123)) -> 0.02203250112 | V117: 0 | W117: =V117/60*C8 -> 0 | X117: PC32…B04 | Y117: =IF($Q$87<>0,VLOOKUP(1,$P$80:$T$86,5,FALSE),IF($R$91<>0,VLOOKUP(1,$P$89:$T$90,5,FALSE),$P$92)) -> 004 | Z117: =IF($Q$87<>0,VLOOKUP(1,$P$80:$T$86,4,FALSE),IF($R$91<>0,VLOOKUP(1,$P$89:$T$90,4,FALSE),$P$92)) -> 004 | AP117: 0.23
C118: 3 | D118: Planetary gear | F118: 85% - 95% | H118: 0.1 | K118: Inertia | L118: =IF($E$83=1,Input!I27,0) -> 0.0000 | O118: 3 | Q118: 0.106711152 | R118: 0.0791 | S118: 0.106711152 | T118: 0 | U118: 0.01030523176 | V118: 0 | W118: 0 | X118: PC32…B10 | Y118: =IF($Q$87<>0,VLOOKUP(1,$P$80:$T$86,5,FALSE),IF($R$91<>0,VLOOKUP(1,$P$89:$T$90,5,FALSE),$P$92)) -> 004 | Z118: =IF($Q$87<>0,VLOOKUP(1,$P$80:$T$86,4,FALSE),IF($R$91<>0,VLOOKUP(1,$P$89:$T$90,4,FALSE),$P$92)) -> 004 | AP118: 0.22
C119: 4 | D119: Bevel gear | F119: 80% - 95% | H119: 0.1 | O119: 4 | Q119: 0.213674602 | R119: 0.2026 | S119: 0.213674602 | T119: 0 | U119: 0.0263940055 | V119: 0 | W119: 0 | X119: PC40…B05 | Y119: =IF($R$87<>0,VLOOKUP(1,$P$80:$T$86,5,FALSE),IF($R$91<>0,VLOOKUP(1,$P$89:$T$90,5,FALSE),$P$92)) -> 004 | Z119: =IF($R$87<>0,VLOOKUP(1,$P$80:$T$86,4,FALSE),IF($R$91<>0,VLOOKUP(1,$P$89:$T$90,4,FALSE),$P$92)) -> 004 | AP119: 0.21
C120: 5 | D120: Belt gear | F120: 80% - 90% | H120: 0.1 | O120: 5 | Q120: 0.148512403 | R120: 0.1127 | S120: 0.148512403 | T120: 0 | U120: 0.01469700034 | V120: 0 | W120: 0 | X120: PC40…B10 | Y120: =IF($R$87<>0,VLOOKUP(1,$P$80:$T$86,5,FALSE),IF($R$91<>0,VLOOKUP(1,$P$89:$T$90,5,FALSE),$P$92)) -> 004 | Z120: =IF($R$87<>0,VLOOKUP(1,$P$80:$T$86,4,FALSE),IF($R$91<>0,VLOOKUP(1,$P$89:$T$90,4,FALSE),$P$92)) -> 004 | AP120: 0.20
O121: 6 | Q121: 0.242847399 | R121: 0.2250 | S121: 0.242847399 | T121: 0 | U121: 0.02930781075 | V121: 0 | W121: 0 | X121: PC40…B20 | Y121: =IF($R$87<>0,VLOOKUP(1,$P$80:$T$86,5,FALSE),IF($R$91<>0,VLOOKUP(1,$P$89:$T$90,5,FALSE),$P$92)) -> 004 | Z121: =IF($R$87<>0,VLOOKUP(1,$P$80:$T$86,4,FALSE),IF($R$91<>0,VLOOKUP(1,$P$89:$T$90,4,FALSE),$P$92)) -> 004 | AP121: 0.19
O122: 7 | Q122: 0.347094983 | R122: 0.3382 | S122: 0.347094983 | T122: 0 | U122: 0.04404867783 | V122: 0 | W122: 0 | AP122: 0.18
C123: Unit Fail test (0 = pass, 1 = fail) | P123: Time | Q123: =C43 -> 0.001 | R123: =C47 -> 0.999 | S123: =C45 -> 0.001 | T123: =C50 -> 58.00 | AP123: 0.17
C124: rpm | D124: Acc | E124: Fx | F124: Fy | G124: Stroke | H124: Coupl | I124: Critical speed check | J124: Buckling check | K124: Sum errors | T124: Current choice | U124: =VLOOKUP(X139,O116:W122,7,FALSE) -> 0.0263940055 | V124: =VLOOKUP(X139,O116:W122,8,FALSE) -> 0 | AP124: 0.16
W125: Hela formeln | X125: =IF($C$59=3,"Unit Without RediMount",IF(AND($J$150=1,$J$170<3,$B$150>7,$C$59=2),"No physical match between motor and PC-unit",IF(AND($J$150=1,$J$170=3,$B$150>3,$C$59=2),"No physical match between motor and PC-unit",IF(AND($J$150=2,LEFT($C$150,5)="PMX34"),"No physical match between motor and PC-unit",IF(AND($E$83=2,$J$150=4),$Y$75,IF(OR($E$83=1,$J$150=4),"Check motor and/or gear dimensions in RediMount Tool",IF($E$83=1,"999",VLOOKUP($J$150,$W$75:$Y$77,3,FALSE)))))))) -> 004 | Y125: =IF($C$59=3,"Unit Without RediMount",IF(AND($J$150=1,$C$59=2,$J$170<3,$B$150>10),"No physical match between motor and PC-unit",IF(AND($J$150=1,$C$59=2,$J$170=3,$B$150>6),"No physical match between motor and PC-unit",IF(AND($J$150=2,LEFT(K151,5)="PMX34",$C$59=2),"No physical match between motor and PC-unit",IF(AND($E$83=2,$J$150=4),$Y$75,IF(OR($E$83=1,$J$150=4),"Check motor and/or gear dimensions in RediMount Tool",IF($E$83=1,"999",VLOOKUP($J$150,$W$75:$Y$77,3,FALSE)))))))) -> 004 | Z125: =IF(AND($E$83=2,$J$150=4,$C$59<>3),$Y$75,IF($C$59=3,"Unit Without RediMount",IF(OR($E$83=1,$J$150=4),"Check motor and/or gear dimensions in RediMount Tool",VLOOKUP($J$150,$W$75:$Y$77,3,FALSE)))) -> 004 | AC125: torque=Load under input | AE125: Dry torque =Dry friction under input | AP125: 0.15
B126: =B7 -> PC25…B03 | C126: =N7 -> 0 | D126: 0 | E126: 0 | F126: 0 | G126: 0 | H126: =W7 -> 0 | I126: =AB7 -> 0 | J126: =AE7 -> 0 | K126: =SUM(C126:J126) -> 0 | AC126: Wiknugsgrad=Efficiency för gear | AE126: Gear=ratio | AP126: 0.14
B127: PC25…B10 | C127: 0 | D127: 0 | E127: 0 | F127: 0 | G127: 0 | H127: 0 | I127: 0 | J127: 0 | K127: =SUM(C127:J127) -> 0 | AC127: M18=indertia motor | AE127: Accel1/3=accel rad/s² under motion profile | AP127: 0.13
B128: PC32…B04 | C128: 0 | D128: 0 | E128: 0 | F128: 0 | G128: 0 | H128: 0 | I128: 0 | J128: 0 | K128: 0 | P128: Från Anydim | U128: Time (ms) | W128: Speed (rpm) | Y128: AnyDim | AP128: 0.12
B129: PC32…B10 | C129: 0 | D129: 0 | E129: 0 | F129: 0 | G129: 0 | H129: 0 | I129: 0 | J129: 0 | K129: 0 | P129: ABS(((time1/2+time2+time3/2)/time*(speed2-speed1)+(speed1))*gear | U129: =Q123*1000 -> 1.000 | V129: Acceleration | W129: 0 | Y129: T acc | Z129: accel1*gear*(inertia/10/gear^2+M18+gear_inertia/10)/1000+(torque+OM(accel1>=0;OM(OCH(speed1=0;speed2=0);0;DryTorq);-DryTorq))/gear)/Wirkungsgrad | AP129: 0.11
B130: PC40…B05 | C130: 0 | D130: 0 | E130: 0 | F130: 0 | G130: 0 | H130: 0 | I130: 0 | J130: 0 | K130: 0 | U130: =R123*1000 -> 999.000 | V130: Constant | W130: =C41*60/4*1000 -> 15 | Y130: T cons | Z130: (torque+OM(speed2=0;0;OM(speed2>0;DryTorq;-DryTorq)))/gear/Wirkungsgrad | AP130: 0.10
B131: PC40…B10 | C131: 0 | D131: 0 | E131: 0 | F131: 0 | G131: 0 | H131: 0 | I131: 0 | J131: 0 | K131: 0 | P131: ROT((D130^2*time1+D131^2*time2+D132^2*time3+D133^2*time4)/time) | U131: =S123*1000 -> 1.000 | V131: Decceleration | W131: 0 | Y131: T decc | Z131: (accel3*gear*(inertia/10/gear^2+M18+gear_inertia/10)/1000+(torque+OM(accel1>=0;OM(OCH(speed1=0;speed2=0);0;DryTorq);-DryTorq))/gear)/Wirkungsgrad | AP131: 0.09
B132: PC40…B20 | C132: 0 | D132: 0 | E132: 0 | F132: 0 | G132: 0 | H132: 0 | I132: 0 | J132: 0 | K132: 0 | U132: =T123*1000 -> 57998.000 | V132: Pause | W132: 0 | Y132: Tpaus | Z132: torque+OM(speed1=0;0;OM(speed4>0;DryTorq;-DryTorq)))/gear/Wirkungsgrad | AP132: 0.08
B133: Message | C133: =IF(OR(C126>0,C127>0,C128>0,C129>0,C130>0,C131>0,C132>0),"Too high RPM","") ->  | D133: =IF(OR(D126>0,D127>0,D128>0,D129>0,D130>0,D131>0,D132>0),"Too high acceleration","") ->  | E133: =IF(OR(E126>0,E127>0,E128>0,E129>0,E130>0,E131>0,E132>0),"Too high Fx","") ->  | F133: =IF(OR(F126>0,F127>0,F128>0,F129>0,F130>0,F131>0,F132>0),"Too high Fy","") ->  | G133: =IF(OR(G126>0,G127>0,G128>0,G129>0,G130>0,G131>0,G132>0),"Stroke to long","") ->  | H133: =IF(OR(H126>0,H127>0,H128>0,H129>0,H130>0,H131>0,H132>0),"Input torque to high for Redimount","") ->  | I133: =IF(OR(I126>0,I127>0,I128>0,I129>0,I130>0,I131>0,I132>0),"Above critical speed","") ->  | J133: =IF(OR(J126>0,J127>0,J128>0,J129>0,J130>0,J131>0,J132>0),"Buckling of screw or extension tube","") ->  | U133: =SUM(U129:U132) -> 58999.000 | V133: Total | AP133: 0.07
B134: SUM | C134: =SUM(C126:C132) -> 0 | D134: =SUM(D126:D132) -> 0 | E134: 0 | F134: 0 | G134: 0 | H134: 0 | I134: 0 | J134: 0 | AP134: 0.06
B135: Output | C135: =C133&" "&D133&" "&E133&" "&F133&" "&G133&" "&H133&" "&I133&" "&J133 ->  | AP135: 0.05
W136: Graph display | Y136: Graph data | AF136: motor capability | AH136: Current | AP136: 0.04
A137: STEP3 | W137: Unit | X137: Current Choice | AA137: Motor performance OK? | AB137: Unit OK? | AD137: Motor size OK | AE137: Sum | AF137: at specified rpm continuous drive | AG137: rpm | AH137: Torque | AI137: rpm | AN137: USED IN GRAPH | AP137: 0.03
B138: Error check motor choices | V138: 1 | W138: =IF(AE138<>0,"1.","1. PC25, Lead 3 mm") -> 1. PC25, Lead 3 mm | X138: =IF($J$150=1,Input!K31,"") -> 4. PC32, Lead 10 mm | Y138: 1:kolla om motor är OK enligt input | AA138: =IF(Input!J49="OK",0,1) -> 0 | AB138: =K126 -> 0 | AD138: =IF($P$87<>0,1,0) -> 0 | AE138: =SUM(AA138:AD138) -> 0 | AF138: =VLOOKUP(Input!F49,$AD$149:$AE$199,2,TRUE) -> 0.87 | AG138: =Input!F49 -> 20 | AH138: =VLOOKUP(X139,V138:AG144,11) -> 0.87 | AI138: =VLOOKUP(X139,V138:AG144,12) -> 6 | AK138: Current choice | AN138: RMS values | AP138: 0.02
I139: MOTOR OPTIONS | V139: 2 | W139: =IF(AE139<>0,"2.","2. PC25, Lead 10 mm") -> 2. PC25, Lead 10 mm | X139: =LOOKUP(X138,W138:W144,V138:V144) -> 4 | Y139: 2: kolla upp vilken enhet som är vald | AA139: =IF(Input!J50="OK",0,1) -> 0 | AB139: 0 | AD139: =IF($P$87<>0,1,0) -> 0 | AE139: 0 | AF139: =VLOOKUP(Input!F50,$AD$149:$AE$199,2,TRUE) -> 0.87 | AG139: =Input!F50 -> 6 | AK139: =LOOKUP(AL139,AL140:AL141,AK140:AK141) -> 1 | AL139: =Input!H31 -> Motor curve | AN139: Torque | AO139: rpm | AP139: 0.01
B140: Cylinder mounting | C140: Motor size | D140: Motor option 1 | E140: Motor option 2 | F140: Sum Errors | I140: Break Option | K140: Current Choice | L140: Feedback Option | O140: Current Choice | V140: 3 | W140: =IF(AE140<>0,"3.","3. PC32, Lead 4 mm") -> 3. PC32, Lead 4 mm | X140: =LOOKUP(X139,W93:W99,X93:X99) -> PC32LX004B10-01FC1 | Y140: 3: plotta speed-force kurvan för detta | AA140: =IF(Input!J51="OK",0,1) -> 0 | AB140: 0 | AD140: =IF($Q$87<>0,1,0) -> 0 | AE140: 0 | AF140: =VLOOKUP(Input!F51,$AD$149:$AE$199,2,TRUE) -> 0.87 | AG140: =Input!F51 -> 15 | AK140: 1 | AL140: =IF($J$150=1,"Motor curve","") -> Motor curve | AN140: =IF(AK139=1,U124,NA()) -> 0.03 | AO140: =IF(AK139=1,V124,NA()) -> 0 | AP140: 0.00
B141: =IF(IFERROR(LOOKUP(D72,D73:D79)<>D72,1),1,0) -> 0 | C141: =IF(J150<>4,IF(IFERROR(FIND(LEFT(Input!E32,3),Input!B32),0)>0,0,1),0) -> 0 | D141: =IF(J150<>4,IF(IFERROR(LOOKUP(J141,J143:J144)<>J141,1),1,0),0) -> 0 | E141: =IF(J150<>4,IF(IFERROR(LOOKUP(M141,M143:M145)<>M141,1),1,0),0) -> 0 | F141: =SUM(B141:E141,B143:D143) -> 0 | I141: =IF(J150<=2,LOOKUP(J141,J143:J144,I143:I144),"") -> 1 | J141: =IF($J$150<=2,Input!B34,"") -> No | K141: =IF($J$150=1,IF(J141="Yes","2","N"),IF($J$150=2,IF(B358=1,"0","R"),"NA for PMX")) -> N | L141: =IF(J150<=2,LOOKUP(M141,M143:M145,L143:L145),"") -> 3 | M141: =IF(J150<=2,Input!C34,"") -> R-Resolver (standard) | O141: =IF($J$150=1,IF(M141="R-Resolver (standard)",LEFT(M141,1),LEFT(M141,2))&"-00",IF($J$150=2,"-"&IF(E358=1,"00","01"),"NA for PMX")) -> R-00 | V141: 4 | W141: =IF(AE141<>0,"4.","4. PC32, Lead 10 mm") -> 4. PC32, Lead 10 mm | AA141: =IF(Input!J52="OK",0,1) -> 0 | AB141: 0 | AD141: =IF($Q$87<>0,1,0) -> 0 | AE141: 0 | AF141: =VLOOKUP(Input!F52,$AD$149:$AE$199,2,TRUE) -> 0.87 | AG141: =Input!F52 -> 6 | AK141: 2 | AL141: =IF($J$150=1,"Performance curve","") -> Performance curve | AN141: =IF($J$150<>1,"",IF($AK$139=1,"Working point (Mean rpm, T RMS)","Not applicable")) -> Working point (Mean rpm, T RMS)
B142: Current choice cylinder mounting | C142: AKM choice | D142: Voltage | V142: 5 | W142: =IF(AE142<>0,"5.","5. PC40, Lead 5 mm") -> 5. PC40, Lead 5 mm | AA142: =IF(Input!J53="OK",0,1) -> 0 | AB142: 0 | AD142: =IF($R$87<>0,1,0) -> 0 | AE142: 0 | AF142: =VLOOKUP(Input!F53,$AD$149:$AE$199,2,TRUE) -> 0.87 | AG142: =Input!F53 -> 12 | AK142: Header | AL142: =IF(AK139=1,"Motor perfomance of"&" "& T147,"Performance of" & " "&X140&" "&"and"&" " &T147) -> Motor perfomance of AKM22E
B143: =IF(IFERROR(D72="-",1),1,0) -> 0 | C143: =IF(J150=1,IF(IFERROR(FIND(LEFT(Input!E32,6),Data!C150),0)>0,0,1),0) -> 0 | D143: =IF(OR(J150=1,J150=2),IF(IFERROR(LOOKUP(K170,K171:K173),0)<>K170,1,0),0) -> 0 | I143: 1 | J143: =IF($J$150=1,"No",IF($J$150=2,"No Shaft","")) -> No | L143: 1 | M143: =IF($J$150=2,"No Shaft Seal",IF(AND($J$150=1,(LEFT(C149,4)<>"AKM1")),"DA-Singleturn Absolute Encoder","")) -> DA-Singleturn Absolute Encoder | V143: 6 | W143: =IF(AE143<>0,"6.","6. PC40, Lead 10 mm") -> 6. PC40, Lead 10 mm | AA143: =IF(Input!J54="OK",0,1) -> 0 | AB143: 0 | AD143: =IF($R$87<>0,1,0) -> 0 | AE143: 0 | AF143: =VLOOKUP(Input!F54,$AD$149:$AE$199,2,TRUE) -> 0.87 | AG143: =Input!F54 -> 6 | AK143: X-axis | AL143: =IF(AK139=1,"Speed [rpm]", "Load [N]") -> Speed [rpm] | AQ143: USED IN GRAPH
I144: 2 | J144: =IF($J$150=1,"Yes",IF($J$150=2,"Rear Shaft","")) -> Yes | L144: 2 | M144: =IF($J$150=2,"Shaft Seal",IF(AND($J$150=1,LEFT(C149,4)<>"AKM1"),"DB-Multiturn Absolute Encoder","")) -> DB-Multiturn Absolute Encoder | V144: 7 | W144: =IF(AE144<>0,"7.","7. PC40, Lead 20 mm") -> 7. PC40, Lead 20 mm | AA144: =IF(Input!J55="OK",0,1) -> 0 | AB144: 0 | AD144: =IF($R$87<>0,1,0) -> 0 | AE144: 0 | AF144: =VLOOKUP(Input!F55,$AD$149:$AE$199,2,TRUE) -> 0.87 | AG144: =Input!F55 -> 3 | AK144: Y-axis | AL144: =IF(AK139=1,"Torque [Nm]", "Speed [mm/s]") -> Torque [Nm] | AQ144: =IF($J$150=1,"Continuous","") -> Continuous | AS144: =IF($J$150=1,"Intermittent","") -> Intermittent
E145: OM(J69=1;OM(OMFEL(HITTA(VÄNSTER(Input!K32;6);Data!C69);0)>0;0;1);0) | L145: 3 | M145: =IF($J$150=1,"R-Resolver (standard)","") -> R-Resolver (standard) | AQ145: mm/s or Torque | AR145: Fx or rpm | AS145: mm/s or Torque | AT145: Fx or rpm
B146: Current Motor | AD146: Continuous Motor data | AG146: Cyclic Motor data | AQ146: =IF($AK$139=2,U149,AE149) -> 0.87 | AR146: =IF($AK$139=2,AA149,AD149) -> 0 | AS146: =IF($AK$139=2,W149,AH149) -> 2.76 | AT146: =IF($AK$139=2,X149,AG149) -> 0
D147: Nominal torque | E147: Peak torque | F147: Rated torque | G147: Rated speed | H147: Inertia | S147: Current motor | T147: =Input!E32 -> AKM22E | U147: Continuous drive | W147: Cyclic drive | Y147: Cyclic drive | AA147: Continuous drive | AQ147: =IF($AK$139=2,U150,AE150) -> 0.8668 | AR147: =IF($AK$139=2,AA150,AD150) -> 160 | AS147: =IF($AK$139=2,W150,AH150) -> 2.76 | AT147: =IF($AK$139=2,X150,AG150) -> 5148.4
D148: Nm | E148: Nm | F148: Nm | G148: rpm | H148: kg cm² | S148: Current voltage | T148: =Input!C32 -> 240 | U148: mm/s | V148: Fx (N) | W148: mm/s | X148: Fx (N) | Y148: mm/s | Z148: revisedFx (N) | AA148: Fx (N) | AD148: rpm | AE148: Torque | AG148: rpm | AH148: Torque | AQ148: =IF($AK$139=2,U151,AE151) -> 0.8636 | AR148: 320 | AS148: 2.719411692 | AT148: 5224.8
C149: =IF($J$150=1,Input!$E$32,"Customer Supplied") -> AKM22E | D149: =IF($J$150=4,L156,D150) -> 0.87 | E149: =IF($J$150=4,L157,E150) -> 2.76 | F149: =IF($J$150=4,L158,F150) -> 0.7 | G149: =IF($J$150=4,L159,G150) -> 8000 | H149: =IF($J$150=4,L160,H150) -> 0.16 | J149: UPDATED | M149: Max Hz x 50 | S149: Max speed (cyclic) [rpm] | T149: =IF($J$150=1,Calc!B71,G149) -> 8000 | U149: =IF(AND($X$139=7,$AA$144=0,$AB$144=0),'PC40 Graphs'!$B5,IF(AND($X$139=6,$AA$143=0,$AB$143=0),'PC40 Graphs'!$D5,IF(AND($X$139=5,$AA$142=0,$AB$142=0),'PC40 Graphs'!$F5,IF(AND($X$139=4,$AA$141=0,$AB$141=0),'PC32 Graphs'!$B5,IF(AND($X$139=3,$AA$140=0,$AB$140=0),'PC32 Graphs'!$D5,IF(AND($X$139=2,$AA$139=0,$AB$139=0),'PC25 Graphs'!$B6,IF(AND($X$139=1,$AA$138=0,$AB$138=0),'PC25 Graphs'!$D6))))))) -> 0 | V149: =IF(AND($X$139=7,$AA$144=0,$AB$144=0),'PC40 Graphs'!$C5,IF(AND($X$139=6,$AA$143=0,$AB$143=0),'PC40 Graphs'!$E5,IF(AND($X$139=5,$AA$142=0,$AB$142=0),'PC40 Graphs'!$G5,IF(AND($X$139=4,$AA$141=0,$AB$141=0),'PC32 Graphs'!$C5,IF(AND($X$139=3,$AA$140=0,$AB$140=0),'PC32 Graphs'!$E5,IF(AND($X$139=2,$AA$139=0,$AB$139=0),'PC25 Graphs'!$C6,IF(AND($X$139=1,$AA$138=0,$AB$138=0),'PC25 Graphs'!$E6))))))) -> 303 | W149: =IF(AND($X$139=7,$AA$144=0,$AB$144=0),'PC40 Graphs'!$B63,IF(AND($X$139=6,$AA$143=0,$AB$143=0),'PC40 Graphs'!$D63,IF(AND($X$139=5,$AA$142=0,$AB$142=0),'PC40 Graphs'!$F63,IF(AND($X$139=4,$AA$141=0,$AB$141=0),'PC32 Graphs'!$B62,IF(AND($X$139=3,$AA$140=0,$AB$140=0),'PC32 Graphs'!$D62,IF(AND($X$139=2,$AA$139=0,$AB$139=0),'PC25 Graphs'!$B63,IF(AND($X$139=1,$AA$138=0,$AB$138=0),'PC25 Graphs'!$D63))))))) -> 0 | X149: =IF(AND($X$139=7,$AA$144=0,$AB$144=0),'PC40 Graphs'!L63,IF(AND($X$139=6,$AA$143=0,$AB$143=0),'PC40 Graphs'!N63,IF(AND($X$139=5,$AA$142=0,$AB$142=0),'PC40 Graphs'!P63,IF(AND($X$139=4,$AA$141=0,$AB$141=0),'PC32 Graphs'!L62,IF(AND($X$139=3,$AA$140=0,$AB$140=0),'PC32 Graphs'!N62,IF(AND($X$139=2,$AA$139=0,$AB$139=0),'PC25 Graphs'!L63,IF(AND($X$139=1,$AA$138=0,$AB$138=0),'PC25 Graphs'!N63))))))) -> 1158 | Y149: =U149 -> 0 | Z149: =VLOOKUP(U149,$W$148:$X$200,2) -> 1158 | AA149: =IF(V149>Z149,Z149,V149) -> 303 | AD149: =Calc!B86 -> 0 | AE149: =Calc!A86 -> 0.87 | AG149: =Calc!B20 -> 0 | AH149: =Calc!A20 -> 2.76 | AQ149: 0.8604 | AR149: 480 | AS149: 2.678226989 | AT149: 5302.7
B150: =IF(J150=2,LOOKUP(C149,$C$151:$C$158,$B$151:$B$158),IF(AND(J150=1,J170=3),LOOKUP(C149,Data!$C$151:$C$160,Data!$B$151:$B$160),LOOKUP(C149,Data!$C$151:$C$164,Data!$B$151:$B$164))) -> 5 | C150: =VLOOKUP($B$150,$B$151:$H$174,2) -> AKM22E | D150: =VLOOKUP($B$150,$B$151:$H$174,3) -> 0.87 | E150: =VLOOKUP($B$150,$B$151:$H$174,4) -> 2.76 | F150: =VLOOKUP($B$150,$B$151:$H$174,5) -> 0.7 | G150: =VLOOKUP($B$150,$B$151:$H$174,6) -> 8000 | H150: =VLOOKUP($B$150,$B$151:$H$174,7) -> 0.16 | J150: =LOOKUP(Input!$B$32,Data!$K$151:$K$152,Data!$J$151:$J$153) -> 1 | K150: =Input!$B$32 -> 1. Kollmorgen AKM Servo | M150: =IF(J150=3,1.6,1) -> 1 | N150: x 50 = 80 Hz | U150: =IF(AND($X$139=7,$AA$144=0,$AB$144=0),'PC40 Graphs'!$B6,IF(AND($X$139=6,$AA$143=0,$AB$143=0),'PC40 Graphs'!$D6,IF(AND($X$139=5,$AA$142=0,$AB$142=0),'PC40 Graphs'!$F6,IF(AND($X$139=4,$AA$141=0,$AB$141=0),'PC32 Graphs'!$B6,IF(AND($X$139=3,$AA$140=0,$AB$140=0),'PC32 Graphs'!$D6,IF(AND($X$139=2,$AA$139=0,$AB$139=0),'PC25 Graphs'!$B7,IF(AND($X$139=1,$AA$138=0,$AB$138=0),'PC25 Graphs'!$D7))))))) -> 27 | V150: =IF(AND($X$139=7,$AA$144=0,$AB$144=0),'PC40 Graphs'!$C6,IF(AND($X$139=6,$AA$143=0,$AB$143=0),'PC40 Graphs'!$E6,IF(AND($X$139=5,$AA$142=0,$AB$142=0),'PC40 Graphs'!$G6,IF(AND($X$139=4,$AA$141=0,$AB$141=0),'PC32 Graphs'!$C6,IF(AND($X$139=3,$AA$140=0,$AB$140=0),'PC32 Graphs'!$E6,IF(AND($X$139=2,$AA$139=0,$AB$139=0),'PC25 Graphs'!$C7,IF(AND($X$139=1,$AA$138=0,$AB$138=0),'PC25 Graphs'!$E7))))))) -> 296 | W150: =IF(AND($X$139=7,$AA$144=0,$AB$144=0),'PC40 Graphs'!$B64,IF(AND($X$139=6,$AA$143=0,$AB$143=0),'PC40 Graphs'!$D64,IF(AND($X$139=5,$AA$142=0,$AB$142=0),'PC40 Graphs'!$F64,IF(AND($X$139=4,$AA$141=0,$AB$141=0),'PC32 Graphs'!$B63,IF(AND($X$139=3,$AA$140=0,$AB$140=0),'PC32 Graphs'!$D63,IF(AND($X$139=2,$AA$139=0,$AB$139=0),'PC25 Graphs'!$B64,IF(AND($X$139=1,$AA$138=0,$AB$138=0),'PC25 Graphs'!$D64))))))) -> 858 | X150: =IF(AND($X$139=7,$AA$144=0,$AB$144=0),'PC40 Graphs'!L64,IF(AND($X$139=6,$AA$143=0,$AB$143=0),'PC40 Graphs'!N64,IF(AND($X$139=5,$AA$142=0,$AB$142=0),'PC40 Graphs'!P64,IF(AND($X$139=4,$AA$141=0,$AB$141=0),'PC32 Graphs'!L63,IF(AND($X$139=3,$AA$140=0,$AB$140=0),'PC32 Graphs'!N63,IF(AND($X$139=2,$AA$139=0,$AB$139=0),'PC25 Graphs'!L64,IF(AND($X$139=1,$AA$138=0,$AB$138=0),'PC25 Graphs'!N64))))))) -> 1002 | Y150: 27 | Z150: 1158 | AA150: 296 | AD150: =Calc!B87 -> 160 | AE150: =Calc!A87 -> 0.8668 | AG150: =Calc!B21 -> 5148.4 | AH150: =Calc!A21 -> 2.76 | AQ150: 0.8572 | AR150: 640 | AS150: 2.63644589 | AT150: 5382.1
B151: 1 | C151: =IF(AND($J$150=1,$J$170=2),C210,IF(AND($J$150=1,$J$170=1),C225,IF(AND($J$150=1,$J$170=3),C240,IF(AND($J$150=2,$J$170=1),O357,IF(AND($J$150=2,$J$170=2),O365,IF(AND($J$150=2,$J$170=3),O373,IF($J$150=3,C379,""))))))) -> AKM11B | D151: 0.183 | E151: 0.609 | F151: 0.167 | G151: 8000 | H151: 0.017 | J151: 1 | K151: 1. Kollmorgen AKM Servo | U151: =IF(AND($X$139=7,$AA$144=0,$AB$144=0),'PC40 Graphs'!$B7,IF(AND($X$139=6,$AA$143=0,$AB$143=0),'PC40 Graphs'!$D7,IF(AND($X$139=5,$AA$142=0,$AB$142=0),'PC40 Graphs'!$F7,IF(AND($X$139=4,$AA$141=0,$AB$141=0),'PC32 Graphs'!$B7,IF(AND($X$139=3,$AA$140=0,$AB$140=0),'PC32 Graphs'!$D7,IF(AND($X$139=2,$AA$139=0,$AB$139=0),'PC25 Graphs'!$B8,IF(AND($X$139=1,$AA$138=0,$AB$138=0),'PC25 Graphs'!$D8))))))) -> 53 | V151: =IF(AND($X$139=7,$AA$144=0,$AB$144=0),'PC40 Graphs'!$C7,IF(AND($X$139=6,$AA$143=0,$AB$143=0),'PC40 Graphs'!$E7,IF(AND($X$139=5,$AA$142=0,$AB$142=0),'PC40 Graphs'!$G7,IF(AND($X$139=4,$AA$141=0,$AB$141=0),'PC32 Graphs'!$C7,IF(AND($X$139=3,$AA$140=0,$AB$140=0),'PC32 Graphs'!$E7,IF(AND($X$139=2,$AA$139=0,$AB$139=0),'PC25 Graphs'!$C8,IF(AND($X$139=1,$AA$138=0,$AB$138=0),'PC25 Graphs'!$E8))))))) -> 290 | W151: =IF(AND($X$139=7,$AA$144=0,$AB$144=0),'PC40 Graphs'!$B65,IF(AND($X$139=6,$AA$143=0,$AB$143=0),'PC40 Graphs'!$D65,IF(AND($X$139=5,$AA$142=0,$AB$142=0),'PC40 Graphs'!$F65,IF(AND($X$139=4,$AA$141=0,$AB$141=0),'PC32 Graphs'!$B64,IF(AND($X$139=3,$AA$140=0,$AB$140=0),'PC32 Graphs'!$D64,IF(AND($X$139=2,$AA$139=0,$AB$139=0),'PC25 Graphs'!$B65,IF(AND($X$139=1,$AA$138=0,$AB$138=0),'PC25 Graphs'!$D65))))))) -> 871 | X151: =IF(AND($X$139=7,$AA$144=0,$AB$144=0),'PC40 Graphs'!L65,IF(AND($X$139=6,$AA$143=0,$AB$143=0),'PC40 Graphs'!N65,IF(AND($X$139=5,$AA$142=0,$AB$142=0),'PC40 Graphs'!P65,IF(AND($X$139=4,$AA$141=0,$AB$141=0),'PC32 Graphs'!L64,IF(AND($X$139=3,$AA$140=0,$AB$140=0),'PC32 Graphs'!N64,IF(AND($X$139=2,$AA$139=0,$AB$139=0),'PC25 Graphs'!L65,IF(AND($X$139=1,$AA$138=0,$AB$138=0),'PC25 Graphs'!N65))))))) -> 982 | Y151: 53 | Z151: 1158 | AA151: 290 | AD151: =Calc!B88 -> 320 | AE151: =Calc!A88 -> 0.8636 | AG151: =Calc!B22 -> 5224.8 | AH151: =Calc!A22 -> 2.719411692 | AQ151: 0.854 | AR151: 800 | AS151: 2.594068396 | AT151: 5463.1
B152: 2 | C152: AKM12C | D152: 0.31 | E152: 1.08 | F152: 0.279 | G152: 8000 | H152: 0.031 | J152: 4 | K152: 2. Customer Supplied | M152: Min Hz x 50 | U152: =IF(AND($X$139=7,$AA$144=0,$AB$144=0),'PC40 Graphs'!$B8,IF(AND($X$139=6,$AA$143=0,$AB$143=0),'PC40 Graphs'!$D8,IF(AND($X$139=5,$AA$142=0,$AB$142=0),'PC40 Graphs'!$F8,IF(AND($X$139=4,$AA$141=0,$AB$141=0),'PC32 Graphs'!$B8,IF(AND($X$139=3,$AA$140=0,$AB$140=0),'PC32 Graphs'!$D8,IF(AND($X$139=2,$AA$139=0,$AB$139=0),'PC25 Graphs'!$B9,IF(AND($X$139=1,$AA$138=0,$AB$138=0),'PC25 Graphs'!$D9))))))) -> 80 | V152: =IF(AND($X$139=7,$AA$144=0,$AB$144=0),'PC40 Graphs'!$C8,IF(AND($X$139=6,$AA$143=0,$AB$143=0),'PC40 Graphs'!$E8,IF(AND($X$139=5,$AA$142=0,$AB$142=0),'PC40 Graphs'!$G8,IF(AND($X$139=4,$AA$141=0,$AB$141=0),'PC32 Graphs'!$C8,IF(AND($X$139=3,$AA$140=0,$AB$140=0),'PC32 Graphs'!$E8,IF(AND($X$139=2,$AA$139=0,$AB$139=0),'PC25 Graphs'!$C9,IF(AND($X$139=1,$AA$138=0,$AB$138=0),'PC25 Graphs'!$E9))))))) -> 284 | W152: =IF(AND($X$139=7,$AA$144=0,$AB$144=0),'PC40 Graphs'!$B66,IF(AND($X$139=6,$AA$143=0,$AB$143=0),'PC40 Graphs'!$D66,IF(AND($X$139=5,$AA$142=0,$AB$142=0),'PC40 Graphs'!$F66,IF(AND($X$139=4,$AA$141=0,$AB$141=0),'PC32 Graphs'!$B65,IF(AND($X$139=3,$AA$140=0,$AB$140=0),'PC32 Graphs'!$D65,IF(AND($X$139=2,$AA$139=0,$AB$139=0),'PC25 Graphs'!$B66,IF(AND($X$139=1,$AA$138=0,$AB$138=0),'PC25 Graphs'!$D66))))))) -> 884 | X152: =IF(AND($X$139=7,$AA$144=0,$AB$144=0),'PC40 Graphs'!L66,IF(AND($X$139=6,$AA$143=0,$AB$143=0),'PC40 Graphs'!N66,IF(AND($X$139=5,$AA$142=0,$AB$142=0),'PC40 Graphs'!P66,IF(AND($X$139=4,$AA$141=0,$AB$141=0),'PC32 Graphs'!L65,IF(AND($X$139=3,$AA$140=0,$AB$140=0),'PC32 Graphs'!N65,IF(AND($X$139=2,$AA$139=0,$AB$139=0),'PC25 Graphs'!L66,IF(AND($X$139=1,$AA$138=0,$AB$138=0),'PC25 Graphs'!N66))))))) -> 961 | Y152: 80 | Z152: 1158 | AA152: 284 | AD152: =Calc!B89 -> 480 | AE152: =Calc!A89 -> 0.8604 | AG152: =Calc!B23 -> 5302.7 | AH152: =Calc!A23 -> 2.678226989 | AQ152: 0.8508 | AR152: 960 | AS152: 2.551094505 | AT152: 5545.7
B153: 3 | C153: AKM13C | D153: 0.409 | E153: 1.46 | F153: 0.364 | G153: 8000 | H153: 0.045 | J153: 4 | M153: =IF(J150=3,0.3,0) -> 0 | N153: x 50 Hz = 15 Hz | U153: =IF(AND($X$139=7,$AA$144=0,$AB$144=0),'PC40 Graphs'!$B9,IF(AND($X$139=6,$AA$143=0,$AB$143=0),'PC40 Graphs'!$D9,IF(AND($X$139=5,$AA$142=0,$AB$142=0),'PC40 Graphs'!$F9,IF(AND($X$139=4,$AA$141=0,$AB$141=0),'PC32 Graphs'!$B9,IF(AND($X$139=3,$AA$140=0,$AB$140=0),'PC32 Graphs'!$D9,IF(AND($X$139=2,$AA$139=0,$AB$139=0),'PC25 Graphs'!$B10,IF(AND($X$139=1,$AA$138=0,$AB$138=0),'PC25 Graphs'!$D10))))))) -> 107 | V153: =IF(AND($X$139=7,$AA$144=0,$AB$144=0),'PC40 Graphs'!$C9,IF(AND($X$139=6,$AA$143=0,$AB$143=0),'PC40 Graphs'!$E9,IF(AND($X$139=5,$AA$142=0,$AB$142=0),'PC40 Graphs'!$G9,IF(AND($X$139=4,$AA$141=0,$AB$141=0),'PC32 Graphs'!$C9,IF(AND($X$139=3,$AA$140=0,$AB$140=0),'PC32 Graphs'!$E9,IF(AND($X$139=2,$AA$139=0,$AB$139=0),'PC25 Graphs'!$C10,IF(AND($X$139=1,$AA$138=0,$AB$138=0),'PC25 Graphs'!$E10))))))) -> 278 | W153: =IF(AND($X$139=7,$AA$144=0,$AB$144=0),'PC40 Graphs'!$B67,IF(AND($X$139=6,$AA$143=0,$AB$143=0),'PC40 Graphs'!$D67,IF(AND($X$139=5,$AA$142=0,$AB$142=0),'PC40 Graphs'!$F67,IF(AND($X$139=4,$AA$141=0,$AB$141=0),'PC32 Graphs'!$B66,IF(AND($X$139=3,$AA$140=0,$AB$140=0),'PC32 Graphs'!$D66,IF(AND($X$139=2,$AA$139=0,$AB$139=0),'PC25 Graphs'!$B67,IF(AND($X$139=1,$AA$138=0,$AB$138=0),'PC25 Graphs'!$D67))))))) -> 897 | X153: =IF(AND($X$139=7,$AA$144=0,$AB$144=0),'PC40 Graphs'!L67,IF(AND($X$139=6,$AA$143=0,$AB$143=0),'PC40 Graphs'!N67,IF(AND($X$139=5,$AA$142=0,$AB$142=0),'PC40 Graphs'!P67,IF(AND($X$139=4,$AA$141=0,$AB$141=0),'PC32 Graphs'!L66,IF(AND($X$139=3,$AA$140=0,$AB$140=0),'PC32 Graphs'!N66,IF(AND($X$139=2,$AA$139=0,$AB$139=0),'PC25 Graphs'!L67,IF(AND($X$139=1,$AA$138=0,$AB$138=0),'PC25 Graphs'!N67))))))) -> 939 | Y153: 107 | Z153: 1158 | AA153: 278 | AD153: =Calc!B90 -> 640 | AE153: =Calc!A90 -> 0.8572 | AG153: =Calc!B24 -> 5382.1 | AH153: =Calc!A24 -> 2.63644589 | AQ153: 0.84824 | AR153: 1120 | AS153: 2.50752422 | AT153: 5630
B154: 4 | C154: AKM21C | D154: 0.48 | E154: 1.47 | F154: 0.39 | G154: 8000 | H154: 0.11 | J154: 4 | U154: =IF(AND($X$139=7,$AA$144=0,$AB$144=0),'PC40 Graphs'!$B10,IF(AND($X$139=6,$AA$143=0,$AB$143=0),'PC40 Graphs'!$D10,IF(AND($X$139=5,$AA$142=0,$AB$142=0),'PC40 Graphs'!$F10,IF(AND($X$139=4,$AA$141=0,$AB$141=0),'PC32 Graphs'!$B10,IF(AND($X$139=3,$AA$140=0,$AB$140=0),'PC32 Graphs'!$D10,IF(AND($X$139=2,$AA$139=0,$AB$139=0),'PC25 Graphs'!$B11,IF(AND($X$139=1,$AA$138=0,$AB$138=0),'PC25 Graphs'!$D11))))))) -> 133 | V154: =IF(AND($X$139=7,$AA$144=0,$AB$144=0),'PC40 Graphs'!$C10,IF(AND($X$139=6,$AA$143=0,$AB$143=0),'PC40 Graphs'!$E10,IF(AND($X$139=5,$AA$142=0,$AB$142=0),'PC40 Graphs'!$G10,IF(AND($X$139=4,$AA$141=0,$AB$141=0),'PC32 Graphs'!$C10,IF(AND($X$139=3,$AA$140=0,$AB$140=0),'PC32 Graphs'!$E10,IF(AND($X$139=2,$AA$139=0,$AB$139=0),'PC25 Graphs'!$C11,IF(AND($X$139=1,$AA$138=0,$AB$138=0),'PC25 Graphs'!$E11))))))) -> 271 | W154: =IF(AND($X$139=7,$AA$144=0,$AB$144=0),'PC40 Graphs'!$B68,IF(AND($X$139=6,$AA$143=0,$AB$143=0),'PC40 Graphs'!$D68,IF(AND($X$139=5,$AA$142=0,$AB$142=0),'PC40 Graphs'!$F68,IF(AND($X$139=4,$AA$141=0,$AB$141=0),'PC32 Graphs'!$B67,IF(AND($X$139=3,$AA$140=0,$AB$140=0),'PC32 Graphs'!$D67,IF(AND($X$139=2,$AA$139=0,$AB$139=0),'PC25 Graphs'!$B68,IF(AND($X$139=1,$AA$138=0,$AB$138=0),'PC25 Graphs'!$D68))))))) -> 911 | X154: =IF(AND($X$139=7,$AA$144=0,$AB$144=0),'PC40 Graphs'!L68,IF(AND($X$139=6,$AA$143=0,$AB$143=0),'PC40 Graphs'!N68,IF(AND($X$139=5,$AA$142=0,$AB$142=0),'PC40 Graphs'!P68,IF(AND($X$139=4,$AA$141=0,$AB$141=0),'PC32 Graphs'!L67,IF(AND($X$139=3,$AA$140=0,$AB$140=0),'PC32 Graphs'!N67,IF(AND($X$139=2,$AA$139=0,$AB$139=0),'PC25 Graphs'!L68,IF(AND($X$139=1,$AA$138=0,$AB$138=0),'PC25 Graphs'!N68))))))) -> 918 | Y154: 133 | Z154: 1158 | AA154: 271 | AD154: =Calc!B91 -> 800 | AE154: =Calc!A91 -> 0.854 | AG154: =Calc!B25 -> 5463.1 | AH154: =Calc!A25 -> 2.594068396 | AQ154: 0.84568 | AR154: 1280 | AS154: 2.463357538 | AT154: 5715.8
B155: 5 | C155: AKM22E | D155: 0.87 | E155: 2.76 | F155: 0.7 | G155: 8000 | H155: 0.16 | J155: 5 | M155: Name | U155: =IF(AND($X$139=7,$AA$144=0,$AB$144=0),'PC40 Graphs'!$B11,IF(AND($X$139=6,$AA$143=0,$AB$143=0),'PC40 Graphs'!$D11,IF(AND($X$139=5,$AA$142=0,$AB$142=0),'PC40 Graphs'!$F11,IF(AND($X$139=4,$AA$141=0,$AB$141=0),'PC32 Graphs'!$B11,IF(AND($X$139=3,$AA$140=0,$AB$140=0),'PC32 Graphs'!$D11,IF(AND($X$139=2,$AA$139=0,$AB$139=0),'PC25 Graphs'!$B12,IF(AND($X$139=1,$AA$138=0,$AB$138=0),'PC25 Graphs'!$D12))))))) -> 160 | V155: =IF(AND($X$139=7,$AA$144=0,$AB$144=0),'PC40 Graphs'!$C11,IF(AND($X$139=6,$AA$143=0,$AB$143=0),'PC40 Graphs'!$E11,IF(AND($X$139=5,$AA$142=0,$AB$142=0),'PC40 Graphs'!$G11,IF(AND($X$139=4,$AA$141=0,$AB$141=0),'PC32 Graphs'!$C11,IF(AND($X$139=3,$AA$140=0,$AB$140=0),'PC32 Graphs'!$E11,IF(AND($X$139=2,$AA$139=0,$AB$139=0),'PC25 Graphs'!$C12,IF(AND($X$139=1,$AA$138=0,$AB$138=0),'PC25 Graphs'!$E12))))))) -> 265 | W155: =IF(AND($X$139=7,$AA$144=0,$AB$144=0),'PC40 Graphs'!$B69,IF(AND($X$139=6,$AA$143=0,$AB$143=0),'PC40 Graphs'!$D69,IF(AND($X$139=5,$AA$142=0,$AB$142=0),'PC40 Graphs'!$F69,IF(AND($X$139=4,$AA$141=0,$AB$141=0),'PC32 Graphs'!$B68,IF(AND($X$139=3,$AA$140=0,$AB$140=0),'PC32 Graphs'!$D68,IF(AND($X$139=2,$AA$139=0,$AB$139=0),'PC25 Graphs'!$B69,IF(AND($X$139=1,$AA$138=0,$AB$138=0),'PC25 Graphs'!$D69))))))) -> 924 | X155: =IF(AND($X$139=7,$AA$144=0,$AB$144=0),'PC40 Graphs'!L69,IF(AND($X$139=6,$AA$143=0,$AB$143=0),'PC40 Graphs'!N69,IF(AND($X$139=5,$AA$142=0,$AB$142=0),'PC40 Graphs'!P69,IF(AND($X$139=4,$AA$141=0,$AB$141=0),'PC32 Graphs'!L68,IF(AND($X$139=3,$AA$140=0,$AB$140=0),'PC32 Graphs'!N68,IF(AND($X$139=2,$AA$139=0,$AB$139=0),'PC25 Graphs'!L69,IF(AND($X$139=1,$AA$138=0,$AB$138=0),'PC25 Graphs'!N69))))))) -> 896 | Y155: 160 | Z155: 1158 | AA155: 265 | AD155: =Calc!B92 -> 960 | AE155: =Calc!A92 -> 0.8508 | AG155: =Calc!B26 -> 5545.7 | AH155: =Calc!A26 -> 2.551094505 | AQ155: 0.84312 | AR155: 1440 | AS155: 2.418594462 | AT155: 5803.3
B156: 6 | C156: AKM23E | D156: 1.16 | E156: 3.86 | F156: 0.98 | G156: 6500 | H156: 0.22 | J156: 6 | L156: =Input!C37 -> 10 | M156: Nominal torque | N156: =L156=2 -> FALSE | U156: =IF(AND($X$139=7,$AA$144=0,$AB$144=0),'PC40 Graphs'!$B12,IF(AND($X$139=6,$AA$143=0,$AB$143=0),'PC40 Graphs'!$D12,IF(AND($X$139=5,$AA$142=0,$AB$142=0),'PC40 Graphs'!$F12,IF(AND($X$139=4,$AA$141=0,$AB$141=0),'PC32 Graphs'!$B12,IF(AND($X$139=3,$AA$140=0,$AB$140=0),'PC32 Graphs'!$D12,IF(AND($X$139=2,$AA$139=0,$AB$139=0),'PC25 Graphs'!$B13,IF(AND($X$139=1,$AA$138=0,$AB$138=0),'PC25 Graphs'!$D13))))))) -> 187 | V156: =IF(AND($X$139=7,$AA$144=0,$AB$144=0),'PC40 Graphs'!$C12,IF(AND($X$139=6,$AA$143=0,$AB$143=0),'PC40 Graphs'!$E12,IF(AND($X$139=5,$AA$142=0,$AB$142=0),'PC40 Graphs'!$G12,IF(AND($X$139=4,$AA$141=0,$AB$141=0),'PC32 Graphs'!$C12,IF(AND($X$139=3,$AA$140=0,$AB$140=0),'PC32 Graphs'!$E12,IF(AND($X$139=2,$AA$139=0,$AB$139=0),'PC25 Graphs'!$C13,IF(AND($X$139=1,$AA$138=0,$AB$138=0),'PC25 Graphs'!$E13))))))) -> 259 | W156: =IF(AND($X$139=7,$AA$144=0,$AB$144=0),'PC40 Graphs'!$B70,IF(AND($X$139=6,$AA$143=0,$AB$143=0),'PC40 Graphs'!$D70,IF(AND($X$139=5,$AA$142=0,$AB$142=0),'PC40 Graphs'!$F70,IF(AND($X$139=4,$AA$141=0,$AB$141=0),'PC32 Graphs'!$B69,IF(AND($X$139=3,$AA$140=0,$AB$140=0),'PC32 Graphs'!$D69,IF(AND($X$139=2,$AA$139=0,$AB$139=0),'PC25 Graphs'!$B70,IF(AND($X$139=1,$AA$138=0,$AB$138=0),'PC25 Graphs'!$D70))))))) -> 938 | X156: =IF(AND($X$139=7,$AA$144=0,$AB$144=0),'PC40 Graphs'!L70,IF(AND($X$139=6,$AA$143=0,$AB$143=0),'PC40 Graphs'!N70,IF(AND($X$139=5,$AA$142=0,$AB$142=0),'PC40 Graphs'!P70,IF(AND($X$139=4,$AA$141=0,$AB$141=0),'PC32 Graphs'!L69,IF(AND($X$139=3,$AA$140=0,$AB$140=0),'PC32 Graphs'!N69,IF(AND($X$139=2,$AA$139=0,$AB$139=0),'PC25 Graphs'!L70,IF(AND($X$139=1,$AA$138=0,$AB$138=0),'PC25 Graphs'!N70))))))) -> 874 | Y156: 187 | Z156: 1158 | AA156: 259 | AD156: =Calc!B93 -> 1120 | AE156: =Calc!A93 -> 0.84824 | AG156: =Calc!B27 -> 5630 | AH156: =Calc!A27 -> 2.50752422 | AQ156: 0.84056 | AR156: 1600 | AS156: 2.373234989 | AT156: 5892.4
B157: 7 | C157: AKM24E | D157: 1.4 | E157: 4.79 | F157: 1.24 | G157: 5500 | H157: 0.27 | L157: =Input!C38 -> 10 | M157: Peak torque | U157: =IF(AND($X$139=7,$AA$144=0,$AB$144=0),'PC40 Graphs'!$B13,IF(AND($X$139=6,$AA$143=0,$AB$143=0),'PC40 Graphs'!$D13,IF(AND($X$139=5,$AA$142=0,$AB$142=0),'PC40 Graphs'!$F13,IF(AND($X$139=4,$AA$141=0,$AB$141=0),'PC32 Graphs'!$B13,IF(AND($X$139=3,$AA$140=0,$AB$140=0),'PC32 Graphs'!$D13,IF(AND($X$139=2,$AA$139=0,$AB$139=0),'PC25 Graphs'!$B14,IF(AND($X$139=1,$AA$138=0,$AB$138=0),'PC25 Graphs'!$D14))))))) -> 213 | V157: =IF(AND($X$139=7,$AA$144=0,$AB$144=0),'PC40 Graphs'!$C13,IF(AND($X$139=6,$AA$143=0,$AB$143=0),'PC40 Graphs'!$E13,IF(AND($X$139=5,$AA$142=0,$AB$142=0),'PC40 Graphs'!$G13,IF(AND($X$139=4,$AA$141=0,$AB$141=0),'PC32 Graphs'!$C13,IF(AND($X$139=3,$AA$140=0,$AB$140=0),'PC32 Graphs'!$E13,IF(AND($X$139=2,$AA$139=0,$AB$139=0),'PC25 Graphs'!$C14,IF(AND($X$139=1,$AA$138=0,$AB$138=0),'PC25 Graphs'!$E14))))))) -> 253 | W157: =IF(AND($X$139=7,$AA$144=0,$AB$144=0),'PC40 Graphs'!$B71,IF(AND($X$139=6,$AA$143=0,$AB$143=0),'PC40 Graphs'!$D71,IF(AND($X$139=5,$AA$142=0,$AB$142=0),'PC40 Graphs'!$F71,IF(AND($X$139=4,$AA$141=0,$AB$141=0),'PC32 Graphs'!$B70,IF(AND($X$139=3,$AA$140=0,$AB$140=0),'PC32 Graphs'!$D70,IF(AND($X$139=2,$AA$139=0,$AB$139=0),'PC25 Graphs'!$B71,IF(AND($X$139=1,$AA$138=0,$AB$138=0),'PC25 Graphs'!$D71))))))) -> 953 | X157: =IF(AND($X$139=7,$AA$144=0,$AB$144=0),'PC40 Graphs'!L71,IF(AND($X$139=6,$AA$143=0,$AB$143=0),'PC40 Graphs'!N71,IF(AND($X$139=5,$AA$142=0,$AB$142=0),'PC40 Graphs'!P71,IF(AND($X$139=4,$AA$141=0,$AB$141=0),'PC32 Graphs'!L70,IF(AND($X$139=3,$AA$140=0,$AB$140=0),'PC32 Graphs'!N70,IF(AND($X$139=2,$AA$139=0,$AB$139=0),'PC25 Graphs'!L71,IF(AND($X$139=1,$AA$138=0,$AB$138=0),'PC25 Graphs'!N71))))))) -> 851 | Y157: 213 | Z157: 1158 | AA157: 253 | AD157: =Calc!B94 -> 1280 | AE157: =Calc!A94 -> 0.84568 | AG157: =Calc!B28 -> 5715.8 | AH157: =Calc!A28 -> 2.463357538 | AQ157: 0.838 | AR157: 1760 | AS157: 2.327279121 | AT157: 5983.2
B158: 8 | C158: AKM31E | D158: 1.2 | E158: 4 | F158: 0.95 | G158: 6000 | H158: 0.33 | L158: =Input!C39 -> 10 | M158: Rated torque | U158: =IF(AND($X$139=7,$AA$144=0,$AB$144=0),'PC40 Graphs'!$B14,IF(AND($X$139=6,$AA$143=0,$AB$143=0),'PC40 Graphs'!$D14,IF(AND($X$139=5,$AA$142=0,$AB$142=0),'PC40 Graphs'!$F14,IF(AND($X$139=4,$AA$141=0,$AB$141=0),'PC32 Graphs'!$B14,IF(AND($X$139=3,$AA$140=0,$AB$140=0),'PC32 Graphs'!$D14,IF(AND($X$139=2,$AA$139=0,$AB$139=0),'PC25 Graphs'!$B15,IF(AND($X$139=1,$AA$138=0,$AB$138=0),'PC25 Graphs'!$D15))))))) -> 240 | V158: =IF(AND($X$139=7,$AA$144=0,$AB$144=0),'PC40 Graphs'!$C14,IF(AND($X$139=6,$AA$143=0,$AB$143=0),'PC40 Graphs'!$E14,IF(AND($X$139=5,$AA$142=0,$AB$142=0),'PC40 Graphs'!$G14,IF(AND($X$139=4,$AA$141=0,$AB$141=0),'PC32 Graphs'!$C14,IF(AND($X$139=3,$AA$140=0,$AB$140=0),'PC32 Graphs'!$E14,IF(AND($X$139=2,$AA$139=0,$AB$139=0),'PC25 Graphs'!$C15,IF(AND($X$139=1,$AA$138=0,$AB$138=0),'PC25 Graphs'!$E15))))))) -> 247 | W158: =IF(AND($X$139=7,$AA$144=0,$AB$144=0),'PC40 Graphs'!$B72,IF(AND($X$139=6,$AA$143=0,$AB$143=0),'PC40 Graphs'!$D72,IF(AND($X$139=5,$AA$142=0,$AB$142=0),'PC40 Graphs'!$F72,IF(AND($X$139=4,$AA$141=0,$AB$141=0),'PC32 Graphs'!$B71,IF(AND($X$139=3,$AA$140=0,$AB$140=0),'PC32 Graphs'!$D71,IF(AND($X$139=2,$AA$139=0,$AB$139=0),'PC25 Graphs'!$B72,IF(AND($X$139=1,$AA$138=0,$AB$138=0),'PC25 Graphs'!$D72))))))) -> 967 | X158: =IF(AND($X$139=7,$AA$144=0,$AB$144=0),'PC40 Graphs'!L72,IF(AND($X$139=6,$AA$143=0,$AB$143=0),'PC40 Graphs'!N72,IF(AND($X$139=5,$AA$142=0,$AB$142=0),'PC40 Graphs'!P72,IF(AND($X$139=4,$AA$141=0,$AB$141=0),'PC32 Graphs'!L71,IF(AND($X$139=3,$AA$140=0,$AB$140=0),'PC32 Graphs'!N71,IF(AND($X$139=2,$AA$139=0,$AB$139=0),'PC25 Graphs'!L72,IF(AND($X$139=1,$AA$138=0,$AB$138=0),'PC25 Graphs'!N72))))))) -> 828 | Y158: 240 | Z158: 1158 | AA158: 247 | AD158: =Calc!B95 -> 1440 | AE158: =Calc!A95 -> 0.84312 | AG158: =Calc!B29 -> 5803.3 | AH158: =Calc!A29 -> 2.418594462 | AQ158: 0.83544 | AR158: 1920 | AS158: 2.280726857 | AT158: 6075.6
B159: 9 | C159: =IF(AND($J$150=1,$J$170=2),C218,IF(AND($J$150=1,$J$170=1),C233,IF(AND($J$150=1,$J$170=3),C248,IF($J$150=3,C387,"")))) -> AKM32E | D159: 2.04 | E159: 7.11 | F159: 1.91 | G159: 3000 | H159: 0.59 | L159: =Input!C40 -> 4000 | M159: Max speed | U159: =IF(AND($X$139=7,$AA$144=0,$AB$144=0),'PC40 Graphs'!$B15,IF(AND($X$139=6,$AA$143=0,$AB$143=0),'PC40 Graphs'!$D15,IF(AND($X$139=5,$AA$142=0,$AB$142=0),'PC40 Graphs'!$F15,IF(AND($X$139=4,$AA$141=0,$AB$141=0),'PC32 Graphs'!$B15,IF(AND($X$139=3,$AA$140=0,$AB$140=0),'PC32 Graphs'!$D15,IF(AND($X$139=2,$AA$139=0,$AB$139=0),'PC25 Graphs'!$B16,IF(AND($X$139=1,$AA$138=0,$AB$138=0),'PC25 Graphs'!$D16))))))) -> 267 | V159: =IF(AND($X$139=7,$AA$144=0,$AB$144=0),'PC40 Graphs'!$C15,IF(AND($X$139=6,$AA$143=0,$AB$143=0),'PC40 Graphs'!$E15,IF(AND($X$139=5,$AA$142=0,$AB$142=0),'PC40 Graphs'!$G15,IF(AND($X$139=4,$AA$141=0,$AB$141=0),'PC32 Graphs'!$C15,IF(AND($X$139=3,$AA$140=0,$AB$140=0),'PC32 Graphs'!$E15,IF(AND($X$139=2,$AA$139=0,$AB$139=0),'PC25 Graphs'!$C16,IF(AND($X$139=1,$AA$138=0,$AB$138=0),'PC25 Graphs'!$E16))))))) -> 241 | W159: =IF(AND($X$139=7,$AA$144=0,$AB$144=0),'PC40 Graphs'!$B73,IF(AND($X$139=6,$AA$143=0,$AB$143=0),'PC40 Graphs'!$D73,IF(AND($X$139=5,$AA$142=0,$AB$142=0),'PC40 Graphs'!$F73,IF(AND($X$139=4,$AA$141=0,$AB$141=0),'PC32 Graphs'!$B72,IF(AND($X$139=3,$AA$140=0,$AB$140=0),'PC32 Graphs'!$D72,IF(AND($X$139=2,$AA$139=0,$AB$139=0),'PC25 Graphs'!$B73,IF(AND($X$139=1,$AA$138=0,$AB$138=0),'PC25 Graphs'!$D73))))))) -> 982 | X159: =IF(AND($X$139=7,$AA$144=0,$AB$144=0),'PC40 Graphs'!L73,IF(AND($X$139=6,$AA$143=0,$AB$143=0),'PC40 Graphs'!N73,IF(AND($X$139=5,$AA$142=0,$AB$142=0),'PC40 Graphs'!P73,IF(AND($X$139=4,$AA$141=0,$AB$141=0),'PC32 Graphs'!L72,IF(AND($X$139=3,$AA$140=0,$AB$140=0),'PC32 Graphs'!N72,IF(AND($X$139=2,$AA$139=0,$AB$139=0),'PC25 Graphs'!L73,IF(AND($X$139=1,$AA$138=0,$AB$138=0),'PC25 Graphs'!N73))))))) -> 805 | Y159: 267 | Z159: 1158 | AA159: 241 | AD159: =Calc!B96 -> 1600 | AE159: =Calc!A96 -> 0.84056 | AG159: =Calc!B30 -> 5892.4 | AH159: =Calc!A30 -> 2.373234989 | AQ159: 0.83288 | AR159: 2080 | AS159: 2.233578198 | AT159: 6169.7
B160: 10 | C160: AKM33H | D160: 2.88 | E160: 10.22 | F160: 2.27 | G160: 5500 | H160: 0.85 | L160: =Input!C41 -> 0.50 | M160: Inertia | U160: =IF(AND($X$139=7,$AA$144=0,$AB$144=0),'PC40 Graphs'!$B16,IF(AND($X$139=6,$AA$143=0,$AB$143=0),'PC40 Graphs'!$D16,IF(AND($X$139=5,$AA$142=0,$AB$142=0),'PC40 Graphs'!$F16,IF(AND($X$139=4,$AA$141=0,$AB$141=0),'PC32 Graphs'!$B16,IF(AND($X$139=3,$AA$140=0,$AB$140=0),'PC32 Graphs'!$D16,IF(AND($X$139=2,$AA$139=0,$AB$139=0),'PC25 Graphs'!$B17,IF(AND($X$139=1,$AA$138=0,$AB$138=0),'PC25 Graphs'!$D17))))))) -> 293 | V160: =IF(AND($X$139=7,$AA$144=0,$AB$144=0),'PC40 Graphs'!$C16,IF(AND($X$139=6,$AA$143=0,$AB$143=0),'PC40 Graphs'!$E16,IF(AND($X$139=5,$AA$142=0,$AB$142=0),'PC40 Graphs'!$G16,IF(AND($X$139=4,$AA$141=0,$AB$141=0),'PC32 Graphs'!$C16,IF(AND($X$139=3,$AA$140=0,$AB$140=0),'PC32 Graphs'!$E16,IF(AND($X$139=2,$AA$139=0,$AB$139=0),'PC25 Graphs'!$C17,IF(AND($X$139=1,$AA$138=0,$AB$138=0),'PC25 Graphs'!$E17))))))) -> 235 | W160: =IF(AND($X$139=7,$AA$144=0,$AB$144=0),'PC40 Graphs'!$B74,IF(AND($X$139=6,$AA$143=0,$AB$143=0),'PC40 Graphs'!$D74,IF(AND($X$139=5,$AA$142=0,$AB$142=0),'PC40 Graphs'!$F74,IF(AND($X$139=4,$AA$141=0,$AB$141=0),'PC32 Graphs'!$B73,IF(AND($X$139=3,$AA$140=0,$AB$140=0),'PC32 Graphs'!$D73,IF(AND($X$139=2,$AA$139=0,$AB$139=0),'PC25 Graphs'!$B74,IF(AND($X$139=1,$AA$138=0,$AB$138=0),'PC25 Graphs'!$D74))))))) -> 997 | X160: =IF(AND($X$139=7,$AA$144=0,$AB$144=0),'PC40 Graphs'!L74,IF(AND($X$139=6,$AA$143=0,$AB$143=0),'PC40 Graphs'!N74,IF(AND($X$139=5,$AA$142=0,$AB$142=0),'PC40 Graphs'!P74,IF(AND($X$139=4,$AA$141=0,$AB$141=0),'PC32 Graphs'!L73,IF(AND($X$139=3,$AA$140=0,$AB$140=0),'PC32 Graphs'!N73,IF(AND($X$139=2,$AA$139=0,$AB$139=0),'PC25 Graphs'!L74,IF(AND($X$139=1,$AA$138=0,$AB$138=0),'PC25 Graphs'!N74))))))) -> 781 | Y160: 293 | Z160: 1158 | AA160: 235 | AD160: =Calc!B97 -> 1760 | AE160: =Calc!A97 -> 0.838 | AG160: =Calc!B31 -> 5983.2 | AH160: =Calc!A31 -> 2.327279121 | AQ160: 0.83032 | AR160: 2240 | AS160: 2.185833143 | AT160: 6265.5
B161: 11 | C161: =IF(AND($J$150=1,$J$170=2),C220,IF(AND($J$150=1,$J$170=1),C235,IF(AND($J$150=1,$J$170=3),"",IF($J$150=3,C389,"")))) -> AKM41H | D161: 2.06 | E161: 6.36 | F161: 1.62 | G161: 6000 | H161: 0.81 | J161: =LOOKUP(M162,K162:K163,J162:J163) -> 1 | K161: =M162 -> Kollmorgen AKM Servo | U161: =IF(AND($X$139=7,$AA$144=0,$AB$144=0),'PC40 Graphs'!$B17,IF(AND($X$139=6,$AA$143=0,$AB$143=0),'PC40 Graphs'!$D17,IF(AND($X$139=5,$AA$142=0,$AB$142=0),'PC40 Graphs'!$F17,IF(AND($X$139=4,$AA$141=0,$AB$141=0),'PC32 Graphs'!$B17,IF(AND($X$139=3,$AA$140=0,$AB$140=0),'PC32 Graphs'!$D17,IF(AND($X$139=2,$AA$139=0,$AB$139=0),'PC25 Graphs'!$B18,IF(AND($X$139=1,$AA$138=0,$AB$138=0),'PC25 Graphs'!$D18))))))) -> 320 | V161: =IF(AND($X$139=7,$AA$144=0,$AB$144=0),'PC40 Graphs'!$C17,IF(AND($X$139=6,$AA$143=0,$AB$143=0),'PC40 Graphs'!$E17,IF(AND($X$139=5,$AA$142=0,$AB$142=0),'PC40 Graphs'!$G17,IF(AND($X$139=4,$AA$141=0,$AB$141=0),'PC32 Graphs'!$C17,IF(AND($X$139=3,$AA$140=0,$AB$140=0),'PC32 Graphs'!$E17,IF(AND($X$139=2,$AA$139=0,$AB$139=0),'PC25 Graphs'!$C18,IF(AND($X$139=1,$AA$138=0,$AB$138=0),'PC25 Graphs'!$E18))))))) -> 229 | W161: =IF(AND($X$139=7,$AA$144=0,$AB$144=0),'PC40 Graphs'!$B75,IF(AND($X$139=6,$AA$143=0,$AB$143=0),'PC40 Graphs'!$D75,IF(AND($X$139=5,$AA$142=0,$AB$142=0),'PC40 Graphs'!$F75,IF(AND($X$139=4,$AA$141=0,$AB$141=0),'PC32 Graphs'!$B74,IF(AND($X$139=3,$AA$140=0,$AB$140=0),'PC32 Graphs'!$D74,IF(AND($X$139=2,$AA$139=0,$AB$139=0),'PC25 Graphs'!$B75,IF(AND($X$139=1,$AA$138=0,$AB$138=0),'PC25 Graphs'!$D75))))))) -> 1000 | X161: =IF(AND($X$139=7,$AA$144=0,$AB$144=0),'PC40 Graphs'!L75,IF(AND($X$139=6,$AA$143=0,$AB$143=0),'PC40 Graphs'!N75,IF(AND($X$139=5,$AA$142=0,$AB$142=0),'PC40 Graphs'!P75,IF(AND($X$139=4,$AA$141=0,$AB$141=0),'PC32 Graphs'!L74,IF(AND($X$139=3,$AA$140=0,$AB$140=0),'PC32 Graphs'!N74,IF(AND($X$139=2,$AA$139=0,$AB$139=0),'PC25 Graphs'!L75,IF(AND($X$139=1,$AA$138=0,$AB$138=0),'PC25 Graphs'!N75))))))) -> 758 | Y161: 320 | Z161: 1158 | AA161: 229 | AD161: =Calc!B98 -> 1920 | AE161: =Calc!A98 -> 0.83544 | AG161: =Calc!B32 -> 6075.6 | AH161: =Calc!A32 -> 2.280726857 | AQ161: 0.82776 | AR161: 2400 | AS161: 2.137491692 | AT161: 6362.9
B162: 12 | C162: AKM42J | D162: 3.56 | E162: 11.6 | F162: 2.38 | G162: 6000 | H162: 1.5 | J162: 1 | K162: Kollmorgen AKM Servo | M162: Kollmorgen AKM Servo | U162: =IF(AND($X$139=7,$AA$144=0,$AB$144=0),'PC40 Graphs'!$B18,IF(AND($X$139=6,$AA$143=0,$AB$143=0),'PC40 Graphs'!$D18,IF(AND($X$139=5,$AA$142=0,$AB$142=0),'PC40 Graphs'!$F18,IF(AND($X$139=4,$AA$141=0,$AB$141=0),'PC32 Graphs'!$B18,IF(AND($X$139=3,$AA$140=0,$AB$140=0),'PC32 Graphs'!$D18,IF(AND($X$139=2,$AA$139=0,$AB$139=0),'PC25 Graphs'!$B19,IF(AND($X$139=1,$AA$138=0,$AB$138=0),'PC25 Graphs'!$D19))))))) -> 347 | V162: =IF(AND($X$139=7,$AA$144=0,$AB$144=0),'PC40 Graphs'!$C18,IF(AND($X$139=6,$AA$143=0,$AB$143=0),'PC40 Graphs'!$E18,IF(AND($X$139=5,$AA$142=0,$AB$142=0),'PC40 Graphs'!$G18,IF(AND($X$139=4,$AA$141=0,$AB$141=0),'PC32 Graphs'!$C18,IF(AND($X$139=3,$AA$140=0,$AB$140=0),'PC32 Graphs'!$E18,IF(AND($X$139=2,$AA$139=0,$AB$139=0),'PC25 Graphs'!$C19,IF(AND($X$139=1,$AA$138=0,$AB$138=0),'PC25 Graphs'!$E19))))))) -> 223 | W162: =IF(AND($X$139=7,$AA$144=0,$AB$144=0),'PC40 Graphs'!$B76,IF(AND($X$139=6,$AA$143=0,$AB$143=0),'PC40 Graphs'!$D76,IF(AND($X$139=5,$AA$142=0,$AB$142=0),'PC40 Graphs'!$F76,IF(AND($X$139=4,$AA$141=0,$AB$141=0),'PC32 Graphs'!$B75,IF(AND($X$139=3,$AA$140=0,$AB$140=0),'PC32 Graphs'!$D75,IF(AND($X$139=2,$AA$139=0,$AB$139=0),'PC25 Graphs'!$B76,IF(AND($X$139=1,$AA$138=0,$AB$138=0),'PC25 Graphs'!$D76))))))) -> 1000 | X162: =IF(AND($X$139=7,$AA$144=0,$AB$144=0),'PC40 Graphs'!L76,IF(AND($X$139=6,$AA$143=0,$AB$143=0),'PC40 Graphs'!N76,IF(AND($X$139=5,$AA$142=0,$AB$142=0),'PC40 Graphs'!P76,IF(AND($X$139=4,$AA$141=0,$AB$141=0),'PC32 Graphs'!L75,IF(AND($X$139=3,$AA$140=0,$AB$140=0),'PC32 Graphs'!N75,IF(AND($X$139=2,$AA$139=0,$AB$139=0),'PC25 Graphs'!L76,IF(AND($X$139=1,$AA$138=0,$AB$138=0),'PC25 Graphs'!N76))))))) -> 733 | Y162: 347 | Z162: 1158 | AA162: 223 | AD162: =Calc!B99 -> 2080 | AE162: =Calc!A99 -> 0.83288 | AG162: =Calc!B33 -> 6169.7 | AH162: =Calc!A33 -> 2.233578198 | AQ162: 0.8252 | AR162: 2560 | AS162: 2.088553846 | AT162: 6461.9
B163: 13 | C163: AKM43L | D163: 4.73 | E163: 16 | F163: 2.53 | G163: 6000 | H163: 2.1 | J163: 2 | K163: Customer Supplied | U163: =IF(AND($X$139=7,$AA$144=0,$AB$144=0),'PC40 Graphs'!$B19,IF(AND($X$139=6,$AA$143=0,$AB$143=0),'PC40 Graphs'!$D19,IF(AND($X$139=5,$AA$142=0,$AB$142=0),'PC40 Graphs'!$F19,IF(AND($X$139=4,$AA$141=0,$AB$141=0),'PC32 Graphs'!$B19,IF(AND($X$139=3,$AA$140=0,$AB$140=0),'PC32 Graphs'!$D19,IF(AND($X$139=2,$AA$139=0,$AB$139=0),'PC25 Graphs'!$B20,IF(AND($X$139=1,$AA$138=0,$AB$138=0),'PC25 Graphs'!$D20))))))) -> 373 | V163: =IF(AND($X$139=7,$AA$144=0,$AB$144=0),'PC40 Graphs'!$C19,IF(AND($X$139=6,$AA$143=0,$AB$143=0),'PC40 Graphs'!$E19,IF(AND($X$139=5,$AA$142=0,$AB$142=0),'PC40 Graphs'!$G19,IF(AND($X$139=4,$AA$141=0,$AB$141=0),'PC32 Graphs'!$C19,IF(AND($X$139=3,$AA$140=0,$AB$140=0),'PC32 Graphs'!$E19,IF(AND($X$139=2,$AA$139=0,$AB$139=0),'PC25 Graphs'!$C20,IF(AND($X$139=1,$AA$138=0,$AB$138=0),'PC25 Graphs'!$E20))))))) -> 217 | W163: =IF(AND($X$139=7,$AA$144=0,$AB$144=0),'PC40 Graphs'!$B77,IF(AND($X$139=6,$AA$143=0,$AB$143=0),'PC40 Graphs'!$D77,IF(AND($X$139=5,$AA$142=0,$AB$142=0),'PC40 Graphs'!$F77,IF(AND($X$139=4,$AA$141=0,$AB$141=0),'PC32 Graphs'!$B76,IF(AND($X$139=3,$AA$140=0,$AB$140=0),'PC32 Graphs'!$D76,IF(AND($X$139=2,$AA$139=0,$AB$139=0),'PC25 Graphs'!$B77,IF(AND($X$139=1,$AA$138=0,$AB$138=0),'PC25 Graphs'!$D77))))))) -> 1000 | X163: =IF(AND($X$139=7,$AA$144=0,$AB$144=0),'PC40 Graphs'!L77,IF(AND($X$139=6,$AA$143=0,$AB$143=0),'PC40 Graphs'!N77,IF(AND($X$139=5,$AA$142=0,$AB$142=0),'PC40 Graphs'!P77,IF(AND($X$139=4,$AA$141=0,$AB$141=0),'PC32 Graphs'!L76,IF(AND($X$139=3,$AA$140=0,$AB$140=0),'PC32 Graphs'!N76,IF(AND($X$139=2,$AA$139=0,$AB$139=0),'PC25 Graphs'!L77,IF(AND($X$139=1,$AA$138=0,$AB$138=0),'PC25 Graphs'!N77))))))) -> 709 | Y163: 373 | Z163: 1158 | AA163: 217 | AD163: =Calc!B100 -> 2240 | AE163: =Calc!A100 -> 0.83032 | AG163: =Calc!B34 -> 6265.5 | AH163: =Calc!A34 -> 2.185833143 | AQ163: 0.82264 | AR163: 2720 | AS163: 2.039019604 | AT163: 6562.5
B164: 14 | C164: AKM44J | D164: 6 | E164: 20.4 | F164: 3.84 | G164: 4000 | H164: 2.7 | U164: =IF(AND($X$139=7,$AA$144=0,$AB$144=0),'PC40 Graphs'!$B20,IF(AND($X$139=6,$AA$143=0,$AB$143=0),'PC40 Graphs'!$D20,IF(AND($X$139=5,$AA$142=0,$AB$142=0),'PC40 Graphs'!$F20,IF(AND($X$139=4,$AA$141=0,$AB$141=0),'PC32 Graphs'!$B20,IF(AND($X$139=3,$AA$140=0,$AB$140=0),'PC32 Graphs'!$D20,IF(AND($X$139=2,$AA$139=0,$AB$139=0),'PC25 Graphs'!$B21,IF(AND($X$139=1,$AA$138=0,$AB$138=0),'PC25 Graphs'!$D21))))))) -> 400 | V164: =IF(AND($X$139=7,$AA$144=0,$AB$144=0),'PC40 Graphs'!$C20,IF(AND($X$139=6,$AA$143=0,$AB$143=0),'PC40 Graphs'!$E20,IF(AND($X$139=5,$AA$142=0,$AB$142=0),'PC40 Graphs'!$G20,IF(AND($X$139=4,$AA$141=0,$AB$141=0),'PC32 Graphs'!$C20,IF(AND($X$139=3,$AA$140=0,$AB$140=0),'PC32 Graphs'!$E20,IF(AND($X$139=2,$AA$139=0,$AB$139=0),'PC25 Graphs'!$C21,IF(AND($X$139=1,$AA$138=0,$AB$138=0),'PC25 Graphs'!$E21))))))) -> 211 | W164: =IF(AND($X$139=7,$AA$144=0,$AB$144=0),'PC40 Graphs'!$B78,IF(AND($X$139=6,$AA$143=0,$AB$143=0),'PC40 Graphs'!$D78,IF(AND($X$139=5,$AA$142=0,$AB$142=0),'PC40 Graphs'!$F78,IF(AND($X$139=4,$AA$141=0,$AB$141=0),'PC32 Graphs'!$B77,IF(AND($X$139=3,$AA$140=0,$AB$140=0),'PC32 Graphs'!$D77,IF(AND($X$139=2,$AA$139=0,$AB$139=0),'PC25 Graphs'!$B78,IF(AND($X$139=1,$AA$138=0,$AB$138=0),'PC25 Graphs'!$D78))))))) -> 1000 | X164: =IF(AND($X$139=7,$AA$144=0,$AB$144=0),'PC40 Graphs'!L78,IF(AND($X$139=6,$AA$143=0,$AB$143=0),'PC40 Graphs'!N78,IF(AND($X$139=5,$AA$142=0,$AB$142=0),'PC40 Graphs'!P78,IF(AND($X$139=4,$AA$141=0,$AB$141=0),'PC32 Graphs'!L77,IF(AND($X$139=3,$AA$140=0,$AB$140=0),'PC32 Graphs'!N77,IF(AND($X$139=2,$AA$139=0,$AB$139=0),'PC25 Graphs'!L78,IF(AND($X$139=1,$AA$138=0,$AB$138=0),'PC25 Graphs'!N78))))))) -> 684 | Y164: 400 | Z164: 1158 | AA164: 211 | AD164: =Calc!B101 -> 2400 | AE164: =Calc!A101 -> 0.82776 | AG164: =Calc!B35 -> 6362.9 | AH164: =Calc!A35 -> 2.137491692 | AQ164: 0.82008 | AR164: 2880 | AS164: 1.988888967 | AT164: 6664.7
B165: 15 | C165: =IF(AND($J$150=1,$J$170=2),"",IF(AND($J$150=1,$J$170=1),"",IF(AND($J$150=1,$J$170=3),"",IF($J$150=3,C393,"")))) ->  | U165: =IF(AND($X$139=7,$AA$144=0,$AB$144=0),'PC40 Graphs'!$B21,IF(AND($X$139=6,$AA$143=0,$AB$143=0),'PC40 Graphs'!$D21,IF(AND($X$139=5,$AA$142=0,$AB$142=0),'PC40 Graphs'!$F21,IF(AND($X$139=4,$AA$141=0,$AB$141=0),'PC32 Graphs'!$B21,IF(AND($X$139=3,$AA$140=0,$AB$140=0),'PC32 Graphs'!$D21,IF(AND($X$139=2,$AA$139=0,$AB$139=0),'PC25 Graphs'!$B22,IF(AND($X$139=1,$AA$138=0,$AB$138=0),'PC25 Graphs'!$D22))))))) -> 427 | V165: =IF(AND($X$139=7,$AA$144=0,$AB$144=0),'PC40 Graphs'!$C21,IF(AND($X$139=6,$AA$143=0,$AB$143=0),'PC40 Graphs'!$E21,IF(AND($X$139=5,$AA$142=0,$AB$142=0),'PC40 Graphs'!$G21,IF(AND($X$139=4,$AA$141=0,$AB$141=0),'PC32 Graphs'!$C21,IF(AND($X$139=3,$AA$140=0,$AB$140=0),'PC32 Graphs'!$E21,IF(AND($X$139=2,$AA$139=0,$AB$139=0),'PC25 Graphs'!$C22,IF(AND($X$139=1,$AA$138=0,$AB$138=0),'PC25 Graphs'!$E22))))))) -> 205 | W165: =IF(AND($X$139=7,$AA$144=0,$AB$144=0),'PC40 Graphs'!$B79,IF(AND($X$139=6,$AA$143=0,$AB$143=0),'PC40 Graphs'!$D79,IF(AND($X$139=5,$AA$142=0,$AB$142=0),'PC40 Graphs'!$F79,IF(AND($X$139=4,$AA$141=0,$AB$141=0),'PC32 Graphs'!$B78,IF(AND($X$139=3,$AA$140=0,$AB$140=0),'PC32 Graphs'!$D78,IF(AND($X$139=2,$AA$139=0,$AB$139=0),'PC25 Graphs'!$B79,IF(AND($X$139=1,$AA$138=0,$AB$138=0),'PC25 Graphs'!$D79))))))) -> 1000 | X165: =IF(AND($X$139=7,$AA$144=0,$AB$144=0),'PC40 Graphs'!L79,IF(AND($X$139=6,$AA$143=0,$AB$143=0),'PC40 Graphs'!N79,IF(AND($X$139=5,$AA$142=0,$AB$142=0),'PC40 Graphs'!P79,IF(AND($X$139=4,$AA$141=0,$AB$141=0),'PC32 Graphs'!L78,IF(AND($X$139=3,$AA$140=0,$AB$140=0),'PC32 Graphs'!N78,IF(AND($X$139=2,$AA$139=0,$AB$139=0),'PC25 Graphs'!L79,IF(AND($X$139=1,$AA$138=0,$AB$138=0),'PC25 Graphs'!N79))))))) -> 659 | Y165: 427 | Z165: 1158 | AA165: 205 | AD165: =Calc!B102 -> 2560 | AE165: =Calc!A102 -> 0.8252 | AG165: =Calc!B36 -> 6461.9 | AH165: =Calc!A36 -> 2.088553846 | AQ165: 0.81752 | AR165: 3040 | AS165: 1.938161934 | AT165: 6768.4
B166: 16 | U166: =IF(AND($X$139=7,$AA$144=0,$AB$144=0),'PC40 Graphs'!$B22,IF(AND($X$139=6,$AA$143=0,$AB$143=0),'PC40 Graphs'!$D22,IF(AND($X$139=5,$AA$142=0,$AB$142=0),'PC40 Graphs'!$F22,IF(AND($X$139=4,$AA$141=0,$AB$141=0),'PC32 Graphs'!$B22,IF(AND($X$139=3,$AA$140=0,$AB$140=0),'PC32 Graphs'!$D22,IF(AND($X$139=2,$AA$139=0,$AB$139=0),'PC25 Graphs'!$B23,IF(AND($X$139=1,$AA$138=0,$AB$138=0),'PC25 Graphs'!$D23))))))) -> 453 | V166: =IF(AND($X$139=7,$AA$144=0,$AB$144=0),'PC40 Graphs'!$C22,IF(AND($X$139=6,$AA$143=0,$AB$143=0),'PC40 Graphs'!$E22,IF(AND($X$139=5,$AA$142=0,$AB$142=0),'PC40 Graphs'!$G22,IF(AND($X$139=4,$AA$141=0,$AB$141=0),'PC32 Graphs'!$C22,IF(AND($X$139=3,$AA$140=0,$AB$140=0),'PC32 Graphs'!$E22,IF(AND($X$139=2,$AA$139=0,$AB$139=0),'PC25 Graphs'!$C23,IF(AND($X$139=1,$AA$138=0,$AB$138=0),'PC25 Graphs'!$E23))))))) -> 199 | W166: =IF(AND($X$139=7,$AA$144=0,$AB$144=0),'PC40 Graphs'!$B80,IF(AND($X$139=6,$AA$143=0,$AB$143=0),'PC40 Graphs'!$D80,IF(AND($X$139=5,$AA$142=0,$AB$142=0),'PC40 Graphs'!$F80,IF(AND($X$139=4,$AA$141=0,$AB$141=0),'PC32 Graphs'!$B79,IF(AND($X$139=3,$AA$140=0,$AB$140=0),'PC32 Graphs'!$D79,IF(AND($X$139=2,$AA$139=0,$AB$139=0),'PC25 Graphs'!$B80,IF(AND($X$139=1,$AA$138=0,$AB$138=0),'PC25 Graphs'!$D80))))))) -> 1000 | X166: =IF(AND($X$139=7,$AA$144=0,$AB$144=0),'PC40 Graphs'!L80,IF(AND($X$139=6,$AA$143=0,$AB$143=0),'PC40 Graphs'!N80,IF(AND($X$139=5,$AA$142=0,$AB$142=0),'PC40 Graphs'!P80,IF(AND($X$139=4,$AA$141=0,$AB$141=0),'PC32 Graphs'!L79,IF(AND($X$139=3,$AA$140=0,$AB$140=0),'PC32 Graphs'!N79,IF(AND($X$139=2,$AA$139=0,$AB$139=0),'PC25 Graphs'!L80,IF(AND($X$139=1,$AA$138=0,$AB$138=0),'PC25 Graphs'!N80))))))) -> 634 | Y166: 453 | Z166: 1158 | AA166: 199 | AD166: =Calc!B103 -> 2720 | AE166: =Calc!A103 -> 0.82264 | AG166: =Calc!B37 -> 6562.5 | AH166: =Calc!A37 -> 2.039019604 | AQ166: 0.81496 | AR166: 3200 | AS166: 1.886838505 | AT166: 6873.6
B167: 17 | U167: =IF(AND($X$139=7,$AA$144=0,$AB$144=0),'PC40 Graphs'!$B23,IF(AND($X$139=6,$AA$143=0,$AB$143=0),'PC40 Graphs'!$D23,IF(AND($X$139=5,$AA$142=0,$AB$142=0),'PC40 Graphs'!$F23,IF(AND($X$139=4,$AA$141=0,$AB$141=0),'PC32 Graphs'!$B23,IF(AND($X$139=3,$AA$140=0,$AB$140=0),'PC32 Graphs'!$D23,IF(AND($X$139=2,$AA$139=0,$AB$139=0),'PC25 Graphs'!$B24,IF(AND($X$139=1,$AA$138=0,$AB$138=0),'PC25 Graphs'!$D24))))))) -> 480 | V167: =IF(AND($X$139=7,$AA$144=0,$AB$144=0),'PC40 Graphs'!$C23,IF(AND($X$139=6,$AA$143=0,$AB$143=0),'PC40 Graphs'!$E23,IF(AND($X$139=5,$AA$142=0,$AB$142=0),'PC40 Graphs'!$G23,IF(AND($X$139=4,$AA$141=0,$AB$141=0),'PC32 Graphs'!$C23,IF(AND($X$139=3,$AA$140=0,$AB$140=0),'PC32 Graphs'!$E23,IF(AND($X$139=2,$AA$139=0,$AB$139=0),'PC25 Graphs'!$C24,IF(AND($X$139=1,$AA$138=0,$AB$138=0),'PC25 Graphs'!$E24))))))) -> 193 | W167: =IF(AND($X$139=7,$AA$144=0,$AB$144=0),'PC40 Graphs'!$B81,IF(AND($X$139=6,$AA$143=0,$AB$143=0),'PC40 Graphs'!$D81,IF(AND($X$139=5,$AA$142=0,$AB$142=0),'PC40 Graphs'!$F81,IF(AND($X$139=4,$AA$141=0,$AB$141=0),'PC32 Graphs'!$B80,IF(AND($X$139=3,$AA$140=0,$AB$140=0),'PC32 Graphs'!$D80,IF(AND($X$139=2,$AA$139=0,$AB$139=0),'PC25 Graphs'!$B81,IF(AND($X$139=1,$AA$138=0,$AB$138=0),'PC25 Graphs'!$D81))))))) -> 1000 | X167: =IF(AND($X$139=7,$AA$144=0,$AB$144=0),'PC40 Graphs'!L81,IF(AND($X$139=6,$AA$143=0,$AB$143=0),'PC40 Graphs'!N81,IF(AND($X$139=5,$AA$142=0,$AB$142=0),'PC40 Graphs'!P81,IF(AND($X$139=4,$AA$141=0,$AB$141=0),'PC32 Graphs'!L80,IF(AND($X$139=3,$AA$140=0,$AB$140=0),'PC32 Graphs'!N80,IF(AND($X$139=2,$AA$139=0,$AB$139=0),'PC25 Graphs'!L81,IF(AND($X$139=1,$AA$138=0,$AB$138=0),'PC25 Graphs'!N81))))))) -> 608 | Y167: 480 | Z167: 1158 | AA167: 193 | AD167: =Calc!B104 -> 2880 | AE167: =Calc!A104 -> 0.82008 | AG167: =Calc!B38 -> 6664.7 | AH167: =Calc!A38 -> 1.988888967 | AQ167: 0.8124 | AR167: 3360 | AS167: 1.834918681 | AT167: 6980.1
B168: 18 | U168: =IF(AND($X$139=7,$AA$144=0,$AB$144=0),'PC40 Graphs'!$B24,IF(AND($X$139=6,$AA$143=0,$AB$143=0),'PC40 Graphs'!$D24,IF(AND($X$139=5,$AA$142=0,$AB$142=0),'PC40 Graphs'!$F24,IF(AND($X$139=4,$AA$141=0,$AB$141=0),'PC32 Graphs'!$B24,IF(AND($X$139=3,$AA$140=0,$AB$140=0),'PC32 Graphs'!$D24,IF(AND($X$139=2,$AA$139=0,$AB$139=0),'PC25 Graphs'!$B25,IF(AND($X$139=1,$AA$138=0,$AB$138=0),'PC25 Graphs'!$D25))))))) -> 507 | V168: =IF(AND($X$139=7,$AA$144=0,$AB$144=0),'PC40 Graphs'!$C24,IF(AND($X$139=6,$AA$143=0,$AB$143=0),'PC40 Graphs'!$E24,IF(AND($X$139=5,$AA$142=0,$AB$142=0),'PC40 Graphs'!$G24,IF(AND($X$139=4,$AA$141=0,$AB$141=0),'PC32 Graphs'!$C24,IF(AND($X$139=3,$AA$140=0,$AB$140=0),'PC32 Graphs'!$E24,IF(AND($X$139=2,$AA$139=0,$AB$139=0),'PC25 Graphs'!$C25,IF(AND($X$139=1,$AA$138=0,$AB$138=0),'PC25 Graphs'!$E25))))))) -> 187 | W168: =IF(AND($X$139=7,$AA$144=0,$AB$144=0),'PC40 Graphs'!$B82,IF(AND($X$139=6,$AA$143=0,$AB$143=0),'PC40 Graphs'!$D82,IF(AND($X$139=5,$AA$142=0,$AB$142=0),'PC40 Graphs'!$F82,IF(AND($X$139=4,$AA$141=0,$AB$141=0),'PC32 Graphs'!$B81,IF(AND($X$139=3,$AA$140=0,$AB$140=0),'PC32 Graphs'!$D81,IF(AND($X$139=2,$AA$139=0,$AB$139=0),'PC25 Graphs'!$B82,IF(AND($X$139=1,$AA$138=0,$AB$138=0),'PC25 Graphs'!$D82))))))) -> 1000 | X168: =IF(AND($X$139=7,$AA$144=0,$AB$144=0),'PC40 Graphs'!L82,IF(AND($X$139=6,$AA$143=0,$AB$143=0),'PC40 Graphs'!N82,IF(AND($X$139=5,$AA$142=0,$AB$142=0),'PC40 Graphs'!P82,IF(AND($X$139=4,$AA$141=0,$AB$141=0),'PC32 Graphs'!L81,IF(AND($X$139=3,$AA$140=0,$AB$140=0),'PC32 Graphs'!N81,IF(AND($X$139=2,$AA$139=0,$AB$139=0),'PC25 Graphs'!L82,IF(AND($X$139=1,$AA$138=0,$AB$138=0),'PC25 Graphs'!N82))))))) -> 582 | Y168: 507 | Z168: 1158 | AA168: 187 | AD168: =Calc!B105 -> 3040 | AE168: =Calc!A105 -> 0.81752 | AG168: =Calc!B39 -> 6768.4 | AH168: =Calc!A39 -> 1.938161934 | AQ168: 0.8084888889 | AR168: 3520 | AS168: 1.782402462 | AT168: 7088
B169: 19 | J169: Chosen Input Voltage | M169: 160 | U169: =IF(AND($X$139=7,$AA$144=0,$AB$144=0),'PC40 Graphs'!$B25,IF(AND($X$139=6,$AA$143=0,$AB$143=0),'PC40 Graphs'!$D25,IF(AND($X$139=5,$AA$142=0,$AB$142=0),'PC40 Graphs'!$F25,IF(AND($X$139=4,$AA$141=0,$AB$141=0),'PC32 Graphs'!$B25,IF(AND($X$139=3,$AA$140=0,$AB$140=0),'PC32 Graphs'!$D25,IF(AND($X$139=2,$AA$139=0,$AB$139=0),'PC25 Graphs'!$B26,IF(AND($X$139=1,$AA$138=0,$AB$138=0),'PC25 Graphs'!$D26))))))) -> 533 | V169: =IF(AND($X$139=7,$AA$144=0,$AB$144=0),'PC40 Graphs'!$C25,IF(AND($X$139=6,$AA$143=0,$AB$143=0),'PC40 Graphs'!$E25,IF(AND($X$139=5,$AA$142=0,$AB$142=0),'PC40 Graphs'!$G25,IF(AND($X$139=4,$AA$141=0,$AB$141=0),'PC32 Graphs'!$C25,IF(AND($X$139=3,$AA$140=0,$AB$140=0),'PC32 Graphs'!$E25,IF(AND($X$139=2,$AA$139=0,$AB$139=0),'PC25 Graphs'!$C26,IF(AND($X$139=1,$AA$138=0,$AB$138=0),'PC25 Graphs'!$E26))))))) -> 181 | W169: =IF(AND($X$139=7,$AA$144=0,$AB$144=0),'PC40 Graphs'!$B83,IF(AND($X$139=6,$AA$143=0,$AB$143=0),'PC40 Graphs'!$D83,IF(AND($X$139=5,$AA$142=0,$AB$142=0),'PC40 Graphs'!$F83,IF(AND($X$139=4,$AA$141=0,$AB$141=0),'PC32 Graphs'!$B82,IF(AND($X$139=3,$AA$140=0,$AB$140=0),'PC32 Graphs'!$D82,IF(AND($X$139=2,$AA$139=0,$AB$139=0),'PC25 Graphs'!$B83,IF(AND($X$139=1,$AA$138=0,$AB$138=0),'PC25 Graphs'!$D83))))))) -> 1000 | X169: =IF(AND($X$139=7,$AA$144=0,$AB$144=0),'PC40 Graphs'!L83,IF(AND($X$139=6,$AA$143=0,$AB$143=0),'PC40 Graphs'!N83,IF(AND($X$139=5,$AA$142=0,$AB$142=0),'PC40 Graphs'!P83,IF(AND($X$139=4,$AA$141=0,$AB$141=0),'PC32 Graphs'!L82,IF(AND($X$139=3,$AA$140=0,$AB$140=0),'PC32 Graphs'!N82,IF(AND($X$139=2,$AA$139=0,$AB$139=0),'PC25 Graphs'!L83,IF(AND($X$139=1,$AA$138=0,$AB$138=0),'PC25 Graphs'!N83))))))) -> 555 | Y169: 533 | Z169: 1158 | AA169: 181 | AD169: =Calc!B106 -> 3200 | AE169: =Calc!A106 -> 0.81496 | AG169: =Calc!B40 -> 6873.6 | AH169: =Calc!A40 -> 1.886838505 | AQ169: 0.8045777778 | AR169: 3680 | AS169: 1.729289846 | AT169: 7197.1
B170: 20 | J170: =IF(OR($J$150=1,$J$150=2),LOOKUP($K$170,$K$171:$K$173,$J$171:$J$173),"") -> 2 | K170: =IF(OR(J150=1,J150=2),Input!C32,"") -> 240 | L170: =IF(J170=1,160,IF(J170=2,320,560)) -> 320 | M170: 320 | U170: =IF(AND($X$139=7,$AA$144=0,$AB$144=0),'PC40 Graphs'!$B26,IF(AND($X$139=6,$AA$143=0,$AB$143=0),'PC40 Graphs'!$D26,IF(AND($X$139=5,$AA$142=0,$AB$142=0),'PC40 Graphs'!$F26,IF(AND($X$139=4,$AA$141=0,$AB$141=0),'PC32 Graphs'!$B26,IF(AND($X$139=3,$AA$140=0,$AB$140=0),'PC32 Graphs'!$D26,IF(AND($X$139=2,$AA$139=0,$AB$139=0),'PC25 Graphs'!$B27,IF(AND($X$139=1,$AA$138=0,$AB$138=0),'PC25 Graphs'!$D27))))))) -> 560 | V170: =IF(AND($X$139=7,$AA$144=0,$AB$144=0),'PC40 Graphs'!$C26,IF(AND($X$139=6,$AA$143=0,$AB$143=0),'PC40 Graphs'!$E26,IF(AND($X$139=5,$AA$142=0,$AB$142=0),'PC40 Graphs'!$G26,IF(AND($X$139=4,$AA$141=0,$AB$141=0),'PC32 Graphs'!$C26,IF(AND($X$139=3,$AA$140=0,$AB$140=0),'PC32 Graphs'!$E26,IF(AND($X$139=2,$AA$139=0,$AB$139=0),'PC25 Graphs'!$C27,IF(AND($X$139=1,$AA$138=0,$AB$138=0),'PC25 Graphs'!$E27))))))) -> 175 | W170: =IF(AND($X$139=7,$AA$144=0,$AB$144=0),'PC40 Graphs'!$B84,IF(AND($X$139=6,$AA$143=0,$AB$143=0),'PC40 Graphs'!$D84,IF(AND($X$139=5,$AA$142=0,$AB$142=0),'PC40 Graphs'!$F84,IF(AND($X$139=4,$AA$141=0,$AB$141=0),'PC32 Graphs'!$B83,IF(AND($X$139=3,$AA$140=0,$AB$140=0),'PC32 Graphs'!$D83,IF(AND($X$139=2,$AA$139=0,$AB$139=0),'PC25 Graphs'!$B84,IF(AND($X$139=1,$AA$138=0,$AB$138=0),'PC25 Graphs'!$D84))))))) -> 1000 | X170: =IF(AND($X$139=7,$AA$144=0,$AB$144=0),'PC40 Graphs'!L84,IF(AND($X$139=6,$AA$143=0,$AB$143=0),'PC40 Graphs'!N84,IF(AND($X$139=5,$AA$142=0,$AB$142=0),'PC40 Graphs'!P84,IF(AND($X$139=4,$AA$141=0,$AB$141=0),'PC32 Graphs'!L83,IF(AND($X$139=3,$AA$140=0,$AB$140=0),'PC32 Graphs'!N83,IF(AND($X$139=2,$AA$139=0,$AB$139=0),'PC25 Graphs'!L84,IF(AND($X$139=1,$AA$138=0,$AB$138=0),'PC25 Graphs'!N84))))))) -> 529 | Y170: 560 | Z170: 1158 | AA170: 175 | AD170: =Calc!B107 -> 3360 | AE170: =Calc!A107 -> 0.8124 | AG170: =Calc!B41 -> 6980.1 | AH170: =Calc!A41 -> 1.834918681 | AQ170: 0.8006666667 | AR170: 3840 | AS170: 1.675580835 | AT170: 7307.4
B171: 21 | J171: 1 | K171: =IF(J150=1,"120",IF(J150=2,"12","")) -> 120 | M171: 560 | U171: =IF(AND($X$139=7,$AA$144=0,$AB$144=0),'PC40 Graphs'!$B27,IF(AND($X$139=6,$AA$143=0,$AB$143=0),'PC40 Graphs'!$D27,IF(AND($X$139=5,$AA$142=0,$AB$142=0),'PC40 Graphs'!$F27,IF(AND($X$139=4,$AA$141=0,$AB$141=0),'PC32 Graphs'!$B27,IF(AND($X$139=3,$AA$140=0,$AB$140=0),'PC32 Graphs'!$D27,IF(AND($X$139=2,$AA$139=0,$AB$139=0),'PC25 Graphs'!$B28,IF(AND($X$139=1,$AA$138=0,$AB$138=0),'PC25 Graphs'!$D28))))))) -> 587 | V171: =IF(AND($X$139=7,$AA$144=0,$AB$144=0),'PC40 Graphs'!$C27,IF(AND($X$139=6,$AA$143=0,$AB$143=0),'PC40 Graphs'!$E27,IF(AND($X$139=5,$AA$142=0,$AB$142=0),'PC40 Graphs'!$G27,IF(AND($X$139=4,$AA$141=0,$AB$141=0),'PC32 Graphs'!$C27,IF(AND($X$139=3,$AA$140=0,$AB$140=0),'PC32 Graphs'!$E27,IF(AND($X$139=2,$AA$139=0,$AB$139=0),'PC25 Graphs'!$C28,IF(AND($X$139=1,$AA$138=0,$AB$138=0),'PC25 Graphs'!$E28))))))) -> 169 | W171: =IF(AND($X$139=7,$AA$144=0,$AB$144=0),'PC40 Graphs'!$B85,IF(AND($X$139=6,$AA$143=0,$AB$143=0),'PC40 Graphs'!$D85,IF(AND($X$139=5,$AA$142=0,$AB$142=0),'PC40 Graphs'!$F85,IF(AND($X$139=4,$AA$141=0,$AB$141=0),'PC32 Graphs'!$B84,IF(AND($X$139=3,$AA$140=0,$AB$140=0),'PC32 Graphs'!$D84,IF(AND($X$139=2,$AA$139=0,$AB$139=0),'PC25 Graphs'!$B85,IF(AND($X$139=1,$AA$138=0,$AB$138=0),'PC25 Graphs'!$D85))))))) -> 1000 | X171: =IF(AND($X$139=7,$AA$144=0,$AB$144=0),'PC40 Graphs'!L85,IF(AND($X$139=6,$AA$143=0,$AB$143=0),'PC40 Graphs'!N85,IF(AND($X$139=5,$AA$142=0,$AB$142=0),'PC40 Graphs'!P85,IF(AND($X$139=4,$AA$141=0,$AB$141=0),'PC32 Graphs'!L84,IF(AND($X$139=3,$AA$140=0,$AB$140=0),'PC32 Graphs'!N84,IF(AND($X$139=2,$AA$139=0,$AB$139=0),'PC25 Graphs'!L85,IF(AND($X$139=1,$AA$138=0,$AB$138=0),'PC25 Graphs'!N85))))))) -> 502 | Y171: 587 | Z171: 1158 | AA171: 169 | AD171: =Calc!B108 -> 3520 | AE171: =Calc!A108 -> 0.8084888889 | AG171: =Calc!B42 -> 7088 | AH171: =Calc!A42 -> 1.782402462 | AQ171: 0.7967555556 | AR171: 4000 | AS171: 1.621275429 | AT171: 7418.7
B172: 22 | J172: 2 | K172: =IF(J150=1,"240",IF(J150=2,"24","")) -> 240 | U172: =IF(AND($X$139=7,$AA$144=0,$AB$144=0),'PC40 Graphs'!$B28,IF(AND($X$139=6,$AA$143=0,$AB$143=0),'PC40 Graphs'!$D28,IF(AND($X$139=5,$AA$142=0,$AB$142=0),'PC40 Graphs'!$F28,IF(AND($X$139=4,$AA$141=0,$AB$141=0),'PC32 Graphs'!$B28,IF(AND($X$139=3,$AA$140=0,$AB$140=0),'PC32 Graphs'!$D28,IF(AND($X$139=2,$AA$139=0,$AB$139=0),'PC25 Graphs'!$B29,IF(AND($X$139=1,$AA$138=0,$AB$138=0),'PC25 Graphs'!$D29))))))) -> 613 | V172: =IF(AND($X$139=7,$AA$144=0,$AB$144=0),'PC40 Graphs'!$C28,IF(AND($X$139=6,$AA$143=0,$AB$143=0),'PC40 Graphs'!$E28,IF(AND($X$139=5,$AA$142=0,$AB$142=0),'PC40 Graphs'!$G28,IF(AND($X$139=4,$AA$141=0,$AB$141=0),'PC32 Graphs'!$C28,IF(AND($X$139=3,$AA$140=0,$AB$140=0),'PC32 Graphs'!$E28,IF(AND($X$139=2,$AA$139=0,$AB$139=0),'PC25 Graphs'!$C29,IF(AND($X$139=1,$AA$138=0,$AB$138=0),'PC25 Graphs'!$E29))))))) -> 162 | W172: =IF(AND($X$139=7,$AA$144=0,$AB$144=0),'PC40 Graphs'!$B86,IF(AND($X$139=6,$AA$143=0,$AB$143=0),'PC40 Graphs'!$D86,IF(AND($X$139=5,$AA$142=0,$AB$142=0),'PC40 Graphs'!$F86,IF(AND($X$139=4,$AA$141=0,$AB$141=0),'PC32 Graphs'!$B85,IF(AND($X$139=3,$AA$140=0,$AB$140=0),'PC32 Graphs'!$D85,IF(AND($X$139=2,$AA$139=0,$AB$139=0),'PC25 Graphs'!$B86,IF(AND($X$139=1,$AA$138=0,$AB$138=0),'PC25 Graphs'!$D86))))))) -> 1000 | X172: =IF(AND($X$139=7,$AA$144=0,$AB$144=0),'PC40 Graphs'!L86,IF(AND($X$139=6,$AA$143=0,$AB$143=0),'PC40 Graphs'!N86,IF(AND($X$139=5,$AA$142=0,$AB$142=0),'PC40 Graphs'!P86,IF(AND($X$139=4,$AA$141=0,$AB$141=0),'PC32 Graphs'!L85,IF(AND($X$139=3,$AA$140=0,$AB$140=0),'PC32 Graphs'!N85,IF(AND($X$139=2,$AA$139=0,$AB$139=0),'PC25 Graphs'!L86,IF(AND($X$139=1,$AA$138=0,$AB$138=0),'PC25 Graphs'!N86))))))) -> 474 | Y172: 613 | Z172: 1158 | AA172: 162 | AD172: =Calc!B109 -> 3680 | AE172: =Calc!A109 -> 0.8045777778 | AG172: =Calc!B43 -> 7197.1 | AH172: =Calc!A43 -> 1.729289846 | AQ172: 0.7928444444 | AR172: 4160 | AS172: 1.566373626 | AT172: 7530.8
B173: 23 | J173: 3 | K173: =IF(J150=1,"400",IF(J150=2,48,"")) -> 400 | U173: =IF(AND($X$139=7,$AA$144=0,$AB$144=0),'PC40 Graphs'!$B29,IF(AND($X$139=6,$AA$143=0,$AB$143=0),'PC40 Graphs'!$D29,IF(AND($X$139=5,$AA$142=0,$AB$142=0),'PC40 Graphs'!$F29,IF(AND($X$139=4,$AA$141=0,$AB$141=0),'PC32 Graphs'!$B29,IF(AND($X$139=3,$AA$140=0,$AB$140=0),'PC32 Graphs'!$D29,IF(AND($X$139=2,$AA$139=0,$AB$139=0),'PC25 Graphs'!$B30,IF(AND($X$139=1,$AA$138=0,$AB$138=0),'PC25 Graphs'!$D30))))))) -> 640 | V173: =IF(AND($X$139=7,$AA$144=0,$AB$144=0),'PC40 Graphs'!$C29,IF(AND($X$139=6,$AA$143=0,$AB$143=0),'PC40 Graphs'!$E29,IF(AND($X$139=5,$AA$142=0,$AB$142=0),'PC40 Graphs'!$G29,IF(AND($X$139=4,$AA$141=0,$AB$141=0),'PC32 Graphs'!$C29,IF(AND($X$139=3,$AA$140=0,$AB$140=0),'PC32 Graphs'!$E29,IF(AND($X$139=2,$AA$139=0,$AB$139=0),'PC25 Graphs'!$C30,IF(AND($X$139=1,$AA$138=0,$AB$138=0),'PC25 Graphs'!$E30))))))) -> 155 | W173: =IF(AND($X$139=7,$AA$144=0,$AB$144=0),'PC40 Graphs'!$B87,IF(AND($X$139=6,$AA$143=0,$AB$143=0),'PC40 Graphs'!$D87,IF(AND($X$139=5,$AA$142=0,$AB$142=0),'PC40 Graphs'!$F87,IF(AND($X$139=4,$AA$141=0,$AB$141=0),'PC32 Graphs'!$B86,IF(AND($X$139=3,$AA$140=0,$AB$140=0),'PC32 Graphs'!$D86,IF(AND($X$139=2,$AA$139=0,$AB$139=0),'PC25 Graphs'!$B87,IF(AND($X$139=1,$AA$138=0,$AB$138=0),'PC25 Graphs'!$D87))))))) -> 1000 | X173: =IF(AND($X$139=7,$AA$144=0,$AB$144=0),'PC40 Graphs'!L87,IF(AND($X$139=6,$AA$143=0,$AB$143=0),'PC40 Graphs'!N87,IF(AND($X$139=5,$AA$142=0,$AB$142=0),'PC40 Graphs'!P87,IF(AND($X$139=4,$AA$141=0,$AB$141=0),'PC32 Graphs'!L86,IF(AND($X$139=3,$AA$140=0,$AB$140=0),'PC32 Graphs'!N86,IF(AND($X$139=2,$AA$139=0,$AB$139=0),'PC25 Graphs'!L87,IF(AND($X$139=1,$AA$138=0,$AB$138=0),'PC25 Graphs'!N87))))))) -> 447 | Y173: 640 | Z173: 1158 | AA173: 155 | AD173: =Calc!B110 -> 3840 | AE173: =Calc!A110 -> 0.8006666667 | AG173: =Calc!B44 -> 7307.4 | AH173: =Calc!A44 -> 1.675580835 | AQ173: 0.7889333333 | AR173: 4320 | AS173: 1.510875429 | AT173: 7643.7
B174: 24 | U174: =IF(AND($X$139=7,$AA$144=0,$AB$144=0),'PC40 Graphs'!$B30,IF(AND($X$139=6,$AA$143=0,$AB$143=0),'PC40 Graphs'!$D30,IF(AND($X$139=5,$AA$142=0,$AB$142=0),'PC40 Graphs'!$F30,IF(AND($X$139=4,$AA$141=0,$AB$141=0),'PC32 Graphs'!$B30,IF(AND($X$139=3,$AA$140=0,$AB$140=0),'PC32 Graphs'!$D30,IF(AND($X$139=2,$AA$139=0,$AB$139=0),'PC25 Graphs'!$B31,IF(AND($X$139=1,$AA$138=0,$AB$138=0),'PC25 Graphs'!$D31))))))) -> 667 | V174: =IF(AND($X$139=7,$AA$144=0,$AB$144=0),'PC40 Graphs'!$C30,IF(AND($X$139=6,$AA$143=0,$AB$143=0),'PC40 Graphs'!$E30,IF(AND($X$139=5,$AA$142=0,$AB$142=0),'PC40 Graphs'!$G30,IF(AND($X$139=4,$AA$141=0,$AB$141=0),'PC32 Graphs'!$C30,IF(AND($X$139=3,$AA$140=0,$AB$140=0),'PC32 Graphs'!$E30,IF(AND($X$139=2,$AA$139=0,$AB$139=0),'PC25 Graphs'!$C31,IF(AND($X$139=1,$AA$138=0,$AB$138=0),'PC25 Graphs'!$E31))))))) -> 149 | W174: =IF(AND($X$139=7,$AA$144=0,$AB$144=0),'PC40 Graphs'!$B88,IF(AND($X$139=6,$AA$143=0,$AB$143=0),'PC40 Graphs'!$D88,IF(AND($X$139=5,$AA$142=0,$AB$142=0),'PC40 Graphs'!$F88,IF(AND($X$139=4,$AA$141=0,$AB$141=0),'PC32 Graphs'!$B87,IF(AND($X$139=3,$AA$140=0,$AB$140=0),'PC32 Graphs'!$D87,IF(AND($X$139=2,$AA$139=0,$AB$139=0),'PC25 Graphs'!$B88,IF(AND($X$139=1,$AA$138=0,$AB$138=0),'PC25 Graphs'!$D88))))))) -> 1000 | X174: =IF(AND($X$139=7,$AA$144=0,$AB$144=0),'PC40 Graphs'!L88,IF(AND($X$139=6,$AA$143=0,$AB$143=0),'PC40 Graphs'!N88,IF(AND($X$139=5,$AA$142=0,$AB$142=0),'PC40 Graphs'!P88,IF(AND($X$139=4,$AA$141=0,$AB$141=0),'PC32 Graphs'!L87,IF(AND($X$139=3,$AA$140=0,$AB$140=0),'PC32 Graphs'!N87,IF(AND($X$139=2,$AA$139=0,$AB$139=0),'PC25 Graphs'!L88,IF(AND($X$139=1,$AA$138=0,$AB$138=0),'PC25 Graphs'!N88))))))) -> 419 | Y174: 667 | Z174: 1158 | AA174: 149 | AD174: =Calc!B111 -> 4000 | AE174: =Calc!A111 -> 0.7967555556 | AG174: =Calc!B45 -> 7418.7 | AH174: =Calc!A45 -> 1.621275429 | AQ174: 0.7850222222 | AR174: 4480 | AS174: 1.454780835 | AT174: 7757.2
U175: =IF(AND($X$139=7,$AA$144=0,$AB$144=0),'PC40 Graphs'!$B31,IF(AND($X$139=6,$AA$143=0,$AB$143=0),'PC40 Graphs'!$D31,IF(AND($X$139=5,$AA$142=0,$AB$142=0),'PC40 Graphs'!$F31,IF(AND($X$139=4,$AA$141=0,$AB$141=0),'PC32 Graphs'!$B31,IF(AND($X$139=3,$AA$140=0,$AB$140=0),'PC32 Graphs'!$D31,IF(AND($X$139=2,$AA$139=0,$AB$139=0),'PC25 Graphs'!$B32,IF(AND($X$139=1,$AA$138=0,$AB$138=0),'PC25 Graphs'!$D32))))))) -> 693 | V175: =IF(AND($X$139=7,$AA$144=0,$AB$144=0),'PC40 Graphs'!$C31,IF(AND($X$139=6,$AA$143=0,$AB$143=0),'PC40 Graphs'!$E31,IF(AND($X$139=5,$AA$142=0,$AB$142=0),'PC40 Graphs'!$G31,IF(AND($X$139=4,$AA$141=0,$AB$141=0),'PC32 Graphs'!$C31,IF(AND($X$139=3,$AA$140=0,$AB$140=0),'PC32 Graphs'!$E31,IF(AND($X$139=2,$AA$139=0,$AB$139=0),'PC25 Graphs'!$C32,IF(AND($X$139=1,$AA$138=0,$AB$138=0),'PC25 Graphs'!$E32))))))) -> 142 | W175: =IF(AND($X$139=7,$AA$144=0,$AB$144=0),'PC40 Graphs'!$B89,IF(AND($X$139=6,$AA$143=0,$AB$143=0),'PC40 Graphs'!$D89,IF(AND($X$139=5,$AA$142=0,$AB$142=0),'PC40 Graphs'!$F89,IF(AND($X$139=4,$AA$141=0,$AB$141=0),'PC32 Graphs'!$B88,IF(AND($X$139=3,$AA$140=0,$AB$140=0),'PC32 Graphs'!$D88,IF(AND($X$139=2,$AA$139=0,$AB$139=0),'PC25 Graphs'!$B89,IF(AND($X$139=1,$AA$138=0,$AB$138=0),'PC25 Graphs'!$D89))))))) -> 1000 | X175: =IF(AND($X$139=7,$AA$144=0,$AB$144=0),'PC40 Graphs'!L89,IF(AND($X$139=6,$AA$143=0,$AB$143=0),'PC40 Graphs'!N89,IF(AND($X$139=5,$AA$142=0,$AB$142=0),'PC40 Graphs'!P89,IF(AND($X$139=4,$AA$141=0,$AB$141=0),'PC32 Graphs'!L88,IF(AND($X$139=3,$AA$140=0,$AB$140=0),'PC32 Graphs'!N88,IF(AND($X$139=2,$AA$139=0,$AB$139=0),'PC25 Graphs'!L89,IF(AND($X$139=1,$AA$138=0,$AB$138=0),'PC25 Graphs'!N89))))))) -> 391 | Y175: 693 | Z175: 1158 | AA175: 142 | AD175: =Calc!B112 -> 4160 | AE175: =Calc!A112 -> 0.7928444444 | AG175: =Calc!B46 -> 7530.8 | AH175: =Calc!A46 -> 1.566373626 | AQ175: 0.7811111111 | AR175: 4640 | AS175: 1.398089846 | AT175: 7871.1
U176: =IF(AND($X$139=7,$AA$144=0,$AB$144=0),'PC40 Graphs'!$B32,IF(AND($X$139=6,$AA$143=0,$AB$143=0),'PC40 Graphs'!$D32,IF(AND($X$139=5,$AA$142=0,$AB$142=0),'PC40 Graphs'!$F32,IF(AND($X$139=4,$AA$141=0,$AB$141=0),'PC32 Graphs'!$B32,IF(AND($X$139=3,$AA$140=0,$AB$140=0),'PC32 Graphs'!$D32,IF(AND($X$139=2,$AA$139=0,$AB$139=0),'PC25 Graphs'!$B33,IF(AND($X$139=1,$AA$138=0,$AB$138=0),'PC25 Graphs'!$D33))))))) -> 720 | V176: =IF(AND($X$139=7,$AA$144=0,$AB$144=0),'PC40 Graphs'!$C32,IF(AND($X$139=6,$AA$143=0,$AB$143=0),'PC40 Graphs'!$E32,IF(AND($X$139=5,$AA$142=0,$AB$142=0),'PC40 Graphs'!$G32,IF(AND($X$139=4,$AA$141=0,$AB$141=0),'PC32 Graphs'!$C32,IF(AND($X$139=3,$AA$140=0,$AB$140=0),'PC32 Graphs'!$E32,IF(AND($X$139=2,$AA$139=0,$AB$139=0),'PC25 Graphs'!$C33,IF(AND($X$139=1,$AA$138=0,$AB$138=0),'PC25 Graphs'!$E33))))))) -> 136 | W176: =IF(AND($X$139=7,$AA$144=0,$AB$144=0),'PC40 Graphs'!$B90,IF(AND($X$139=6,$AA$143=0,$AB$143=0),'PC40 Graphs'!$D90,IF(AND($X$139=5,$AA$142=0,$AB$142=0),'PC40 Graphs'!$F90,IF(AND($X$139=4,$AA$141=0,$AB$141=0),'PC32 Graphs'!$B89,IF(AND($X$139=3,$AA$140=0,$AB$140=0),'PC32 Graphs'!$D89,IF(AND($X$139=2,$AA$139=0,$AB$139=0),'PC25 Graphs'!$B90,IF(AND($X$139=1,$AA$138=0,$AB$138=0),'PC25 Graphs'!$D90))))))) -> 1000 | X176: =IF(AND($X$139=7,$AA$144=0,$AB$144=0),'PC40 Graphs'!L90,IF(AND($X$139=6,$AA$143=0,$AB$143=0),'PC40 Graphs'!N90,IF(AND($X$139=5,$AA$142=0,$AB$142=0),'PC40 Graphs'!P90,IF(AND($X$139=4,$AA$141=0,$AB$141=0),'PC32 Graphs'!L89,IF(AND($X$139=3,$AA$140=0,$AB$140=0),'PC32 Graphs'!N89,IF(AND($X$139=2,$AA$139=0,$AB$139=0),'PC25 Graphs'!L90,IF(AND($X$139=1,$AA$138=0,$AB$138=0),'PC25 Graphs'!N90))))))) -> 362 | Y176: 720 | Z176: 1158 | AA176: 136 | AD176: =Calc!B113 -> 4320 | AE176: =Calc!A113 -> 0.7889333333 | AG176: =Calc!B47 -> 7643.7 | AH176: =Calc!A47 -> 1.510875429 | AQ176: 0.7772 | AR176: 4800 | AS176: 1.340802462 | AT176: 7985.2
U177: =IF(AND($X$139=7,$AA$144=0,$AB$144=0),'PC40 Graphs'!$B33,IF(AND($X$139=6,$AA$143=0,$AB$143=0),'PC40 Graphs'!$D33,IF(AND($X$139=5,$AA$142=0,$AB$142=0),'PC40 Graphs'!$F33,IF(AND($X$139=4,$AA$141=0,$AB$141=0),'PC32 Graphs'!$B33,IF(AND($X$139=3,$AA$140=0,$AB$140=0),'PC32 Graphs'!$D33,IF(AND($X$139=2,$AA$139=0,$AB$139=0),'PC25 Graphs'!$B34,IF(AND($X$139=1,$AA$138=0,$AB$138=0),'PC25 Graphs'!$D34))))))) -> 747 | V177: =IF(AND($X$139=7,$AA$144=0,$AB$144=0),'PC40 Graphs'!$C33,IF(AND($X$139=6,$AA$143=0,$AB$143=0),'PC40 Graphs'!$E33,IF(AND($X$139=5,$AA$142=0,$AB$142=0),'PC40 Graphs'!$G33,IF(AND($X$139=4,$AA$141=0,$AB$141=0),'PC32 Graphs'!$C33,IF(AND($X$139=3,$AA$140=0,$AB$140=0),'PC32 Graphs'!$E33,IF(AND($X$139=2,$AA$139=0,$AB$139=0),'PC25 Graphs'!$C34,IF(AND($X$139=1,$AA$138=0,$AB$138=0),'PC25 Graphs'!$E34))))))) -> 129 | W177: =IF(AND($X$139=7,$AA$144=0,$AB$144=0),'PC40 Graphs'!$B91,IF(AND($X$139=6,$AA$143=0,$AB$143=0),'PC40 Graphs'!$D91,IF(AND($X$139=5,$AA$142=0,$AB$142=0),'PC40 Graphs'!$F91,IF(AND($X$139=4,$AA$141=0,$AB$141=0),'PC32 Graphs'!$B90,IF(AND($X$139=3,$AA$140=0,$AB$140=0),'PC32 Graphs'!$D90,IF(AND($X$139=2,$AA$139=0,$AB$139=0),'PC25 Graphs'!$B91,IF(AND($X$139=1,$AA$138=0,$AB$138=0),'PC25 Graphs'!$D91))))))) -> 1000 | X177: =IF(AND($X$139=7,$AA$144=0,$AB$144=0),'PC40 Graphs'!L91,IF(AND($X$139=6,$AA$143=0,$AB$143=0),'PC40 Graphs'!N91,IF(AND($X$139=5,$AA$142=0,$AB$142=0),'PC40 Graphs'!P91,IF(AND($X$139=4,$AA$141=0,$AB$141=0),'PC32 Graphs'!L90,IF(AND($X$139=3,$AA$140=0,$AB$140=0),'PC32 Graphs'!N90,IF(AND($X$139=2,$AA$139=0,$AB$139=0),'PC25 Graphs'!L91,IF(AND($X$139=1,$AA$138=0,$AB$138=0),'PC25 Graphs'!N91))))))) -> 333 | Y177: 747 | Z177: 1158 | AA177: 129 | AD177: =Calc!B114 -> 4480 | AE177: =Calc!A114 -> 0.7850222222 | AG177: =Calc!B48 -> 7757.2 | AH177: =Calc!A48 -> 1.454780835 | AQ177: 0.7732888889 | AR177: 4960 | AS177: 1.282918681 | AT177: 8000
U178: =IF(AND($X$139=7,$AA$144=0,$AB$144=0),'PC40 Graphs'!$B34,IF(AND($X$139=6,$AA$143=0,$AB$143=0),'PC40 Graphs'!$D34,IF(AND($X$139=5,$AA$142=0,$AB$142=0),'PC40 Graphs'!$F34,IF(AND($X$139=4,$AA$141=0,$AB$141=0),'PC32 Graphs'!$B34,IF(AND($X$139=3,$AA$140=0,$AB$140=0),'PC32 Graphs'!$D34,IF(AND($X$139=2,$AA$139=0,$AB$139=0),'PC25 Graphs'!$B35,IF(AND($X$139=1,$AA$138=0,$AB$138=0),'PC25 Graphs'!$D35))))))) -> 773 | V178: =IF(AND($X$139=7,$AA$144=0,$AB$144=0),'PC40 Graphs'!$C34,IF(AND($X$139=6,$AA$143=0,$AB$143=0),'PC40 Graphs'!$E34,IF(AND($X$139=5,$AA$142=0,$AB$142=0),'PC40 Graphs'!$G34,IF(AND($X$139=4,$AA$141=0,$AB$141=0),'PC32 Graphs'!$C34,IF(AND($X$139=3,$AA$140=0,$AB$140=0),'PC32 Graphs'!$E34,IF(AND($X$139=2,$AA$139=0,$AB$139=0),'PC25 Graphs'!$C35,IF(AND($X$139=1,$AA$138=0,$AB$138=0),'PC25 Graphs'!$E35))))))) -> 122 | W178: =IF(AND($X$139=7,$AA$144=0,$AB$144=0),'PC40 Graphs'!$B92,IF(AND($X$139=6,$AA$143=0,$AB$143=0),'PC40 Graphs'!$D92,IF(AND($X$139=5,$AA$142=0,$AB$142=0),'PC40 Graphs'!$F92,IF(AND($X$139=4,$AA$141=0,$AB$141=0),'PC32 Graphs'!$B91,IF(AND($X$139=3,$AA$140=0,$AB$140=0),'PC32 Graphs'!$D91,IF(AND($X$139=2,$AA$139=0,$AB$139=0),'PC25 Graphs'!$B92,IF(AND($X$139=1,$AA$138=0,$AB$138=0),'PC25 Graphs'!$D92))))))) -> 1000 | X178: =IF(AND($X$139=7,$AA$144=0,$AB$144=0),'PC40 Graphs'!L92,IF(AND($X$139=6,$AA$143=0,$AB$143=0),'PC40 Graphs'!N92,IF(AND($X$139=5,$AA$142=0,$AB$142=0),'PC40 Graphs'!P92,IF(AND($X$139=4,$AA$141=0,$AB$141=0),'PC32 Graphs'!L91,IF(AND($X$139=3,$AA$140=0,$AB$140=0),'PC32 Graphs'!N91,IF(AND($X$139=2,$AA$139=0,$AB$139=0),'PC25 Graphs'!L92,IF(AND($X$139=1,$AA$138=0,$AB$138=0),'PC25 Graphs'!N92))))))) -> 304 | Y178: 773 | Z178: 1158 | AA178: 122 | AD178: =Calc!B115 -> 4640 | AE178: =Calc!A115 -> 0.7811111111 | AG178: =Calc!B49 -> 7871.1 | AH178: =Calc!A49 -> 1.398089846 | AQ178: 0.7693777778 | AR178: 5120 | AS178: 1.224438505 | AT178: 8000
U179: =IF(AND($X$139=7,$AA$144=0,$AB$144=0),'PC40 Graphs'!$B35,IF(AND($X$139=6,$AA$143=0,$AB$143=0),'PC40 Graphs'!$D35,IF(AND($X$139=5,$AA$142=0,$AB$142=0),'PC40 Graphs'!$F35,IF(AND($X$139=4,$AA$141=0,$AB$141=0),'PC32 Graphs'!$B35,IF(AND($X$139=3,$AA$140=0,$AB$140=0),'PC32 Graphs'!$D35,IF(AND($X$139=2,$AA$139=0,$AB$139=0),'PC25 Graphs'!$B36,IF(AND($X$139=1,$AA$138=0,$AB$138=0),'PC25 Graphs'!$D36))))))) -> 800 | V179: =IF(AND($X$139=7,$AA$144=0,$AB$144=0),'PC40 Graphs'!$C35,IF(AND($X$139=6,$AA$143=0,$AB$143=0),'PC40 Graphs'!$E35,IF(AND($X$139=5,$AA$142=0,$AB$142=0),'PC40 Graphs'!$G35,IF(AND($X$139=4,$AA$141=0,$AB$141=0),'PC32 Graphs'!$C35,IF(AND($X$139=3,$AA$140=0,$AB$140=0),'PC32 Graphs'!$E35,IF(AND($X$139=2,$AA$139=0,$AB$139=0),'PC25 Graphs'!$C36,IF(AND($X$139=1,$AA$138=0,$AB$138=0),'PC25 Graphs'!$E36))))))) -> 116 | W179: =IF(AND($X$139=7,$AA$144=0,$AB$144=0),'PC40 Graphs'!$B93,IF(AND($X$139=6,$AA$143=0,$AB$143=0),'PC40 Graphs'!$D93,IF(AND($X$139=5,$AA$142=0,$AB$142=0),'PC40 Graphs'!$F93,IF(AND($X$139=4,$AA$141=0,$AB$141=0),'PC32 Graphs'!$B92,IF(AND($X$139=3,$AA$140=0,$AB$140=0),'PC32 Graphs'!$D92,IF(AND($X$139=2,$AA$139=0,$AB$139=0),'PC25 Graphs'!$B93,IF(AND($X$139=1,$AA$138=0,$AB$138=0),'PC25 Graphs'!$D93))))))) -> 1000 | X179: =IF(AND($X$139=7,$AA$144=0,$AB$144=0),'PC40 Graphs'!L93,IF(AND($X$139=6,$AA$143=0,$AB$143=0),'PC40 Graphs'!N93,IF(AND($X$139=5,$AA$142=0,$AB$142=0),'PC40 Graphs'!P93,IF(AND($X$139=4,$AA$141=0,$AB$141=0),'PC32 Graphs'!L92,IF(AND($X$139=3,$AA$140=0,$AB$140=0),'PC32 Graphs'!N92,IF(AND($X$139=2,$AA$139=0,$AB$139=0),'PC25 Graphs'!L93,IF(AND($X$139=1,$AA$138=0,$AB$138=0),'PC25 Graphs'!N93))))))) -> 275 | Y179: 800 | Z179: 1158 | AA179: 116 | AD179: =Calc!B116 -> 4800 | AE179: =Calc!A116 -> 0.7772 | AG179: =Calc!B50 -> 7985.2 | AH179: =Calc!A50 -> 1.340802462 | AQ179: 0.7654666667 | AR179: 5280 | AS179: 1.165361934 | AT179: 8000
U180: =IF(AND($X$139=7,$AA$144=0,$AB$144=0),'PC40 Graphs'!$B36,IF(AND($X$139=6,$AA$143=0,$AB$143=0),'PC40 Graphs'!$D36,IF(AND($X$139=5,$AA$142=0,$AB$142=0),'PC40 Graphs'!$F36,IF(AND($X$139=4,$AA$141=0,$AB$141=0),'PC32 Graphs'!$B36,IF(AND($X$139=3,$AA$140=0,$AB$140=0),'PC32 Graphs'!$D36,IF(AND($X$139=2,$AA$139=0,$AB$139=0),'PC25 Graphs'!$B37,IF(AND($X$139=1,$AA$138=0,$AB$138=0),'PC25 Graphs'!$D37))))))) -> 827 | V180: =IF(AND($X$139=7,$AA$144=0,$AB$144=0),'PC40 Graphs'!$C36,IF(AND($X$139=6,$AA$143=0,$AB$143=0),'PC40 Graphs'!$E36,IF(AND($X$139=5,$AA$142=0,$AB$142=0),'PC40 Graphs'!$G36,IF(AND($X$139=4,$AA$141=0,$AB$141=0),'PC32 Graphs'!$C36,IF(AND($X$139=3,$AA$140=0,$AB$140=0),'PC32 Graphs'!$E36,IF(AND($X$139=2,$AA$139=0,$AB$139=0),'PC25 Graphs'!$C37,IF(AND($X$139=1,$AA$138=0,$AB$138=0),'PC25 Graphs'!$E37))))))) -> 109 | W180: =IF(AND($X$139=7,$AA$144=0,$AB$144=0),'PC40 Graphs'!$B94,IF(AND($X$139=6,$AA$143=0,$AB$143=0),'PC40 Graphs'!$D94,IF(AND($X$139=5,$AA$142=0,$AB$142=0),'PC40 Graphs'!$F94,IF(AND($X$139=4,$AA$141=0,$AB$141=0),'PC32 Graphs'!$B93,IF(AND($X$139=3,$AA$140=0,$AB$140=0),'PC32 Graphs'!$D93,IF(AND($X$139=2,$AA$139=0,$AB$139=0),'PC25 Graphs'!$B94,IF(AND($X$139=1,$AA$138=0,$AB$138=0),'PC25 Graphs'!$D94))))))) -> 1000 | X180: =IF(AND($X$139=7,$AA$144=0,$AB$144=0),'PC40 Graphs'!L94,IF(AND($X$139=6,$AA$143=0,$AB$143=0),'PC40 Graphs'!N94,IF(AND($X$139=5,$AA$142=0,$AB$142=0),'PC40 Graphs'!P94,IF(AND($X$139=4,$AA$141=0,$AB$141=0),'PC32 Graphs'!L93,IF(AND($X$139=3,$AA$140=0,$AB$140=0),'PC32 Graphs'!N93,IF(AND($X$139=2,$AA$139=0,$AB$139=0),'PC25 Graphs'!L94,IF(AND($X$139=1,$AA$138=0,$AB$138=0),'PC25 Graphs'!N94))))))) -> 248 | Y180: 827 | Z180: 1158 | AA180: 109 | AD180: =Calc!B117 -> 4960 | AE180: =Calc!A117 -> 0.7732888889 | AG180: =Calc!B51 -> 8000 | AH180: =Calc!A51 -> 1.282918681 | AQ180: 0.7615555556 | AR180: 5440 | AS180: 1.105688967 | AT180: 8000
U181: =IF(AND($X$139=7,$AA$144=0,$AB$144=0),'PC40 Graphs'!$B37,IF(AND($X$139=6,$AA$143=0,$AB$143=0),'PC40 Graphs'!$D37,IF(AND($X$139=5,$AA$142=0,$AB$142=0),'PC40 Graphs'!$F37,IF(AND($X$139=4,$AA$141=0,$AB$141=0),'PC32 Graphs'!$B37,IF(AND($X$139=3,$AA$140=0,$AB$140=0),'PC32 Graphs'!$D37,IF(AND($X$139=2,$AA$139=0,$AB$139=0),'PC25 Graphs'!$B38,IF(AND($X$139=1,$AA$138=0,$AB$138=0),'PC25 Graphs'!$D38))))))) -> 853 | V181: =IF(AND($X$139=7,$AA$144=0,$AB$144=0),'PC40 Graphs'!$C37,IF(AND($X$139=6,$AA$143=0,$AB$143=0),'PC40 Graphs'!$E37,IF(AND($X$139=5,$AA$142=0,$AB$142=0),'PC40 Graphs'!$G37,IF(AND($X$139=4,$AA$141=0,$AB$141=0),'PC32 Graphs'!$C37,IF(AND($X$139=3,$AA$140=0,$AB$140=0),'PC32 Graphs'!$E37,IF(AND($X$139=2,$AA$139=0,$AB$139=0),'PC25 Graphs'!$C38,IF(AND($X$139=1,$AA$138=0,$AB$138=0),'PC25 Graphs'!$E38))))))) -> 103 | W181: =IF(AND($X$139=7,$AA$144=0,$AB$144=0),'PC40 Graphs'!$B95,IF(AND($X$139=6,$AA$143=0,$AB$143=0),'PC40 Graphs'!$D95,IF(AND($X$139=5,$AA$142=0,$AB$142=0),'PC40 Graphs'!$F95,IF(AND($X$139=4,$AA$141=0,$AB$141=0),'PC32 Graphs'!$B94,IF(AND($X$139=3,$AA$140=0,$AB$140=0),'PC32 Graphs'!$D94,IF(AND($X$139=2,$AA$139=0,$AB$139=0),'PC25 Graphs'!$B95,IF(AND($X$139=1,$AA$138=0,$AB$138=0),'PC25 Graphs'!$D95))))))) -> 1000 | X181: =IF(AND($X$139=7,$AA$144=0,$AB$144=0),'PC40 Graphs'!L95,IF(AND($X$139=6,$AA$143=0,$AB$143=0),'PC40 Graphs'!N95,IF(AND($X$139=5,$AA$142=0,$AB$142=0),'PC40 Graphs'!P95,IF(AND($X$139=4,$AA$141=0,$AB$141=0),'PC32 Graphs'!L94,IF(AND($X$139=3,$AA$140=0,$AB$140=0),'PC32 Graphs'!N94,IF(AND($X$139=2,$AA$139=0,$AB$139=0),'PC25 Graphs'!L95,IF(AND($X$139=1,$AA$138=0,$AB$138=0),'PC25 Graphs'!N95))))))) -> 222 | Y181: =U181 -> 853 | Z181: =VLOOKUP(U181,$W$148:$X$200,2) -> 1158 | AA181: =IF(V181>Z181,Z181,V181) -> 103 | AD181: =Calc!B118 -> 5120 | AE181: =Calc!A118 -> 0.7693777778 | AG181: =Calc!B52 -> 8000 | AH181: =Calc!A52 -> 1.224438505 | AQ181: 0.7576444444 | AR181: 5600 | AS181: 1.045419604 | AT181: 8000
U182: =IF(AND($X$139=7,$AA$144=0,$AB$144=0),'PC40 Graphs'!$B38,IF(AND($X$139=6,$AA$143=0,$AB$143=0),'PC40 Graphs'!$D38,IF(AND($X$139=5,$AA$142=0,$AB$142=0),'PC40 Graphs'!$F38,IF(AND($X$139=4,$AA$141=0,$AB$141=0),'PC32 Graphs'!$B38,IF(AND($X$139=3,$AA$140=0,$AB$140=0),'PC32 Graphs'!$D38,IF(AND($X$139=2,$AA$139=0,$AB$139=0),'PC25 Graphs'!$B39,IF(AND($X$139=1,$AA$138=0,$AB$138=0),'PC25 Graphs'!$D39))))))) -> 880 | V182: =IF(AND($X$139=7,$AA$144=0,$AB$144=0),'PC40 Graphs'!$C38,IF(AND($X$139=6,$AA$143=0,$AB$143=0),'PC40 Graphs'!$E38,IF(AND($X$139=5,$AA$142=0,$AB$142=0),'PC40 Graphs'!$G38,IF(AND($X$139=4,$AA$141=0,$AB$141=0),'PC32 Graphs'!$C38,IF(AND($X$139=3,$AA$140=0,$AB$140=0),'PC32 Graphs'!$E38,IF(AND($X$139=2,$AA$139=0,$AB$139=0),'PC25 Graphs'!$C39,IF(AND($X$139=1,$AA$138=0,$AB$138=0),'PC25 Graphs'!$E39))))))) -> 96 | W182: =IF(AND($X$139=7,$AA$144=0,$AB$144=0),'PC40 Graphs'!$B96,IF(AND($X$139=6,$AA$143=0,$AB$143=0),'PC40 Graphs'!$D96,IF(AND($X$139=5,$AA$142=0,$AB$142=0),'PC40 Graphs'!$F96,IF(AND($X$139=4,$AA$141=0,$AB$141=0),'PC32 Graphs'!$B95,IF(AND($X$139=3,$AA$140=0,$AB$140=0),'PC32 Graphs'!$D95,IF(AND($X$139=2,$AA$139=0,$AB$139=0),'PC25 Graphs'!$B96,IF(AND($X$139=1,$AA$138=0,$AB$138=0),'PC25 Graphs'!$D96))))))) -> 1000 | X182: =IF(AND($X$139=7,$AA$144=0,$AB$144=0),'PC40 Graphs'!L96,IF(AND($X$139=6,$AA$143=0,$AB$143=0),'PC40 Graphs'!N96,IF(AND($X$139=5,$AA$142=0,$AB$142=0),'PC40 Graphs'!P96,IF(AND($X$139=4,$AA$141=0,$AB$141=0),'PC32 Graphs'!L95,IF(AND($X$139=3,$AA$140=0,$AB$140=0),'PC32 Graphs'!N95,IF(AND($X$139=2,$AA$139=0,$AB$139=0),'PC25 Graphs'!L96,IF(AND($X$139=1,$AA$138=0,$AB$138=0),'PC25 Graphs'!N96))))))) -> 195 | Y182: 880 | Z182: 982 | AA182: 96 | AD182: =Calc!B119 -> 5280 | AE182: =Calc!A119 -> 0.7654666667 | AG182: =Calc!B53 -> 8000 | AH182: =Calc!A53 -> 1.165361934 | AQ182: 0.7537333333 | AR182: 5760 | AS182: 0.9845538462 | AT182: 8000
U183: =IF(AND($X$139=7,$AA$144=0,$AB$144=0),'PC40 Graphs'!$B39,IF(AND($X$139=6,$AA$143=0,$AB$143=0),'PC40 Graphs'!$D39,IF(AND($X$139=5,$AA$142=0,$AB$142=0),'PC40 Graphs'!$F39,IF(AND($X$139=4,$AA$141=0,$AB$141=0),'PC32 Graphs'!$B39,IF(AND($X$139=3,$AA$140=0,$AB$140=0),'PC32 Graphs'!$D39,IF(AND($X$139=2,$AA$139=0,$AB$139=0),'PC25 Graphs'!$B40,IF(AND($X$139=1,$AA$138=0,$AB$138=0),'PC25 Graphs'!$D40))))))) -> 907 | V183: =IF(AND($X$139=7,$AA$144=0,$AB$144=0),'PC40 Graphs'!$C39,IF(AND($X$139=6,$AA$143=0,$AB$143=0),'PC40 Graphs'!$E39,IF(AND($X$139=5,$AA$142=0,$AB$142=0),'PC40 Graphs'!$G39,IF(AND($X$139=4,$AA$141=0,$AB$141=0),'PC32 Graphs'!$C39,IF(AND($X$139=3,$AA$140=0,$AB$140=0),'PC32 Graphs'!$E39,IF(AND($X$139=2,$AA$139=0,$AB$139=0),'PC25 Graphs'!$C40,IF(AND($X$139=1,$AA$138=0,$AB$138=0),'PC25 Graphs'!$E40))))))) -> 89 | W183: =IF(AND($X$139=7,$AA$144=0,$AB$144=0),'PC40 Graphs'!$B97,IF(AND($X$139=6,$AA$143=0,$AB$143=0),'PC40 Graphs'!$D97,IF(AND($X$139=5,$AA$142=0,$AB$142=0),'PC40 Graphs'!$F97,IF(AND($X$139=4,$AA$141=0,$AB$141=0),'PC32 Graphs'!$B96,IF(AND($X$139=3,$AA$140=0,$AB$140=0),'PC32 Graphs'!$D96,IF(AND($X$139=2,$AA$139=0,$AB$139=0),'PC25 Graphs'!$B97,IF(AND($X$139=1,$AA$138=0,$AB$138=0),'PC25 Graphs'!$D97))))))) -> 1000 | X183: =IF(AND($X$139=7,$AA$144=0,$AB$144=0),'PC40 Graphs'!L97,IF(AND($X$139=6,$AA$143=0,$AB$143=0),'PC40 Graphs'!N97,IF(AND($X$139=5,$AA$142=0,$AB$142=0),'PC40 Graphs'!P97,IF(AND($X$139=4,$AA$141=0,$AB$141=0),'PC32 Graphs'!L96,IF(AND($X$139=3,$AA$140=0,$AB$140=0),'PC32 Graphs'!N96,IF(AND($X$139=2,$AA$139=0,$AB$139=0),'PC25 Graphs'!L97,IF(AND($X$139=1,$AA$138=0,$AB$138=0),'PC25 Graphs'!N97))))))) -> 168 | Y183: 907 | Z183: 939 | AA183: 89 | AD183: =Calc!B120 -> 5440 | AE183: =Calc!A120 -> 0.7615555556 | AG183: =Calc!B54 -> 8000 | AH183: =Calc!A54 -> 1.105688967 | AQ183: 0.7498222222 | AR183: 5920 | AS183: 0.9230916923 | AT183: 8000
U184: =IF(AND($X$139=7,$AA$144=0,$AB$144=0),'PC40 Graphs'!$B40,IF(AND($X$139=6,$AA$143=0,$AB$143=0),'PC40 Graphs'!$D40,IF(AND($X$139=5,$AA$142=0,$AB$142=0),'PC40 Graphs'!$F40,IF(AND($X$139=4,$AA$141=0,$AB$141=0),'PC32 Graphs'!$B40,IF(AND($X$139=3,$AA$140=0,$AB$140=0),'PC32 Graphs'!$D40,IF(AND($X$139=2,$AA$139=0,$AB$139=0),'PC25 Graphs'!$B41,IF(AND($X$139=1,$AA$138=0,$AB$138=0),'PC25 Graphs'!$D41))))))) -> 933 | V184: =IF(AND($X$139=7,$AA$144=0,$AB$144=0),'PC40 Graphs'!$C40,IF(AND($X$139=6,$AA$143=0,$AB$143=0),'PC40 Graphs'!$E40,IF(AND($X$139=5,$AA$142=0,$AB$142=0),'PC40 Graphs'!$G40,IF(AND($X$139=4,$AA$141=0,$AB$141=0),'PC32 Graphs'!$C40,IF(AND($X$139=3,$AA$140=0,$AB$140=0),'PC32 Graphs'!$E40,IF(AND($X$139=2,$AA$139=0,$AB$139=0),'PC25 Graphs'!$C41,IF(AND($X$139=1,$AA$138=0,$AB$138=0),'PC25 Graphs'!$E41))))))) -> 83 | W184: =IF(AND($X$139=7,$AA$144=0,$AB$144=0),'PC40 Graphs'!$B98,IF(AND($X$139=6,$AA$143=0,$AB$143=0),'PC40 Graphs'!$D98,IF(AND($X$139=5,$AA$142=0,$AB$142=0),'PC40 Graphs'!$F98,IF(AND($X$139=4,$AA$141=0,$AB$141=0),'PC32 Graphs'!$B97,IF(AND($X$139=3,$AA$140=0,$AB$140=0),'PC32 Graphs'!$D97,IF(AND($X$139=2,$AA$139=0,$AB$139=0),'PC25 Graphs'!$B98,IF(AND($X$139=1,$AA$138=0,$AB$138=0),'PC25 Graphs'!$D98))))))) -> 1000 | X184: =IF(AND($X$139=7,$AA$144=0,$AB$144=0),'PC40 Graphs'!L98,IF(AND($X$139=6,$AA$143=0,$AB$143=0),'PC40 Graphs'!N98,IF(AND($X$139=5,$AA$142=0,$AB$142=0),'PC40 Graphs'!P98,IF(AND($X$139=4,$AA$141=0,$AB$141=0),'PC32 Graphs'!L97,IF(AND($X$139=3,$AA$140=0,$AB$140=0),'PC32 Graphs'!N97,IF(AND($X$139=2,$AA$139=0,$AB$139=0),'PC25 Graphs'!L98,IF(AND($X$139=1,$AA$138=0,$AB$138=0),'PC25 Graphs'!N98))))))) -> 141 | Y184: 933 | Z184: 896 | AA184: 83 | AD184: =Calc!B121 -> 5600 | AE184: =Calc!A121 -> 0.7576444444 | AG184: =Calc!B55 -> 8000 | AH184: =Calc!A55 -> 1.045419604 | AQ184: 0.7459111111 | AR184: 6080 | AS184: 0.8610331429 | AT184: 8000
U185: =IF(AND($X$139=7,$AA$144=0,$AB$144=0),'PC40 Graphs'!$B41,IF(AND($X$139=6,$AA$143=0,$AB$143=0),'PC40 Graphs'!$D41,IF(AND($X$139=5,$AA$142=0,$AB$142=0),'PC40 Graphs'!$F41,IF(AND($X$139=4,$AA$141=0,$AB$141=0),'PC32 Graphs'!$B41,IF(AND($X$139=3,$AA$140=0,$AB$140=0),'PC32 Graphs'!$D41,IF(AND($X$139=2,$AA$139=0,$AB$139=0),'PC25 Graphs'!$B42,IF(AND($X$139=1,$AA$138=0,$AB$138=0),'PC25 Graphs'!$D42))))))) -> 960 | V185: =IF(AND($X$139=7,$AA$144=0,$AB$144=0),'PC40 Graphs'!$C41,IF(AND($X$139=6,$AA$143=0,$AB$143=0),'PC40 Graphs'!$E41,IF(AND($X$139=5,$AA$142=0,$AB$142=0),'PC40 Graphs'!$G41,IF(AND($X$139=4,$AA$141=0,$AB$141=0),'PC32 Graphs'!$C41,IF(AND($X$139=3,$AA$140=0,$AB$140=0),'PC32 Graphs'!$E41,IF(AND($X$139=2,$AA$139=0,$AB$139=0),'PC25 Graphs'!$C42,IF(AND($X$139=1,$AA$138=0,$AB$138=0),'PC25 Graphs'!$E42))))))) -> 76 | W185: =IF(AND($X$139=7,$AA$144=0,$AB$144=0),'PC40 Graphs'!$B99,IF(AND($X$139=6,$AA$143=0,$AB$143=0),'PC40 Graphs'!$D99,IF(AND($X$139=5,$AA$142=0,$AB$142=0),'PC40 Graphs'!$F99,IF(AND($X$139=4,$AA$141=0,$AB$141=0),'PC32 Graphs'!$B98,IF(AND($X$139=3,$AA$140=0,$AB$140=0),'PC32 Graphs'!$D98,IF(AND($X$139=2,$AA$139=0,$AB$139=0),'PC25 Graphs'!$B99,IF(AND($X$139=1,$AA$138=0,$AB$138=0),'PC25 Graphs'!$D99))))))) -> 1000 | X185: =IF(AND($X$139=7,$AA$144=0,$AB$144=0),'PC40 Graphs'!L99,IF(AND($X$139=6,$AA$143=0,$AB$143=0),'PC40 Graphs'!N99,IF(AND($X$139=5,$AA$142=0,$AB$142=0),'PC40 Graphs'!P99,IF(AND($X$139=4,$AA$141=0,$AB$141=0),'PC32 Graphs'!L98,IF(AND($X$139=3,$AA$140=0,$AB$140=0),'PC32 Graphs'!N98,IF(AND($X$139=2,$AA$139=0,$AB$139=0),'PC25 Graphs'!L99,IF(AND($X$139=1,$AA$138=0,$AB$138=0),'PC25 Graphs'!N99))))))) -> 113 | Y185: 960 | Z185: 851 | AA185: 76 | AD185: =Calc!B122 -> 5760 | AE185: =Calc!A122 -> 0.7537333333 | AG185: =Calc!B56 -> 8000 | AH185: =Calc!A56 -> 0.9845538462 | AQ185: 0.742 | AR185: 6240 | AS185: 0.7983781978 | AT185: 8000
U186: =IF(AND($X$139=7,$AA$144=0,$AB$144=0),'PC40 Graphs'!$B42,IF(AND($X$139=6,$AA$143=0,$AB$143=0),'PC40 Graphs'!$D42,IF(AND($X$139=5,$AA$142=0,$AB$142=0),'PC40 Graphs'!$F42,IF(AND($X$139=4,$AA$141=0,$AB$141=0),'PC32 Graphs'!$B42,IF(AND($X$139=3,$AA$140=0,$AB$140=0),'PC32 Graphs'!$D42,IF(AND($X$139=2,$AA$139=0,$AB$139=0),'PC25 Graphs'!$B43,IF(AND($X$139=1,$AA$138=0,$AB$138=0),'PC25 Graphs'!$D43))))))) -> 987 | V186: =IF(AND($X$139=7,$AA$144=0,$AB$144=0),'PC40 Graphs'!$C42,IF(AND($X$139=6,$AA$143=0,$AB$143=0),'PC40 Graphs'!$E42,IF(AND($X$139=5,$AA$142=0,$AB$142=0),'PC40 Graphs'!$G42,IF(AND($X$139=4,$AA$141=0,$AB$141=0),'PC32 Graphs'!$C42,IF(AND($X$139=3,$AA$140=0,$AB$140=0),'PC32 Graphs'!$E42,IF(AND($X$139=2,$AA$139=0,$AB$139=0),'PC25 Graphs'!$C43,IF(AND($X$139=1,$AA$138=0,$AB$138=0),'PC25 Graphs'!$E43))))))) -> 70 | W186: =IF(AND($X$139=7,$AA$144=0,$AB$144=0),'PC40 Graphs'!$B100,IF(AND($X$139=6,$AA$143=0,$AB$143=0),'PC40 Graphs'!$D100,IF(AND($X$139=5,$AA$142=0,$AB$142=0),'PC40 Graphs'!$F100,IF(AND($X$139=4,$AA$141=0,$AB$141=0),'PC32 Graphs'!$B99,IF(AND($X$139=3,$AA$140=0,$AB$140=0),'PC32 Graphs'!$D99,IF(AND($X$139=2,$AA$139=0,$AB$139=0),'PC25 Graphs'!$B100,IF(AND($X$139=1,$AA$138=0,$AB$138=0),'PC25 Graphs'!$D100))))))) -> 1000 | X186: =IF(AND($X$139=7,$AA$144=0,$AB$144=0),'PC40 Graphs'!L100,IF(AND($X$139=6,$AA$143=0,$AB$143=0),'PC40 Graphs'!N100,IF(AND($X$139=5,$AA$142=0,$AB$142=0),'PC40 Graphs'!P100,IF(AND($X$139=4,$AA$141=0,$AB$141=0),'PC32 Graphs'!L99,IF(AND($X$139=3,$AA$140=0,$AB$140=0),'PC32 Graphs'!N99,IF(AND($X$139=2,$AA$139=0,$AB$139=0),'PC25 Graphs'!L100,IF(AND($X$139=1,$AA$138=0,$AB$138=0),'PC25 Graphs'!N100))))))) -> 85 | Y186: 987 | Z186: 805 | AA186: 70 | AD186: =Calc!B123 -> 5920 | AE186: =Calc!A123 -> 0.7498222222 | AG186: =Calc!B57 -> 8000 | AH186: =Calc!A57 -> 0.9230916923 | AQ186: 0.7380888889 | AR186: 6400 | AS186: 0.7351268571 | AT186: 8000
U187: =IF(AND($X$139=7,$AA$144=0,$AB$144=0),'PC40 Graphs'!$B43,IF(AND($X$139=6,$AA$143=0,$AB$143=0),'PC40 Graphs'!$D43,IF(AND($X$139=5,$AA$142=0,$AB$142=0),'PC40 Graphs'!$F43,IF(AND($X$139=4,$AA$141=0,$AB$141=0),'PC32 Graphs'!$B43,IF(AND($X$139=3,$AA$140=0,$AB$140=0),'PC32 Graphs'!$D43,IF(AND($X$139=2,$AA$139=0,$AB$139=0),'PC25 Graphs'!$B44,IF(AND($X$139=1,$AA$138=0,$AB$138=0),'PC25 Graphs'!$D44))))))) -> 987 | V187: =IF(AND($X$139=7,$AA$144=0,$AB$144=0),'PC40 Graphs'!$C43,IF(AND($X$139=6,$AA$143=0,$AB$143=0),'PC40 Graphs'!$E43,IF(AND($X$139=5,$AA$142=0,$AB$142=0),'PC40 Graphs'!$G43,IF(AND($X$139=4,$AA$141=0,$AB$141=0),'PC32 Graphs'!$C43,IF(AND($X$139=3,$AA$140=0,$AB$140=0),'PC32 Graphs'!$E43,IF(AND($X$139=2,$AA$139=0,$AB$139=0),'PC25 Graphs'!$C44,IF(AND($X$139=1,$AA$138=0,$AB$138=0),'PC25 Graphs'!$E44))))))) -> 63 | W187: =IF(AND($X$139=7,$AA$144=0,$AB$144=0),'PC40 Graphs'!$B101,IF(AND($X$139=6,$AA$143=0,$AB$143=0),'PC40 Graphs'!$D101,IF(AND($X$139=5,$AA$142=0,$AB$142=0),'PC40 Graphs'!$F101,IF(AND($X$139=4,$AA$141=0,$AB$141=0),'PC32 Graphs'!$B100,IF(AND($X$139=3,$AA$140=0,$AB$140=0),'PC32 Graphs'!$D100,IF(AND($X$139=2,$AA$139=0,$AB$139=0),'PC25 Graphs'!$B101,IF(AND($X$139=1,$AA$138=0,$AB$138=0),'PC25 Graphs'!$D101))))))) -> 1000 | X187: =IF(AND($X$139=7,$AA$144=0,$AB$144=0),'PC40 Graphs'!L101,IF(AND($X$139=6,$AA$143=0,$AB$143=0),'PC40 Graphs'!N101,IF(AND($X$139=5,$AA$142=0,$AB$142=0),'PC40 Graphs'!P101,IF(AND($X$139=4,$AA$141=0,$AB$141=0),'PC32 Graphs'!L100,IF(AND($X$139=3,$AA$140=0,$AB$140=0),'PC32 Graphs'!N100,IF(AND($X$139=2,$AA$139=0,$AB$139=0),'PC25 Graphs'!L101,IF(AND($X$139=1,$AA$138=0,$AB$138=0),'PC25 Graphs'!N101))))))) -> 57 | Y187: 987 | Z187: 805 | AA187: 63 | AD187: =Calc!B124 -> 6080 | AE187: =Calc!A124 -> 0.7459111111 | AG187: =Calc!B58 -> 8000 | AH187: =Calc!A58 -> 0.8610331429 | AQ187: 0.7341777778 | AR187: 6560 | AS187: 0.6712791209 | AT187: 8000
U188: =IF(AND($X$139=7,$AA$144=0,$AB$144=0),'PC40 Graphs'!$B44,IF(AND($X$139=6,$AA$143=0,$AB$143=0),'PC40 Graphs'!$D44,IF(AND($X$139=5,$AA$142=0,$AB$142=0),'PC40 Graphs'!$F44,IF(AND($X$139=4,$AA$141=0,$AB$141=0),'PC32 Graphs'!$B44,IF(AND($X$139=3,$AA$140=0,$AB$140=0),'PC32 Graphs'!$D44,IF(AND($X$139=2,$AA$139=0,$AB$139=0),'PC25 Graphs'!$B45,IF(AND($X$139=1,$AA$138=0,$AB$138=0),'PC25 Graphs'!$D45))))))) -> 987 | V188: =IF(AND($X$139=7,$AA$144=0,$AB$144=0),'PC40 Graphs'!$C44,IF(AND($X$139=6,$AA$143=0,$AB$143=0),'PC40 Graphs'!$E44,IF(AND($X$139=5,$AA$142=0,$AB$142=0),'PC40 Graphs'!$G44,IF(AND($X$139=4,$AA$141=0,$AB$141=0),'PC32 Graphs'!$C44,IF(AND($X$139=3,$AA$140=0,$AB$140=0),'PC32 Graphs'!$E44,IF(AND($X$139=2,$AA$139=0,$AB$139=0),'PC25 Graphs'!$C45,IF(AND($X$139=1,$AA$138=0,$AB$138=0),'PC25 Graphs'!$E45))))))) -> 57 | W188: =IF(AND($X$139=7,$AA$144=0,$AB$144=0),'PC40 Graphs'!$B102,IF(AND($X$139=6,$AA$143=0,$AB$143=0),'PC40 Graphs'!$D102,IF(AND($X$139=5,$AA$142=0,$AB$142=0),'PC40 Graphs'!$F102,IF(AND($X$139=4,$AA$141=0,$AB$141=0),'PC32 Graphs'!$B101,IF(AND($X$139=3,$AA$140=0,$AB$140=0),'PC32 Graphs'!$D101,IF(AND($X$139=2,$AA$139=0,$AB$139=0),'PC25 Graphs'!$B102,IF(AND($X$139=1,$AA$138=0,$AB$138=0),'PC25 Graphs'!$D102))))))) -> 1000 | X188: =IF(AND($X$139=7,$AA$144=0,$AB$144=0),'PC40 Graphs'!L102,IF(AND($X$139=6,$AA$143=0,$AB$143=0),'PC40 Graphs'!N102,IF(AND($X$139=5,$AA$142=0,$AB$142=0),'PC40 Graphs'!P102,IF(AND($X$139=4,$AA$141=0,$AB$141=0),'PC32 Graphs'!L101,IF(AND($X$139=3,$AA$140=0,$AB$140=0),'PC32 Graphs'!N101,IF(AND($X$139=2,$AA$139=0,$AB$139=0),'PC25 Graphs'!L102,IF(AND($X$139=1,$AA$138=0,$AB$138=0),'PC25 Graphs'!N102))))))) -> 29 | Y188: 987 | Z188: 805 | AA188: 57 | AD188: =Calc!B125 -> 6240 | AE188: =Calc!A125 -> 0.742 | AG188: =Calc!B59 -> 8000 | AH188: =Calc!A59 -> 0.7983781978 | AQ188: 0.7302666667 | AR188: 6720 | AS188: 0.606834989 | AT188: 8000
U189: =IF(AND($X$139=7,$AA$144=0,$AB$144=0),'PC40 Graphs'!$B45,IF(AND($X$139=6,$AA$143=0,$AB$143=0),'PC40 Graphs'!$D45,IF(AND($X$139=5,$AA$142=0,$AB$142=0),'PC40 Graphs'!$F45,IF(AND($X$139=4,$AA$141=0,$AB$141=0),'PC32 Graphs'!$B45,IF(AND($X$139=3,$AA$140=0,$AB$140=0),'PC32 Graphs'!$D45,IF(AND($X$139=2,$AA$139=0,$AB$139=0),'PC25 Graphs'!$B46,IF(AND($X$139=1,$AA$138=0,$AB$138=0),'PC25 Graphs'!$D46))))))) -> 987 | V189: =IF(AND($X$139=7,$AA$144=0,$AB$144=0),'PC40 Graphs'!$C45,IF(AND($X$139=6,$AA$143=0,$AB$143=0),'PC40 Graphs'!$E45,IF(AND($X$139=5,$AA$142=0,$AB$142=0),'PC40 Graphs'!$G45,IF(AND($X$139=4,$AA$141=0,$AB$141=0),'PC32 Graphs'!$C45,IF(AND($X$139=3,$AA$140=0,$AB$140=0),'PC32 Graphs'!$E45,IF(AND($X$139=2,$AA$139=0,$AB$139=0),'PC25 Graphs'!$C46,IF(AND($X$139=1,$AA$138=0,$AB$138=0),'PC25 Graphs'!$E46))))))) -> 50 | W189: =IF(AND($X$139=7,$AA$144=0,$AB$144=0),'PC40 Graphs'!$B103,IF(AND($X$139=6,$AA$143=0,$AB$143=0),'PC40 Graphs'!$D103,IF(AND($X$139=5,$AA$142=0,$AB$142=0),'PC40 Graphs'!$F103,IF(AND($X$139=4,$AA$141=0,$AB$141=0),'PC32 Graphs'!$B102,IF(AND($X$139=3,$AA$140=0,$AB$140=0),'PC32 Graphs'!$D102,IF(AND($X$139=2,$AA$139=0,$AB$139=0),'PC25 Graphs'!$B103,IF(AND($X$139=1,$AA$138=0,$AB$138=0),'PC25 Graphs'!$D103))))))) -> 1000 | X189: =IF(AND($X$139=7,$AA$144=0,$AB$144=0),'PC40 Graphs'!L103,IF(AND($X$139=6,$AA$143=0,$AB$143=0),'PC40 Graphs'!N103,IF(AND($X$139=5,$AA$142=0,$AB$142=0),'PC40 Graphs'!P103,IF(AND($X$139=4,$AA$141=0,$AB$141=0),'PC32 Graphs'!L102,IF(AND($X$139=3,$AA$140=0,$AB$140=0),'PC32 Graphs'!N102,IF(AND($X$139=2,$AA$139=0,$AB$139=0),'PC25 Graphs'!L103,IF(AND($X$139=1,$AA$138=0,$AB$138=0),'PC25 Graphs'!N103))))))) -> 0 | Y189: 987 | Z189: 805 | AA189: 50 | AD189: =Calc!B126 -> 6400 | AE189: =Calc!A126 -> 0.7380888889 | AG189: =Calc!B60 -> 8000 | AH189: =Calc!A60 -> 0.7351268571 | AQ189: 0.7263555556 | AR189: 6880 | AS189: 0.5417944615 | AT189: 8000
U190: =IF(AND($X$139=7,$AA$144=0,$AB$144=0),'PC40 Graphs'!$B46,IF(AND($X$139=6,$AA$143=0,$AB$143=0),'PC40 Graphs'!$D46,IF(AND($X$139=5,$AA$142=0,$AB$142=0),'PC40 Graphs'!$F46,IF(AND($X$139=4,$AA$141=0,$AB$141=0),'PC32 Graphs'!$B46,IF(AND($X$139=3,$AA$140=0,$AB$140=0),'PC32 Graphs'!$D46,IF(AND($X$139=2,$AA$139=0,$AB$139=0),'PC25 Graphs'!$B47,IF(AND($X$139=1,$AA$138=0,$AB$138=0),'PC25 Graphs'!$D47))))))) -> 987 | V190: =IF(AND($X$139=7,$AA$144=0,$AB$144=0),'PC40 Graphs'!$C46,IF(AND($X$139=6,$AA$143=0,$AB$143=0),'PC40 Graphs'!$E46,IF(AND($X$139=5,$AA$142=0,$AB$142=0),'PC40 Graphs'!$G46,IF(AND($X$139=4,$AA$141=0,$AB$141=0),'PC32 Graphs'!$C46,IF(AND($X$139=3,$AA$140=0,$AB$140=0),'PC32 Graphs'!$E46,IF(AND($X$139=2,$AA$139=0,$AB$139=0),'PC25 Graphs'!$C47,IF(AND($X$139=1,$AA$138=0,$AB$138=0),'PC25 Graphs'!$E47))))))) -> 43 | W190: =IF(AND($X$139=7,$AA$144=0,$AB$144=0),'PC40 Graphs'!$B104,IF(AND($X$139=6,$AA$143=0,$AB$143=0),'PC40 Graphs'!$D104,IF(AND($X$139=5,$AA$142=0,$AB$142=0),'PC40 Graphs'!$F104,IF(AND($X$139=4,$AA$141=0,$AB$141=0),'PC32 Graphs'!$B103,IF(AND($X$139=3,$AA$140=0,$AB$140=0),'PC32 Graphs'!$D103,IF(AND($X$139=2,$AA$139=0,$AB$139=0),'PC25 Graphs'!$B104,IF(AND($X$139=1,$AA$138=0,$AB$138=0),'PC25 Graphs'!$D104))))))) -> 1000 | X190: =IF(AND($X$139=7,$AA$144=0,$AB$144=0),'PC40 Graphs'!L104,IF(AND($X$139=6,$AA$143=0,$AB$143=0),'PC40 Graphs'!N104,IF(AND($X$139=5,$AA$142=0,$AB$142=0),'PC40 Graphs'!P104,IF(AND($X$139=4,$AA$141=0,$AB$141=0),'PC32 Graphs'!L103,IF(AND($X$139=3,$AA$140=0,$AB$140=0),'PC32 Graphs'!N103,IF(AND($X$139=2,$AA$139=0,$AB$139=0),'PC25 Graphs'!L104,IF(AND($X$139=1,$AA$138=0,$AB$138=0),'PC25 Graphs'!N104))))))) -> 0 | Y190: 987 | Z190: 805 | AA190: 43 | AD190: =Calc!B127 -> 6560 | AE190: =Calc!A127 -> 0.7341777778 | AG190: =Calc!B61 -> 8000 | AH190: =Calc!A61 -> 0.6712791209 | AQ190: 0.7224444444 | AR190: 7040 | AS190: 0.4761575385 | AT190: 8000
U191: =IF(AND($X$139=7,$AA$144=0,$AB$144=0),'PC40 Graphs'!$B47,IF(AND($X$139=6,$AA$143=0,$AB$143=0),'PC40 Graphs'!$D47,IF(AND($X$139=5,$AA$142=0,$AB$142=0),'PC40 Graphs'!$F47,IF(AND($X$139=4,$AA$141=0,$AB$141=0),'PC32 Graphs'!$B47,IF(AND($X$139=3,$AA$140=0,$AB$140=0),'PC32 Graphs'!$D47,IF(AND($X$139=2,$AA$139=0,$AB$139=0),'PC25 Graphs'!$B48,IF(AND($X$139=1,$AA$138=0,$AB$138=0),'PC25 Graphs'!$D48))))))) -> 987 | V191: =IF(AND($X$139=7,$AA$144=0,$AB$144=0),'PC40 Graphs'!$C47,IF(AND($X$139=6,$AA$143=0,$AB$143=0),'PC40 Graphs'!$E47,IF(AND($X$139=5,$AA$142=0,$AB$142=0),'PC40 Graphs'!$G47,IF(AND($X$139=4,$AA$141=0,$AB$141=0),'PC32 Graphs'!$C47,IF(AND($X$139=3,$AA$140=0,$AB$140=0),'PC32 Graphs'!$E47,IF(AND($X$139=2,$AA$139=0,$AB$139=0),'PC25 Graphs'!$C48,IF(AND($X$139=1,$AA$138=0,$AB$138=0),'PC25 Graphs'!$E48))))))) -> 37 | W191: =IF(AND($X$139=7,$AA$144=0,$AB$144=0),'PC40 Graphs'!$B105,IF(AND($X$139=6,$AA$143=0,$AB$143=0),'PC40 Graphs'!$D105,IF(AND($X$139=5,$AA$142=0,$AB$142=0),'PC40 Graphs'!$F105,IF(AND($X$139=4,$AA$141=0,$AB$141=0),'PC32 Graphs'!$B104,IF(AND($X$139=3,$AA$140=0,$AB$140=0),'PC32 Graphs'!$D104,IF(AND($X$139=2,$AA$139=0,$AB$139=0),'PC25 Graphs'!$B105,IF(AND($X$139=1,$AA$138=0,$AB$138=0),'PC25 Graphs'!$D105))))))) -> 1000 | X191: =IF(AND($X$139=7,$AA$144=0,$AB$144=0),'PC40 Graphs'!L105,IF(AND($X$139=6,$AA$143=0,$AB$143=0),'PC40 Graphs'!N105,IF(AND($X$139=5,$AA$142=0,$AB$142=0),'PC40 Graphs'!P105,IF(AND($X$139=4,$AA$141=0,$AB$141=0),'PC32 Graphs'!L104,IF(AND($X$139=3,$AA$140=0,$AB$140=0),'PC32 Graphs'!N104,IF(AND($X$139=2,$AA$139=0,$AB$139=0),'PC25 Graphs'!L105,IF(AND($X$139=1,$AA$138=0,$AB$138=0),'PC25 Graphs'!N105))))))) -> 0 | Y191: 987 | Z191: 805 | AA191: 37 | AD191: =Calc!B128 -> 6720 | AE191: =Calc!A128 -> 0.7302666667 | AG191: =Calc!B62 -> 8000 | AH191: =Calc!A62 -> 0.606834989 | AQ191: 0.7185333333 | AR191: 7200 | AS191: 0.4099242198 | AT191: 8000
U192: =IF(AND($X$139=7,$AA$144=0,$AB$144=0),'PC40 Graphs'!$B48,IF(AND($X$139=6,$AA$143=0,$AB$143=0),'PC40 Graphs'!$D48,IF(AND($X$139=5,$AA$142=0,$AB$142=0),'PC40 Graphs'!$F48,IF(AND($X$139=4,$AA$141=0,$AB$141=0),'PC32 Graphs'!$B48,IF(AND($X$139=3,$AA$140=0,$AB$140=0),'PC32 Graphs'!$D48,IF(AND($X$139=2,$AA$139=0,$AB$139=0),'PC25 Graphs'!$B49,IF(AND($X$139=1,$AA$138=0,$AB$138=0),'PC25 Graphs'!$D49))))))) -> 987 | V192: =IF(AND($X$139=7,$AA$144=0,$AB$144=0),'PC40 Graphs'!$C48,IF(AND($X$139=6,$AA$143=0,$AB$143=0),'PC40 Graphs'!$E48,IF(AND($X$139=5,$AA$142=0,$AB$142=0),'PC40 Graphs'!$G48,IF(AND($X$139=4,$AA$141=0,$AB$141=0),'PC32 Graphs'!$C48,IF(AND($X$139=3,$AA$140=0,$AB$140=0),'PC32 Graphs'!$E48,IF(AND($X$139=2,$AA$139=0,$AB$139=0),'PC25 Graphs'!$C49,IF(AND($X$139=1,$AA$138=0,$AB$138=0),'PC25 Graphs'!$E49))))))) -> 30 | W192: =IF(AND($X$139=7,$AA$144=0,$AB$144=0),'PC40 Graphs'!$B106,IF(AND($X$139=6,$AA$143=0,$AB$143=0),'PC40 Graphs'!$D106,IF(AND($X$139=5,$AA$142=0,$AB$142=0),'PC40 Graphs'!$F106,IF(AND($X$139=4,$AA$141=0,$AB$141=0),'PC32 Graphs'!$B105,IF(AND($X$139=3,$AA$140=0,$AB$140=0),'PC32 Graphs'!$D105,IF(AND($X$139=2,$AA$139=0,$AB$139=0),'PC25 Graphs'!$B106,IF(AND($X$139=1,$AA$138=0,$AB$138=0),'PC25 Graphs'!$D106))))))) -> 1000 | X192: =IF(AND($X$139=7,$AA$144=0,$AB$144=0),'PC40 Graphs'!L106,IF(AND($X$139=6,$AA$143=0,$AB$143=0),'PC40 Graphs'!N106,IF(AND($X$139=5,$AA$142=0,$AB$142=0),'PC40 Graphs'!P106,IF(AND($X$139=4,$AA$141=0,$AB$141=0),'PC32 Graphs'!L105,IF(AND($X$139=3,$AA$140=0,$AB$140=0),'PC32 Graphs'!N105,IF(AND($X$139=2,$AA$139=0,$AB$139=0),'PC25 Graphs'!L106,IF(AND($X$139=1,$AA$138=0,$AB$138=0),'PC25 Graphs'!N106))))))) -> 0 | Y192: 987 | Z192: 805 | AA192: 30 | AD192: =Calc!B129 -> 6880 | AE192: =Calc!A129 -> 0.7263555556 | AG192: =Calc!B63 -> 8000 | AH192: =Calc!A63 -> 0.5417944615 | AQ192: 0.7146222222 | AR192: 7360 | AS192: 0.3430945055 | AT192: 8000
U193: =IF(AND($X$139=7,$AA$144=0,$AB$144=0),'PC40 Graphs'!$B49,IF(AND($X$139=6,$AA$143=0,$AB$143=0),'PC40 Graphs'!$D49,IF(AND($X$139=5,$AA$142=0,$AB$142=0),'PC40 Graphs'!$F49,IF(AND($X$139=4,$AA$141=0,$AB$141=0),'PC32 Graphs'!$B49,IF(AND($X$139=3,$AA$140=0,$AB$140=0),'PC32 Graphs'!$D49,IF(AND($X$139=2,$AA$139=0,$AB$139=0),'PC25 Graphs'!$B50,IF(AND($X$139=1,$AA$138=0,$AB$138=0),'PC25 Graphs'!$D50))))))) -> 987 | V193: =IF(AND($X$139=7,$AA$144=0,$AB$144=0),'PC40 Graphs'!$C49,IF(AND($X$139=6,$AA$143=0,$AB$143=0),'PC40 Graphs'!$E49,IF(AND($X$139=5,$AA$142=0,$AB$142=0),'PC40 Graphs'!$G49,IF(AND($X$139=4,$AA$141=0,$AB$141=0),'PC32 Graphs'!$C49,IF(AND($X$139=3,$AA$140=0,$AB$140=0),'PC32 Graphs'!$E49,IF(AND($X$139=2,$AA$139=0,$AB$139=0),'PC25 Graphs'!$C50,IF(AND($X$139=1,$AA$138=0,$AB$138=0),'PC25 Graphs'!$E50))))))) -> 24 | W193: =IF(AND($X$139=7,$AA$144=0,$AB$144=0),'PC40 Graphs'!$B107,IF(AND($X$139=6,$AA$143=0,$AB$143=0),'PC40 Graphs'!$D107,IF(AND($X$139=5,$AA$142=0,$AB$142=0),'PC40 Graphs'!$F107,IF(AND($X$139=4,$AA$141=0,$AB$141=0),'PC32 Graphs'!$B106,IF(AND($X$139=3,$AA$140=0,$AB$140=0),'PC32 Graphs'!$D106,IF(AND($X$139=2,$AA$139=0,$AB$139=0),'PC25 Graphs'!$B107,IF(AND($X$139=1,$AA$138=0,$AB$138=0),'PC25 Graphs'!$D107))))))) -> 1000 | X193: =IF(AND($X$139=7,$AA$144=0,$AB$144=0),'PC40 Graphs'!L107,IF(AND($X$139=6,$AA$143=0,$AB$143=0),'PC40 Graphs'!N107,IF(AND($X$139=5,$AA$142=0,$AB$142=0),'PC40 Graphs'!P107,IF(AND($X$139=4,$AA$141=0,$AB$141=0),'PC32 Graphs'!L106,IF(AND($X$139=3,$AA$140=0,$AB$140=0),'PC32 Graphs'!N106,IF(AND($X$139=2,$AA$139=0,$AB$139=0),'PC25 Graphs'!L107,IF(AND($X$139=1,$AA$138=0,$AB$138=0),'PC25 Graphs'!N107))))))) -> 0 | Y193: 987 | Z193: 805 | AA193: 24 | AD193: =Calc!B130 -> 7040 | AE193: =Calc!A130 -> 0.7224444444 | AG193: =Calc!B64 -> 8000 | AH193: =Calc!A64 -> 0.4761575385 | AQ193: 0.7107111111 | AR193: 7520 | AS193: 0.2756683956 | AT193: 8000
U194: =IF(AND($X$139=7,$AA$144=0,$AB$144=0),'PC40 Graphs'!$B50,IF(AND($X$139=6,$AA$143=0,$AB$143=0),'PC40 Graphs'!$D50,IF(AND($X$139=5,$AA$142=0,$AB$142=0),'PC40 Graphs'!$F50,IF(AND($X$139=4,$AA$141=0,$AB$141=0),'PC32 Graphs'!$B50,IF(AND($X$139=3,$AA$140=0,$AB$140=0),'PC32 Graphs'!$D50,IF(AND($X$139=2,$AA$139=0,$AB$139=0),'PC25 Graphs'!$B51,IF(AND($X$139=1,$AA$138=0,$AB$138=0),'PC25 Graphs'!$D51))))))) -> 987 | V194: =IF(AND($X$139=7,$AA$144=0,$AB$144=0),'PC40 Graphs'!$C50,IF(AND($X$139=6,$AA$143=0,$AB$143=0),'PC40 Graphs'!$E50,IF(AND($X$139=5,$AA$142=0,$AB$142=0),'PC40 Graphs'!$G50,IF(AND($X$139=4,$AA$141=0,$AB$141=0),'PC32 Graphs'!$C50,IF(AND($X$139=3,$AA$140=0,$AB$140=0),'PC32 Graphs'!$E50,IF(AND($X$139=2,$AA$139=0,$AB$139=0),'PC25 Graphs'!$C51,IF(AND($X$139=1,$AA$138=0,$AB$138=0),'PC25 Graphs'!$E51))))))) -> 17 | W194: =IF(AND($X$139=7,$AA$144=0,$AB$144=0),'PC40 Graphs'!$B108,IF(AND($X$139=6,$AA$143=0,$AB$143=0),'PC40 Graphs'!$D108,IF(AND($X$139=5,$AA$142=0,$AB$142=0),'PC40 Graphs'!$F108,IF(AND($X$139=4,$AA$141=0,$AB$141=0),'PC32 Graphs'!$B107,IF(AND($X$139=3,$AA$140=0,$AB$140=0),'PC32 Graphs'!$D107,IF(AND($X$139=2,$AA$139=0,$AB$139=0),'PC25 Graphs'!$B108,IF(AND($X$139=1,$AA$138=0,$AB$138=0),'PC25 Graphs'!$D108))))))) -> 1000 | X194: =IF(AND($X$139=7,$AA$144=0,$AB$144=0),'PC40 Graphs'!L108,IF(AND($X$139=6,$AA$143=0,$AB$143=0),'PC40 Graphs'!N108,IF(AND($X$139=5,$AA$142=0,$AB$142=0),'PC40 Graphs'!P108,IF(AND($X$139=4,$AA$141=0,$AB$141=0),'PC32 Graphs'!L107,IF(AND($X$139=3,$AA$140=0,$AB$140=0),'PC32 Graphs'!N107,IF(AND($X$139=2,$AA$139=0,$AB$139=0),'PC25 Graphs'!L108,IF(AND($X$139=1,$AA$138=0,$AB$138=0),'PC25 Graphs'!N108))))))) -> 0 | Y194: 987 | Z194: 805 | AA194: 17 | AD194: =Calc!B131 -> 7200 | AE194: =Calc!A131 -> 0.7185333333 | AG194: =Calc!B65 -> 8000 | AH194: =Calc!A65 -> 0.4099242198 | AQ194: 0.7068 | AR194: 7680 | AS194: 0.2076458901 | AT194: 8000
U195: =IF(AND($X$139=7,$AA$144=0,$AB$144=0),'PC40 Graphs'!$B51,IF(AND($X$139=6,$AA$143=0,$AB$143=0),'PC40 Graphs'!$D51,IF(AND($X$139=5,$AA$142=0,$AB$142=0),'PC40 Graphs'!$F51,IF(AND($X$139=4,$AA$141=0,$AB$141=0),'PC32 Graphs'!$B51,IF(AND($X$139=3,$AA$140=0,$AB$140=0),'PC32 Graphs'!$D51,IF(AND($X$139=2,$AA$139=0,$AB$139=0),'PC25 Graphs'!$B52,IF(AND($X$139=1,$AA$138=0,$AB$138=0),'PC25 Graphs'!$D52))))))) -> 987 | V195: =IF(AND($X$139=7,$AA$144=0,$AB$144=0),'PC40 Graphs'!$C51,IF(AND($X$139=6,$AA$143=0,$AB$143=0),'PC40 Graphs'!$E51,IF(AND($X$139=5,$AA$142=0,$AB$142=0),'PC40 Graphs'!$G51,IF(AND($X$139=4,$AA$141=0,$AB$141=0),'PC32 Graphs'!$C51,IF(AND($X$139=3,$AA$140=0,$AB$140=0),'PC32 Graphs'!$E51,IF(AND($X$139=2,$AA$139=0,$AB$139=0),'PC25 Graphs'!$C52,IF(AND($X$139=1,$AA$138=0,$AB$138=0),'PC25 Graphs'!$E52))))))) -> 10 | W195: =IF(AND($X$139=7,$AA$144=0,$AB$144=0),'PC40 Graphs'!$B109,IF(AND($X$139=6,$AA$143=0,$AB$143=0),'PC40 Graphs'!$D109,IF(AND($X$139=5,$AA$142=0,$AB$142=0),'PC40 Graphs'!$F109,IF(AND($X$139=4,$AA$141=0,$AB$141=0),'PC32 Graphs'!$B108,IF(AND($X$139=3,$AA$140=0,$AB$140=0),'PC32 Graphs'!$D108,IF(AND($X$139=2,$AA$139=0,$AB$139=0),'PC25 Graphs'!$B109,IF(AND($X$139=1,$AA$138=0,$AB$138=0),'PC25 Graphs'!$D109))))))) -> 1000 | X195: =IF(AND($X$139=7,$AA$144=0,$AB$144=0),'PC40 Graphs'!L109,IF(AND($X$139=6,$AA$143=0,$AB$143=0),'PC40 Graphs'!N109,IF(AND($X$139=5,$AA$142=0,$AB$142=0),'PC40 Graphs'!P109,IF(AND($X$139=4,$AA$141=0,$AB$141=0),'PC32 Graphs'!L108,IF(AND($X$139=3,$AA$140=0,$AB$140=0),'PC32 Graphs'!N108,IF(AND($X$139=2,$AA$139=0,$AB$139=0),'PC25 Graphs'!L109,IF(AND($X$139=1,$AA$138=0,$AB$138=0),'PC25 Graphs'!N109))))))) -> 0 | Y195: 987 | Z195: 805 | AA195: 10 | AD195: =Calc!B132 -> 7360 | AE195: =Calc!A132 -> 0.7146222222 | AG195: =Calc!B66 -> 8000 | AH195: =Calc!A66 -> 0.3430945055 | AQ195: 0.7028888889 | AR195: 7840 | AS195: 0.139026989 | AT195: 8000
U196: =IF(AND($X$139=7,$AA$144=0,$AB$144=0),'PC40 Graphs'!$B52,IF(AND($X$139=6,$AA$143=0,$AB$143=0),'PC40 Graphs'!$D52,IF(AND($X$139=5,$AA$142=0,$AB$142=0),'PC40 Graphs'!$F52,IF(AND($X$139=4,$AA$141=0,$AB$141=0),'PC32 Graphs'!$B52,IF(AND($X$139=3,$AA$140=0,$AB$140=0),'PC32 Graphs'!$D52,IF(AND($X$139=2,$AA$139=0,$AB$139=0),'PC25 Graphs'!$B53,IF(AND($X$139=1,$AA$138=0,$AB$138=0),'PC25 Graphs'!$D53))))))) -> 987 | V196: =IF(AND($X$139=7,$AA$144=0,$AB$144=0),'PC40 Graphs'!$C52,IF(AND($X$139=6,$AA$143=0,$AB$143=0),'PC40 Graphs'!$E52,IF(AND($X$139=5,$AA$142=0,$AB$142=0),'PC40 Graphs'!$G52,IF(AND($X$139=4,$AA$141=0,$AB$141=0),'PC32 Graphs'!$C52,IF(AND($X$139=3,$AA$140=0,$AB$140=0),'PC32 Graphs'!$E52,IF(AND($X$139=2,$AA$139=0,$AB$139=0),'PC25 Graphs'!$C53,IF(AND($X$139=1,$AA$138=0,$AB$138=0),'PC25 Graphs'!$E53))))))) -> 4 | W196: =IF(AND($X$139=7,$AA$144=0,$AB$144=0),'PC40 Graphs'!$B110,IF(AND($X$139=6,$AA$143=0,$AB$143=0),'PC40 Graphs'!$D110,IF(AND($X$139=5,$AA$142=0,$AB$142=0),'PC40 Graphs'!$F110,IF(AND($X$139=4,$AA$141=0,$AB$141=0),'PC32 Graphs'!$B109,IF(AND($X$139=3,$AA$140=0,$AB$140=0),'PC32 Graphs'!$D109,IF(AND($X$139=2,$AA$139=0,$AB$139=0),'PC25 Graphs'!$B110,IF(AND($X$139=1,$AA$138=0,$AB$138=0),'PC25 Graphs'!$D110))))))) -> 1000 | X196: =IF(AND($X$139=7,$AA$144=0,$AB$144=0),'PC40 Graphs'!L110,IF(AND($X$139=6,$AA$143=0,$AB$143=0),'PC40 Graphs'!N110,IF(AND($X$139=5,$AA$142=0,$AB$142=0),'PC40 Graphs'!P110,IF(AND($X$139=4,$AA$141=0,$AB$141=0),'PC32 Graphs'!L109,IF(AND($X$139=3,$AA$140=0,$AB$140=0),'PC32 Graphs'!N109,IF(AND($X$139=2,$AA$139=0,$AB$139=0),'PC25 Graphs'!L110,IF(AND($X$139=1,$AA$138=0,$AB$138=0),'PC25 Graphs'!N110))))))) -> 0 | Y196: 987 | Z196: 805 | AA196: 4 | AD196: =Calc!B133 -> 7520 | AE196: =Calc!A133 -> 0.7107111111 | AG196: =Calc!B67 -> 8000 | AH196: =Calc!A67 -> 0.2756683956 | AQ196: 0.7 | AR196: 8000 | AS196: 0.06981169231 | AT196: 8000
U197: =IF(AND($X$139=7,$AA$144=0,$AB$144=0),'PC40 Graphs'!$B53,IF(AND($X$139=6,$AA$143=0,$AB$143=0),'PC40 Graphs'!$D53,IF(AND($X$139=5,$AA$142=0,$AB$142=0),'PC40 Graphs'!$F53,IF(AND($X$139=4,$AA$141=0,$AB$141=0),'PC32 Graphs'!$B53,IF(AND($X$139=3,$AA$140=0,$AB$140=0),'PC32 Graphs'!$D53,IF(AND($X$139=2,$AA$139=0,$AB$139=0),'PC25 Graphs'!$B54,IF(AND($X$139=1,$AA$138=0,$AB$138=0),'PC25 Graphs'!$D54))))))) -> 987 | V197: =IF(AND($X$139=7,$AA$144=0,$AB$144=0),'PC40 Graphs'!$C53,IF(AND($X$139=6,$AA$143=0,$AB$143=0),'PC40 Graphs'!$E53,IF(AND($X$139=5,$AA$142=0,$AB$142=0),'PC40 Graphs'!$G53,IF(AND($X$139=4,$AA$141=0,$AB$141=0),'PC32 Graphs'!$C53,IF(AND($X$139=3,$AA$140=0,$AB$140=0),'PC32 Graphs'!$E53,IF(AND($X$139=2,$AA$139=0,$AB$139=0),'PC25 Graphs'!$C54,IF(AND($X$139=1,$AA$138=0,$AB$138=0),'PC25 Graphs'!$E54))))))) -> 0 | W197: =IF(AND($X$139=7,$AA$144=0,$AB$144=0),'PC40 Graphs'!$B111,IF(AND($X$139=6,$AA$143=0,$AB$143=0),'PC40 Graphs'!$D111,IF(AND($X$139=5,$AA$142=0,$AB$142=0),'PC40 Graphs'!$F111,IF(AND($X$139=4,$AA$141=0,$AB$141=0),'PC32 Graphs'!$B110,IF(AND($X$139=3,$AA$140=0,$AB$140=0),'PC32 Graphs'!$D110,IF(AND($X$139=2,$AA$139=0,$AB$139=0),'PC25 Graphs'!$B111,IF(AND($X$139=1,$AA$138=0,$AB$138=0),'PC25 Graphs'!$D111))))))) -> 1000 | X197: =IF(AND($X$139=7,$AA$144=0,$AB$144=0),'PC40 Graphs'!L111,IF(AND($X$139=6,$AA$143=0,$AB$143=0),'PC40 Graphs'!N111,IF(AND($X$139=5,$AA$142=0,$AB$142=0),'PC40 Graphs'!P111,IF(AND($X$139=4,$AA$141=0,$AB$141=0),'PC32 Graphs'!L110,IF(AND($X$139=3,$AA$140=0,$AB$140=0),'PC32 Graphs'!N110,IF(AND($X$139=2,$AA$139=0,$AB$139=0),'PC25 Graphs'!L111,IF(AND($X$139=1,$AA$138=0,$AB$138=0),'PC25 Graphs'!N111))))))) -> 0 | Y197: 987 | Z197: 805 | AA197: 0 | AD197: =Calc!B134 -> 7680 | AE197: =Calc!A134 -> 0.7068 | AG197: =Calc!B68 -> 8000 | AH197: =Calc!A68 -> 0.2076458901 | AQ197: =IF($AK$139=2,U200,AQ196) -> 0.7 | AR197: =IF($AK$139=2,AA200,AR196) -> 8000 | AS197: 0 | AT197: 8000
U198: =IF(AND($X$139=7,$AA$144=0,$AB$144=0),'PC40 Graphs'!$B54,IF(AND($X$139=6,$AA$143=0,$AB$143=0),'PC40 Graphs'!$D54,IF(AND($X$139=5,$AA$142=0,$AB$142=0),'PC40 Graphs'!$F54,IF(AND($X$139=4,$AA$141=0,$AB$141=0),'PC32 Graphs'!$B54,IF(AND($X$139=3,$AA$140=0,$AB$140=0),'PC32 Graphs'!$D54,IF(AND($X$139=2,$AA$139=0,$AB$139=0),'PC25 Graphs'!$B55,IF(AND($X$139=1,$AA$138=0,$AB$138=0),'PC25 Graphs'!$D55))))))) -> 987 | V198: =IF(AND($X$139=7,$AA$144=0,$AB$144=0),'PC40 Graphs'!$C54,IF(AND($X$139=6,$AA$143=0,$AB$143=0),'PC40 Graphs'!$E54,IF(AND($X$139=5,$AA$142=0,$AB$142=0),'PC40 Graphs'!$G54,IF(AND($X$139=4,$AA$141=0,$AB$141=0),'PC32 Graphs'!$C54,IF(AND($X$139=3,$AA$140=0,$AB$140=0),'PC32 Graphs'!$E54,IF(AND($X$139=2,$AA$139=0,$AB$139=0),'PC25 Graphs'!$C55,IF(AND($X$139=1,$AA$138=0,$AB$138=0),'PC25 Graphs'!$E55))))))) -> 0 | W198: =IF(AND($X$139=7,$AA$144=0,$AB$144=0),'PC40 Graphs'!$B112,IF(AND($X$139=6,$AA$143=0,$AB$143=0),'PC40 Graphs'!$D112,IF(AND($X$139=5,$AA$142=0,$AB$142=0),'PC40 Graphs'!$F112,IF(AND($X$139=4,$AA$141=0,$AB$141=0),'PC32 Graphs'!$B111,IF(AND($X$139=3,$AA$140=0,$AB$140=0),'PC32 Graphs'!$D111,IF(AND($X$139=2,$AA$139=0,$AB$139=0),'PC25 Graphs'!$B112,IF(AND($X$139=1,$AA$138=0,$AB$138=0),'PC25 Graphs'!$D112))))))) -> 1000 | X198: =IF(AND($X$139=7,$AA$144=0,$AB$144=0),'PC40 Graphs'!L112,IF(AND($X$139=6,$AA$143=0,$AB$143=0),'PC40 Graphs'!N112,IF(AND($X$139=5,$AA$142=0,$AB$142=0),'PC40 Graphs'!P112,IF(AND($X$139=4,$AA$141=0,$AB$141=0),'PC32 Graphs'!L111,IF(AND($X$139=3,$AA$140=0,$AB$140=0),'PC32 Graphs'!N111,IF(AND($X$139=2,$AA$139=0,$AB$139=0),'PC25 Graphs'!L112,IF(AND($X$139=1,$AA$138=0,$AB$138=0),'PC25 Graphs'!N112))))))) -> 0 | Y198: 987 | Z198: 805 | AA198: 0 | AD198: =Calc!B135 -> 7840 | AE198: =Calc!A135 -> 0.7028888889 | AG198: =Calc!B69 -> 8000 | AH198: =Calc!A69 -> 0.139026989
U199: =IF(AND($X$139=7,$AA$144=0,$AB$144=0),'PC40 Graphs'!$B55,IF(AND($X$139=6,$AA$143=0,$AB$143=0),'PC40 Graphs'!$D55,IF(AND($X$139=5,$AA$142=0,$AB$142=0),'PC40 Graphs'!$F55,IF(AND($X$139=4,$AA$141=0,$AB$141=0),'PC32 Graphs'!$B55,IF(AND($X$139=3,$AA$140=0,$AB$140=0),'PC32 Graphs'!$D55,IF(AND($X$139=2,$AA$139=0,$AB$139=0),'PC25 Graphs'!$B56,IF(AND($X$139=1,$AA$138=0,$AB$138=0),'PC25 Graphs'!$D56))))))) -> 987 | V199: =IF(AND($X$139=7,$AA$144=0,$AB$144=0),'PC40 Graphs'!$C55,IF(AND($X$139=6,$AA$143=0,$AB$143=0),'PC40 Graphs'!$E55,IF(AND($X$139=5,$AA$142=0,$AB$142=0),'PC40 Graphs'!$G55,IF(AND($X$139=4,$AA$141=0,$AB$141=0),'PC32 Graphs'!$C55,IF(AND($X$139=3,$AA$140=0,$AB$140=0),'PC32 Graphs'!$E55,IF(AND($X$139=2,$AA$139=0,$AB$139=0),'PC25 Graphs'!$C56,IF(AND($X$139=1,$AA$138=0,$AB$138=0),'PC25 Graphs'!$E56))))))) -> 0 | W199: =IF(AND($X$139=7,$AA$144=0,$AB$144=0),'PC40 Graphs'!$B113,IF(AND($X$139=6,$AA$143=0,$AB$143=0),'PC40 Graphs'!$D113,IF(AND($X$139=5,$AA$142=0,$AB$142=0),'PC40 Graphs'!$F113,IF(AND($X$139=4,$AA$141=0,$AB$141=0),'PC32 Graphs'!$B112,IF(AND($X$139=3,$AA$140=0,$AB$140=0),'PC32 Graphs'!$D112,IF(AND($X$139=2,$AA$139=0,$AB$139=0),'PC25 Graphs'!$B113,IF(AND($X$139=1,$AA$138=0,$AB$138=0),'PC25 Graphs'!$D113))))))) -> 1000 | X199: =IF(AND($X$139=7,$AA$144=0,$AB$144=0),'PC40 Graphs'!L113,IF(AND($X$139=6,$AA$143=0,$AB$143=0),'PC40 Graphs'!N113,IF(AND($X$139=5,$AA$142=0,$AB$142=0),'PC40 Graphs'!P113,IF(AND($X$139=4,$AA$141=0,$AB$141=0),'PC32 Graphs'!L112,IF(AND($X$139=3,$AA$140=0,$AB$140=0),'PC32 Graphs'!N112,IF(AND($X$139=2,$AA$139=0,$AB$139=0),'PC25 Graphs'!L113,IF(AND($X$139=1,$AA$138=0,$AB$138=0),'PC25 Graphs'!N113))))))) -> 0 | Y199: 987 | Z199: 805 | AA199: 0 | AD199: =Calc!B136 -> 8000 | AE199: =Calc!A136 -> 0.7 | AG199: =Calc!B70 -> 8000 | AH199: =Calc!A70 -> 0.06981169231
U200: =IF(AND($X$139=7,$AA$144=0,$AB$144=0),'PC40 Graphs'!$B56,IF(AND($X$139=6,$AA$143=0,$AB$143=0),'PC40 Graphs'!$D56,IF(AND($X$139=5,$AA$142=0,$AB$142=0),'PC40 Graphs'!$F56,IF(AND($X$139=4,$AA$141=0,$AB$141=0),'PC32 Graphs'!$B56,IF(AND($X$139=3,$AA$140=0,$AB$140=0),'PC32 Graphs'!$D56,IF(AND($X$139=2,$AA$139=0,$AB$139=0),'PC25 Graphs'!$B57,IF(AND($X$139=1,$AA$138=0,$AB$138=0),'PC25 Graphs'!$D57))))))) -> 987 | V200: =IF(AND($X$139=7,$AA$144=0,$AB$144=0),'PC40 Graphs'!$C56,IF(AND($X$139=6,$AA$143=0,$AB$143=0),'PC40 Graphs'!$E56,IF(AND($X$139=5,$AA$142=0,$AB$142=0),'PC40 Graphs'!$G56,IF(AND($X$139=4,$AA$141=0,$AB$141=0),'PC32 Graphs'!$C56,IF(AND($X$139=3,$AA$140=0,$AB$140=0),'PC32 Graphs'!$E56,IF(AND($X$139=2,$AA$139=0,$AB$139=0),'PC25 Graphs'!$C57,IF(AND($X$139=1,$AA$138=0,$AB$138=0),'PC25 Graphs'!$E57))))))) -> 0 | W200: =IF(AND($X$139=7,$AA$144=0,$AB$144=0),'PC40 Graphs'!$B114,IF(AND($X$139=6,$AA$143=0,$AB$143=0),'PC40 Graphs'!$D114,IF(AND($X$139=5,$AA$142=0,$AB$142=0),'PC40 Graphs'!$F114,IF(AND($X$139=4,$AA$141=0,$AB$141=0),'PC32 Graphs'!$B113,IF(AND($X$139=3,$AA$140=0,$AB$140=0),'PC32 Graphs'!$D113,IF(AND($X$139=2,$AA$139=0,$AB$139=0),'PC25 Graphs'!$B114,IF(AND($X$139=1,$AA$138=0,$AB$138=0),'PC25 Graphs'!$D114))))))) -> 1000 | X200: =IF(AND($X$139=7,$AA$144=0,$AB$144=0),'PC40 Graphs'!L114,IF(AND($X$139=6,$AA$143=0,$AB$143=0),'PC40 Graphs'!N114,IF(AND($X$139=5,$AA$142=0,$AB$142=0),'PC40 Graphs'!P114,IF(AND($X$139=4,$AA$141=0,$AB$141=0),'PC32 Graphs'!L113,IF(AND($X$139=3,$AA$140=0,$AB$140=0),'PC32 Graphs'!N113,IF(AND($X$139=2,$AA$139=0,$AB$139=0),'PC25 Graphs'!L114,IF(AND($X$139=1,$AA$138=0,$AB$138=0),'PC25 Graphs'!N114))))))) -> 0 | Y200: 987 | Z200: 805 | AA200: 0 | AG200: =Calc!B71 -> 8000 | AH200: =Calc!A71 -> 0
N204: Motor ID | O204: Voltage | Q204: Motor Part number | R204: Motor nbr
M205: Current Choice --> | N205: =LOOKUP(R205,R209:R246,N209:N246) -> 004 | O205: =I209 -> 240 | Q205: =LOOKUP(B209,Data!$R$209:$R$246,Data!$Q$209:$Q$246) -> AKM22E-ANCNR-00 | R205: =B209 -> 5
L206: INFO | Q206: Sent to input | R206: 1= fits; 0= No fit
D207: Cont. torque (Stall) [Nm] | E207: Peak torque [Nm] | F207: Rated torque [Nm] | G207: =IF(OR($J$150=1,$J$150=4),"Rated speed [rpm]",IF($J$150=2,"Max Speed [rpm]")) -> Rated speed [rpm] | H207: Inertia [kg cm²] | I207: Input Voltage | K207: Voltage | L207: AKM Servo | M207: Model in Database | N207: Motor ID | O207: Fits PC | P207: Winding | Q207: Motor Part number | R207: Motor nbr | S207: PC25 | U207: PC32 | W207: PC40
B208: SERVO AKM | D208: Nm | E208: Nm | F208: Nm | G208: rpm | H208: kg cm² | I208: VAC | S208: LX | T208: PA | U208: LX | V208: PA | W208: LX | X208: PA
B209: =IF($J$170=2,VLOOKUP($C$150,$A$210:$B$223,2,FALSE),IF($J$170=1,VLOOKUP($C$150,$A$225:$B$238,2,FALSE),IF($J$170=3,VLOOKUP($C$150,$A$240:$B$249,2,FALSE)))) -> 5 | C209: =VLOOKUP($B$209,$B$210:$I$249,2) -> AKM22E | D209: =VLOOKUP($B$209,$B$210:$I$249,3) -> 0.87 | E209: =VLOOKUP($B$209,$B$210:$I$249,4) -> 2.76 | F209: =VLOOKUP($B$209,$B$210:$I$249,5) -> 0.7 | G209: =VLOOKUP($B$209,$B$210:$I$249,6) -> 8000 | H209: =VLOOKUP($B$209,$B$210:$I$249,7) -> 0.16 | I209: =VLOOKUP($B$209,$B$210:$I$249,8) -> 240 | K209: 240 | L209: AKM11B | M209: AKM1xx-Axxxx-00 | N209: 367 | O209: ALL | P209: -ANC | Q209: =CONCATENATE(L209,P209,$K$141,$O$141) -> AKM11B-ANCNR-00 | R209: 1 | S209: 1 | T209: 1 | U209: 1 | V209: 1 | W209: 1 | X209: 1
A210: =IF($J$150=1,C210," xx") -> AKM11B | B210: 1 | C210: AKM11B | D210: 0.183 | E210: 0.609 | F210: 0.167 | G210: 8000 | H210: 0.017 | I210: 240 | K210: 240 | L210: AKM12C | M210: AKM1xx-Axxxx-00 | N210: 367 | O210: ALL | P210: -ANC | Q210: AKM12C-ANCNR-00 | R210: 2 | S210: 1 | T210: 1 | U210: 1 | V210: 1 | W210: 1 | X210: 1
... 144 more rows

Sheet Motor (hidden)
A1: Motortype | B1: Peak Stall Torque [Nm] | C1: Peak Current [A] | D1: Cont Stall Torque [Nm] | E1: Cont. Stall Current [A] | F1: 75VDC | H1: 160VDC | J1: 320VDC | L1: 560VDC | N1: 640VDC | P1: max Speed [1/min] | Q1: Inertia [kgcm2] | R1: R [Ohm] | S1: L [mH] | T1: Ke [mV/prm] | U1: Poles | W1: Ist ein SFD Feedback Möglich?
F2: Cont Rate Torque [Nm] | G2: Rated Speed [1/min] | H2: Cont Rate Torque [Nm] | I2: Rated Speed [1/min] | J2: Cont Rate Torque [Nm] | K2: Rated Speed [1/min] | L2: Cont Rate Torque [Nm] | M2: Rated Speed [1/min] | N2: Cont Rate Torque [Nm] | O2: Rated Speed [1/min]
A9: 6SM27M-4000 | B9: 1.2 | C9: 3.5 | D9: 0.32 | E9: 0.8 | L9: 0.30 | M9: 4000 | P9: 9000 | Q9: 0.08 | R9: 31 | S9: 21 | T9: 25.0 | U9: 6 | W9: Nein
A10: 6SM27LL-4500 | B10: 3.2 | C10: 3.7 | D10: 0.8 | E10: 0.82 | L10: 0.72 | M10: 4500 | P10: 9000 | Q10: 0.14 | R10: 37 | S10: 42 | T10: 59.0 | U10: 6 | W10: Nein
A11: 6SM37S-6000 | B11: 1.8 | C11: 4 | D11: 0.5 | E11: 1 | L11: 0.40 | M11: 6000 | P11: 9000 | Q11: 0.45 | R11: 36 | S11: 32 | T11: 30.0 | U11: 6 | W11: Nein
A12: 6SM37M-6000 | B12: 3.6 | C12: 6.5 | D12: 1 | E12: 1.6 | L12: 0.80 | M12: 6000 | P12: 9000 | Q12: 0.7 | R12: 12.8 | S12: 21 | T12: 38.0 | U12: 6 | W12: Nein
A13: 6SM37L-4000 | B13: 5.4 | C13: 6.4 | D13: 1.5 | E13: 1.6 | L13: 1.20 | M13: 4000 | P13: 9000 | Q13: 1 | R13: 15.5 | S13: 30 | T13: 58.0 | U13: 6 | W13: Nein
A14: 6SM37VL-6000 | B14: 10.8 | C14: 15.2 | D14: 3 | E14: 3.8 | L14: 2.00 | M14: 6000 | P14: 9000 | Q14: 1.6 | R14: 3.65 | S14: 8 | T14: 48.0 | U14: 6 | W14: Nein
A15: 6SM47L-3000 | B15: 10.6 | C15: 9 | D15: 3 | E15: 2.3 | L15: 2.20 | M15: 3000 | P15: 6000 | Q15: 1.6 | R15: 11 | S15: 25 | T15: 81.0 | U15: 6 | W15: Nein
A16: 6SM57S-3000 | B16: 16.3 | C16: 11 | D16: 4.6 | E16: 2.8 | L16: 3.00 | M16: 3000 | P16: 6000 | Q16: 3.1 | R16: 6.3 | S16: 35 | T16: 97.0 | U16: 6 | W16: Nein
A17: 6SM57M-3000 | B17: 28.5 | C17: 17 | D17: 8 | E17: 4.3 | L17: 6.00 | M17: 3000 | P17: 6000 | Q17: 4.5 | R17: 3.9 | S17: 24 | T17: 112.0 | U17: 6 | W17: Nein
A18: 6SM77K-3000 | B18: 39.6 | C18: 24 | D18: 11 | E18: 6 | L18: 8.50 | M18: 3000 | P18: 6000 | Q18: 12 | R18: 2.2 | S18: 18 | T18: 112.0 | U18: 6 | W18: Nein
A19: 6SM77S-3000 | B19: 61.2 | C19: 40 | D19: 17 | E19: 10 | L19: 12.00 | M19: 3000 | P19: 6000 | Q19: 18 | R19: 1.1 | S19: 8.3 | T19: 103.0 | U19: 6 | W19: Nein
A20: 6SM107K-3000 | B20: 100.2 | C20: 70 | D20: 26 | E20: 16 | L20: 20.00 | M20: 3000 | P20: 6000 | Q20: 82 | R20: 0.45 | S20: 4.4 | T20: 97.0 | U20: 6 | W20: Nein
A21: 6SM107S-3000 | B21: 120.7 | C21: 85 | D21: 32 | E21: 20 | L21: 23.00 | M21: 3000 | P21: 6000 | Q21: 104 | R21: 0.37 | S21: 3.6 | T21: 97.0 | U21: 6 | W21: Nein
A22: 6SM45S-3000 | B22: 2.8 | C22: 4.7 | D22: 0.85 | E22: 1.3 | L22: 0.80 | M22: 3000 | P22: 8000 | Q22: 1.5 | R22: 25.4 | S22: 54 | T22: 41.0 | U22: 6 | W22: Nein
A23: 6SM45M-3000 | B23: 6.5 | C23: 5.6 | D23: 1.7 | E23: 1.3 | L23: 1.60 | M23: 3000 | P23: 8000 | Q23: 2.1 | R23: 34 | S23: 99 | T23: 82.0 | U23: 6 | W23: Nein
A24: 6SM45L-3000 | B24: 11.5 | C24: 9.6 | D24: 3.2 | E24: 2.4 | L24: 2.90 | M24: 3000 | P24: 8000 | Q24: 3.4 | R24: 11.9 | S24: 47 | T24: 82.0 | U24: 6 | W24: Nein
A25: 6SM56S-3000 | B25: 14.8 | C25: 12.4 | D25: 3.8 | E25: 2.8 | L25: 3.60 | M25: 3000 | P25: 8000 | Q25: 5.2 | R25: 9.4 | S25: 54 | T25: 80.6 | U25: 6 | W25: Nein
A26: 6SM56M-3000 | B26: 25.6 | C26: 19.6 | D26: 7 | E26: 4.8 | L26: 6.40 | M26: 3000 | P26: 8000 | Q26: 10 | R26: 4 | S26: 30 | T26: 87.7 | U26: 6 | W26: Nein
A27: 6SM56L-3000 | B27: 34 | C27: 28.3 | D27: 10 | E27: 7.6 | L27: 8.40 | M27: 3000 | P27: 8000 | Q27: 15 | R27: 1.8 | S27: 15.8 | T27: 79.9 | U27: 6 | W27: Nein
A28: 6SM71K-3000 | B28: 37.8 | C28: 32 | D28: 10.5 | E28: 8 | L28: 9.50 | M28: 3000 | P28: 6000 | Q28: 20 | R28: 1.65 | S28: 19.6 | T28: 79.2 | U28: 6 | W28: Nein
A29: 6SM71S-3000 | B29: 54.4 | C29: 44 | D29: 16.5 | E29: 12.3 | L29: 13.40 | M29: 3000 | P29: 6000 | Q29: 31 | R29: 0.8 | S29: 12 | T29: 81.3 | U29: 6 | W29: Nein
A30: 6SM71M-3000 | B30: 67.4 | C30: 51 | D30: 22 | E30: 15.6 | L30: 16.30 | M30: 3000 | P30: 6000 | Q30: 42 | R30: 0.57 | S30: 9 | T30: 85.6 | U30: 6 | W30: Nein
A31: 6SM100K-3000 | B31: 87 | C31: 72 | D31: 25 | E31: 18.8 | L31: 19.90 | M31: 3000 | P31: 6000 | Q31: 74 | R31: 0.46 | S31: 10.5 | T31: 80.6 | U31: 6 | W31: Nein
A32: 6SM100S-3000 | B32: 135.4 | C32: 113 | D32: 36 | E32: 26.7 | L32: 24.60 | M32: 3000 | P32: 6000 | Q32: 108 | R32: 0.22 | S32: 7 | T32: 82.0 | U32: 6 | W32: Nein
A33: 6SM100M-3000 | B33: 174.6 | C33: 150 | D33: 46 | E33: 35 | L33: 27.10 | M33: 3000 | P33: 6000 | Q33: 141 | R33: 0.16 | S33: 5 | T33: 79.9 | U33: 6 | W33: Nein
A34: 6SM100L-3000 | B34: 216.4 | C34: 180 | D34: 57 | E34: 42 | L34: 28.00 | M34: 3000 | P34: 6000 | Q34: 175 | R34: 0.12 | S34: 4 | T34: 81.3 | U34: 6 | W34: Nein
A35: AKM11B | B35: 0.61 | C35: 4.6 | D35: 0.18 | E35: 1.16 | H35: 0.18 | I35: 4000 | J35: 0.17 | K35: 8000 | P35: 8000 | Q35: 0.017 | R35: 20.2 | S35: 12.5 | T35: 10.2 | U35: 6 | W35: Ja
A36: AKM11C | B36: 0.61 | C36: 5.8 | D36: 0.19 | E36: 1.45 | H36: 0.18 | I36: 6000 | P36: 8000 | Q36: 0.017 | R36: 13.1 | S36: 8.3 | T36: 8.3 | U36: 6 | W36: Ja
A37: AKM11E | B37: 0.61 | C37: 11.6 | D37: 0.19 | E37: 2.91 | F37: 0.18 | G37: 6000 | P37: 8000 | Q37: 0.017 | R37: 3.3 | S37: 2.04 | T37: 4.1 | U37: 6 | W37: Ja
A38: AKM12C | B38: 1.08 | C38: 6 | D38: 0.31 | E38: 1.5 | H38: 0.30 | I38: 4000 | J38: 0.28 | K38: 8000 | P38: 8000 | Q38: 0.031 | R38: 12.4 | S38: 9.1 | T38: 13.3 | U38: 6 | W38: Ja
A39: AKM12E | B39: 1.08 | C39: 10.9 | D39: 0.3 | E39: 2.72 | F39: 0.30 | G39: 3000 | H39: 0.27 | I39: 8000 | P39: 8000 | Q39: 0.031 | R39: 3.9 | S39: 2.7 | T39: 7.2 | U39: 6 | W39: Ja
A40: AKM13C | B40: 1.16 | C40: 5.9 | D40: 0.41 | E40: 1.48 | J40: 0.36 | K40: 8000 | P40: 8000 | Q40: 0.045 | R40: 13.5 | S40: 10.3 | T40: 17.9 | U40: 6 | W40: Ja
A41: AKM13D | B41: 1.44 | C41: 9.6 | D41: 0.4 | E41: 2.4 | F41: 0.40 | G41: 2000 | H41: 0.36 | I41: 7000 | P41: 8000 | Q41: 0.045 | R41: 5.21 | S41: 3.8 | T41: 10.9 | U41: 6 | W41: Ja
A42: AKM21C | B42: 1.47 | C42: 6.3 | D42: 0.45 | E42: 1.5 | H42: 0.45 | I42: 2500 | J42: 0.39 | K42: 8000 | P42: 8000 | Q42: 0.107 | R42: 13 | S42: 19 | T42: 19.5 | U42: 6 | W42: Ja
A43: AKM21E | B43: 1.49 | C43: 12.4 | D43: 0.48 | E43: 3 | F43: 0.48 | G43: 2000 | H43: 0.41 | I43: 7000 | P43: 8000 | Q43: 0.107 | R43: 3.42 | S43: 5.2 | T43: 10.2 | U43: 6 | W43: Ja
A44: AKM21G | B44: 1.51 | C44: 19.5 | D44: 0.5 | E44: 4.87 | F44: 0.46 | G44: 4000 | P44: 8000 | Q44: 0.107 | R44: 1.44 | S44: 2.18 | T44: 6.6 | U44: 6 | W44: Ja
A45: AKM22C | B45: 2.73 | C45: 5.6 | D45: 0.84 | E45: 1.39 | H45: 0.83 | I45: 1000 | J45: 0.78 | K45: 3500 | L45: 0.68 | M45: 8000 | N45: 0.68 | O45: 8000 | P45: 8000 | Q45: 0.161 | R45: 19.4 | S45: 35.5 | T45: 39.0 | U45: 6 | W45: Ja
A46: AKM22E | B46: 2.76 | C46: 11 | D46: 0.87 | E46: 2.73 | F46: 0.85 | G46: 1000 | H46: 0.81 | I46: 3500 | J46: 0.70 | K46: 8000 | P46: 8000 | Q46: 0.161 | R46: 5.09 | S46: 9.7 | T46: 22.4 | U46: 6 | W46: Ja
A47: AKM22G | B47: 2.79 | C47: 19.3 | D47: 0.88 | E47: 4.82 | F47: 0.84 | G47: 2500 | H47: 0.74 | I47: 7000 | P47: 8000 | Q47: 0.161 | R47: 1.69 | S47: 3.19 | T47: 11.7 | U47: 6 | W47: Ja
A48: AKM23C | B48: 3.77 | C48: 5.6 | D48: 1.13 | E48: 1.41 | H48: 1.11 | I48: 1000 | J48: 1.08 | K48: 2500 | L48: 0.99 | M48: 5500 | N48: 0.95 | O48: 7000 | P48: 8000 | Q48: 0.216 | R48: 20.3 | S48: 40.7 | T48: 51.8 | U48: 6 | W48: Ja
A49: AKM23D | B49: 3.84 | C49: 8.8 | D49: 1.16 | E49: 2.19 | H49: 1.12 | I49: 1500 | J49: 1.03 | K49: 5000 | L49: 0.92 | M49: 8000 | N49: 0.92 | O49: 8000 | P49: 8000 | Q49: 0.216 | R49: 8.36 | S49: 17.3 | T49: 33.8 | U49: 6 | W49: Ja
A50: AKM23E | B50: 3.88 | C50: 11.3 | D50: 1.16 | E50: 2.78 | H50: 1.10 | I50: 2500 | J50: 0.98 | K50: 6500 | P50: 8000 | Q50: 0.22 | R50: 5.44 | S50: 11.1 | T50: 27.0 | U50: 6
A51: AKM23F | B51: 3.88 | C51: 17.2 | D51: 1.18 | E51: 4.31 | F51: 1.15 | G51: 1500 | H51: 1.07 | I51: 4500 | J51: 0.94 | K51: 8000 | P51: 8000 | Q51: 0.216 | R51: 2.23 | S51: 4.68 | T51: 17.6 | U51: 6 | W51: Ja
A52: AKM24C | B52: 4.67 | C52: 5.7 | D52: 1.38 | E52: 1.42 | J52: 1.32 | K52: 2000 | L52: 1.25 | M52: 4500 | N52: 1.22 | O52: 5500 | P52: 8000 | Q52: 0.27 | R52: 20.4 | S52: 43.8 | T52: 62.4 | U52: 6 | W52: Ja
A53: AKM24D | B53: 4.76 | C53: 8.8 | D53: 1.41 | E53: 2.21 | H53: 1.36 | I53: 1500 | J53: 1.29 | K53: 4000 | L53: 1.11 | M53: 8000 | N53: 1.11 | O53: 8000 | P53: 8000 | Q53: 0.27 | R53: 8.4 | S53: 18.7 | T53: 40.8 | U53: 6 | W53: Ja
A54: AKM24E | B54: 4.76 | C54: 9.5 | D54: 1.4 | E54: 2.79 | H54: 1.34 | I54: 2000 | J54: 1.24 | K54: 5500 | P54: 8000 | Q54: 0.27 | R54: 5.44 | S54: 11.8 | T54: 32.4 | U54: 6
A55: AKM24F | B55: 4.82 | C55: 15.6 | D55: 1.42 | E55: 3.89 | F55: 1.39 | G55: 1000 | H55: 1.33 | I55: 3000 | J55: 1.12 | K55: 8000 | P55: 8000 | Q55: 0.27 | R55: 2.77 | S55: 6.16 | T55: 23.4 | U55: 6 | W55: Ja
A56: AKM31C | B56: 3.88 | C56: 5.5 | D56: 1.15 | E56: 1.37 | J56: 1.12 | K56: 2500 | L56: 1.00 | M56: 5000 | N56: 0.91 | O56: 6000 | P56: 8000 | Q56: 0.33 | R56: 21.4 | S56: 37.5 | T56: 54.5 | U56: 8 | W56: Ja
A57: AKM31E | B57: 4 | C57: 12 | D57: 1.2 | E57: 2.99 | F57: 1.19 | G57: 750 | H57: 1.17 | I57: 2500 | J57: 0.95 | K57: 6000 | P57: 8000 | Q57: 0.33 | R57: 4.58 | S57: 8.6 | T57: 26.1 | U57: 8 | W57: Ja
A58: AKM31H | B58: 4.06 | C58: 23.4 | D58: 1.23 | E58: 5.85 | F58: 1.20 | G58: 2000 | H58: 0.97 | I58: 6000 | P58: 8000 | Q58: 0.33 | R58: 1.25 | S58: 2.4 | T58: 13.7 | U58: 8 | W58: Ja
A59: AKM32C | B59: 6.92 | C59: 5.8 | D59: 2 | E59: 1.44 | J59: 1.95 | K59: 1500 | L59: 1.86 | M59: 3000 | N59: 1.83 | O59: 3500 | P59: 8000 | Q59: 0.59 | R59: 23 | S59: 46.5 | T59: 89.8 | U59: 8 | W59: Ja
A60: AKM32D | B60: 7.1 | C60: 8.9 | D60: 2.04 | E60: 2.23 | H60: 2.00 | I60: 1000 | J60: 1.93 | K60: 2500 | L60: 1.65 | M60: 5500 | N60: 1.58 | O60: 6000 | P60: 8000 | Q60: 0.59 | R60: 9.57 | S60: 20.1 | T60: 59.0 | U60: 8 | W60: Ja
A61: AKM32E | B61: 7.11 | C61: 11.3 | D61: 2.04 | E61: 2.82 | J61: 1.87 | K61: 3500 | L61: 1.41 | M61: 7000 | N61: 1.22 | O61: 8000 | P61: 8000 | Q61: 0.59 | R61: 6.3 | S61: 12.8 | T61: 47.1 | U61: 8
A62: AKM32H | B62: 7.26 | C62: 22 | D62: 2.1 | E62: 5.5 | F62: 2.06 | G62: 1200 | H62: 1.96 | I62: 3000 | J62: 1.45 | K62: 7000 | P62: 8000 | Q62: 0.59 | R62: 1.64 | S62: 3.55 | T62: 24.8 | U62: 8 | W62: Ja
A63: AKM33C | B63: 9.76 | C63: 5.9 | D63: 2.71 | E63: 1.47 | J63: 2.64 | K63: 1000 | L63: 2.54 | M63: 2000 | N63: 2.50 | O63: 2500 | P63: 8000 | Q63: 0.85 | R63: 25.4 | S63: 53.6 | T63: 120.0 | U63: 8 | W63: Ja
A64: AKM33E | B64: 9.96 | C64: 10.3 | D64: 2.79 | E64: 2.58 | J64: 2.62 | K64: 2000 | L64: 2.34 | M64: 4500 | N64: 2.27 | O64: 5000 | P64: 8000 | Q64: 0.85 | R64: 8.36 | S64: 18.5 | T64: 70.6 | U64: 8 | W64: Ja
A65: AKM33H | B65: 10.22 | C65: 22.5 | D65: 2.88 | E65: 5.62 | F65: 2.82 | G65: 800 | H65: 2.66 | I65: 2500 | J65: 2.27 | K65: 5500 | P65: 8000 | Q65: 0.85 | R65: 1.82 | S65: 4.1 | T65: 33.4 | U65: 8 | W65: Ja
A66: AKM41C | B66: 6.12 | C66: 5.8 | D66: 1.95 | E66: 1.46 | J66: 1.88 | K66: 1200 | L66: 1.77 | M66: 3000 | N66: 1.74 | O66: 3500 | P66: 6000 | Q66: 0.81 | R66: 21.7 | S66: 66.1 | T66: 86.3 | U66: 10 | W66: Ja
A67: AKM41E | B67: 6.28 | C67: 11.4 | D67: 2.02 | E67: 2.85 | H67: 1.94 | I67: 1200 | J67: 1.82 | K67: 3000 | L67: 1.58 | M67: 6000 | N67: 1.58 | O67: 6000 | P67: 6000 | Q67: 0.81 | R67: 5.7 | S67: 18.4 | T67: 45.6 | U67: 10 | W67: Ja
A68: AKM41H | B68: 6.36 | C68: 22.4 | D68: 2.06 | E68: 5.6 | F68: 1.99 | G68: 1000 | H68: 1.86 | I68: 3000 | J68: 1.62 | K68: 6000 | P68: 6000 | Q68: 0.81 | R68: 1.51 | S68: 5 | T68: 23.7 | U68: 10 | W68: Ja
A69: AKM42C | B69: 11.3 | C69: 5.6 | D69: 3.35 | E69: 1.4 | L69: 3.10 | M69: 1500 | N69: 3.02 | O69: 2000 | P69: 6000 | Q69: 1.45 | R69: 27.52 | S69: 97.4 | T69: 154.0 | U69: 10 | W69: Ja
A70: AKM42E | B70: 11.3 | C70: 11 | D70: 3.42 | E70: 2.74 | J70: 3.12 | K70: 1800 | L70: 2.81 | M70: 3500 | N70: 2.72 | O70: 4000 | P70: 6000 | Q70: 1.45 | R70: 7.22 | S70: 26.8 | T70: 80.9 | U70: 10 | W70: Ja
A71: AKM42G | B71: 11.5 | C71: 19.2 | D71: 3.53 | E71: 4.8 | J71: 2.90 | K71: 3500 | L71: 2.35 | M71: 6000 | N71: 2.35 | O71: 6000 | P71: 6000 | Q71: 1.45 | R71: 2.38 | S71: 9.2 | T71: 47.5 | U71: 10 | W71: Ja
A72: AKM42H | B72: 11.5 | C72: 24 | D72: 3.54 | E72: 6 | H72: 3.20 | I72: 2000 | J72: 2.72 | K72: 4500 | P72: 6000 | Q72: 1.5 | R72: 1.65 | S72: 6 | T72: 38.3 | U72: 10
A73: AKM42J | B73: 11.6 | C73: 33.6 | D73: 3.56 | E73: 8.4 | H73: 3.03 | I73: 3000 | J73: 2.38 | K73: 6000 | P73: 6000 | Q73: 1.45 | R73: 0.8 | S73: 3.1 | T73: 27.5 | U73: 10 | W73: Ja
A74: AKM43E | B74: 15.9 | C74: 11 | D74: 4.7 | E74: 2.76 | J74: 4.24 | K74: 1500 | L74: 3.92 | M74: 2500 | N74: 3.76 | O74: 3000 | P74: 6000 | Q74: 2.09 | R74: 8.04 | S74: 32.6 | T74: 111.0 | U74: 10 | W74: Ja
A75: AKM43G | B75: 16.1 | C75: 19.5 | D75: 4.8 | E75: 4.87 | J75: 4.00 | K75: 2500 | L75: 3.01 | M75: 5000 | N75: 2.57 | O75: 6000 | P75: 6000 | Q75: 2.09 | R75: 2.61 | S75: 10.8 | T75: 63.9 | U75: 10 | W75: Ja
A76: AKM43H | B76: 16.1 | C76: 22 | D76: 4.82 | E76: 5.4 | J76: 3.86 | K76: 3000 | L76: 2.58 | M76: 6000 | P76: 6000 | Q76: 2.1 | R76: 2.1 | S76: 6.8 | T76: 57.4 | U76: 10
A77: AKM43K | B77: 16.4 | C77: 38.4 | D77: 4.9 | E77: 9.6 | H77: 4.08 | I77: 2500 | J77: 2.62 | K77: 6000 | P77: 6000 | Q77: 2.09 | R77: 0.7 | S77: 2.9 | T77: 33.2 | U77: 10 | W77: Ja
A78: AKM43L | B78: 16.4 | C78: 47.3 | D78: 4.73 | E78: 11.2 | H78: 3.78 | I78: 3000 | J78: 2.53 | K78: 6000 | P78: 6000 | Q78: 2.1 | R78: 0.57 | S78: 2 | T78: 27.5 | U78: 10
A79: AKM44E | B79: 19.9 | C79: 11.4 | D79: 5.76 | E79: 2.85 | J79: 5.20 | K79: 1200 | L79: 4.80 | M79: 2000 | N79: 4.56 | O79: 2500 | P79: 6000 | Q79: 2.73 | R79: 8.08 | S79: 33.9 | T79: 132.0 | U79: 10 | W79: Ja
A80: AKM44G | B80: 20.3 | C80: 20 | D80: 5.88 | E80: 5 | J80: 4.90 | K80: 2000 | L80: 3.76 | M80: 4000 | N80: 3.19 | O80: 5000 | P80: 6000 | Q80: 2.73 | R80: 2.65 | S80: 11.5 | T80: 76.6 | U80: 10 | W80: Ja
A81: AKM44H | B81: 20.3 | C81: 23.5 | D81: 5.89 | E81: 5.6 | J81: 4.66 | K81: 2500 | L81: 3.19 | M81: 5000 | N81: 2.70 | O81: 6000 | P81: 6000 | Q81: 2.7 | R81: 2.23 | S81: 9.1 | T81: 68.0 | U81: 10
A82: AKM44J | B82: 20.4 | C82: 35.2 | D82: 6 | E82: 8.8 | H82: 5.00 | I82: 2000 | J82: 3.84 | K82: 4000 | L82: 2.75 | M82: 6000 | N82: 2.75 | O82: 6000 | P82: 6000 | Q82: 2.73 | R82: 0.88 | S82: 3.8 | T82: 44.2 | U82: 10 | W82: Ja
A83: AKM44K | B83: 20.4 | C83: 42.7 | D83: 5.88 | E83: 10.1 | H83: 4.90 | I83: 2000 | J83: 3.18 | K83: 5000 | P83: 6000 | Q83: 2.7 | R83: 0.68 | S83: 2.8 | T83: 37.8 | U83: 10
A84: AKM51E | B84: 11.6 | C84: 8.2 | D84: 4.7 | E84: 2.75 | J84: 4.41 | K84: 1200 | L84: 3.98 | M84: 2500 | N84: 3.80 | O84: 3000 | P84: 6000 | Q84: 3.42 | R84: 8.47 | S84: 36.6 | T84: 110.0 | U84: 10 | W84: Ja
A85: AKM51G | B85: 11.7 | C85: 14.5 | D85: 4.75 | E85: 4.84 | J85: 4.03 | K85: 2500 | L85: 2.62 | M85: 5000 | N85: 1.94 | O85: 6000 | P85: 6000 | Q85: 3.42 | R85: 2.75 | S85: 12.1 | T85: 63.6 | U85: 10 | W85: Ja
A86: AKM51H | B86: 11.7 | C86: 18 | D86: 4.79 | E86: 6 | J86: 3.87 | K86: 3000 | L86: 1.95 | M86: 6000 | N86: 1.95 | O86: 6000 | P86: 6000 | Q86: 3.4 | R86: 1.97 | S86: 7.9 | T86: 51.3 | U86: 10
A87: AKM51I | B87: 11.8 | C87: 22.5 | D87: 4.83 | E87: 7.5 | H87: 4.35 | I87: 1750 | J87: 3.35 | K87: 4000 | L87: 1.97 | M87: 6000 | N87: 1.97 | O87: 6000 | P87: 6000 | Q87: 3.4 | R87: 1.3 | S87: 5.15 | T87: 41.4 | U87: 10
A88: AKM51K | B88: 11.9 | C88: 28.2 | D88: 4.9 | E88: 9.4 | H88: 4.15 | I88: 2500 | J88: 2.35 | K88: 5500 | P88: 6000 | Q88: 3.42 | R88: 0.75 | S88: 3.4 | T88: 33.5 | U88: 10 | W88: Ja
A89: AKM51L | B89: 11.9 | C89: 35 | D89: 4.89 | E89: 11.9 | H89: 3.95 | I89: 3000 | J89: 2.00 | K89: 6000 | P89: 6000 | Q89: 3.4 | R89: 0.56 | S89: 2.1 | T89: 26.6 | U89: 10
A90: AKM52E | B90: 21.3 | C90: 9 | D90: 8.34 | E90: 2.99 | L90: 7.61 | M90: 1500 | N90: 7.28 | O90: 2000 | P90: 6000 | Q90: 6.22 | R90: 8.59 | S90: 44.7 | T90: 179.0 | U90: 10 | W90: Ja
A91: AKM52G | B91: 21.5 | C91: 14.2 | D91: 8.43 | E91: 4.72 | J91: 7.69 | K91: 1500 | L91: 7.06 | M91: 2500 | N91: 6.66 | O91: 3000 | P91: 6000 | Q91: 6.22 | R91: 3.47 | S91: 18.5 | T91: 115.0 | U91: 10 | W91: Ja
A92: AKM52H | B92: 21.6 | C92: 17.7 | D92: 8.48 | E92: 5.9 | J92: 7.53 | K92: 1800 | L92: 6.26 | M92: 3500 | N92: 5.77 | O92: 4000 | P92: 6000 | Q92: 6.2 | R92: 2.35 | S92: 11.9 | T92: 92.7 | U92: 10
A93: AKM52I | B93: 21.6 | C93: 22.2 | D93: 8.53 | E93: 7.4 | J93: 5.79 | K93: 2250 | L93: 5.16 | M93: 4500 | N93: 4.51 | O93: 5000 | P93: 6000 | Q93: 6.2 | R93: 1.57 | S93: 7.8 | T93: 74.9 | U93: 10
A94: AKM52K | B94: 21.9 | C94: 27.9 | D94: 8.6 | E94: 9.3 | J94: 6.80 | K94: 3000 | L94: 3.90 | M94: 5500 | N94: 3.25 | O94: 6000 | P94: 6000 | Q94: 6.22 | R94: 0.93 | S94: 5 | T94: 60.1 | U94: 10 | W94: Ja
A95: AKM52L | B95: 21.9 | C95: 35.7 | D95: 8.67 | E95: 11.6 | J95: 6.40 | K95: 3500 | L95: 3.27 | M95: 6000 | N95: 3.27 | O95: 6000 | P95: 6000 | Q95: 6.2 | R95: 0.61 | S95: 3.24 | T95: 48.3 | U95: 10
A96: AKM52M | B96: 21.9 | C96: 39.4 | D96: 8.6 | E96: 13.1 | J96: 5.20 | K96: 4500 | P96: 6000 | Q96: 6.22 | R96: 0.48 | S96: 2.5 | T96: 42.4 | U96: 10 | W96: Ja
A97: AKM53G | B97: 29.7 | C97: 14.3 | D97: 11.4 | E97: 4.77 | J97: 10.70 | K97: 1000 | L97: 9.85 | M97: 2000 | N97: 9.50 | O97: 2400 | P97: 6000 | Q97: 9.12 | R97: 3.75 | S97: 21.3 | T97: 154.0 | U97: 10 | W97: Ja
A98: AKM53H | B98: 30 | C98: 19.8 | D98: 11.51 | E98: 6.6 | L98: 8.83 | M98: 3000 | N98: 8.23 | O98: 3500 | P98: 6000 | Q98: 9.1 | R98: 2.1 | S98: 11.4 | T98: 112.4 | U98: 10
A99: AKM53I | B99: 30 | C99: 22.2 | D99: 11.58 | E99: 7.4 | J99: 10.28 | K99: 1750 | L99: 8.58 | M99: 3250 | N99: 7.63 | O99: 4000 | P99: 6000 | Q99: 9.1 | R99: 1.66 | S99: 9.11 | T99: 100.6 | U99: 10
A100: AKM53K | B100: 30.3 | C100: 28.2 | D100: 11.6 | E100: 9.4 | J100: 10.10 | K100: 2000 | L100: 7.65 | M100: 4000 | N100: 6.85 | O100: 4500 | P100: 6000 | Q100: 9.12 | R100: 1 | S100: 5.7 | T100: 79.8 | U100: 10 | W100: Ja
A101: AKM53L | B101: 30.3 | C101: 37.6 | D101: 11.6 | E101: 11.8 | J101: 8.90 | K101: 3000 | L101: 5.06 | M101: 5500 | N101: 4.05 | O101: 6000 | P101: 6000 | Q101: 9.1 | R101: 0.69 | S101: 3.64 | T101: 63.6 | U101: 10
A102: AKM53M | B102: 29.7 | C102: 40.2 | D102: 11.4 | E102: 13.4 | J102: 8.72 | K102: 3000 | P102: 6000 | Q102: 9.12 | R102: 0.51 | S102: 2.7 | T102: 54.7 | U102: 10 | W102: Ja
A103: AKM53P | B103: 29.8 | C103: 57.4 | D103: 11.4 | E103: 19.1 | J103: 5.88 | K103: 5000 | P103: 6000 | Q103: 9.12 | R103: 0.27 | S103: 1.3 | T103: 38.4 | U103: 10 | W103: Ja
A104: AKM53Q | B104: 29.8 | C104: 63.3 | D104: 11.57 | E104: 21.1 | H104: 9.58 | I104: 2500 | J104: 4.99 | K104: 5500 | P104: 6000 | Q104: 9.1 | R104: 0.25 | S104: 1.13 | T104: 35.5 | U104: 10
A105: AKM54G | B105: 38 | C105: 15 | D105: 14.3 | E105: 4.98 | L105: 12.90 | M105: 1500 | N105: 12.30 | O105: 2000 | P105: 6000 | Q105: 11.9 | R105: 3.8 | S105: 22.9 | T105: 185.0 | U105: 10 | W105: Ja
A106: AKM54H | B106: 37.5 | C106: 16.5 | D106: 14.19 | E106: 5.5 | J106: 13.35 | K106: 1000 | L106: 12.60 | M106: 1800 | N106: 12.22 | O106: 2000 | P106: 6000 | Q106: 12 | R106: 3.2 | S106: 18.3 | T106: 165.6 | U106: 10
A107: AKM54I | B107: 38 | C107: 23.1 | D107: 14.42 | E107: 7.7 | J107: 13.07 | K107: 1500 | L107: 11.71 | M107: 2500 | N107: 10.81 | O107: 3000 | P107: 6000 | Q107: 12 | R107: 1.66 | S107: 9.84 | T107: 120.3 | U107: 10
A108: AKM54K | B108: 38.4 | C108: 29.2 | D108: 14.4 | E108: 9.7 | J108: 12.70 | K108: 1800 | L108: 10.10 | M108: 3500 | N108: 9.25 | O108: 4000 | P108: 8000 | Q108: 11.9 | R108: 1.02 | S108: 6.2 | T108: 96.6 | U108: 10 | W108: Ja
A109: AKM54L | B109: 37.5 | C109: 37.5 | D109: 14.1 | E109: 12.5 | J109: 11.50 | K109: 2500 | L109: 8.13 | M109: 4500 | P109: 6000 | Q109: 11.9 | R109: 0.63 | S109: 3.5 | T109: 72.9 | U109: 10 | W109: Ja
A110: AKM54N | B110: 37.6 | C110: 53.4 | D110: 14.1 | E110: 17.8 | J110: 9.85 | K110: 3500 | P110: 8000 | Q110: 11.9 | R110: 0.33 | S110: 1.8 | T110: 51.3 | U110: 10 | W110: Ja
A111: AKM54P | B111: 38 | C111: 58.8 | D111: 14.36 | E111: 19.6 | J111: 9.23 | K111: 4000 | P111: 6000 | Q111: 12 | R111: 0.3 | S111: 1.5 | T111: 47.3 | U111: 10
A112: AKM62G | B112: 29.7 | C112: 14.7 | D112: 11.9 | E112: 4.85 | L112: 10.70 | M112: 1800 | N112: 10.20 | O112: 2000 | P112: 6000 | Q112: 16.9 | R112: 3.94 | S112: 31.7 | T112: 159.0 | U112: 10 | W112: Ja
A113: AKM62H | B113: 29.7 | C113: 16.4 | D113: 11.9 | E113: 5.4 | J113: 11.20 | K113: 1000 | L113: 10.20 | M113: 2000 | N113: 9.90 | O113: 2400 | P113: 6000 | Q113: 17 | R113: 3.3 | S113: 25.4 | T113: 142.1 | U113: 10
A114: AKM62I | B114: 29.9 | C114: 22.8 | D114: 12.1 | E114: 7.6 | J114: 10.80 | K114: 1500 | L114: 9.40 | M114: 3000 | N114: 8.90 | O114: 3500 | P114: 6000 | Q114: 17 | R114: 1.75 | S114: 13.4 | T114: 103.2 | U114: 10
A115: AKM62K | B115: 30.2 | C115: 28.8 | D115: 12.2 | E115: 9.6 | J115: 10.40 | K115: 2000 | L115: 9.01 | M115: 3500 | N115: 8.02 | O115: 4500 | P115: 6000 | Q115: 16.9 | R115: 1.05 | S115: 8.5 | T115: 82.1 | U115: 10 | W115: Ja
A116: AKM62L | B116: 30.2 | C116: 36 | D116: 12.2 | E116: 12 | J116: 10.00 | K116: 2500 | L116: 7.42 | M116: 5000 | N116: 5.74 | O116: 6000 | P116: 6000 | Q116: 17 | R116: 0.74 | S116: 5.4 | T116: 65.5 | U116: 10
A117: AKM62M | B117: 30.2 | C117: 40.3 | D117: 12.2 | E117: 13.4 | J117: 9.50 | K117: 3000 | L117: 5.74 | M117: 6000 | N117: 5.74 | O117: 6000 | P117: 6000 | Q117: 16.9 | R117: 0.55 | S117: 4.4 | T117: 58.8 | U117: 10 | W117: Ja
A118: AKM62P | B118: 30.3 | C118: 56.4 | D118: 12.3 | E118: 18.8 | J118: 8.10 | K118: 4500 | P118: 6000 | Q118: 16.9 | R118: 0.3 | S118: 2.2 | T118: 42.2 | U118: 10 | W118: Ja
A119: AKM62Q | B119: 30.3 | C119: 67 | D119: 12 | E119: 21.8 | J119: 6.50 | K119: 5500 | P119: 6000 | Q119: 17 | R119: 0.27 | S119: 1.6 | T119: 35.5 | U119: 10
A120: AKM63G | B120: 42.1 | C120: 13.5 | D120: 16.5 | E120: 4.48 | L120: 15.30 | M120: 1200 | N120: 14.60 | O120: 1500 | P120: 6000 | Q120: 24.2 | R120: 5.16 | S120: 43.5 | T120: 238.0 | U120: 10 | W120: Ja
A121: AKM63H | B121: 42.2 | C121: 17.5 | D121: 16.6 | E121: 5.6 | L121: 14.60 | M121: 1500 | N121: 14.20 | O121: 1800 | P121: 6000 | Q121: 24 | R121: 3.43 | S121: 28.1 | T121: 191.5 | U121: 10
A122: AKM63I | B122: 42.2 | C122: 24.2 | D122: 16.8 | E122: 7.9 | J122: 15.30 | K122: 1200 | L122: 14.10 | M122: 2000 | N122: 13.50 | O122: 2500 | P122: 6000 | Q122: 24 | R122: 1.5 | S122: 14.6 | T122: 138.2 | U122: 10
A123: AKM63K | B123: 42.6 | C123: 29.7 | D123: 16.8 | E123: 9.9 | J123: 14.90 | K123: 1500 | L123: 12.90 | M123: 3000 | N123: 12.00 | O123: 3500 | P123: 6000 | Q123: 24.2 | R123: 1.09 | S123: 9.3 | T123: 110.0 | U123: 10 | W123: Ja
A124: AKM63L | B124: 42.6 | C124: 34.3 | D124: 16.8 | E124: 11.1 | J124: 14.40 | K124: 1800 | L124: 12.90 | M124: 3000 | N124: 12.00 | O124: 3500 | P124: 6000 | Q124: 24 | R124: 0.94 | S124: 7.4 | T124: 98.2 | U124: 10
A125: AKM63M | B125: 43 | C125: 41.4 | D125: 17 | E125: 13.8 | J125: 14.30 | K125: 2000 | L125: 11.30 | M125: 4000 | N125: 10.50 | O125: 4500 | P125: 6000 | Q125: 24.2 | R125: 0.58 | S125: 4.9 | T125: 79.9 | U125: 10 | W125: Ja
A126: AKM63N | B126: 43 | C126: 52.2 | D126: 17 | E126: 17.4 | J126: 13.00 | K126: 3000 | L126: 9.60 | M126: 5000 | N126: 7.00 | O126: 6000 | P126: 6000 | Q126: 24.2 | R126: 0.38 | S126: 3.1 | T126: 63.3 | U126: 10 | W126: Ja
A127: AKM63Q | B127: 43 | C127: 70.3 | D127: 16.7 | E127: 22.4 | J127: 11.90 | K127: 3500 | P127: 6000 | Q127: 24 | R127: 0.23 | S127: 1.8 | T127: 48.3 | U127: 10
A128: AKM64K | B128: 53.5 | C128: 27.6 | D128: 20.8 | E128: 9.2 | J128: 19.20 | K128: 1200 | L128: 17.20 | M128: 2000 | N128: 16.30 | O128: 2500 | P128: 6000 | Q128: 31.6 | R128: 1.34 | S128: 11.8 | T128: 147.0 | U128: 10 | W128: Ja
A129: AKM64L | B129: 54.1 | C129: 38.4 | D129: 21 | E129: 12.8 | J129: 18.40 | K129: 1500 | L129: 15.60 | M129: 3000 | N129: 14.40 | O129: 3500 | P129: 6000 | Q129: 31.6 | R129: 0.71 | S129: 6.2 | T129: 107.0 | U129: 10 | W129: Ja
A130: AKM64P | B130: 52.9 | C130: 55.9 | D130: 20.4 | E130: 18.6 | J130: 16.00 | K130: 2500 | L130: 11.90 | M130: 4500 | N130: 9.02 | O130: 5500 | P130: 6000 | Q130: 31.6 | R130: 0.36 | S130: 2.8 | T130: 71.0 | U130: 10 | W130: Ja
A131: AKM64Q | B131: 53.2 | C131: 62.1 | D131: 20 | E131: 20.7 | J131: 15.30 | K131: 3000 | L131: 10.70 | M131: 5000 | N131: 7.40 | O131: 6000 | P131: 6000 | Q131: 32 | R131: 0.32 | S131: 2.3 | T131: 64.4 | U131: 10
A132: AKM65K | B132: 64.5 | C132: 29.4 | D132: 24.8 | E132: 9.8 | J132: 22.80 | K132: 1000 | L132: 20.20 | M132: 2000 | N132: 19.70 | O132: 2200 | P132: 6000 | Q132: 40 | R132: 1.27 | S132: 11.4 | T132: 164.0 | U132: 10 | W132: Ja
A133: AKM65M | B133: 65.2 | C133: 40.8 | D133: 25 | E133: 13.6 | J133: 21.90 | K133: 1500 | L133: 19.20 | M133: 2500 | N133: 18.10 | O133: 3000 | P133: 6000 | Q133: 40 | R133: 0.68 | S133: 6.1 | T133: 119.0 | U133: 10 | W133: Ja
A134: AKM65N | B134: 63.7 | C134: 53.4 | D134: 24.3 | E134: 17.8 | J134: 19.80 | K134: 2000 | L134: 16.00 | M134: 3500 | N134: 14.70 | O134: 4000 | P134: 6000 | Q134: 40 | R134: 0.42 | S134: 3.4 | T134: 88.8 | U134: 10 | W134: Ja
A135: AKM65L | B135: 63.7 | C135: 38 | D135: 25 | E135: 12.2 | J135: 22.40 | K135: 1300 | L135: 19.20 | M135: 2500 | N135: 18.30 | O135: 2800 | P135: 6000 | Q135: 40 | R135: 0.9 | S135: 7.6 | T135: 133.2 | U135: 10
A136: AKM65P | B136: 64.1 | C136: 59.3 | D136: 24.5 | E136: 19.8 | J136: 19.10 | K136: 2400 | L136: 14.90 | M136: 4000 | N136: 11.60 | O136: 5000 | P136: 6000 | Q136: 40 | R136: 0.37 | S136: 2.8 | T136: 80.5 | U136: 10
A137: AKM72K | B137: 79.4 | C137: 27.9 | D137: 29.7 | E137: 9.3 | L137: 25.10 | M137: 1500 | N137: 24.00 | O137: 1800 | P137: 6000 | Q137: 64.5 | R137: 1.22 | S137: 20.7 | T137: 208.0 | U137: 10 | W137: Ja
A138: AKM72L | B138: 79.4 | C138: 37.1 | D138: 30 | E138: 11.5 | L138: 24.30 | M138: 1800 | N138: 23.60 | O138: 2000 | P138: 6000 | Q138: 65 | R138: 0.92 | S138: 13.6 | T138: 168.5 | U138: 10
A139: AKM72M | B139: 79.8 | C139: 39 | D139: 30 | E139: 13 | L139: 23.60 | M139: 2000 | N139: 22.10 | O139: 2500 | P139: 6000 | Q139: 64.5 | R139: 0.64 | S139: 10.8 | T139: 150.0 | U139: 10 | W139: Ja
A140: AKM72P | B140: 78.5 | C140: 56.1 | D140: 29.4 | E140: 18.7 | J140: 23.80 | K140: 1800 | L140: 20.10 | M140: 3000 | N140: 18.20 | O140: 3500 | P140: 6000 | Q140: 64.5 | R140: 0.33 | S140: 5 | T140: 102.0 | U140: 10 | W140: Ja
A141: AKM72Q | B141: 78.4 | C141: 70.5 | D141: 29.5 | E141: 23.5 | J141: 23.20 | K141: 2000 | L141: 16.30 | M141: 4000 | N141: 14.10 | O141: 4500 | P141: 6000 | Q141: 65 | R141: 0.26 | S141: 3.2 | T141: 81.2 | U141: 10
A142: AKM73L | B142: 112 | C142: 39.4 | D142: 42 | E142: 12.1 | L142: 34.40 | M142: 1400 | N142: 33.80 | O142: 1500 | P142: 6000 | Q142: 92 | R142: 0.95 | S142: 15.7 | T142: 224.7 | U142: 10
A143: AKM73M | B143: 112 | C143: 40.8 | D143: 42 | E143: 13.6 | L143: 33.80 | M143: 1500 | N143: 32.10 | O143: 1800 | P143: 6000 | Q143: 92.1 | R143: 0.68 | S143: 12.4 | T143: 200.0 | U143: 10 | W143: Ja
A144: AKM73P | B144: 111 | C144: 58.6 | D144: 41.6 | E144: 19.5 | J144: 34.70 | K144: 1300 | L144: 28.50 | M144: 2400 | N144: 26.30 | O144: 2800 | P144: 6000 | Q144: 92.1 | R144: 0.35 | S144: 5.9 | T144: 137.0 | U144: 10 | W144: Ja
A145: AKM73Q | B145: 111 | C145: 73.5 | D145: 41.5 | E145: 24.5 | J145: 33.40 | K145: 1500 | L145: 25.20 | M145: 3000 | N145: 22.00 | O145: 3500 | P145: 6000 | Q145: 92 | R145: 0.27 | S145: 3.7 | T145: 109.2 | U145: 10
A146: AKM74L | B146: 143 | C146: 38.7 | D146: 53 | E146: 12.9 | L146: 45.50 | M146: 1200 | N146: 41.50 | O146: 1400 | P146: 6000 | Q146: 120 | R146: 0.85 | S146: 16.4 | T146: 266.0 | U146: 10 | W146: Ja
A147: AKM74P | B147: 142 | C147: 55.5 | D147: 52.5 | E147: 18.5 | L147: 37.60 | M147: 1800 | N147: 35.90 | O147: 2000 | P147: 6000 | Q147: 120 | R147: 0.43 | S147: 7.7 | T147: 183.0 | U147: 10 | W147: Ja
A148: AKM74Q | B148: 141 | C148: 78.3 | D148: 52.2 | E148: 26.1 | J148: 41.90 | K148: 1300 | L148: 31.50 | M148: 2500 | N148: 27.30 | O148: 3000 | P148: 6000 | Q148: 120 | R148: 0.26 | S148: 3.8 | T148: 129.0 | U148: 10
A149: AKM82T | B149: 210 | C149: 144 | D149: 75 | E149: 48 | L149: 47.50 | M149: 2500 | N149: 38.00 | O149: 3000 | P149: 4000 | Q149: 172 | R149: 0.092 | S149: 2.73 | T149: 108.4 | U149: 10
A150: AKM83T | B150: 456 | C150: 186 | D150: 130 | E150: 62 | L150: 70.00 | M150: 2200 | N150: 60.00 | O150: 2500 | P150: 4000 | Q150: 334 | R150: 0.061 | S150: 2.36 | T150: 140.1 | U150: 10
A151: AKM84T | B151: 668 | C151: 201 | D151: 180 | E151: 67 | L151: 105.00 | M151: 2000 | N151: 93.00 | O151: 2000 | P151: 4000 | Q151: 495 | R151: 0.058 | S151: 2.5 | T151: 177.4 | U151: 10
A152: DBK4N00100 | B152: 4 | C152: 5 | D152: 1 | E152: 1.1 | L152: 0.90 | M152: 3000 | N152: 0.88 | O152: 3600 | P152: 9000 | Q152: 0.79 | R152: 38 | S152: 70 | T152: 56.0 | U152: 6 | W152: Nein
A153: DBK4H00100 | B153: 4 | C153: 8.7 | D153: 1 | E153: 1.9 | J153: 0.90 | K153: 3000 | P153: 9000 | Q153: 0.79 | R153: 13 | S153: 24 | T153: 32.0 | U153: 6 | W153: Nein
A154: DBK4N00160 | B154: 6.3 | C154: 4.9 | D154: 1.6 | E154: 1.1 | L154: 1.40 | M154: 3000 | N154: 1.35 | O154: 3600 | P154: 9000 | Q154: 1.28 | R154: 25 | S154: 68 | T154: 90.0 | U154: 6 | W154: Nein
A155: DBK4H00160 | B155: 5.5 | C155: 7.1 | D155: 1.6 | E155: 1.9 | J155: 1.40 | K155: 3000 | P155: 9000 | Q155: 1.28 | R155: 7.6 | S155: 18 | T155: 51.0 | U155: 6 | W155: Nein
A156: DBK5N00210 | B156: 8.5 | C156: 7 | D156: 2.1 | E156: 1.5 | L156: 1.90 | M156: 3000 | N156: 1.80 | O156: 3600 | P156: 9000 | Q156: 4.13 | R156: 22 | S156: 60 | T156: 83.0 | U156: 6 | W156: Nein
A157: DBK5H00210 | B157: 7 | C157: 14.6 | D157: 2.1 | E157: 4 | J157: 1.90 | K157: 3000 | P157: 9000 | Q157: 4.13 | R157: 3.1 | S157: 10 | T157: 32.0 | U157: 6 | W157: Nein
A158: DBK5N00430 | B158: 16.9 | C158: 13 | D158: 4.3 | E158: 2.9 | L158: 3.90 | M158: 3000 | N158: 3.80 | O158: 3600 | P158: 9000 | Q158: 5.78 | R158: 7.1 | S158: 32 | T158: 90.0 | U158: 6 | W158: Nein
A159: DBK5H00430 | B159: 16.9 | C159: 22.5 | D159: 4.3 | E159: 5 | J159: 3.90 | K159: 3000 | P159: 9000 | Q159: 5.78 | R159: 2.2 | S159: 10 | T159: 53.0 | U159: 6 | W159: Nein
A160: DBK6N00350 | B160: 14.1 | C160: 13 | D160: 3.5 | E160: 2.8 | L160: 3.00 | M160: 3000 | N160: 2.90 | O160: 3600 | P160: 9000 | Q160: 8 | R160: 12 | S160: 56 | T160: 77.0 | U160: 6 | W160: Nein
A161: DBK6N00700 | B161: 28 | C161: 23 | D161: 7 | E161: 5 | L161: 6.00 | M161: 3000 | N161: 5.70 | O161: 3600 | P161: 9000 | Q161: 11.35 | R161: 4.4 | S161: 34 | T161: 84.0 | U161: 6 | W161: Nein
A162: DBK7N00650 | B162: 26.3 | C162: 21 | D162: 6.5 | E162: 4.5 | L162: 5.00 | M162: 3000 | N162: 4.70 | O162: 3600 | P162: 9000 | Q162: 32.36 | R162: 4.15 | S162: 22 | T162: 87.0 | U162: 6 | W162: Nein
A163: DBK7N01200 | B163: 48 | C163: 34.5 | D163: 12 | E163: 7.5 | L163: 10.00 | M163: 3000 | N163: 9.60 | O163: 3600 | P163: 9000 | Q163: 53.11 | R163: 1.65 | S163: 11.5 | T163: 98.0 | U163: 6 | W163: Nein
A164: DBK7N01950 | B164: 78.8 | C164: 55 | D164: 19.5 | E164: 11.8 | L164: 15.00 | M164: 3000 | N164: 14.00 | O164: 3600 | P164: 9000 | Q164: 69.16 | R164: 0.9 | S164: 7 | T164: 100.0 | U164: 6 | W164: Nein
A165: DBL1X00010 | B165: 0.4 | C165: 2.8 | D165: 0.1 | E165: 0.6 | J165: 0.09 | K165: 6000 | P165: 12000 | Q165: 0.06 | R165: 38.2 | S165: 6.5 | T165: 10.0 | U165: 6 | W165: Nein
A166: DBL1X00020 | B166: 0.8 | C166: 4.3 | D166: 0.2 | E166: 0.93 | J166: 0.18 | K166: 6000 | P166: 12000 | Q166: 0.12 | R166: 22 | S166: 4.7 | T166: 13.0 | U166: 6 | W166: Nein
A167: DBL2H00040 | B167: 1.6 | C167: 4.3 | D167: 0.4 | E167: 0.93 | J167: 0.36 | K167: 4500 | L167: 0.34 | M167: 6000 | P167: 12000 | Q167: 0.08 | R167: 26.5 | S167: 20 | T167: 26.0 | U167: 6 | W167: Nein
A168: DBL2H00060 | B168: 2.4 | C168: 6.8 | D168: 0.6 | E168: 1.5 | J168: 0.55 | K168: 4500 | L168: 0.52 | M168: 6000 | P168: 12000 | Q168: 0.11 | R168: 14.8 | S168: 13.2 | T168: 25.0 | U168: 6 | W168: Nein
A169: DBL2M00080 | B169: 3.2 | C169: 3.8 | D169: 0.8 | E169: 0.83 | L169: 0.72 | M169: 4500 | P169: 12000 | Q169: 0.13 | R169: 47.7 | S169: 43 | T169: 58.0 | U169: 6 | W169: Nein
A170: DBL2H00080 | B170: 3.2 | C170: 6.8 | D170: 0.8 | E170: 1.49 | J170: 0.72 | K170: 4500 | L170: 0.69 | M170: 6000 | P170: 12000 | Q170: 0.13 | R170: 14.7 | S170: 13 | T170: 33.0 | U170: 6 | W170: Nein
A171: DBL3N00065 | B171: 2.5 | C171: 3 | D171: 0.65 | E171: 0.67 | L171: 0.60 | M171: 3000 | N171: 0.58 | O171: 3600 | P171: 9000 | Q171: 0.5 | R171: 79 | S171: 82.8 | T171: 59.0 | U171: 6 | W171: Nein
A172: DBL3H00065 | B172: 2.6 | C172: 5 | D172: 0.65 | E172: 1.08 | J172: 0.60 | K172: 3000 | L172: 0.48 | M172: 6000 | P172: 9000 | Q172: 0.5 | R172: 30.3 | S172: 31 | T172: 36.5 | U172: 6 | W172: Nein
A173: DBL3N00130 | B173: 5.1 | C173: 4.5 | D173: 1.3 | E173: 1 | L173: 1.20 | M173: 3000 | N173: 1.15 | O173: 3600 | P173: 9000 | Q173: 0.8 | R173: 35.5 | S173: 61 | T173: 77.5 | U173: 6 | W173: Nein
A174: DBL3H00130 | B174: 4.9 | C174: 7.5 | D174: 1.3 | E174: 1.75 | J174: 1.20 | K174: 3000 | L174: 1.10 | M174: 6000 | P174: 9000 | Q174: 0.8 | R174: 13 | S174: 22 | T174: 45.0 | U174: 6 | W174: Nein
A175: DBL3M00190 | B175: 7.6 | C175: 6.9 | D175: 1.9 | E175: 1.5 | L175: 1.60 | M175: 3000 | N175: 1.54 | O175: 3600 | P175: 9000 | Q175: 1 | R175: 21.3 | S175: 40 | T175: 77.0 | U175: 6 | W175: Nein
A176: DBL3H00250 | B176: 10.1 | C176: 13.9 | D176: 2.5 | E176: 3 | J176: 2.20 | K176: 3000 | L176: 1.80 | M176: 6000 | P176: 9000 | Q176: 1.4 | R176: 5.1 | S176: 11 | T176: 50.0 | U176: 6 | W176: Nein
A177: DBL3N00300 | B177: 11.9 | C177: 9.5 | D177: 3 | E177: 2.1 | L177: 2.60 | M177: 3000 | N177: 2.50 | O177: 3600 | P177: 9000 | Q177: 1.7 | R177: 11.5 | S177: 25 | T177: 88.0 | U177: 6 | W177: Nein
A178: DBL4N00260 | B178: 10.3 | C178: 8.6 | D178: 2.6 | E178: 1.9 | L178: 2.30 | M178: 3000 | N178: 2.20 | O178: 3600 | P178: 9000 | Q178: 2.1 | R178: 9.5 | S178: 40 | T178: 82.0 | U178: 6 | W178: Nein
A179: DBL4H00260 | B179: 10 | C179: 13 | D179: 2.6 | E179: 3 | J179: 2.30 | K179: 3000 | P179: 9000 | Q179: 2.1 | R179: 3.8 | S179: 15 | T179: 52.0 | U179: 6 | W179: Nein
A180: DBL4N00530 | B180: 21.5 | C180: 15 | D180: 5.3 | E180: 3.2 | L180: 4.60 | M180: 3000 | N180: 4.40 | O180: 3600 | P180: 9000 | Q180: 2.8 | R180: 6.14 | S180: 30 | T180: 100.0 | U180: 6 | W180: Nein
A181: DBL4H00530 | B181: 21.3 | C181: 30 | D181: 5.3 | E181: 6.5 | J181: 4.60 | K181: 3000 | P181: 9000 | Q181: 2.8 | R181: 1.65 | S181: 9.3 | T181: 49.0 | U181: 6 | W181: Nein
A182: DBL4N00750 | B182: 30.2 | C182: 19 | D182: 7.5 | E182: 4.1 | L182: 6.50 | M182: 3000 | N182: 6.25 | O182: 3600 | P182: 9000 | Q182: 4.3 | R182: 3.8 | S182: 22.6 | T182: 112.0 | U182: 6 | W182: Nein
A183: DBL4H00750 | B183: 29.9 | C183: 42.6 | D183: 7.5 | E183: 9.3 | J183: 6.40 | K183: 3000 | P183: 9000 | Q183: 4.3 | R183: 0.86 | S183: 5.3 | T183: 49.0 | U183: 6 | W183: Nein
A184: DBL4N00950 | B184: 37.5 | C184: 27.5 | D184: 9.5 | E184: 6.1 | L184: 8.00 | M184: 3000 | N184: 7.80 | O184: 3600 | P184: 9000 | Q184: 6.5 | R184: 1.61 | S184: 10 | T184: 94.0 | U184: 6 | W184: Nein
A185: DBL5N01050 | B185: 42.1 | C185: 30 | D185: 10.5 | E185: 6.5 | L185: 8.50 | M185: 3000 | N185: 8.00 | O185: 3600 | P185: 9000 | Q185: 8.1 | R185: 2.25 | S185: 19.8 | T185: 97.0 | U185: 6 | W185: Nein
A186: DBL5H01050 | B186: 44.8 | C186: 71 | D186: 10.5 | E186: 14.1 | J186: 8.50 | K186: 3000 | P186: 9000 | Q186: 8.1 | R186: 0.52 | S186: 4.5 | T186: 45.0 | U186: 6 | W186: Nein
A187: DBL5N01350 | B187: 54 | C187: 40 | D187: 13.5 | E187: 8.7 | L187: 10.70 | M187: 3000 | N187: 10.00 | O187: 3600 | P187: 9000 | Q187: 9.1 | R187: 1.71 | S187: 16.5 | T187: 94.0 | U187: 6 | W187: Nein
A188: DBL5H01350 | B188: 53.8 | C188: 85 | D188: 13.5 | E188: 18.6 | J188: 10.70 | K188: 3000 | P188: 9000 | Q188: 9.1 | R188: 0.38 | S188: 3.1 | T188: 44.0 | U188: 6 | W188: Nein
A189: DBL5N01700 | B189: 68.2 | C189: 48 | D189: 17 | E189: 10.4 | L189: 14.00 | M189: 3000 | N189: 13.40 | O189: 3600 | P189: 9000 | Q189: 11.3 | R189: 1.25 | S189: 12.6 | T189: 99.0 | U189: 6 | W189: Nein
A190: DBL5H01700 | B190: 67.5 | C190: 91 | D190: 17 | E190: 20 | J190: 14.00 | K190: 3000 | P190: 9000 | Q190: 11.3 | R190: 0.36 | S190: 3.3 | T190: 52.0 | U190: 6 | W190: Nein
A191: DBL5N02200 | B191: 88 | C191: 63 | D191: 22 | E191: 13.7 | L191: 17.00 | M191: 3000 | N191: 16.00 | O191: 3600 | P191: 9000 | Q191: 13.1 | R191: 0.94 | S191: 9 | T191: 97.0 | U191: 6 | W191: Nein
A192: DBL6N02200 | B192: 88.1 | C192: 69.5 | D192: 22 | E192: 15.1 | L192: 16.00 | M192: 3000 | N192: 14.80 | O192: 3600 | P192: 9000 | Q192: 25.1 | R192: 0.72 | S192: 8.5 | T192: 88.0 | U192: 6 | W192: Nein
A193: DBL6N02900 | B193: 116.6 | C193: 81 | D193: 29 | E193: 17.5 | L193: 20.00 | M193: 3000 | N193: 18.40 | O193: 3600 | P193: 9000 | Q193: 38.2 | R193: 0.55 | S193: 6.5 | T193: 100.0 | U193: 6 | W193: Nein
A194: DBL7N02600 | B194: 101.9 | C194: 76 | D194: 26 | E194: 17 | L194: 20.00 | M194: 3000 | N194: 18.80 | O194: 3600 | P194: 9000 | Q194: 97.4 | R194: 0.46 | S194: 4.5 | T194: 92.5 | U194: 6 | W194: Nein
A195: DBL7N03200 | B195: 125.8 | C195: 89.8 | D195: 32 | E195: 20 | L195: 23.00 | M195: 3000 | N195: 21.00 | O195: 3600 | P195: 9000 | Q195: 114.1 | R195: 0.36 | S195: 3.6 | T195: 97.0 | U195: 6 | W195: Nein
A196: DBL7N04000 | B196: 144.5 | C196: 94 | D196: 40 | E196: 23.4 | L196: 26.00 | M196: 3000 | N196: 23.20 | O196: 3600 | P196: 9000 | Q196: 139.4 | R196: 0.3 | S196: 2.9 | T196: 103.5 | U196: 6 | W196: Nein
A197: DBL8N04000 | B197: 128.8 | C197: 80 | D197: 40 | E197: 23 | L197: 32.00 | M197: 3000 | N197: 30.40 | O197: 3600 | P197: 9000 | Q197: 71.1 | R197: 0.35 | S197: 7.5 | T197: 105.0 | U197: 6 | W197: Nein
A198: DBL8N06800 | B198: 234.3 | C198: 140 | D198: 68 | E198: 37 | L198: 50.00 | M198: 3000 | N198: 45.60 | O198: 3600 | P198: 9000 | Q198: 113.6 | R198: 0.12 | S198: 3.4 | T198: 112.0 | U198: 6 | W198: Nein
A199: DBL8L09300 | B199: 299 | C199: 118 | D199: 93 | E199: 34 | L199: 70.00 | M199: 2000 | P199: 6000 | Q199: 153 | R199: 0.16 | S199: 4.4 | T199: 164.0 | U199: 6 | W199: Nein
A200: DBL8L11500 | B200: 363.2 | C200: 146 | D200: 115 | E200: 43 | L200: 85.00 | M200: 2000 | P200: 6000 | Q200: 190 | R200: 0.11 | S200: 3.9 | T200: 164.0 | U200: 6 | W200: Nein
A201: SBK4-0100 (320V) | B201: 4 | C201: 11 | D201: 1 | E201: 1.82 | J201: 0.90 | K201: 3000 | P201: 12000 | Q201: 0.79 | R201: 13 | S201: 24 | T201: 33.5 | U201: 6 | W201: Nein
A202: SBK4-0100 (560V) | B202: 4 | C202: 5 | D202: 1 | E202: 1.1 | L202: 0.90 | M202: 3000 | P202: 12000 | Q202: 0.79 | R202: 38 | S202: 70 | T202: 56.0 | U202: 6 | W202: Nein
A203: SBK5-0210 (320V) | B203: 6.3 | C203: 12 | D203: 2.1 | E203: 2.7 | J203: 1.90 | K203: 3000 | P203: 9000 | Q203: 4.1 | R203: 6.5 | S203: 21.5 | T203: 47.5 | U203: 6 | W203: Nein
A204: SBK5-0210 (560V) | B204: 6.3 | C204: 7 | D204: 2.1 | E204: 1.5 | L204: 1.90 | M204: 3000 | P204: 9000 | Q204: 4.1 | R204: 21 | S204: 66 | T204: 82.5 | U204: 6 | W204: Nein
A205: SBK5-0430 (320V) | B205: 12.9 | C205: 22.5 | D205: 4.3 | E205: 5 | J205: 3.90 | K205: 3000 | P205: 9000 | Q205: 5.8 | R205: 2.16 | S205: 10 | T205: 52.5 | U205: 6 | W205: Nein
A206: SBK5-0430 (560V) | B206: 12.9 | C206: 13 | D206: 4.3 | E206: 2.9 | L206: 3.90 | M206: 3000 | P206: 9000 | Q206: 5.8 | R206: 7.1 | S206: 32 | T206: 90.0 | U206: 6 | W206: Nein
... 1074 more rows

Sheet Calc (hidden)
A1: Motor Nr | B1: Drive Nr | C1: DC-Voltage | D1: 2. Motor | F1: AC | G1: DC | K1: Drives | L1: AC-Voltage | M1: Icont | N1: Ipeak | O1: SFD Unterstützung?
A2: =Data!C149 -> AKM22E | B2: max. | C2: =Data!L170 -> 320 | D2: FALSE | E2: 2 | F2: =75/SQRT(2) -> 53.03300859 | G2: =IF($C$13>F2,75,"") -> 75 | K2: Servostar 303 | L2: 230 V | M2: 3.0 Arms | N2: 9.0 Arms | O2: Nein
F3: =160/SQRT(2) -> 113.137085 | G3: =IF($C$13>F3,160,"") -> 160 | K3: Servostar 306 | L3: 230 V | M3: 6.0 Arms | N3: 15.0 Arms | O3: Nein
F4: =320/SQRT(2) -> 226.27417 | G4: =IF($C$13>F4,320,"") -> 320 | K4: Servostar 310 | L4: 230 V | M4: 10.0 Arms | N4: 20.0 Arms | O4: Nein
F5: =560/SQRT(2) -> 395.9797975 | G5: =IF($C$13>F5,560,"") -> 560 | K5: Servostar 341 | L5: 480 V | M5: 1.5 Arms | N5: 4.5 Arms | O5: Nein
F6: =640/SQRT(2) -> 452.54834 | G6: =IF($C$13>F6,640,"") -> 640 | K6: Servostar 343 | L6: 480 V | M6: 3.0 Arms | N6: 7.5 Arms | O6: Nein
K7: Servostar 346 | L7: 480 V | M7: 6.0 Arms | N7: 12.0 Arms | O7: Nein
A8: Motor | K8: Servostar 403M/A | L8: 230 V | M8: 3.0 Arms | N8: 9.0 Arms | O8: Nein
A9: r | B9: l | C9: ke | D9: Ipeak | E9: poles | F9: nmax | G9: Mo | H9: Io | I9: Mpeak | K9: Servostar 406M/A | L9: 230 V | M9: 6.0 Arms | N9: 12.0 Arms | O9: Nein
A10: =VLOOKUP($A$2,Motor!$A$9:$U$1280,18,FALSE) -> 5.09 | B10: =VLOOKUP($A$2,Motor!$A$9:$U$1280,19,FALSE) -> 9.7 | C10: =VLOOKUP($A$2,Motor!$A$9:$U$1280,20,FALSE) -> 22.4 | D10: =VLOOKUP($A$2,Motor!$A$9:$U$1280,3,FALSE) -> 11 | E10: =VLOOKUP($A$2,Motor!$A$9:$U$1280,21,FALSE) -> 6 | F10: =VLOOKUP($A$2,Motor!$A$9:$U$1280,16,FALSE) -> 8000 | G10: =VLOOKUP($A$2,Motor!$A$9:$U$1280,4,FALSE) -> 0.87 | H10: =VLOOKUP($A$2,Motor!$A$9:$U$1280,5,FALSE) -> 2.73 | I10: =VLOOKUP($A$2,Motor!$A$9:$U$1280,2,FALSE) -> 2.76 | K10: Servostar 443M/403A | L10: 400 V | M10: 3.0 Arms | N10: 9.0 Arms | O10: Nein
A11: Drive | G11: =G10/H10 -> 0.3186813187 | I11: =I10/D10 -> 0.2509090909 | K11: Servostar 446M/406A | L11: 400 V | M11: 6.0 Arms | N11: 12.0 Arms | O11: Nein
A12: I peak | B12: I rms | C12: AC-Voltage | K12: Servostar 601 | L12: 480 V | M12: 1.5 Arms | N12: 3.0 Arms | O12: Nein
A13: =VALUE(VLOOKUP($B$2,$K$2:$N$43,4,FALSE)) -> 1000 | B13: =VALUE(VLOOKUP($B$2,$K$2:$N$43,3,FALSE)) -> 1000 | C13: =VALUE(VLOOKUP($B$2,$K$2:$N$45,2,FALSE)) -> 480 | K13: Servostar 603 | L13: 480 V | M13: 3.0 Arms | N13: 6.0 Arms | O13: Nein
A14: =VALUE(VLOOKUP($B$2,$K$2:$N$43,4,FALSE)) -> 1000 | K14: Servostar 606 | L14: 480 V | M14: 6.0 Arms | N14: 12.0 Arms | O14: Nein
K15: Servostar 610 | L15: 480 V | M15: 10.0 Arms | N15: 20.0 Arms | O15: Nein
K16: Servostar 610/30 | L16: 480 V | M16: 10.0 Arms | N16: 30.0 Arms | O16: Nein
K17: Servostar 614 | L17: 480 V | M17: 14.0 Arms | N17: 28.0 Arms | O17: Nein
A18: Cyclic duty | K18: Servostar 620 | L18: 480 V | M18: 20.0 Arms | N18: 40.0 Arms | O18: Nein
A19: M | B19: n | C19: a | D19: b | E19: c | F19: speed | G19: Ipeak | H19: Kt | K19: Servostar 640 | L19: 480 V | M19: 40.0 Arms | N19: 80.0 Arms | O19: Nein
A20: =A21 -> 2.76 | B20: 0 | K20: Servostar 670 | L20: 480 V | M20: 70.0 Arms | N20: 140.0 Arms | O20: Nein
A21: =G21*($G$10/$H$10-($G$10/$H$10-$I$10/$D$10)/$D$10*G21) -> 2.76 | B21: =MAX(MIN(F21,$F$10),0) -> 5148.4 | C21: =($C$10^2)/1000000+(($B$10/1000)^2*G21^2*PI()*PI()*($E$10/2)^2)/1200 -> 0.001344492703 | D21: =SQRT(3)*$C$10*$A$10*G21/1000 -> 2.172296554 | E21: =0.75*$A$10^2*G21^2-($C$2/SQRT(2)*0.98)^2 -> -46821.31992 | F21: =ROUND((-D21/2/C21+SQRT((D21/2/C21)^2-E21/C21)),1) -> 5148.4 | G21: =MIN($D$10,$A$13)*1 -> 11 | H21: =A21/G21 -> 0.2509090909 | K21: Servostar S20260 | L21: 230 V | M21: 1.5 Arms | N21: 4.5 Arms | O21: Ja
A22: 2.719411692 | B22: 5224.8 | C22: 0.001311120488 | D22: 2.128850623 | E22: -46914.42586 | F22: 5224.8 | G22: =MIN($D$10,$A$13)*0.98 -> 10.78 | H22: 0.2522645355 | K22: Servostar S20360 | L22: 230 V | M22: 3.0 Arms | N22: 9.0 Arms | O22: Ja
A23: 2.678226989 | B23: 5302.7 | C23: 0.001278422459 | D23: 2.085404691 | E23: -47005.65087 | F23: 5302.7 | G23: =MIN($D$10,$A$13)*0.96 -> 10.56 | H23: 0.25361998 | K23: Servostar S20330 | L23: 50 V | M23: 3.0 Arms | N23: 9.0 Arms | O23: Ja
A24: 2.63644589 | B24: 5382.1 | C24: 0.001246398617 | D24: 2.04195876 | E24: -47094.99496 | F24: 5382.1 | G24: =MIN($D$10,$A$13)*0.94 -> 10.34 | H24: 0.2549754246 | K24: Servostar S20630 | L24: 50 V | M24: 6.0 Arms | N24: 18.0 Arms | O24: Ja
A25: 2.594068396 | B25: 5463.1 | C25: 0.00121504896 | D25: 1.998512829 | E25: -47182.45811 | F25: 5463.1 | G25: =MIN($D$10,$A$13)*0.92 -> 10.12 | H25: 0.2563308691 | K25: S 701 | L25: 480 V | M25: 1.5 Arms | N25: 4.5 Arms | O25: Nein
A26: 2.551094505 | B26: 5545.7 | C26: 0.00118437349 | D26: 1.955066898 | E26: -47268.04034 | F26: 5545.7 | G26: =MIN($D$10,$A$13)*0.9 -> 9.9 | H26: 0.2576863137 | K26: S 703 | L26: 480 V | M26: 3.0 Arms | N26: 9.0 Arms | O26: Nein
A27: 2.50752422 | B27: 5630 | C27: 0.001154372205 | D27: 1.911620967 | E27: -47351.74164 | F27: 5630 | G27: =MIN($D$10,$A$13)*0.88 -> 9.68 | H27: 0.2590417582 | K27: S 706 | L27: 480 V | M27: 6.0 Arms | N27: 18.0 Arms | O27: Nein
A28: 2.463357538 | B28: 5715.8 | C28: 0.001125045107 | D28: 1.868175036 | E28: -47433.56201 | F28: 5715.8 | G28: =MIN($D$10,$A$13)*0.86 -> 9.46 | H28: 0.2603972028 | K28: S 712 | L28: 480 V | M28: 12.0 Arms | N28: 24.0 Arms | O28: Nein
A29: 2.418594462 | B29: 5803.3 | C29: 0.001096392196 | D29: 1.824729105 | E29: -47513.50145 | F29: 5803.3 | G29: =MIN($D$10,$A$13)*0.84 -> 9.24 | H29: 0.2617526474 | K29: S 712P | L29: 480 V | M29: 12.0 Arms | N29: 30.0 Arms | O29: Nein
A30: 2.373234989 | B30: 5892.4 | C30: 0.00106841347 | D30: 1.781283174 | E30: -47591.55997 | F30: 5892.4 | G30: =MIN($D$10,$A$13)*0.82 -> 9.02 | H30: 0.2631080919 | K30: S 724 | L30: 480 V | M30: 24.0 Arms | N30: 48.0 Arms | O30: Nein
A31: 2.327279121 | B31: 5983.2 | C31: 0.00104110893 | D31: 1.737837243 | E31: -47667.73755 | F31: 5983.2 | G31: =MIN($D$10,$A$13)*0.8 -> 8.8 | H31: 0.2644635365 | K31: S 724P | L31: 480 V | M31: 24.0 Arms | N31: 72.0 Arms | O31: Nein
A32: 2.280726857 | B32: 6075.6 | C32: 0.001014478577 | D32: 1.694391312 | E32: -47742.03421 | F32: 6075.6 | G32: =MIN($D$10,$A$13)*0.78 -> 8.58 | H32: 0.265818981 | K32: S 748 | L32: 480 V | M32: 48.0 Arms | N32: 96.0 Arms | O32: Nein
A33: 2.233578198 | B33: 6169.7 | C33: 0.0009885224095 | D33: 1.650945381 | E33: -47814.44994 | F33: 6169.7 | G33: =MIN($D$10,$A$13)*0.76 -> 8.36 | H33: 0.2671744256 | K33: S 772 | L33: 480 V | M33: 72.0 Arms | N33: 140.0 Arms | O33: Nein
A34: 2.185833143 | B34: 6265.5 | C34: 0.0009632404284 | D34: 1.60749945 | E34: -47884.98474 | F34: 6265.5 | G34: =MIN($D$10,$A$13)*0.74 -> 8.14 | H34: 0.2685298701 | K34: AKD-x00306 | L34: 230 V | M34: 3.0 Arms | N34: 9.0 Arms | O34: Ja
A35: 2.137491692 | B35: 6362.9 | C35: 0.0009386326334 | D35: 1.564053519 | E35: -47953.63862 | F35: 6362.9 | G35: =MIN($D$10,$A$13)*0.72 -> 7.92 | H35: 0.2698853147 | K35: AKD-x00606 | L35: 230 V | M35: 6.0 Arms | N35: 18.0 Arms | O35: Ja
A36: 2.088553846 | B36: 6461.9 | C36: 0.0009146990247 | D36: 1.520607588 | E36: -48020.41156 | F36: 6461.9 | G36: =MIN($D$10,$A$13)*0.7 -> 7.7 | H36: 0.2712407592 | K36: AKD-x01206 | L36: 230 V | M36: 12.0 Arms | N36: 30.0 Arms | O36: Ja
A37: 2.039019604 | B37: 6562.5 | C37: 0.000891439602 | D37: 1.477161656 | E37: -48085.30358 | F37: 6562.5 | G37: =MIN($D$10,$A$13)*0.68 -> 7.48 | H37: 0.2725962038 | K37: AKD-x02406 | L37: 230 V | M37: 24.0 Arms | N37: 48.0 Arms | O37: Ja
A38: 1.988888967 | B38: 6664.7 | C38: 0.0008688543656 | D38: 1.433715725 | E38: -48148.31467 | F38: 6664.7 | G38: =MIN($D$10,$A$13)*0.66 -> 7.26 | H38: 0.2739516484 | K38: AKD-x00307 | L38: 480 V | M38: 3.0 Arms | N38: 9.0 Arms | O38: Ja
A39: 1.938161934 | B39: 6768.4 | C39: 0.0008469433153 | D39: 1.390269794 | E39: -48209.44483 | F39: 6768.4 | G39: =MIN($D$10,$A$13)*0.64 -> 7.04 | H39: 0.2753070929 | K39: AKD-x00607 | L39: 480 V | M39: 6.0 Arms | N39: 18.0 Arms | O39: Ja
A40: 1.886838505 | B40: 6873.6 | C40: 0.0008257064512 | D40: 1.346823863 | E40: -48268.69407 | F40: 6873.6 | G40: =MIN($D$10,$A$13)*0.62 -> 6.82 | H40: 0.2766625375 | K40: AKD-x01207 | L40: 480 V | M40: 12.0 Arms | N40: 30.0 Arms | O40: Ja
A41: 1.834918681 | B41: 6980.1 | C41: 0.0008051437732 | D41: 1.303377932 | E41: -48326.06237 | F41: 6980.1 | G41: =MIN($D$10,$A$13)*0.6 -> 6.6 | H41: 0.278017982 | K41: AKD-x02407 | L41: 480 V | M41: 24.0 Arms | N41: 48.0 Arms | O41: Ja
A42: 1.782402462 | B42: 7088 | C42: 0.0007852552814 | D42: 1.259932001 | E42: -48381.54975 | F42: 7088 | G42: =MIN($D$10,$A$13)*0.58 -> 6.38 | H42: 0.2793734266 | K42: other drive | L42: 480 V | M42: 5 | N42: 15 | O42: Nein
A43: 1.729289846 | B43: 7197.1 | C43: 0.0007660409758 | D43: 1.21648607 | E43: -48435.1562 | F43: 7197.1 | G43: =MIN($D$10,$A$13)*0.56 -> 6.16 | H43: 0.2807288711 | K43: max. | L43: 480 V | M43: 1000.0 Arms | N43: 1000.0 Arms | O43: Nein
A44: 1.675580835 | B44: 7307.4 | C44: 0.0007475008563 | D44: 1.173040139 | E44: -48486.88172 | F44: 7307.4 | G44: =MIN($D$10,$A$13)*0.54 -> 5.94 | H44: 0.2820843157 | K44: S 131xx 5A 230V | L44: 230 V | M44: 5.0 Arms | N44: 10.0 Arms | O44: Nein
A45: 1.621275429 | B45: 7418.7 | C45: 0.000729634923 | D45: 1.129594208 | E45: -48536.72632 | F45: 7418.7 | G45: =MIN($D$10,$A$13)*0.52 -> 5.72 | H45: 0.2834397602 | K45: S 132xx 10A 480V | L45: 480 V | M45: 10.0 Arms | N45: 20.0 Arms | O45: Nein
A46: 1.566373626 | B46: 7530.8 | C46: 0.0007124431758 | D46: 1.086148277 | E46: -48584.68998 | F46: 7530.8 | G46: =MIN($D$10,$A$13)*0.5 -> 5.5 | H46: 0.2847952048 | K46: S 132xx 15A 480V | L46: 480 V | M46: 15.0 Arms | N46: 30.0 Arms | O46: Nein
A47: 1.510875429 | B47: 7643.7 | C47: 0.0006959256149 | D47: 1.042702346 | E47: -48630.77272 | F47: 7643.7 | G47: =MIN($D$10,$A$13)*0.48 -> 5.28 | H47: 0.2861506494 | K47: S 132xx 20A 480V | L47: 480 V | M47: 20.0 Arms | N47: 40.0 Arms | O47: Nein
A48: 1.454780835 | B48: 7757.2 | C48: 0.00068008224 | D48: 0.9992564147 | E48: -48674.97453 | F48: 7757.2 | G48: =MIN($D$10,$A$13)*0.46 -> 5.06 | H48: 0.2875060939
A49: 1.398089846 | B49: 7871.1 | C49: 0.0006649130514 | D49: 0.9558104836 | E49: -48717.29541 | F49: 7871.1 | G49: =MIN($D$10,$A$13)*0.44 -> 4.84 | H49: 0.2888615385
A50: 1.340802462 | B50: 7985.2 | C50: 0.0006504180489 | D50: 0.9123645525 | E50: -48757.73536 | F50: 7985.2 | G50: =MIN($D$10,$A$13)*0.42 -> 4.62 | H50: 0.290216983
A51: 1.282918681 | B51: 8000 | C51: 0.0006365972325 | D51: 0.8689186215 | E51: -48796.29439 | F51: 8099.2 | G51: =MIN($D$10,$A$13)*0.399999999999999 -> 4.4 | H51: 0.2915724276
A52: 1.224438505 | B52: 8000 | C52: 0.0006234506024 | D52: 0.8254726904 | E52: -48832.97249 | F52: 8213 | G52: =MIN($D$10,$A$13)*0.379999999999999 -> 4.18 | H52: 0.2929278721
A53: =G53*($G$10/$H$10-($G$10/$H$10-$I$10/$D$10)/$D$10*G53) -> 1.165361934 | B53: =MAX(MIN(F53,$F$10),0) -> 8000 | C53: =($C$10^2)/1000000+(($B$10/1000)^2*G53^2*PI()*PI()*($E$10/2)^2)/1200 -> 0.0006109781584 | D53: =SQRT(3)*$C$10*$A$10*G53/1000 -> 0.7820267593 | E53: =0.75*$A$10^2*G53^2-($C$2/SQRT(2)*0.98)^2 -> -48867.76965 | F53: =ROUND((-D53/2/C53+SQRT((D53/2/C53)^2-E53/C53)),1) -> 8326.2 | G53: =MIN($D$10,$A$13)*0.359999999999999 -> 3.96 | H53: =A53/G53 -> 0.2942833167
A54: 1.105688967 | B54: 8000 | C54: 0.0005991799005 | D54: 0.7385808282 | E54: -48900.6859 | F54: 8438.6 | G54: =MIN($D$10,$A$13)*0.339999999999999 -> 3.74 | H54: 0.2956387612
A55: 1.045419604 | B55: 8000 | C55: 0.0005880558288 | D55: 0.6951348972 | E55: -48931.72121 | F55: 8550 | G55: =MIN($D$10,$A$13)*0.319999999999999 -> 3.52 | H55: 0.2969942058
A56: 0.9845538462 | B56: 8000 | C56: 0.0005776059433 | D56: 0.6516889661 | E56: -48960.87559 | F56: 8659.9 | G56: =MIN($D$10,$A$13)*0.299999999999999 -> 3.3 | H56: 0.2983496503
A57: 0.9230916923 | B57: 8000 | C57: 0.0005678302439 | D57: 0.608243035 | E57: -48988.14905 | F57: 8768.1 | G57: =MIN($D$10,$A$13)*0.279999999999999 -> 3.08 | H57: 0.2997050949
A58: 0.8610331429 | B58: 8000 | C58: 0.0005587287307 | D58: 0.5647971039 | E58: -49013.54158 | F58: 8874.3 | G58: =MIN($D$10,$A$13)*0.259999999999999 -> 2.86 | H58: 0.3010605395
A59: 0.7983781978 | B59: 8000 | C59: 0.0005503014037 | D59: 0.5213511729 | E59: -49037.05318 | F59: 8978 | G59: =MIN($D$10,$A$13)*0.239999999999999 -> 2.64 | H59: 0.302415984
A60: 0.7351268571 | B60: 8000 | C60: 0.0005425482628 | D60: 0.4779052418 | E60: -49058.68385 | F60: 9078.9 | G60: =MIN($D$10,$A$13)*0.219999999999999 -> 2.42 | H60: 0.3037714286
A61: 0.6712791209 | B61: 8000 | C61: 0.0005354693081 | D61: 0.4344593107 | E61: -49078.4336 | F61: 9176.6 | G61: =MIN($D$10,$A$13)*0.199999999999999 -> 2.2 | H61: 0.3051268731
A62: 0.606834989 | B62: 8000 | C62: 0.0005290645396 | D62: 0.3910133797 | E62: -49096.30241 | F62: 9270.7 | G62: =MIN($D$10,$A$13)*0.179999999999999 -> 1.98 | H62: 0.3064823177
A63: 0.5417944615 | B63: 8000 | C63: 0.0005233339572 | D63: 0.3475674486 | E63: -49112.2903 | F63: 9361 | G63: =MIN($D$10,$A$13)*0.159999999999999 -> 1.76 | H63: 0.3078377622
A64: 0.4761575385 | B64: 8000 | C64: 0.000518277561 | D64: 0.3041215175 | E64: -49126.39726 | F64: 9446.9 | G64: =MIN($D$10,$A$13)*0.139999999999999 -> 1.54 | H64: 0.3091932068
A65: 0.4099242198 | B65: 8000 | C65: 0.0005138953509 | D65: 0.2606755864 | E65: -49138.62329 | F65: 9528.2 | G65: =MIN($D$10,$A$13)*0.119999999999999 -> 1.32 | H65: 0.3105486513
A66: 0.3430945055 | B66: 8000 | C66: 0.000510187327 | D66: 0.2172296554 | E66: -49148.9684 | F66: 9604.5 | G66: =MIN($D$10,$A$13)*0.099999999999999 -> 1.1 | H66: 0.3119040959
A67: 0.2756683956 | B67: 8000 | C67: 0.0005071534893 | D67: 0.1737837243 | E67: -49157.43258 | F67: 9675.4 | G67: =MIN($D$10,$A$13)*0.079999999999999 -> 0.88 | H67: 0.3132595405
A68: 0.2076458901 | B68: 8000 | C68: 0.0005047938377 | D68: 0.1303377932 | E68: -49164.01582 | F68: 9740.6 | G68: =MIN($D$10,$A$13)*0.0599999999999989 -> 0.66 | H68: 0.314614985
A69: 0.139026989 | B69: 8000 | C69: 0.0005031083723 | D69: 0.08689186215 | E69: -49168.71814 | F69: 9799.9 | G69: =MIN($D$10,$A$13)*0.039999999999999 -> 0.44 | H69: 0.3159704296
A70: 0.06981169231 | B70: 8000 | C70: 0.0005020970931 | D70: 0.04344593107 | E70: -49171.53954 | F70: 9852.9 | G70: =MIN($D$10,$A$13)*0.019999999999999 -> 0.22 | H70: 0.3173258741
A71: =G71*($G$10/$H$10+($G$10/$H$10-$I$10/$D$10)/$D$10*G71) -> 0 | B71: 8000 | C71: 0.00050176 | D71: 0 | E71: -49172.48 | F71: 9899.5 | G71: =MIN($D$10,$A$13)*0 -> 0
B73: =MAX(MIN(F73,$F$10),0) -> 8000 | C73: =($C$10^2)/1000000+(($B$10/1000)^2*G73^2*PI()*PI()*($E$10/2)^2)/1200 -> 0.0005353637191 | D73: =SQRT(3)*$C$10*$A$10*G73/1000 -> 0.43377834 | E73: =0.75*$A$10^2*G73^2-($C$2/SQRT(2)*0.98)^2 -> -49078.72818 | F73: =ROUND((-D73/2/C73+SQRT((D73/2/C73)^2-E73/C73)),0) -> 9178 | G73: =MIN(B13,H10/G10*C83) -> 2.196551724
AF75: KOLLA OM DET ÄR RÄTT I PC SELECTOR GÄLLANDE hastighet och rpm
A76: S1
A77: M | B77: n | AF77: MÅSTE FÅ IN FAKTORN SOM KOMMER FRÅN ACCELERATIONEN!!!
A78: =IF(D78>$B$71,"",C78) -> 0.87 | B78: =IF(D78>$B$71,"",D78) -> 0 | C78: =G10 -> 0.87 | D78: 0 | E78: 0 | F78: =MIN(A78,$A$154) -> 0.87
A79: =IF(D79>$B$71,A78,C79) -> 0.85 | B79: =IF(D79>$B$71,B78,D79) -> 1000 | C79: =IF(VLOOKUP($A$2,Motorenmatrix,6,FALSE)=0,C78,VLOOKUP($A$2,Motorenmatrix,6,FALSE)) -> 0.85 | D79: =IF(VLOOKUP($A$2,Motorenmatrix,7,FALSE)=0,D78,VLOOKUP($A$2,Motorenmatrix,7,FALSE)) -> 1000 | E79: =IF(D79-D78=0,E78,(C79-C78)/(D79-D78)) -> -2e-05 | F79: =MIN(A79,$A$154) -> 0.85
A80: =IF(D80>$B$71,A79,C80) -> 0.81 | B80: =IF(D80>$B$71,B79,D80) -> 3500 | C80: =IF(VLOOKUP($A$2,Motorenmatrix,8,FALSE)=0,C79,VLOOKUP($A$2,Motorenmatrix,8,FALSE)) -> 0.81 | D80: =IF(VLOOKUP($A$2,Motorenmatrix,9,FALSE)=0,D79,VLOOKUP($A$2,Motorenmatrix,9,FALSE)) -> 3500 | E80: =IF(D80-D79=0,E79,(C80-C79)/(D80-D79)) -> -1.6e-05 | F80: 0.81 | AH80: ÄNDRA VILLKOR FÖR DRIVE TORQUE CONST SPEED
A81: =IF(D81>$B$71,A80,C81) -> 0.7 | B81: =IF(D81>$B$71,B80,D81) -> 8000 | C81: =IF(VLOOKUP($A$2,Motorenmatrix,10,FALSE)=0,C80,VLOOKUP($A$2,Motorenmatrix,10,FALSE)) -> 0.7 | D81: =IF(VLOOKUP($A$2,Motorenmatrix,11,FALSE)=0,D80,VLOOKUP($A$2,Motorenmatrix,11,FALSE)) -> 8000 | E81: =IF(D81-D80=0,E80,(C81-C80)/(D81-D80)) -> -2.444444444e-05 | F81: 0.7 | U81: Continous drive | AX81: Cyclic duty
A82: =IF(D82>$B$71,A81,C82) -> 0.7 | B82: =IF(D82>$B$71,B81,D82) -> 8000 | C82: =IF(VLOOKUP($A$2,Motorenmatrix,12,FALSE)=0,C81,VLOOKUP($A$2,Motorenmatrix,12,FALSE)) -> 0.7 | D82: =IF(VLOOKUP($A$2,Motorenmatrix,13,FALSE)=0,D81,VLOOKUP($A$2,Motorenmatrix,13,FALSE)) -> 8000 | E82: =IF(D82-D81=0,E81,(C82-C81)/(D82-D81)) -> -2.444444444e-05 | F82: 0.7 | N82: DIRECT DRIVE | V82: PC40B20 | AF82: PC40B10 | AO82: PC40B05 | AX82: PC40B20 | BD82: PC40B10
A83: =IF(D83>$B$71,A82,C83) -> 0.7 | B83: =IF(D83>$B$71,B82,D83) -> 8000 | C83: =IF(VLOOKUP($A$2,Motorenmatrix,14,FALSE)=0,C82,VLOOKUP($A$2,Motorenmatrix,14,FALSE)) -> 0.7 | D83: =IF(VLOOKUP($A$2,Motorenmatrix,15,FALSE)=0,D82,VLOOKUP($A$2,Motorenmatrix,15,FALSE)) -> 8000 | E83: =IF(D83-D82=0,E82,(C83-C82)/(D83-D82)) -> -2.444444444e-05 | F83: 0.7 | Q83: IdleT | R83: IdleT | S83: Drive T from Load | T83: Drive T constant | W83: Idle Torque | X83: Drive torque | Y83: Drive toque | Z83: Drive toque | AA83: Motor | AB83: Output Max Load | AG83: Idle Torque | AH83: Drive torque | AI83: Drive toque | AJ83: Drive toque | AK83: Motor | AL83: Output Max Load | AP83: Idle Torque | AQ83: Drive torque | AR83: Drive toque | AS83: Drive toque | AT83: Motor | AU83: Output Max Load | BJ83: PC40B05
A84: =A83+(B84-B83)*E83 -> 0.7 | B84: =B73 -> 8000 | C84: =A83+(B84-B83)*E83 -> 0.7 | F84: 0.7 | O84: Max speed | P84: Pitch | Q84: Unit | R84: Speed | W84: Speed | X84: Load | Y84: const LX | Z84: const PA | AA84: capability | AG84: Speed | AH84: Load | AI84: const LX | AJ84: const PA | AK84: capability | AP84: Speed | AQ84: Load | AR84: const LX | AS84: const PA | AT84: capability | AX84: Motor capacity | AY84: Motor | BA84: Idel torque RPM | BB84: Max output | BD84: Motor capacity | BE84: Motor | BG84: Idel torque RPM | BH84: Max output | BJ84: Motor capacity | BK84: Motor | BM84: Idel torque RPM | BN84: Max output
O85: RPM | P85: mm | Q85: Nm | R85: Nm | S85: Nm | T85: Nm | U85: mm/s | V85: RPM | W85: RPM | X85: NM | Y85: Nm | Z85: Nm | AA85: Nm | AB85: Nm | AE85: mm/s | AF85: RPM | AG85: RPM | AH85: NM | AI85: Nm | AJ85: Nm | AK85: Nm | AL85: Nm | AN85: mm/s | AO85: RPM | AP85: RPM | AQ85: NM | AR85: Nm | AS85: Nm | AT85: Nm | AU85: Nm | AX85: Nm | AY85: Rpm | AZ85: mm/s | BA85: Nm | BB85: N | BD85: Nm | BE85: Rpm | BF85: mm/s | BG85: Nm | BH85: N | BJ85: Nm | BK85: Rpm | BL85: mm/s | BM85: Nm | BN85: N
A86: =C78 -> 0.87 | B86: 0 | D86: =MIN(A86,$A$154) -> 0.87 | N86: PC25…B03 | O86: 8000 | P86: 3 | Q86: 0.05 | R86: =$B$87/O86*Q86*2+Q86 -> 0.052 | S86: =$T$99*P86/2000/PI()/0.8+R86 -> 0.05 | T86: =S86/0.9 -> 0.06 | U86: =B86/60*$P$92 -> 0 | V86: =B86 -> 0 | W86: =V86/$O$92*$Q$92*2+$Q$92 -> 0.30 | X86: =$T$99*$P$92/2000/PI()/0.8+W86 -> 0.30 | Y86: =IF(X86/0.9<=A86,X86/0.9,"") -> 0.33 | Z86: =IF(Data!$E$83=1,Data!$L$117+Data!$F$59+X86/Data!$L$116/Data!$E$59/Data!$L$115,Data!$E$90+Data!$F$59+X86/Data!$G$90/Data!$E$59/Data!$D$90) -> 0.33 | AA86: =A86 -> 0.87 | AB86: =IF(Data!$C$59=1,TRUNC(($A86*0.9-W86)/$P$92*2000*PI()*0.8,0),IF(Data!$C$59=2,TRUNC(($A86*0.8-(W86+0.1))/$P$92*2000*PI()*0.8,0),"")) -> 121 | AE86: =B86/60*$P$91 -> 0 | AF86: =AE86/$P$91*60 -> 0 | AG86: =AF86/$O$91*$Q$91*2+$Q$91 -> 0.20 | AH86: =$T$99*$P$91/2000/PI()/0.8+AG86 -> 0.20 | AI86: =IF(AH86/0.9<=A86,AH86/0.9,"") -> 0.22 | AJ86: =IF(Data!$E$83=1,Data!$L$117+Data!$F$59+AH86/Data!$L$116/Data!$E$59/Data!$L$115,Data!$E$90+Data!$F$59+AH86/Data!$G$90/Data!$E$59/Data!$D$90) -> 0.22 | AK86: =A86 -> 0.87 | AL86: =IF(Data!$C$59=1,TRUNC(($A86*0.9-AG86)/$P$91*2000*PI()*0.8,0),IF(Data!$C$59=2,TRUNC(($A86*0.8-(AG86+0.1))/$P$91*2000*PI()*0.8,0),"")) -> 293 | AN86: =B86/60*$P$90 -> 0 | AO86: =AN86/$P$90*60 -> 0 | AP86: =AO86/$O$90*$Q$90*2+$Q$90 -> 0.10 | AQ86: =$T$99*$P$90/2000/PI()/0.8+AP86 -> 0.10 | AR86: =IF(AQ86/0.9<=A86,AQ86/0.9,"") -> 0.11 | AS86: =IF(Data!$E$83=1,Data!$L$117+Data!$F$59+AQ86/Data!$L$116/Data!$E$59/Data!$L$115,Data!$E$90+Data!$F$59+AQ86/Data!$G$90/Data!$E$59/Data!$D$90) -> 0.11 | AT86: =A86 -> 0.87 | AU86: =IF(Data!$C$59=1,TRUNC(($A86*0.9-AP86)/$P$90*2000*PI()*0.8,0),IF(Data!$C$59=2,TRUNC(($A86*0.8-(AP86+0.1))/$P$90*2000*PI()*0.8,0),"")) -> 686 | AX86: =$A20 -> 2.76 | AY86: =$B20 -> 0 | AZ86: =AY86/60*$P$92 -> 0 | BA86: =AY86/$O$92*$Q$92*2+$Q$92 -> 0.3 | BB86: =IF(Data!$C$59=1,TRUNC(($A20*0.9-BA86)/$P$92*2000*PI()*0.8,0),IF(Data!$C$59=2,TRUNC(($A20*0.8-(BA86+0.1))/$P$92*2000*PI()*0.8,0),"")) -> 548 | BD86: =$A20 -> 2.76 | BE86: =$B20 -> 0 | BF86: =BE86/60*$P$91 -> 0 | BG86: =BE86/$O$91*$Q$91*2+$Q$91 -> 0.2 | BH86: =IF(Data!$C$59=1,TRUNC(($A20*0.9-BG86)/$P$91*2000*PI()*0.8,0),IF(Data!$C$59=2,TRUNC(($A20*0.8-(BG86+0.1))/$P$91*2000*PI()*0.8,0),"")) -> 1148 | BJ86: =$A20 -> 2.76 | BK86: =$B20 -> 0 | BL86: =BK86/60*$P$90 -> 0 | BM86: =BK86/$O$90*$Q$90*2+$Q$90 -> 0.1 | BN86: =IF(Data!$C$59=1,TRUNC(($A20*0.9-BM86)/$P$90*2000*PI()*0.8,0),IF(Data!$C$59=2,TRUNC(($A20*0.8-(BM86+0.1))/$P$90*2000*PI()*0.8,0),"")) -> 2396
A87: =A86+(B87-B86)*C87 -> 0.8668 | B87: =0.02*$B$84 -> 160 | C87: =IF(B87<$B$79,$E$79,IF(B87<$B$80,$E$80,IF(B87<$B$81,$E$81,IF(B87<$B$82,$E$82,$E$83 ) ) )) -> -2e-05 | D87: =MIN(A87,$A$154) -> 0.8668 | N87: PC25…B10 | O87: 8000 | P87: 10 | Q87: 0.15 | R87: =$B$87/O87*Q87*2+Q87 -> 0.156 | S87: 0.16 | T87: =S87/0.9 -> 0.17 | U87: =B87/60*$P$92 -> 53 | V87: =B87 -> 160 | W87: =V87/$O$92*$Q$92*2+$Q$92 -> 0.32 | X87: =$T$99*$P$92/2000/PI()/0.8+W87 -> 0.32 | Y87: =IF(X87/0.9<=A87,X87/0.9,"") -> 0.35 | Z87: =IF(Data!$E$83=1,Data!$L$117+Data!$F$59+X87/Data!$L$116/Data!$E$59/Data!$L$115,Data!$E$90+Data!$F$59+X87/Data!$G$90/Data!$E$59/Data!$D$90) -> 0.35 | AA87: =A87 -> 0.87 | AB87: =IF(Data!$C$59=1,TRUNC(($A87*0.9-W87)/$P$92*2000*PI()*0.8,0),IF(Data!$C$59=2,TRUNC(($A87*0.8-(W87+0.1))/$P$92*2000*PI()*0.8,0),"")) -> 115 | AE87: =B87/60*$P$91 -> 27 | AF87: =AE87/$P$91*60 -> 160 | AG87: =AF87/$O$91*$Q$91*2+$Q$91 -> 0.21 | AH87: 0.21 | AI87: =IF(AH87/0.9<=A87,AH87/0.9,"") -> 0.24 | AJ87: =IF(Data!$E$83=1,Data!$L$117+Data!$F$59+AH87/Data!$L$116/Data!$E$59/Data!$L$115,Data!$E$90+Data!$F$59+AH87/Data!$G$90/Data!$E$59/Data!$D$90) -> 0.24 | AK87: =A87 -> 0.87 | AL87: =IF(Data!$C$59=1,TRUNC(($A87*0.9-AG87)/$P$91*2000*PI()*0.8,0),IF(Data!$C$59=2,TRUNC(($A87*0.8-(AG87+0.1))/$P$91*2000*PI()*0.8,0),"")) -> 285 | AN87: =B87/60*$P$90 -> 13 | AO87: =AN87/$P$90*60 -> 160 | AP87: =AO87/$O$90*$Q$90*2+$Q$90 -> 0.11 | AQ87: 0.11 | AR87: =IF(AQ87/0.9<=A87,AQ87/0.9,"") -> 0.12 | AS87: =IF(Data!$E$83=1,Data!$L$117+Data!$F$59+AQ87/Data!$L$116/Data!$E$59/Data!$L$115,Data!$E$90+Data!$F$59+AQ87/Data!$G$90/Data!$E$59/Data!$D$90) -> 0.12 | AT87: =A87 -> 0.87 | AU87: =IF(Data!$C$59=1,TRUNC(($A87*0.9-AP87)/$P$90*2000*PI()*0.8,0),IF(Data!$C$59=2,TRUNC(($A87*0.8-(AP87+0.1))/$P$90*2000*PI()*0.8,0),"")) -> 677 | AX87: =$A21 -> 2.76 | AY87: =$B21 -> 5148 | AZ87: =AY87/60*$P$92 -> 1716 | BA87: =AY87/$O$92*$Q$92*2+$Q$92 -> 0.92 | BB87: =IF(Data!$C$59=1,TRUNC(($A21*0.9-BA87)/$P$92*2000*PI()*0.8,0),IF(Data!$C$59=2,TRUNC(($A21*0.8-(BA87+0.1))/$P$92*2000*PI()*0.8,0),"")) -> 393 | BD87: =$A21 -> 2.76 | BE87: =$B21 -> 5148 | BF87: =BE87/60*$P$91 -> 858 | BG87: =BE87/$O$91*$Q$91*2+$Q$91 -> 0.611872 | BH87: =IF(Data!$C$59=1,TRUNC(($A21*0.9-BG87)/$P$91*2000*PI()*0.8,0),IF(Data!$C$59=2,TRUNC(($A21*0.8-(BG87+0.1))/$P$91*2000*PI()*0.8,0),"")) -> 941 | BJ87: =$A21 -> 2.76 | BK87: =$B21 -> 5148 | BL87: =BK87/60*$P$90 -> 429 | BM87: =BK87/$O$90*$Q$90*2+$Q$90 -> 0.305936 | BN87: =IF(Data!$C$59=1,TRUNC(($A21*0.9-BM87)/$P$90*2000*PI()*0.8,0),IF(Data!$C$59=2,TRUNC(($A21*0.8-(BM87+0.1))/$P$90*2000*PI()*0.8,0),"")) -> 2189
A88: =A87+(B88-B87)*C88 -> 0.8636 | B88: =0.04*$B$84 -> 320.00 | C88: =IF(B88<$B$79,$E$79,IF(B88<$B$80,$E$80,IF(B88<$B$81,$E$81,IF(B88<$B$82,$E$82,$E$83 ) ) )) -> -2e-05 | D88: 0.8636 | N88: PC32…B04 | O88: 6000 | P88: 4 | Q88: 0.07 | R88: 0.074 | S88: 0.07 | T88: 0.08 | U88: 107 | V88: 320 | W88: 0.34 | X88: 0.34 | Y88: 0.38 | Z88: =IF(Data!$E$83=1,Data!$L$117+Data!$F$59+X88/Data!$L$116/Data!$E$59/Data!$L$115,Data!$E$90+Data!$F$59+X88/Data!$G$90/Data!$E$59/Data!$D$90) -> 0.38 | AA88: 0.86 | AB88: =IF(Data!$C$59=1,TRUNC(($A88*0.9-W88)/$P$92*2000*PI()*0.8,0),IF(Data!$C$59=2,TRUNC(($A88*0.8-(W88+0.1))/$P$92*2000*PI()*0.8,0),"")) -> 110 | AE88: 53 | AF88: 320 | AG88: 0.23 | AH88: 0.23 | AI88: 0.25 | AJ88: =IF(Data!$E$83=1,Data!$L$117+Data!$F$59+AH88/Data!$L$116/Data!$E$59/Data!$L$115,Data!$E$90+Data!$F$59+AH88/Data!$G$90/Data!$E$59/Data!$D$90) -> 0.25 | AK88: 0.86 | AL88: =IF(Data!$C$59=1,TRUNC(($A88*0.9-AG88)/$P$91*2000*PI()*0.8,0),IF(Data!$C$59=2,TRUNC(($A88*0.8-(AG88+0.1))/$P$91*2000*PI()*0.8,0),"")) -> 277 | AN88: 27 | AO88: 320 | AP88: 0.11 | AQ88: 0.11 | AR88: 0.13 | AS88: =IF(Data!$E$83=1,Data!$L$117+Data!$F$59+AQ88/Data!$L$116/Data!$E$59/Data!$L$115,Data!$E$90+Data!$F$59+AQ88/Data!$G$90/Data!$E$59/Data!$D$90) -> 0.13 | AT88: 0.86 | AU88: =IF(Data!$C$59=1,TRUNC(($A88*0.9-AP88)/$P$90*2000*PI()*0.8,0),IF(Data!$C$59=2,TRUNC(($A88*0.8-(AP88+0.1))/$P$90*2000*PI()*0.8,0),"")) -> 667 | AX88: 2.72 | AY88: 5225 | AZ88: 1742 | BA88: 0.93 | BB88: =IF(Data!$C$59=1,TRUNC(($A22*0.9-BA88)/$P$92*2000*PI()*0.8,0),IF(Data!$C$59=2,TRUNC(($A22*0.8-(BA88+0.1))/$P$92*2000*PI()*0.8,0),"")) -> 382 | BD88: 2.72 | BE88: 5225 | BF88: =BE88/60*$P$91 -> 871 | BG88: 0.617984 | BH88: =IF(Data!$C$59=1,TRUNC(($A22*0.9-BG88)/$P$91*2000*PI()*0.8,0),IF(Data!$C$59=2,TRUNC(($A22*0.8-(BG88+0.1))/$P$91*2000*PI()*0.8,0),"")) -> 919 | BJ88: 2.72 | BK88: 5225 | BL88: 435 | BM88: 0.308992 | BN88: =IF(Data!$C$59=1,TRUNC(($A22*0.9-BM88)/$P$90*2000*PI()*0.8,0),IF(Data!$C$59=2,TRUNC(($A22*0.8-(BM88+0.1))/$P$90*2000*PI()*0.8,0),"")) -> 2149
A89: 0.8604 | B89: =0.06*$B$84 -> 480.00 | C89: -2e-05 | D89: 0.8604 | N89: PC32…B10 | O89: 6000 | P89: 10 | Q89: 0.18 | R89: 0.190 | S89: 0.19 | T89: 0.21 | U89: 160 | V89: 480 | W89: 0.36 | X89: 0.36 | Y89: 0.40 | Z89: =IF(Data!$E$83=1,Data!$L$117+Data!$F$59+X89/Data!$L$116/Data!$E$59/Data!$L$115,Data!$E$90+Data!$F$59+X89/Data!$G$90/Data!$E$59/Data!$D$90) -> 0.40 | AA89: 0.86 | AB89: =IF(Data!$C$59=1,TRUNC(($A89*0.9-W89)/$P$92*2000*PI()*0.8,0),IF(Data!$C$59=2,TRUNC(($A89*0.8-(W89+0.1))/$P$92*2000*PI()*0.8,0),"")) -> 104 | AE89: 80 | AF89: 480 | AG89: 0.24 | AH89: 0.24 | AI89: 0.26 | AJ89: =IF(Data!$E$83=1,Data!$L$117+Data!$F$59+AH89/Data!$L$116/Data!$E$59/Data!$L$115,Data!$E$90+Data!$F$59+AH89/Data!$G$90/Data!$E$59/Data!$D$90) -> 0.26 | AK89: 0.86 | AL89: =IF(Data!$C$59=1,TRUNC(($A89*0.9-AG89)/$P$91*2000*PI()*0.8,0),IF(Data!$C$59=2,TRUNC(($A89*0.8-(AG89+0.1))/$P$91*2000*PI()*0.8,0),"")) -> 269 | AN89: 40 | AO89: 480 | AP89: 0.12 | AQ89: 0.12 | AR89: 0.13 | AS89: =IF(Data!$E$83=1,Data!$L$117+Data!$F$59+AQ89/Data!$L$116/Data!$E$59/Data!$L$115,Data!$E$90+Data!$F$59+AQ89/Data!$G$90/Data!$E$59/Data!$D$90) -> 0.13 | AT89: 0.86 | AU89: =IF(Data!$C$59=1,TRUNC(($A89*0.9-AP89)/$P$90*2000*PI()*0.8,0),IF(Data!$C$59=2,TRUNC(($A89*0.8-(AP89+0.1))/$P$90*2000*PI()*0.8,0),"")) -> 658 | AX89: 2.68 | AY89: 5303 | AZ89: 1768 | BA89: 0.94 | BB89: =IF(Data!$C$59=1,TRUNC(($A23*0.9-BA89)/$P$92*2000*PI()*0.8,0),IF(Data!$C$59=2,TRUNC(($A23*0.8-(BA89+0.1))/$P$92*2000*PI()*0.8,0),"")) -> 370 | BD89: 2.68 | BE89: 5303 | BF89: 884 | BG89: 0.624216 | BH89: =IF(Data!$C$59=1,TRUNC(($A23*0.9-BG89)/$P$91*2000*PI()*0.8,0),IF(Data!$C$59=2,TRUNC(($A23*0.8-(BG89+0.1))/$P$91*2000*PI()*0.8,0),"")) -> 897 | BJ89: 2.68 | BK89: 5303 | BL89: 442 | BM89: 0.312108 | BN89: =IF(Data!$C$59=1,TRUNC(($A23*0.9-BM89)/$P$90*2000*PI()*0.8,0),IF(Data!$C$59=2,TRUNC(($A23*0.8-(BM89+0.1))/$P$90*2000*PI()*0.8,0),"")) -> 2109
A90: 0.8572 | B90: =0.08*$B$84 -> 640.00 | C90: -2e-05 | D90: 0.8572 | N90: PC40…B05 | O90: 5000 | P90: 5 | Q90: 0.1 | R90: 0.106 | S90: 0.11 | T90: 0.12 | U90: 213 | V90: 640 | W90: 0.38 | X90: 0.38 | Y90: 0.42 | Z90: =IF(Data!$E$83=1,Data!$L$117+Data!$F$59+X90/Data!$L$116/Data!$E$59/Data!$L$115,Data!$E$90+Data!$F$59+X90/Data!$G$90/Data!$E$59/Data!$D$90) -> 0.42 | AA90: 0.86 | AB90: =IF(Data!$C$59=1,TRUNC(($A90*0.9-W90)/$P$92*2000*PI()*0.8,0),IF(Data!$C$59=2,TRUNC(($A90*0.8-(W90+0.1))/$P$92*2000*PI()*0.8,0),"")) -> 99 | AE90: 107 | AF90: 640 | AG90: 0.25 | AH90: 0.25 | AI90: 0.28 | AJ90: =IF(Data!$E$83=1,Data!$L$117+Data!$F$59+AH90/Data!$L$116/Data!$E$59/Data!$L$115,Data!$E$90+Data!$F$59+AH90/Data!$G$90/Data!$E$59/Data!$D$90) -> 0.28 | AK90: 0.86 | AL90: =IF(Data!$C$59=1,TRUNC(($A90*0.9-AG90)/$P$91*2000*PI()*0.8,0),IF(Data!$C$59=2,TRUNC(($A90*0.8-(AG90+0.1))/$P$91*2000*PI()*0.8,0),"")) -> 261 | AN90: 53 | AO90: 640 | AP90: 0.13 | AQ90: 0.13 | AR90: 0.14 | AS90: =IF(Data!$E$83=1,Data!$L$117+Data!$F$59+AQ90/Data!$L$116/Data!$E$59/Data!$L$115,Data!$E$90+Data!$F$59+AQ90/Data!$G$90/Data!$E$59/Data!$D$90) -> 0.14 | AT90: 0.86 | AU90: =IF(Data!$C$59=1,TRUNC(($A90*0.9-AP90)/$P$90*2000*PI()*0.8,0),IF(Data!$C$59=2,TRUNC(($A90*0.8-(AP90+0.1))/$P$90*2000*PI()*0.8,0),"")) -> 649 | AX90: 2.64 | AY90: 5382 | AZ90: 1794 | BA90: 0.95 | BB90: =IF(Data!$C$59=1,TRUNC(($A24*0.9-BA90)/$P$92*2000*PI()*0.8,0),IF(Data!$C$59=2,TRUNC(($A24*0.8-(BA90+0.1))/$P$92*2000*PI()*0.8,0),"")) -> 358 | BD90: 2.64 | BE90: 5382 | BF90: 897 | BG90: 0.630568 | BH90: =IF(Data!$C$59=1,TRUNC(($A24*0.9-BG90)/$P$91*2000*PI()*0.8,0),IF(Data!$C$59=2,TRUNC(($A24*0.8-(BG90+0.1))/$P$91*2000*PI()*0.8,0),"")) -> 875 | BJ90: 2.64 | BK90: 5382 | BL90: 449 | BM90: 0.315284 | BN90: =IF(Data!$C$59=1,TRUNC(($A24*0.9-BM90)/$P$90*2000*PI()*0.8,0),IF(Data!$C$59=2,TRUNC(($A24*0.8-(BM90+0.1))/$P$90*2000*PI()*0.8,0),"")) -> 2068
A91: 0.854 | B91: =0.1*$B$84 -> 800.00 | C91: -2e-05 | D91: 0.854 | N91: PC40…B10 | O91: 5000 | P91: 10 | Q91: 0.2 | R91: 0.213 | S91: 0.21 | T91: 0.24 | U91: 267 | V91: 800 | W91: 0.40 | X91: 0.40 | Y91: 0.44 | Z91: =IF(Data!$E$83=1,Data!$L$117+Data!$F$59+X91/Data!$L$116/Data!$E$59/Data!$L$115,Data!$E$90+Data!$F$59+X91/Data!$G$90/Data!$E$59/Data!$D$90) -> 0.44 | AA91: 0.85 | AB91: =IF(Data!$C$59=1,TRUNC(($A91*0.9-W91)/$P$92*2000*PI()*0.8,0),IF(Data!$C$59=2,TRUNC(($A91*0.8-(W91+0.1))/$P$92*2000*PI()*0.8,0),"")) -> 93 | AE91: 133 | AF91: 800 | AG91: 0.26 | AH91: 0.26 | AI91: 0.29 | AJ91: =IF(Data!$E$83=1,Data!$L$117+Data!$F$59+AH91/Data!$L$116/Data!$E$59/Data!$L$115,Data!$E$90+Data!$F$59+AH91/Data!$G$90/Data!$E$59/Data!$D$90) -> 0.29 | AK91: 0.85 | AL91: =IF(Data!$C$59=1,TRUNC(($A91*0.9-AG91)/$P$91*2000*PI()*0.8,0),IF(Data!$C$59=2,TRUNC(($A91*0.8-(AG91+0.1))/$P$91*2000*PI()*0.8,0),"")) -> 253 | AN91: 67 | AO91: 800 | AP91: 0.13 | AQ91: 0.13 | AR91: 0.15 | AS91: =IF(Data!$E$83=1,Data!$L$117+Data!$F$59+AQ91/Data!$L$116/Data!$E$59/Data!$L$115,Data!$E$90+Data!$F$59+AQ91/Data!$G$90/Data!$E$59/Data!$D$90) -> 0.15 | AT91: 0.85 | AU91: =IF(Data!$C$59=1,TRUNC(($A91*0.9-AP91)/$P$90*2000*PI()*0.8,0),IF(Data!$C$59=2,TRUNC(($A91*0.8-(AP91+0.1))/$P$90*2000*PI()*0.8,0),"")) -> 639 | AX91: 2.59 | AY91: 5463 | AZ91: 1821 | BA91: 0.96 | BB91: =IF(Data!$C$59=1,TRUNC(($A25*0.9-BA91)/$P$92*2000*PI()*0.8,0),IF(Data!$C$59=2,TRUNC(($A25*0.8-(BA91+0.1))/$P$92*2000*PI()*0.8,0),"")) -> 346 | BD91: 2.59 | BE91: 5463 | BF91: 911 | BG91: 0.637048 | BH91: =IF(Data!$C$59=1,TRUNC(($A25*0.9-BG91)/$P$91*2000*PI()*0.8,0),IF(Data!$C$59=2,TRUNC(($A25*0.8-(BG91+0.1))/$P$91*2000*PI()*0.8,0),"")) -> 853 | BJ91: 2.59 | BK91: 5463 | BL91: 455 | BM91: 0.318524 | BN91: =IF(Data!$C$59=1,TRUNC(($A25*0.9-BM91)/$P$90*2000*PI()*0.8,0),IF(Data!$C$59=2,TRUNC(($A25*0.8-(BM91+0.1))/$P$90*2000*PI()*0.8,0),"")) -> 2026
A92: 0.8508 | B92: =0.12*$B$84 -> 960.00 | C92: -2e-05 | D92: 0.8508 | N92: PC40…B20 | O92: 5000 | P92: 20 | Q92: 0.3 | R92: 0.319 | S92: 0.32 | T92: 0.35 | U92: 320 | V92: 960 | W92: 0.42 | X92: 0.42 | Y92: 0.46 | Z92: =IF(Data!$E$83=1,Data!$L$117+Data!$F$59+X92/Data!$L$116/Data!$E$59/Data!$L$115,Data!$E$90+Data!$F$59+X92/Data!$G$90/Data!$E$59/Data!$D$90) -> 0.46 | AA92: 0.85 | AB92: =IF(Data!$C$59=1,TRUNC(($A92*0.9-W92)/$P$92*2000*PI()*0.8,0),IF(Data!$C$59=2,TRUNC(($A92*0.8-(W92+0.1))/$P$92*2000*PI()*0.8,0),"")) -> 88 | AE92: 160 | AF92: 960 | AG92: 0.28 | AH92: 0.28 | AI92: 0.31 | AJ92: =IF(Data!$E$83=1,Data!$L$117+Data!$F$59+AH92/Data!$L$116/Data!$E$59/Data!$L$115,Data!$E$90+Data!$F$59+AH92/Data!$G$90/Data!$E$59/Data!$D$90) -> 0.31 | AK92: 0.85 | AL92: =IF(Data!$C$59=1,TRUNC(($A92*0.9-AG92)/$P$91*2000*PI()*0.8,0),IF(Data!$C$59=2,TRUNC(($A92*0.8-(AG92+0.1))/$P$91*2000*PI()*0.8,0),"")) -> 245 | AN92: 80 | AO92: 960 | AP92: 0.14 | AQ92: 0.14 | AR92: 0.15 | AS92: =IF(Data!$E$83=1,Data!$L$117+Data!$F$59+AQ92/Data!$L$116/Data!$E$59/Data!$L$115,Data!$E$90+Data!$F$59+AQ92/Data!$G$90/Data!$E$59/Data!$D$90) -> 0.15 | AT92: 0.85 | AU92: =IF(Data!$C$59=1,TRUNC(($A92*0.9-AP92)/$P$90*2000*PI()*0.8,0),IF(Data!$C$59=2,TRUNC(($A92*0.8-(AP92+0.1))/$P$90*2000*PI()*0.8,0),"")) -> 630 | AX92: 2.55 | AY92: 5546 | AZ92: 1849 | BA92: 0.97 | BB92: =IF(Data!$C$59=1,TRUNC(($A26*0.9-BA92)/$P$92*2000*PI()*0.8,0),IF(Data!$C$59=2,TRUNC(($A26*0.8-(BA92+0.1))/$P$92*2000*PI()*0.8,0),"")) -> 334 | BD92: 2.55 | BE92: 5546 | BF92: 924 | BG92: 0.643656 | BH92: =IF(Data!$C$59=1,TRUNC(($A26*0.9-BG92)/$P$91*2000*PI()*0.8,0),IF(Data!$C$59=2,TRUNC(($A26*0.8-(BG92+0.1))/$P$91*2000*PI()*0.8,0),"")) -> 830 | BJ92: 2.55 | BK92: 5546 | BL92: 462 | BM92: 0.321828 | BN92: =IF(Data!$C$59=1,TRUNC(($A26*0.9-BM92)/$P$90*2000*PI()*0.8,0),IF(Data!$C$59=2,TRUNC(($A26*0.8-(BM92+0.1))/$P$90*2000*PI()*0.8,0),"")) -> 1984
A93: 0.84824 | B93: =0.14*$B$84 -> 1120.00 | C93: -1.6e-05 | D93: 0.84824 | O93: Max speed | U93: 373 | V93: 1120 | W93: 0.43 | X93: 0.43 | Y93: 0.48 | Z93: =IF(Data!$E$83=1,Data!$L$117+Data!$F$59+X93/Data!$L$116/Data!$E$59/Data!$L$115,Data!$E$90+Data!$F$59+X93/Data!$G$90/Data!$E$59/Data!$D$90) -> 0.48 | AA93: 0.85 | AB93: =IF(Data!$C$59=1,TRUNC(($A93*0.9-W93)/$P$92*2000*PI()*0.8,0),IF(Data!$C$59=2,TRUNC(($A93*0.8-(W93+0.1))/$P$92*2000*PI()*0.8,0),"")) -> 82 | AE93: 187 | AF93: 1120 | AG93: 0.29 | AH93: 0.29 | AI93: 0.32 | AJ93: =IF(Data!$E$83=1,Data!$L$117+Data!$F$59+AH93/Data!$L$116/Data!$E$59/Data!$L$115,Data!$E$90+Data!$F$59+AH93/Data!$G$90/Data!$E$59/Data!$D$90) -> 0.32 | AK93: 0.85 | AL93: =IF(Data!$C$59=1,TRUNC(($A93*0.9-AG93)/$P$91*2000*PI()*0.8,0),IF(Data!$C$59=2,TRUNC(($A93*0.8-(AG93+0.1))/$P$91*2000*PI()*0.8,0),"")) -> 238 | AN93: 93 | AO93: 1120 | AP93: 0.14 | AQ93: 0.14 | AR93: 0.16 | AS93: =IF(Data!$E$83=1,Data!$L$117+Data!$F$59+AQ93/Data!$L$116/Data!$E$59/Data!$L$115,Data!$E$90+Data!$F$59+AQ93/Data!$G$90/Data!$E$59/Data!$D$90) -> 0.16 | AT93: 0.85 | AU93: =IF(Data!$C$59=1,TRUNC(($A93*0.9-AP93)/$P$90*2000*PI()*0.8,0),IF(Data!$C$59=2,TRUNC(($A93*0.8-(AP93+0.1))/$P$90*2000*PI()*0.8,0),"")) -> 621 | AX93: 2.51 | AY93: 5630 | AZ93: 1877 | BA93: 0.98 | BB93: =IF(Data!$C$59=1,TRUNC(($A27*0.9-BA93)/$P$92*2000*PI()*0.8,0),IF(Data!$C$59=2,TRUNC(($A27*0.8-(BA93+0.1))/$P$92*2000*PI()*0.8,0),"")) -> 321 | BD93: 2.51 | BE93: 5630 | BF93: 938 | BG93: 0.6504 | BH93: =IF(Data!$C$59=1,TRUNC(($A27*0.9-BG93)/$P$91*2000*PI()*0.8,0),IF(Data!$C$59=2,TRUNC(($A27*0.8-(BG93+0.1))/$P$91*2000*PI()*0.8,0),"")) -> 807 | BJ93: 2.51 | BK93: 5630 | BL93: 469 | BM93: 0.3252 | BN93: =IF(Data!$C$59=1,TRUNC(($A27*0.9-BM93)/$P$90*2000*PI()*0.8,0),IF(Data!$C$59=2,TRUNC(($A27*0.8-(BM93+0.1))/$P$90*2000*PI()*0.8,0),"")) -> 1941
A94: 0.84568 | B94: =0.16*$B$84 -> 1280.00 | C94: -1.6e-05 | D94: 0.84568 | O94: mm/s | U94: 427 | V94: 1280 | W94: 0.45 | X94: 0.45 | Y94: 0.50 | Z94: =IF(Data!$E$83=1,Data!$L$117+Data!$F$59+X94/Data!$L$116/Data!$E$59/Data!$L$115,Data!$E$90+Data!$F$59+X94/Data!$G$90/Data!$E$59/Data!$D$90) -> 0.50 | AA94: 0.85 | AB94: =IF(Data!$C$59=1,TRUNC(($A94*0.9-W94)/$P$92*2000*PI()*0.8,0),IF(Data!$C$59=2,TRUNC(($A94*0.8-(W94+0.1))/$P$92*2000*PI()*0.8,0),"")) -> 77 | AE94: 213 | AF94: 1280 | AG94: 0.30 | AH94: 0.30 | AI94: 0.34 | AJ94: =IF(Data!$E$83=1,Data!$L$117+Data!$F$59+AH94/Data!$L$116/Data!$E$59/Data!$L$115,Data!$E$90+Data!$F$59+AH94/Data!$G$90/Data!$E$59/Data!$D$90) -> 0.34 | AK94: 0.85 | AL94: =IF(Data!$C$59=1,TRUNC(($A94*0.9-AG94)/$P$91*2000*PI()*0.8,0),IF(Data!$C$59=2,TRUNC(($A94*0.8-(AG94+0.1))/$P$91*2000*PI()*0.8,0),"")) -> 230 | AN94: 107 | AO94: 1280 | AP94: 0.15 | AQ94: 0.15 | AR94: 0.17 | AS94: =IF(Data!$E$83=1,Data!$L$117+Data!$F$59+AQ94/Data!$L$116/Data!$E$59/Data!$L$115,Data!$E$90+Data!$F$59+AQ94/Data!$G$90/Data!$E$59/Data!$D$90) -> 0.17 | AT94: 0.85 | AU94: =IF(Data!$C$59=1,TRUNC(($A94*0.9-AP94)/$P$90*2000*PI()*0.8,0),IF(Data!$C$59=2,TRUNC(($A94*0.8-(AP94+0.1))/$P$90*2000*PI()*0.8,0),"")) -> 613 | AX94: 2.46 | AY94: 5716 | AZ94: 1905 | BA94: 0.99 | BB94: =IF(Data!$C$59=1,TRUNC(($A28*0.9-BA94)/$P$92*2000*PI()*0.8,0),IF(Data!$C$59=2,TRUNC(($A28*0.8-(BA94+0.1))/$P$92*2000*PI()*0.8,0),"")) -> 309 | BD94: 2.46 | BE94: 5716 | BF94: 953 | BG94: 0.657264 | BH94: =IF(Data!$C$59=1,TRUNC(($A28*0.9-BG94)/$P$91*2000*PI()*0.8,0),IF(Data!$C$59=2,TRUNC(($A28*0.8-(BG94+0.1))/$P$91*2000*PI()*0.8,0),"")) -> 784 | BJ94: 2.46 | BK94: 5716 | BL94: 476 | BM94: 0.328632 | BN94: =IF(Data!$C$59=1,TRUNC(($A28*0.9-BM94)/$P$90*2000*PI()*0.8,0),IF(Data!$C$59=2,TRUNC(($A28*0.8-(BM94+0.1))/$P$90*2000*PI()*0.8,0),"")) -> 1898
A95: 0.84312 | B95: =0.18*$B$84 -> 1440.00 | C95: -1.6e-05 | D95: 0.84312 | N95: PC25…B03 | O95: =O86/60*P86 -> 400 | U95: 480 | V95: 1440 | W95: 0.47 | X95: 0.47 | Y95: 0.53 | Z95: =IF(Data!$E$83=1,Data!$L$117+Data!$F$59+X95/Data!$L$116/Data!$E$59/Data!$L$115,Data!$E$90+Data!$F$59+X95/Data!$G$90/Data!$E$59/Data!$D$90) -> 0.53 | AA95: 0.84 | AB95: =IF(Data!$C$59=1,TRUNC(($A95*0.9-W95)/$P$92*2000*PI()*0.8,0),IF(Data!$C$59=2,TRUNC(($A95*0.8-(W95+0.1))/$P$92*2000*PI()*0.8,0),"")) -> 71 | AE95: 240 | AF95: 1440 | AG95: 0.32 | AH95: 0.32 | AI95: 0.35 | AJ95: =IF(Data!$E$83=1,Data!$L$117+Data!$F$59+AH95/Data!$L$116/Data!$E$59/Data!$L$115,Data!$E$90+Data!$F$59+AH95/Data!$G$90/Data!$E$59/Data!$D$90) -> 0.35 | AK95: 0.84 | AL95: =IF(Data!$C$59=1,TRUNC(($A95*0.9-AG95)/$P$91*2000*PI()*0.8,0),IF(Data!$C$59=2,TRUNC(($A95*0.8-(AG95+0.1))/$P$91*2000*PI()*0.8,0),"")) -> 222 | AN95: 120 | AO95: 1440 | AP95: 0.16 | AQ95: 0.16 | AR95: 0.18 | AS95: =IF(Data!$E$83=1,Data!$L$117+Data!$F$59+AQ95/Data!$L$116/Data!$E$59/Data!$L$115,Data!$E$90+Data!$F$59+AQ95/Data!$G$90/Data!$E$59/Data!$D$90) -> 0.18 | AT95: 0.84 | AU95: =IF(Data!$C$59=1,TRUNC(($A95*0.9-AP95)/$P$90*2000*PI()*0.8,0),IF(Data!$C$59=2,TRUNC(($A95*0.8-(AP95+0.1))/$P$90*2000*PI()*0.8,0),"")) -> 604 | AX95: 2.42 | AY95: 5803 | AZ95: 1934 | BA95: 1.00 | BB95: =IF(Data!$C$59=1,TRUNC(($A29*0.9-BA95)/$P$92*2000*PI()*0.8,0),IF(Data!$C$59=2,TRUNC(($A29*0.8-(BA95+0.1))/$P$92*2000*PI()*0.8,0),"")) -> 296 | BD95: 2.42 | BE95: 5803 | BF95: 967 | BG95: 0.664264 | BH95: =IF(Data!$C$59=1,TRUNC(($A29*0.9-BG95)/$P$91*2000*PI()*0.8,0),IF(Data!$C$59=2,TRUNC(($A29*0.8-(BG95+0.1))/$P$91*2000*PI()*0.8,0),"")) -> 760 | BJ95: 2.42 | BK95: 5803 | BL95: 484 | BM95: 0.332132 | BN95: =IF(Data!$C$59=1,TRUNC(($A29*0.9-BM95)/$P$90*2000*PI()*0.8,0),IF(Data!$C$59=2,TRUNC(($A29*0.8-(BM95+0.1))/$P$90*2000*PI()*0.8,0),"")) -> 1854
A96: 0.84056 | B96: =0.2*$B$84 -> 1600.00 | C96: -1.6e-05 | D96: 0.84056 | N96: PC25…B10 | O96: =O87/60*P87 -> 1333.33 | U96: 533 | V96: 1600 | W96: 0.49 | X96: 0.49 | Y96: 0.55 | Z96: =IF(Data!$E$83=1,Data!$L$117+Data!$F$59+X96/Data!$L$116/Data!$E$59/Data!$L$115,Data!$E$90+Data!$F$59+X96/Data!$G$90/Data!$E$59/Data!$D$90) -> 0.55 | AA96: 0.84 | AB96: =IF(Data!$C$59=1,TRUNC(($A96*0.9-W96)/$P$92*2000*PI()*0.8,0),IF(Data!$C$59=2,TRUNC(($A96*0.8-(W96+0.1))/$P$92*2000*PI()*0.8,0),"")) -> 66 | AE96: 267 | AF96: 1600 | AG96: 0.33 | AH96: 0.33 | AI96: 0.36 | AJ96: =IF(Data!$E$83=1,Data!$L$117+Data!$F$59+AH96/Data!$L$116/Data!$E$59/Data!$L$115,Data!$E$90+Data!$F$59+AH96/Data!$G$90/Data!$E$59/Data!$D$90) -> 0.36 | AK96: 0.84 | AL96: =IF(Data!$C$59=1,TRUNC(($A96*0.9-AG96)/$P$91*2000*PI()*0.8,0),IF(Data!$C$59=2,TRUNC(($A96*0.8-(AG96+0.1))/$P$91*2000*PI()*0.8,0),"")) -> 215 | AN96: 133 | AO96: 1600 | AP96: 0.16 | AQ96: 0.16 | AR96: 0.18 | AS96: =IF(Data!$E$83=1,Data!$L$117+Data!$F$59+AQ96/Data!$L$116/Data!$E$59/Data!$L$115,Data!$E$90+Data!$F$59+AQ96/Data!$G$90/Data!$E$59/Data!$D$90) -> 0.18 | AT96: 0.84 | AU96: =IF(Data!$C$59=1,TRUNC(($A96*0.9-AP96)/$P$90*2000*PI()*0.8,0),IF(Data!$C$59=2,TRUNC(($A96*0.8-(AP96+0.1))/$P$90*2000*PI()*0.8,0),"")) -> 595 | AX96: 2.37 | AY96: 5892 | AZ96: 1964 | BA96: 1.01 | BB96: =IF(Data!$C$59=1,TRUNC(($A30*0.9-BA96)/$P$92*2000*PI()*0.8,0),IF(Data!$C$59=2,TRUNC(($A30*0.8-(BA96+0.1))/$P$92*2000*PI()*0.8,0),"")) -> 283 | BD96: 2.37 | BE96: 5892 | BF96: 982 | BG96: 0.671392 | BH96: =IF(Data!$C$59=1,TRUNC(($A30*0.9-BG96)/$P$91*2000*PI()*0.8,0),IF(Data!$C$59=2,TRUNC(($A30*0.8-(BG96+0.1))/$P$91*2000*PI()*0.8,0),"")) -> 736 | BJ96: 2.37 | BK96: 5892 | BL96: 491 | BM96: 0.335696 | BN96: =IF(Data!$C$59=1,TRUNC(($A30*0.9-BM96)/$P$90*2000*PI()*0.8,0),IF(Data!$C$59=2,TRUNC(($A30*0.8-(BM96+0.1))/$P$90*2000*PI()*0.8,0),"")) -> 1809
A97: 0.838 | B97: =0.22*$B$84 -> 1760.00 | C97: -1.6e-05 | D97: 0.838 | N97: PC32…B04 | O97: 400 | U97: 587 | V97: 1760 | W97: 0.51 | X97: 0.51 | Y97: 0.57 | Z97: =IF(Data!$E$83=1,Data!$L$117+Data!$F$59+X97/Data!$L$116/Data!$E$59/Data!$L$115,Data!$E$90+Data!$F$59+X97/Data!$G$90/Data!$E$59/Data!$D$90) -> 0.57 | AA97: 0.84 | AB97: =IF(Data!$C$59=1,TRUNC(($A97*0.9-W97)/$P$92*2000*PI()*0.8,0),IF(Data!$C$59=2,TRUNC(($A97*0.8-(W97+0.1))/$P$92*2000*PI()*0.8,0),"")) -> 61 | AE97: 293 | AF97: 1760 | AG97: 0.34 | AH97: 0.34 | AI97: 0.38 | AJ97: =IF(Data!$E$83=1,Data!$L$117+Data!$F$59+AH97/Data!$L$116/Data!$E$59/Data!$L$115,Data!$E$90+Data!$F$59+AH97/Data!$G$90/Data!$E$59/Data!$D$90) -> 0.38 | AK97: 0.84 | AL97: =IF(Data!$C$59=1,TRUNC(($A97*0.9-AG97)/$P$91*2000*PI()*0.8,0),IF(Data!$C$59=2,TRUNC(($A97*0.8-(AG97+0.1))/$P$91*2000*PI()*0.8,0),"")) -> 207 | AN97: 147 | AO97: 1760 | AP97: 0.17 | AQ97: 0.17 | AR97: 0.19 | AS97: =IF(Data!$E$83=1,Data!$L$117+Data!$F$59+AQ97/Data!$L$116/Data!$E$59/Data!$L$115,Data!$E$90+Data!$F$59+AQ97/Data!$G$90/Data!$E$59/Data!$D$90) -> 0.19 | AT97: 0.84 | AU97: =IF(Data!$C$59=1,TRUNC(($A97*0.9-AP97)/$P$90*2000*PI()*0.8,0),IF(Data!$C$59=2,TRUNC(($A97*0.8-(AP97+0.1))/$P$90*2000*PI()*0.8,0),"")) -> 586 | AX97: 2.33 | AY97: 5983 | AZ97: 1994 | BA97: 1.02 | BB97: =IF(Data!$C$59=1,TRUNC(($A31*0.9-BA97)/$P$92*2000*PI()*0.8,0),IF(Data!$C$59=2,TRUNC(($A31*0.8-(BA97+0.1))/$P$92*2000*PI()*0.8,0),"")) -> 270 | BD97: 2.33 | BE97: 5983 | BF97: 997 | BG97: 0.678656 | BH97: =IF(Data!$C$59=1,TRUNC(($A31*0.9-BG97)/$P$91*2000*PI()*0.8,0),IF(Data!$C$59=2,TRUNC(($A31*0.8-(BG97+0.1))/$P$91*2000*PI()*0.8,0),"")) -> 711 | BJ97: 2.33 | BK97: 5983 | BL97: 499 | BM97: 0.339328 | BN97: =IF(Data!$C$59=1,TRUNC(($A31*0.9-BM97)/$P$90*2000*PI()*0.8,0),IF(Data!$C$59=2,TRUNC(($A31*0.8-(BM97+0.1))/$P$90*2000*PI()*0.8,0),"")) -> 1764
A98: 0.83544 | B98: =0.24*$B$84 -> 1920.00 | C98: -1.6e-05 | D98: 0.83544 | N98: PC32…B10 | O98: 1000 | U98: 640 | V98: 1920 | W98: 0.53 | X98: 0.53 | Y98: 0.59 | Z98: =IF(Data!$E$83=1,Data!$L$117+Data!$F$59+X98/Data!$L$116/Data!$E$59/Data!$L$115,Data!$E$90+Data!$F$59+X98/Data!$G$90/Data!$E$59/Data!$D$90) -> 0.59 | AA98: 0.84 | AB98: =IF(Data!$C$59=1,TRUNC(($A98*0.9-W98)/$P$92*2000*PI()*0.8,0),IF(Data!$C$59=2,TRUNC(($A98*0.8-(W98+0.1))/$P$92*2000*PI()*0.8,0),"")) -> 55 | AE98: 320 | AF98: 1920 | AG98: 0.35 | AH98: 0.35 | AI98: 0.39 | AJ98: =IF(Data!$E$83=1,Data!$L$117+Data!$F$59+AH98/Data!$L$116/Data!$E$59/Data!$L$115,Data!$E$90+Data!$F$59+AH98/Data!$G$90/Data!$E$59/Data!$D$90) -> 0.39 | AK98: 0.84 | AL98: =IF(Data!$C$59=1,TRUNC(($A98*0.9-AG98)/$P$91*2000*PI()*0.8,0),IF(Data!$C$59=2,TRUNC(($A98*0.8-(AG98+0.1))/$P$91*2000*PI()*0.8,0),"")) -> 200 | AN98: 160 | AO98: 1920 | AP98: 0.18 | AQ98: 0.18 | AR98: 0.20 | AS98: =IF(Data!$E$83=1,Data!$L$117+Data!$F$59+AQ98/Data!$L$116/Data!$E$59/Data!$L$115,Data!$E$90+Data!$F$59+AQ98/Data!$G$90/Data!$E$59/Data!$D$90) -> 0.20 | AT98: 0.84 | AU98: =IF(Data!$C$59=1,TRUNC(($A98*0.9-AP98)/$P$90*2000*PI()*0.8,0),IF(Data!$C$59=2,TRUNC(($A98*0.8-(AP98+0.1))/$P$90*2000*PI()*0.8,0),"")) -> 578 | AX98: 2.28 | AY98: 6076 | AZ98: 2025 | BA98: 1.03 | BB98: =IF(Data!$C$59=1,TRUNC(($A32*0.9-BA98)/$P$92*2000*PI()*0.8,0),IF(Data!$C$59=2,TRUNC(($A32*0.8-(BA98+0.1))/$P$92*2000*PI()*0.8,0),"")) -> 257 | BD98: 2.28 | BE98: 6076 | BF98: 1013 | BG98: 0.686048 | BH98: =IF(Data!$C$59=1,TRUNC(($A32*0.9-BG98)/$P$91*2000*PI()*0.8,0),IF(Data!$C$59=2,TRUNC(($A32*0.8-(BG98+0.1))/$P$91*2000*PI()*0.8,0),"")) -> 686 | BJ98: 2.28 | BK98: 6076 | BL98: 506 | BM98: 0.343024 | BN98: =IF(Data!$C$59=1,TRUNC(($A32*0.9-BM98)/$P$90*2000*PI()*0.8,0),IF(Data!$C$59=2,TRUNC(($A32*0.8-(BM98+0.1))/$P$90*2000*PI()*0.8,0),"")) -> 1718
A99: 0.83288 | B99: =0.26*$B$84 -> 2080.00 | C99: -1.6e-05 | D99: 0.83288 | N99: PC40…B05 | O99: 416.667 | P99: Motor continuous | S99: Load | T99: 0 | U99: 693 | V99: 2080 | W99: 0.55 | X99: 0.55 | Y99: 0.61 | Z99: =IF(Data!$E$83=1,Data!$L$117+Data!$F$59+X99/Data!$L$116/Data!$E$59/Data!$L$115,Data!$E$90+Data!$F$59+X99/Data!$G$90/Data!$E$59/Data!$D$90) -> 0.61 | AA99: 0.83 | AB99: =IF(Data!$C$59=1,TRUNC(($A99*0.9-W99)/$P$92*2000*PI()*0.8,0),IF(Data!$C$59=2,TRUNC(($A99*0.8-(W99+0.1))/$P$92*2000*PI()*0.8,0),"")) -> 50 | AE99: 347 | AF99: 2080 | AG99: 0.37 | AH99: 0.37 | AI99: 0.41 | AJ99: =IF(Data!$E$83=1,Data!$L$117+Data!$F$59+AH99/Data!$L$116/Data!$E$59/Data!$L$115,Data!$E$90+Data!$F$59+AH99/Data!$G$90/Data!$E$59/Data!$D$90) -> 0.41 | AK99: 0.83 | AL99: =IF(Data!$C$59=1,TRUNC(($A99*0.9-AG99)/$P$91*2000*PI()*0.8,0),IF(Data!$C$59=2,TRUNC(($A99*0.8-(AG99+0.1))/$P$91*2000*PI()*0.8,0),"")) -> 192 | AN99: 173 | AO99: 2080 | AP99: 0.18 | AQ99: 0.18 | AR99: 0.20 | AS99: =IF(Data!$E$83=1,Data!$L$117+Data!$F$59+AQ99/Data!$L$116/Data!$E$59/Data!$L$115,Data!$E$90+Data!$F$59+AQ99/Data!$G$90/Data!$E$59/Data!$D$90) -> 0.20 | AT99: 0.83 | AU99: =IF(Data!$C$59=1,TRUNC(($A99*0.9-AP99)/$P$90*2000*PI()*0.8,0),IF(Data!$C$59=2,TRUNC(($A99*0.8-(AP99+0.1))/$P$90*2000*PI()*0.8,0),"")) -> 569 | AX99: 2.23 | AY99: 6170 | AZ99: 2057 | BA99: 1.04 | BB99: =IF(Data!$C$59=1,TRUNC(($A33*0.9-BA99)/$P$92*2000*PI()*0.8,0),IF(Data!$C$59=2,TRUNC(($A33*0.8-(BA99+0.1))/$P$92*2000*PI()*0.8,0),"")) -> 243 | BD99: 2.23 | BE99: 6170 | BF99: 1028 | BG99: 0.693576 | BH99: =IF(Data!$C$59=1,TRUNC(($A33*0.9-BG99)/$P$91*2000*PI()*0.8,0),IF(Data!$C$59=2,TRUNC(($A33*0.8-(BG99+0.1))/$P$91*2000*PI()*0.8,0),"")) -> 661 | BJ99: 2.23 | BK99: 6170 | BL99: 514 | BM99: 0.346788 | BN99: =IF(Data!$C$59=1,TRUNC(($A33*0.9-BM99)/$P$90*2000*PI()*0.8,0),IF(Data!$C$59=2,TRUNC(($A33*0.8-(BM99+0.1))/$P$90*2000*PI()*0.8,0),"")) -> 1672
A100: 0.83032 | B100: =0.28*$B$84 -> 2240.00 | C100: -1.6e-05 | D100: 0.83032 | N100: PC40…B10 | O100: 833.333 | P100: Torque max | Q100: =A86 -> 0.87 | U100: 747 | V100: 2240 | W100: 0.57 | X100: 0.57 | Y100: 0.63 | Z100: =IF(Data!$E$83=1,Data!$L$117+Data!$F$59+X100/Data!$L$116/Data!$E$59/Data!$L$115,Data!$E$90+Data!$F$59+X100/Data!$G$90/Data!$E$59/Data!$D$90) -> 0.63 | AA100: 0.83 | AB100: =IF(Data!$C$59=1,TRUNC(($A100*0.9-W100)/$P$92*2000*PI()*0.8,0),IF(Data!$C$59=2,TRUNC(($A100*0.8-(W100+0.1))/$P$92*2000*PI()*0.8,0),"")) -> 44 | AE100: 373 | AF100: 2240 | AG100: 0.38 | AH100: 0.38 | AI100: 0.42 | AJ100: =IF(Data!$E$83=1,Data!$L$117+Data!$F$59+AH100/Data!$L$116/Data!$E$59/Data!$L$115,Data!$E$90+Data!$F$59+AH100/Data!$G$90/Data!$E$59/Data!$D$90) -> 0.42 | AK100: 0.83 | AL100: =IF(Data!$C$59=1,TRUNC(($A100*0.9-AG100)/$P$91*2000*PI()*0.8,0),IF(Data!$C$59=2,TRUNC(($A100*0.8-(AG100+0.1))/$P$91*2000*PI()*0.8,0),"")) -> 185 | AN100: 187 | AO100: 2240 | AP100: 0.19 | AQ100: 0.19 | AR100: 0.21 | AS100: =IF(Data!$E$83=1,Data!$L$117+Data!$F$59+AQ100/Data!$L$116/Data!$E$59/Data!$L$115,Data!$E$90+Data!$F$59+AQ100/Data!$G$90/Data!$E$59/Data!$D$90) -> 0.21 | AT100: 0.83 | AU100: =IF(Data!$C$59=1,TRUNC(($A100*0.9-AP100)/$P$90*2000*PI()*0.8,0),IF(Data!$C$59=2,TRUNC(($A100*0.8-(AP100+0.1))/$P$90*2000*PI()*0.8,0),"")) -> 560 | AX100: 2.19 | AY100: 6266 | AZ100: 2089 | BA100: 1.05 | BB100: =IF(Data!$C$59=1,TRUNC(($A34*0.9-BA100)/$P$92*2000*PI()*0.8,0),IF(Data!$C$59=2,TRUNC(($A34*0.8-(BA100+0.1))/$P$92*2000*PI()*0.8,0),"")) -> 230 | BD100: 2.19 | BE100: 6266 | BF100: 1044 | BG100: 0.70124 | BH100: =IF(Data!$C$59=1,TRUNC(($A34*0.9-BG100)/$P$91*2000*PI()*0.8,0),IF(Data!$C$59=2,TRUNC(($A34*0.8-(BG100+0.1))/$P$91*2000*PI()*0.8,0),"")) -> 636 | BJ100: 2.19 | BK100: 6266 | BL100: 522 | BM100: 0.35062 | BN100: =IF(Data!$C$59=1,TRUNC(($A34*0.9-BM100)/$P$90*2000*PI()*0.8,0),IF(Data!$C$59=2,TRUNC(($A34*0.8-(BM100+0.1))/$P$90*2000*PI()*0.8,0),"")) -> 1625
A101: 0.82776 | B101: =0.3*$B$84 -> 2400.00 | C101: -1.6e-05 | D101: 0.82776 | N101: PC40…B20 | O101: 1666.667 | P101: rpm max | Q101: =B136 -> 8000 | U101: 800 | V101: 2400 | W101: 0.59 | X101: 0.59 | Y101: 0.65 | Z101: =IF(Data!$E$83=1,Data!$L$117+Data!$F$59+X101/Data!$L$116/Data!$E$59/Data!$L$115,Data!$E$90+Data!$F$59+X101/Data!$G$90/Data!$E$59/Data!$D$90) -> 0.65 | AA101: 0.83 | AB101: =IF(Data!$C$59=1,TRUNC(($A101*0.9-W101)/$P$92*2000*PI()*0.8,0),IF(Data!$C$59=2,TRUNC(($A101*0.8-(W101+0.1))/$P$92*2000*PI()*0.8,0),"")) -> 39 | AE101: 400 | AF101: 2400 | AG101: 0.39 | AH101: 0.39 | AI101: 0.44 | AJ101: =IF(Data!$E$83=1,Data!$L$117+Data!$F$59+AH101/Data!$L$116/Data!$E$59/Data!$L$115,Data!$E$90+Data!$F$59+AH101/Data!$G$90/Data!$E$59/Data!$D$90) -> 0.44 | AK101: 0.83 | AL101: =IF(Data!$C$59=1,TRUNC(($A101*0.9-AG101)/$P$91*2000*PI()*0.8,0),IF(Data!$C$59=2,TRUNC(($A101*0.8-(AG101+0.1))/$P$91*2000*PI()*0.8,0),"")) -> 177 | AN101: 200 | AO101: 2400 | AP101: 0.20 | AQ101: 0.20 | AR101: 0.22 | AS101: =IF(Data!$E$83=1,Data!$L$117+Data!$F$59+AQ101/Data!$L$116/Data!$E$59/Data!$L$115,Data!$E$90+Data!$F$59+AQ101/Data!$G$90/Data!$E$59/Data!$D$90) -> 0.22 | AT101: 0.83 | AU101: =IF(Data!$C$59=1,TRUNC(($A101*0.9-AP101)/$P$90*2000*PI()*0.8,0),IF(Data!$C$59=2,TRUNC(($A101*0.8-(AP101+0.1))/$P$90*2000*PI()*0.8,0),"")) -> 551 | AX101: 2.14 | AY101: 6363 | AZ101: 2121 | BA101: 1.06 | BB101: =IF(Data!$C$59=1,TRUNC(($A35*0.9-BA101)/$P$92*2000*PI()*0.8,0),IF(Data!$C$59=2,TRUNC(($A35*0.8-(BA101+0.1))/$P$92*2000*PI()*0.8,0),"")) -> 216 | BD101: 2.14 | BE101: 6363 | BF101: 1060 | BG101: 0.709032 | BH101: =IF(Data!$C$59=1,TRUNC(($A35*0.9-BG101)/$P$91*2000*PI()*0.8,0),IF(Data!$C$59=2,TRUNC(($A35*0.8-(BG101+0.1))/$P$91*2000*PI()*0.8,0),"")) -> 610 | BJ101: 2.14 | BK101: 6363 | BL101: 530 | BM101: 0.354516 | BN101: =IF(Data!$C$59=1,TRUNC(($A35*0.9-BM101)/$P$90*2000*PI()*0.8,0),IF(Data!$C$59=2,TRUNC(($A35*0.8-(BM101+0.1))/$P$90*2000*PI()*0.8,0),"")) -> 1577
A102: 0.8252 | B102: =0.32*$B$84 -> 2560.00 | C102: -1.6e-05 | D102: 0.8252 | P102: Voltage | Q102: =C141 -> 320 | U102: 853 | V102: 2560 | W102: 0.61 | X102: 0.61 | Y102: 0.67 | Z102: =IF(Data!$E$83=1,Data!$L$117+Data!$F$59+X102/Data!$L$116/Data!$E$59/Data!$L$115,Data!$E$90+Data!$F$59+X102/Data!$G$90/Data!$E$59/Data!$D$90) -> 0.67 | AA102: 0.83 | AB102: =IF(Data!$C$59=1,TRUNC(($A102*0.9-W102)/$P$92*2000*PI()*0.8,0),IF(Data!$C$59=2,TRUNC(($A102*0.8-(W102+0.1))/$P$92*2000*PI()*0.8,0),"")) -> 34 | AE102: 427 | AF102: 2560 | AG102: 0.40 | AH102: 0.40 | AI102: 0.45 | AJ102: =IF(Data!$E$83=1,Data!$L$117+Data!$F$59+AH102/Data!$L$116/Data!$E$59/Data!$L$115,Data!$E$90+Data!$F$59+AH102/Data!$G$90/Data!$E$59/Data!$D$90) -> 0.45 | AK102: 0.83 | AL102: =IF(Data!$C$59=1,TRUNC(($A102*0.9-AG102)/$P$91*2000*PI()*0.8,0),IF(Data!$C$59=2,TRUNC(($A102*0.8-(AG102+0.1))/$P$91*2000*PI()*0.8,0),"")) -> 169 | AN102: 213 | AO102: 2560 | AP102: 0.20 | AQ102: 0.20 | AR102: 0.22 | AS102: =IF(Data!$E$83=1,Data!$L$117+Data!$F$59+AQ102/Data!$L$116/Data!$E$59/Data!$L$115,Data!$E$90+Data!$F$59+AQ102/Data!$G$90/Data!$E$59/Data!$D$90) -> 0.22 | AT102: 0.83 | AU102: =IF(Data!$C$59=1,TRUNC(($A102*0.9-AP102)/$P$90*2000*PI()*0.8,0),IF(Data!$C$59=2,TRUNC(($A102*0.8-(AP102+0.1))/$P$90*2000*PI()*0.8,0),"")) -> 543 | AX102: 2.09 | AY102: 6462 | AZ102: 2154 | BA102: 1.08 | BB102: =IF(Data!$C$59=1,TRUNC(($A36*0.9-BA102)/$P$92*2000*PI()*0.8,0),IF(Data!$C$59=2,TRUNC(($A36*0.8-(BA102+0.1))/$P$92*2000*PI()*0.8,0),"")) -> 202 | BD102: 2.09 | BE102: 6462 | BF102: 1077 | BG102: 0.716952 | BH102: =IF(Data!$C$59=1,TRUNC(($A36*0.9-BG102)/$P$91*2000*PI()*0.8,0),IF(Data!$C$59=2,TRUNC(($A36*0.8-(BG102+0.1))/$P$91*2000*PI()*0.8,0),"")) -> 584 | BJ102: 2.09 | BK102: 6462 | BL102: 538 | BM102: 0.358476 | BN102: =IF(Data!$C$59=1,TRUNC(($A36*0.9-BM102)/$P$90*2000*PI()*0.8,0),IF(Data!$C$59=2,TRUNC(($A36*0.8-(BM102+0.1))/$P$90*2000*PI()*0.8,0),"")) -> 1529
A103: 0.82264 | B103: =0.34*$B$84 -> 2720.00 | C103: -1.6e-05 | D103: 0.82264 | U103: 907 | V103: 2720 | W103: 0.63 | X103: 0.63 | Y103: 0.70 | Z103: =IF(Data!$E$83=1,Data!$L$117+Data!$F$59+X103/Data!$L$116/Data!$E$59/Data!$L$115,Data!$E$90+Data!$F$59+X103/Data!$G$90/Data!$E$59/Data!$D$90) -> 0.70 | AA103: 0.82 | AB103: =IF(Data!$C$59=1,TRUNC(($A103*0.9-W103)/$P$92*2000*PI()*0.8,0),IF(Data!$C$59=2,TRUNC(($A103*0.8-(W103+0.1))/$P$92*2000*PI()*0.8,0),"")) -> 28 | AE103: 453 | AF103: 2720 | AG103: 0.42 | AH103: 0.42 | AI103: 0.46 | AJ103: =IF(Data!$E$83=1,Data!$L$117+Data!$F$59+AH103/Data!$L$116/Data!$E$59/Data!$L$115,Data!$E$90+Data!$F$59+AH103/Data!$G$90/Data!$E$59/Data!$D$90) -> 0.46 | AK103: 0.82 | AL103: =IF(Data!$C$59=1,TRUNC(($A103*0.9-AG103)/$P$91*2000*PI()*0.8,0),IF(Data!$C$59=2,TRUNC(($A103*0.8-(AG103+0.1))/$P$91*2000*PI()*0.8,0),"")) -> 162 | AN103: 227 | AO103: 2720 | AP103: 0.21 | AQ103: 0.21 | AR103: 0.23 | AS103: =IF(Data!$E$83=1,Data!$L$117+Data!$F$59+AQ103/Data!$L$116/Data!$E$59/Data!$L$115,Data!$E$90+Data!$F$59+AQ103/Data!$G$90/Data!$E$59/Data!$D$90) -> 0.23 | AT103: 0.82 | AU103: =IF(Data!$C$59=1,TRUNC(($A103*0.9-AP103)/$P$90*2000*PI()*0.8,0),IF(Data!$C$59=2,TRUNC(($A103*0.8-(AP103+0.1))/$P$90*2000*PI()*0.8,0),"")) -> 534 | AX103: 2.04 | AY103: 6563 | AZ103: 2188 | BA103: 1.09 | BB103: =IF(Data!$C$59=1,TRUNC(($A37*0.9-BA103)/$P$92*2000*PI()*0.8,0),IF(Data!$C$59=2,TRUNC(($A37*0.8-(BA103+0.1))/$P$92*2000*PI()*0.8,0),"")) -> 187 | BD103: 2.04 | BE103: 6563 | BF103: 1094 | BG103: 0.725 | BH103: =IF(Data!$C$59=1,TRUNC(($A37*0.9-BG103)/$P$91*2000*PI()*0.8,0),IF(Data!$C$59=2,TRUNC(($A37*0.8-(BG103+0.1))/$P$91*2000*PI()*0.8,0),"")) -> 558 | BJ103: 2.04 | BK103: 6563 | BL103: 547 | BM103: 0.3625 | BN103: =IF(Data!$C$59=1,TRUNC(($A37*0.9-BM103)/$P$90*2000*PI()*0.8,0),IF(Data!$C$59=2,TRUNC(($A37*0.8-(BM103+0.1))/$P$90*2000*PI()*0.8,0),"")) -> 1480
A104: 0.82008 | B104: =0.36*$B$84 -> 2880.00 | C104: -1.6e-05 | D104: 0.82008 | U104: 960 | V104: 2880 | W104: 0.65 | X104: 0.65 | Y104: 0.72 | Z104: =IF(Data!$E$83=1,Data!$L$117+Data!$F$59+X104/Data!$L$116/Data!$E$59/Data!$L$115,Data!$E$90+Data!$F$59+X104/Data!$G$90/Data!$E$59/Data!$D$90) -> 0.72 | AA104: 0.82 | AB104: =IF(Data!$C$59=1,TRUNC(($A104*0.9-W104)/$P$92*2000*PI()*0.8,0),IF(Data!$C$59=2,TRUNC(($A104*0.8-(W104+0.1))/$P$92*2000*PI()*0.8,0),"")) -> 23 | AE104: 480 | AF104: 2880 | AG104: 0.43 | AH104: 0.43 | AI104: 0.48 | AJ104: =IF(Data!$E$83=1,Data!$L$117+Data!$F$59+AH104/Data!$L$116/Data!$E$59/Data!$L$115,Data!$E$90+Data!$F$59+AH104/Data!$G$90/Data!$E$59/Data!$D$90) -> 0.48 | AK104: 0.82 | AL104: =IF(Data!$C$59=1,TRUNC(($A104*0.9-AG104)/$P$91*2000*PI()*0.8,0),IF(Data!$C$59=2,TRUNC(($A104*0.8-(AG104+0.1))/$P$91*2000*PI()*0.8,0),"")) -> 154 | AN104: 240 | AO104: 2880 | AP104: 0.22 | AQ104: 0.22 | AR104: 0.24 | AS104: =IF(Data!$E$83=1,Data!$L$117+Data!$F$59+AQ104/Data!$L$116/Data!$E$59/Data!$L$115,Data!$E$90+Data!$F$59+AQ104/Data!$G$90/Data!$E$59/Data!$D$90) -> 0.24 | AT104: 0.82 | AU104: =IF(Data!$C$59=1,TRUNC(($A104*0.9-AP104)/$P$90*2000*PI()*0.8,0),IF(Data!$C$59=2,TRUNC(($A104*0.8-(AP104+0.1))/$P$90*2000*PI()*0.8,0),"")) -> 525 | AX104: 1.99 | AY104: 6665 | AZ104: 2222 | BA104: 1.10 | BB104: =IF(Data!$C$59=1,TRUNC(($A38*0.9-BA104)/$P$92*2000*PI()*0.8,0),IF(Data!$C$59=2,TRUNC(($A38*0.8-(BA104+0.1))/$P$92*2000*PI()*0.8,0),"")) -> 173 | BD104: 1.99 | BE104: 6665 | BF104: 1111 | BG104: 0.733176 | BH104: =IF(Data!$C$59=1,TRUNC(($A38*0.9-BG104)/$P$91*2000*PI()*0.8,0),IF(Data!$C$59=2,TRUNC(($A38*0.8-(BG104+0.1))/$P$91*2000*PI()*0.8,0),"")) -> 531 | BJ104: 1.99 | BK104: 6665 | BL104: 555 | BM104: 0.366588 | BN104: =IF(Data!$C$59=1,TRUNC(($A38*0.9-BM104)/$P$90*2000*PI()*0.8,0),IF(Data!$C$59=2,TRUNC(($A38*0.8-(BM104+0.1))/$P$90*2000*PI()*0.8,0),"")) -> 1430
A105: 0.81752 | B105: =0.38*$B$84 -> 3040.00 | C105: -1.6e-05 | D105: 0.81752 | U105: 1013 | V105: 3040 | W105: 0.66 | X105: 0.66 | Y105: 0.74 | Z105: =IF(Data!$E$83=1,Data!$L$117+Data!$F$59+X105/Data!$L$116/Data!$E$59/Data!$L$115,Data!$E$90+Data!$F$59+X105/Data!$G$90/Data!$E$59/Data!$D$90) -> 0.74 | AA105: 0.82 | AB105: =IF(Data!$C$59=1,TRUNC(($A105*0.9-W105)/$P$92*2000*PI()*0.8,0),IF(Data!$C$59=2,TRUNC(($A105*0.8-(W105+0.1))/$P$92*2000*PI()*0.8,0),"")) -> 17 | AE105: 507 | AF105: 3040 | AG105: 0.44 | AH105: 0.44 | AI105: 0.49 | AJ105: =IF(Data!$E$83=1,Data!$L$117+Data!$F$59+AH105/Data!$L$116/Data!$E$59/Data!$L$115,Data!$E$90+Data!$F$59+AH105/Data!$G$90/Data!$E$59/Data!$D$90) -> 0.49 | AK105: 0.82 | AL105: =IF(Data!$C$59=1,TRUNC(($A105*0.9-AG105)/$P$91*2000*PI()*0.8,0),IF(Data!$C$59=2,TRUNC(($A105*0.8-(AG105+0.1))/$P$91*2000*PI()*0.8,0),"")) -> 147 | AN105: 253 | AO105: 3040 | AP105: 0.22 | AQ105: 0.22 | AR105: 0.25 | AS105: =IF(Data!$E$83=1,Data!$L$117+Data!$F$59+AQ105/Data!$L$116/Data!$E$59/Data!$L$115,Data!$E$90+Data!$F$59+AQ105/Data!$G$90/Data!$E$59/Data!$D$90) -> 0.25 | AT105: 0.82 | AU105: =IF(Data!$C$59=1,TRUNC(($A105*0.9-AP105)/$P$90*2000*PI()*0.8,0),IF(Data!$C$59=2,TRUNC(($A105*0.8-(AP105+0.1))/$P$90*2000*PI()*0.8,0),"")) -> 516 | AX105: 1.94 | AY105: 6768 | AZ105: 2256 | BA105: 1.11 | BB105: =IF(Data!$C$59=1,TRUNC(($A39*0.9-BA105)/$P$92*2000*PI()*0.8,0),IF(Data!$C$59=2,TRUNC(($A39*0.8-(BA105+0.1))/$P$92*2000*PI()*0.8,0),"")) -> 158 | BD105: 1.94 | BE105: 6768 | BF105: 1128 | BG105: 0.741472 | BH105: =IF(Data!$C$59=1,TRUNC(($A39*0.9-BG105)/$P$91*2000*PI()*0.8,0),IF(Data!$C$59=2,TRUNC(($A39*0.8-(BG105+0.1))/$P$91*2000*PI()*0.8,0),"")) -> 504 | BJ105: 1.94 | BK105: 6768 | BL105: 564 | BM105: 0.370736 | BN105: =IF(Data!$C$59=1,TRUNC(($A39*0.9-BM105)/$P$90*2000*PI()*0.8,0),IF(Data!$C$59=2,TRUNC(($A39*0.8-(BM105+0.1))/$P$90*2000*PI()*0.8,0),"")) -> 1380
A106: 0.81496 | B106: =0.4*$B$84 -> 3200.00 | C106: =IF(B106<$B$79,$E$79,IF(B106<$B$80,$E$80,IF(B106<$B$81,$E$81,IF(B106<$B$82,$E$82,$E$83 ) ) )) -> -1.6e-05 | D106: 0.81496 | U106: 1067 | V106: 3200 | W106: 0.68 | X106: 0.68 | Y106: 0.76 | Z106: =IF(Data!$E$83=1,Data!$L$117+Data!$F$59+X106/Data!$L$116/Data!$E$59/Data!$L$115,Data!$E$90+Data!$F$59+X106/Data!$G$90/Data!$E$59/Data!$D$90) -> 0.76 | AA106: 0.81 | AB106: =IF(Data!$C$59=1,TRUNC(($A106*0.9-W106)/$P$92*2000*PI()*0.8,0),IF(Data!$C$59=2,TRUNC(($A106*0.8-(W106+0.1))/$P$92*2000*PI()*0.8,0),"")) -> 12 | AE106: 533 | AF106: 3200 | AG106: 0.46 | AH106: 0.46 | AI106: 0.51 | AJ106: =IF(Data!$E$83=1,Data!$L$117+Data!$F$59+AH106/Data!$L$116/Data!$E$59/Data!$L$115,Data!$E$90+Data!$F$59+AH106/Data!$G$90/Data!$E$59/Data!$D$90) -> 0.51 | AK106: 0.81 | AL106: =IF(Data!$C$59=1,TRUNC(($A106*0.9-AG106)/$P$91*2000*PI()*0.8,0),IF(Data!$C$59=2,TRUNC(($A106*0.8-(AG106+0.1))/$P$91*2000*PI()*0.8,0),"")) -> 139 | AN106: 267 | AO106: 3200 | AP106: 0.23 | AQ106: 0.23 | AR106: 0.25 | AS106: =IF(Data!$E$83=1,Data!$L$117+Data!$F$59+AQ106/Data!$L$116/Data!$E$59/Data!$L$115,Data!$E$90+Data!$F$59+AQ106/Data!$G$90/Data!$E$59/Data!$D$90) -> 0.25 | AT106: 0.81 | AU106: =IF(Data!$C$59=1,TRUNC(($A106*0.9-AP106)/$P$90*2000*PI()*0.8,0),IF(Data!$C$59=2,TRUNC(($A106*0.8-(AP106+0.1))/$P$90*2000*PI()*0.8,0),"")) -> 508 | AX106: 1.89 | AY106: 6874 | AZ106: 2291 | BA106: 1.12 | BB106: =IF(Data!$C$59=1,TRUNC(($A40*0.9-BA106)/$P$92*2000*PI()*0.8,0),IF(Data!$C$59=2,TRUNC(($A40*0.8-(BA106+0.1))/$P$92*2000*PI()*0.8,0),"")) -> 144 | BD106: 1.89 | BE106: 6874 | BF106: 1146 | BG106: 0.749888 | BH106: =IF(Data!$C$59=1,TRUNC(($A40*0.9-BG106)/$P$91*2000*PI()*0.8,0),IF(Data!$C$59=2,TRUNC(($A40*0.8-(BG106+0.1))/$P$91*2000*PI()*0.8,0),"")) -> 476 | BJ106: 1.89 | BK106: 6874 | BL106: 573 | BM106: 0.374944 | BN106: =IF(Data!$C$59=1,TRUNC(($A40*0.9-BM106)/$P$90*2000*PI()*0.8,0),IF(Data!$C$59=2,TRUNC(($A40*0.8-(BM106+0.1))/$P$90*2000*PI()*0.8,0),"")) -> 1330
A107: 0.8124 | B107: =0.42*$B$84 -> 3360.00 | C107: =IF(B107<$B$79,$E$79,IF(B107<$B$80,$E$80,IF(B107<$B$81,$E$81,IF(B107<$B$82,$E$82,$E$83 ) ) )) -> -1.6e-05 | D107: 0.8124 | U107: 1120 | V107: 3360 | W107: 0.70 | X107: 0.70 | Y107: 0.78 | Z107: =IF(Data!$E$83=1,Data!$L$117+Data!$F$59+X107/Data!$L$116/Data!$E$59/Data!$L$115,Data!$E$90+Data!$F$59+X107/Data!$G$90/Data!$E$59/Data!$D$90) -> 0.78 | AA107: 0.81 | AB107: =IF(Data!$C$59=1,TRUNC(($A107*0.9-W107)/$P$92*2000*PI()*0.8,0),IF(Data!$C$59=2,TRUNC(($A107*0.8-(W107+0.1))/$P$92*2000*PI()*0.8,0),"")) -> 7 | AE107: 560 | AF107: 3360 | AG107: 0.47 | AH107: 0.47 | AI107: 0.52 | AJ107: =IF(Data!$E$83=1,Data!$L$117+Data!$F$59+AH107/Data!$L$116/Data!$E$59/Data!$L$115,Data!$E$90+Data!$F$59+AH107/Data!$G$90/Data!$E$59/Data!$D$90) -> 0.52 | AK107: 0.81 | AL107: =IF(Data!$C$59=1,TRUNC(($A107*0.9-AG107)/$P$91*2000*PI()*0.8,0),IF(Data!$C$59=2,TRUNC(($A107*0.8-(AG107+0.1))/$P$91*2000*PI()*0.8,0),"")) -> 131 | AN107: 280 | AO107: 3360 | AP107: 0.23 | AQ107: 0.23 | AR107: 0.26 | AS107: =IF(Data!$E$83=1,Data!$L$117+Data!$F$59+AQ107/Data!$L$116/Data!$E$59/Data!$L$115,Data!$E$90+Data!$F$59+AQ107/Data!$G$90/Data!$E$59/Data!$D$90) -> 0.26 | AT107: 0.81 | AU107: =IF(Data!$C$59=1,TRUNC(($A107*0.9-AP107)/$P$90*2000*PI()*0.8,0),IF(Data!$C$59=2,TRUNC(($A107*0.8-(AP107+0.1))/$P$90*2000*PI()*0.8,0),"")) -> 499 | AX107: 1.83 | AY107: 6980 | AZ107: 2327 | BA107: 1.14 | BB107: =IF(Data!$C$59=1,TRUNC(($A41*0.9-BA107)/$P$92*2000*PI()*0.8,0),IF(Data!$C$59=2,TRUNC(($A41*0.8-(BA107+0.1))/$P$92*2000*PI()*0.8,0),"")) -> 129 | BD107: 1.83 | BE107: 6980 | BF107: 1163 | BG107: 0.758408 | BH107: =IF(Data!$C$59=1,TRUNC(($A41*0.9-BG107)/$P$91*2000*PI()*0.8,0),IF(Data!$C$59=2,TRUNC(($A41*0.8-(BG107+0.1))/$P$91*2000*PI()*0.8,0),"")) -> 448 | BJ107: 1.83 | BK107: 6980 | BL107: 582 | BM107: 0.379204 | BN107: =IF(Data!$C$59=1,TRUNC(($A41*0.9-BM107)/$P$90*2000*PI()*0.8,0),IF(Data!$C$59=2,TRUNC(($A41*0.8-(BM107+0.1))/$P$90*2000*PI()*0.8,0),"")) -> 1278
A108: 0.8084888889 | B108: =0.44*$B$84 -> 3520.00 | C108: -2.444444444e-05 | D108: 0.8084888889 | U108: 1173 | V108: 3520 | W108: 0.72 | X108: 0.72 | Y108: 0.80 | Z108: =IF(Data!$E$83=1,Data!$L$117+Data!$F$59+X108/Data!$L$116/Data!$E$59/Data!$L$115,Data!$E$90+Data!$F$59+X108/Data!$G$90/Data!$E$59/Data!$D$90) -> 0.80 | AA108: 0.81 | AB108: =IF(Data!$C$59=1,TRUNC(($A108*0.9-W108)/$P$92*2000*PI()*0.8,0),IF(Data!$C$59=2,TRUNC(($A108*0.8-(W108+0.1))/$P$92*2000*PI()*0.8,0),"")) -> 1 | AE108: 587 | AF108: 3520 | AG108: 0.48 | AH108: 0.48 | AI108: 0.54 | AJ108: =IF(Data!$E$83=1,Data!$L$117+Data!$F$59+AH108/Data!$L$116/Data!$E$59/Data!$L$115,Data!$E$90+Data!$F$59+AH108/Data!$G$90/Data!$E$59/Data!$D$90) -> 0.54 | AK108: 0.81 | AL108: =IF(Data!$C$59=1,TRUNC(($A108*0.9-AG108)/$P$91*2000*PI()*0.8,0),IF(Data!$C$59=2,TRUNC(($A108*0.8-(AG108+0.1))/$P$91*2000*PI()*0.8,0),"")) -> 123 | AN108: 293 | AO108: 3520 | AP108: 0.24 | AQ108: 0.24 | AR108: 0.27 | AS108: =IF(Data!$E$83=1,Data!$L$117+Data!$F$59+AQ108/Data!$L$116/Data!$E$59/Data!$L$115,Data!$E$90+Data!$F$59+AQ108/Data!$G$90/Data!$E$59/Data!$D$90) -> 0.27 | AT108: 0.81 | AU108: =IF(Data!$C$59=1,TRUNC(($A108*0.9-AP108)/$P$90*2000*PI()*0.8,0),IF(Data!$C$59=2,TRUNC(($A108*0.8-(AP108+0.1))/$P$90*2000*PI()*0.8,0),"")) -> 489 | AX108: 1.78 | AY108: 7088 | AZ108: 2363 | BA108: 1.15 | BB108: =IF(Data!$C$59=1,TRUNC(($A42*0.9-BA108)/$P$92*2000*PI()*0.8,0),IF(Data!$C$59=2,TRUNC(($A42*0.8-(BA108+0.1))/$P$92*2000*PI()*0.8,0),"")) -> 114 | BD108: 1.78 | BE108: 7088 | BF108: 1181 | BG108: 0.76704 | BH108: =IF(Data!$C$59=1,TRUNC(($A42*0.9-BG108)/$P$91*2000*PI()*0.8,0),IF(Data!$C$59=2,TRUNC(($A42*0.8-(BG108+0.1))/$P$91*2000*PI()*0.8,0),"")) -> 420 | BJ108: 1.78 | BK108: 7088 | BL108: 591 | BM108: 0.38352 | BN108: =IF(Data!$C$59=1,TRUNC(($A42*0.9-BM108)/$P$90*2000*PI()*0.8,0),IF(Data!$C$59=2,TRUNC(($A42*0.8-(BM108+0.1))/$P$90*2000*PI()*0.8,0),"")) -> 1227
A109: 0.8045777778 | B109: =0.46*$B$84 -> 3680.00 | C109: -2.444444444e-05 | D109: 0.8045777778 | U109: 1227 | V109: 3680 | W109: 0.74 | X109: 0.74 | Z109: =IF(Data!$E$83=1,Data!$L$117+Data!$F$59+X109/Data!$L$116/Data!$E$59/Data!$L$115,Data!$E$90+Data!$F$59+X109/Data!$G$90/Data!$E$59/Data!$D$90) -> 0.82 | AA109: 0.80 | AB109: =IF(Data!$C$59=1,TRUNC(($A109*0.9-W109)/$P$92*2000*PI()*0.8,0),IF(Data!$C$59=2,TRUNC(($A109*0.8-(W109+0.1))/$P$92*2000*PI()*0.8,0),"")) -> -4 | AE109: 613 | AF109: 3680 | AG109: 0.49 | AH109: 0.49 | AI109: 0.55 | AJ109: =IF(Data!$E$83=1,Data!$L$117+Data!$F$59+AH109/Data!$L$116/Data!$E$59/Data!$L$115,Data!$E$90+Data!$F$59+AH109/Data!$G$90/Data!$E$59/Data!$D$90) -> 0.55 | AK109: 0.80 | AL109: =IF(Data!$C$59=1,TRUNC(($A109*0.9-AG109)/$P$91*2000*PI()*0.8,0),IF(Data!$C$59=2,TRUNC(($A109*0.8-(AG109+0.1))/$P$91*2000*PI()*0.8,0),"")) -> 115 | AN109: 307 | AO109: 3680 | AP109: 0.25 | AQ109: 0.25 | AR109: 0.27 | AS109: =IF(Data!$E$83=1,Data!$L$117+Data!$F$59+AQ109/Data!$L$116/Data!$E$59/Data!$L$115,Data!$E$90+Data!$F$59+AQ109/Data!$G$90/Data!$E$59/Data!$D$90) -> 0.27 | AT109: 0.80 | AU109: =IF(Data!$C$59=1,TRUNC(($A109*0.9-AP109)/$P$90*2000*PI()*0.8,0),IF(Data!$C$59=2,TRUNC(($A109*0.8-(AP109+0.1))/$P$90*2000*PI()*0.8,0),"")) -> 479 | AX109: 1.73 | AY109: 7197 | AZ109: 2399 | BA109: 1.16 | BB109: =IF(Data!$C$59=1,TRUNC(($A43*0.9-BA109)/$P$92*2000*PI()*0.8,0),IF(Data!$C$59=2,TRUNC(($A43*0.8-(BA109+0.1))/$P$92*2000*PI()*0.8,0),"")) -> 98 | BD109: 1.73 | BE109: 7197 | BF109: 1200 | BG109: 0.775768 | BH109: =IF(Data!$C$59=1,TRUNC(($A43*0.9-BG109)/$P$91*2000*PI()*0.8,0),IF(Data!$C$59=2,TRUNC(($A43*0.8-(BG109+0.1))/$P$91*2000*PI()*0.8,0),"")) -> 392 | BJ109: 1.73 | BK109: 7197 | BL109: 600 | BM109: 0.387884 | BN109: =IF(Data!$C$59=1,TRUNC(($A43*0.9-BM109)/$P$90*2000*PI()*0.8,0),IF(Data!$C$59=2,TRUNC(($A43*0.8-(BM109+0.1))/$P$90*2000*PI()*0.8,0),"")) -> 1174
A110: 0.8006666667 | B110: =0.48*$B$84 -> 3840.00 | C110: -2.444444444e-05 | D110: 0.8006666667 | M110: PC40B20 | N110: AKM32E | O110: 400VAC | U110: 1280 | V110: 3840 | W110: 0.76 | X110: 0.76 | Z110: =IF(Data!$E$83=1,Data!$L$117+Data!$F$59+X110/Data!$L$116/Data!$E$59/Data!$L$115,Data!$E$90+Data!$F$59+X110/Data!$G$90/Data!$E$59/Data!$D$90) -> 0.85 | AA110: 0.80 | AB110: =IF(Data!$C$59=1,TRUNC(($A110*0.9-W110)/$P$92*2000*PI()*0.8,0),IF(Data!$C$59=2,TRUNC(($A110*0.8-(W110+0.1))/$P$92*2000*PI()*0.8,0),"")) -> -10 | AE110: 640 | AF110: 3840 | AG110: 0.51 | AH110: 0.51 | AI110: 0.56 | AJ110: =IF(Data!$E$83=1,Data!$L$117+Data!$F$59+AH110/Data!$L$116/Data!$E$59/Data!$L$115,Data!$E$90+Data!$F$59+AH110/Data!$G$90/Data!$E$59/Data!$D$90) -> 0.56 | AK110: 0.80 | AL110: =IF(Data!$C$59=1,TRUNC(($A110*0.9-AG110)/$P$91*2000*PI()*0.8,0),IF(Data!$C$59=2,TRUNC(($A110*0.8-(AG110+0.1))/$P$91*2000*PI()*0.8,0),"")) -> 107 | AN110: 320 | AO110: 3840 | AP110: 0.25 | AQ110: 0.25 | AR110: 0.28 | AS110: =IF(Data!$E$83=1,Data!$L$117+Data!$F$59+AQ110/Data!$L$116/Data!$E$59/Data!$L$115,Data!$E$90+Data!$F$59+AQ110/Data!$G$90/Data!$E$59/Data!$D$90) -> 0.28 | AT110: 0.80 | AU110: =IF(Data!$C$59=1,TRUNC(($A110*0.9-AP110)/$P$90*2000*PI()*0.8,0),IF(Data!$C$59=2,TRUNC(($A110*0.8-(AP110+0.1))/$P$90*2000*PI()*0.8,0),"")) -> 469 | AX110: 1.68 | AY110: 7307 | AZ110: 2436 | BA110: 1.18 | BB110: =IF(Data!$C$59=1,TRUNC(($A44*0.9-BA110)/$P$92*2000*PI()*0.8,0),IF(Data!$C$59=2,TRUNC(($A44*0.8-(BA110+0.1))/$P$92*2000*PI()*0.8,0),"")) -> 83 | BD110: 1.68 | BE110: 7307 | BF110: 1218 | BG110: 0.784592 | BH110: =IF(Data!$C$59=1,TRUNC(($A44*0.9-BG110)/$P$91*2000*PI()*0.8,0),IF(Data!$C$59=2,TRUNC(($A44*0.8-(BG110+0.1))/$P$91*2000*PI()*0.8,0),"")) -> 363 | BJ110: 1.68 | BK110: 7307 | BL110: 609 | BM110: 0.392296 | BN110: =IF(Data!$C$59=1,TRUNC(($A44*0.9-BM110)/$P$90*2000*PI()*0.8,0),IF(Data!$C$59=2,TRUNC(($A44*0.8-(BM110+0.1))/$P$90*2000*PI()*0.8,0),"")) -> 1121
A111: 0.7967555556 | B111: =0.5*$B$84 -> 4000.00 | C111: -2.444444444e-05 | D111: 0.7967555556 | U111: 1333 | V111: 4000 | W111: 0.78 | X111: 0.78 | Z111: =IF(Data!$E$83=1,Data!$L$117+Data!$F$59+X111/Data!$L$116/Data!$E$59/Data!$L$115,Data!$E$90+Data!$F$59+X111/Data!$G$90/Data!$E$59/Data!$D$90) -> 0.87 | AA111: 0.80 | AB111: =IF(Data!$C$59=1,TRUNC(($A111*0.9-W111)/$P$92*2000*PI()*0.8,0),IF(Data!$C$59=2,TRUNC(($A111*0.8-(W111+0.1))/$P$92*2000*PI()*0.8,0),"")) -> -15 | AE111: 667 | AF111: 4000 | AG111: 0.52 | AH111: 0.52 | AI111: 0.58 | AJ111: =IF(Data!$E$83=1,Data!$L$117+Data!$F$59+AH111/Data!$L$116/Data!$E$59/Data!$L$115,Data!$E$90+Data!$F$59+AH111/Data!$G$90/Data!$E$59/Data!$D$90) -> 0.58 | AK111: 0.80 | AL111: =IF(Data!$C$59=1,TRUNC(($A111*0.9-AG111)/$P$91*2000*PI()*0.8,0),IF(Data!$C$59=2,TRUNC(($A111*0.8-(AG111+0.1))/$P$91*2000*PI()*0.8,0),"")) -> 99 | AN111: 333 | AO111: 4000 | AP111: 0.26 | AQ111: 0.26 | AR111: 0.29 | AS111: =IF(Data!$E$83=1,Data!$L$117+Data!$F$59+AQ111/Data!$L$116/Data!$E$59/Data!$L$115,Data!$E$90+Data!$F$59+AQ111/Data!$G$90/Data!$E$59/Data!$D$90) -> 0.29 | AT111: 0.80 | AU111: =IF(Data!$C$59=1,TRUNC(($A111*0.9-AP111)/$P$90*2000*PI()*0.8,0),IF(Data!$C$59=2,TRUNC(($A111*0.8-(AP111+0.1))/$P$90*2000*PI()*0.8,0),"")) -> 459 | AX111: 1.62 | AY111: 7419 | AZ111: 2473 | BA111: 1.19 | BB111: =IF(Data!$C$59=1,TRUNC(($A45*0.9-BA111)/$P$92*2000*PI()*0.8,0),IF(Data!$C$59=2,TRUNC(($A45*0.8-(BA111+0.1))/$P$92*2000*PI()*0.8,0),"")) -> 67 | BD111: 1.62 | BE111: 7419 | BF111: 1236 | BG111: 0.793496 | BH111: =IF(Data!$C$59=1,TRUNC(($A45*0.9-BG111)/$P$91*2000*PI()*0.8,0),IF(Data!$C$59=2,TRUNC(($A45*0.8-(BG111+0.1))/$P$91*2000*PI()*0.8,0),"")) -> 334 | BJ111: 1.62 | BK111: 7419 | BL111: 618 | BM111: 0.396748 | BN111: =IF(Data!$C$59=1,TRUNC(($A45*0.9-BM111)/$P$90*2000*PI()*0.8,0),IF(Data!$C$59=2,TRUNC(($A45*0.8-(BM111+0.1))/$P$90*2000*PI()*0.8,0),"")) -> 1068
A112: 0.7928444444 | B112: =0.52*$B$84 -> 4160.00 | C112: -2.444444444e-05 | D112: 0.7928444444 | M112: mm/s | N112: Load | U112: 1387 | V112: 4160 | W112: 0.80 | X112: 0.80 | Z112: =IF(Data!$E$83=1,Data!$L$117+Data!$F$59+X112/Data!$L$116/Data!$E$59/Data!$L$115,Data!$E$90+Data!$F$59+X112/Data!$G$90/Data!$E$59/Data!$D$90) -> 0.89 | AA112: 0.79 | AB112: =IF(Data!$C$59=1,TRUNC(($A112*0.9-W112)/$P$92*2000*PI()*0.8,0),IF(Data!$C$59=2,TRUNC(($A112*0.8-(W112+0.1))/$P$92*2000*PI()*0.8,0),"")) -> -21 | AE112: 693 | AF112: 4160 | AG112: 0.53 | AH112: 0.53 | AI112: 0.59 | AJ112: =IF(Data!$E$83=1,Data!$L$117+Data!$F$59+AH112/Data!$L$116/Data!$E$59/Data!$L$115,Data!$E$90+Data!$F$59+AH112/Data!$G$90/Data!$E$59/Data!$D$90) -> 0.59 | AK112: 0.79 | AL112: =IF(Data!$C$59=1,TRUNC(($A112*0.9-AG112)/$P$91*2000*PI()*0.8,0),IF(Data!$C$59=2,TRUNC(($A112*0.8-(AG112+0.1))/$P$91*2000*PI()*0.8,0),"")) -> 90 | AN112: 347 | AO112: 4160 | AP112: 0.27 | AQ112: 0.27 | AR112: 0.30 | AS112: =IF(Data!$E$83=1,Data!$L$117+Data!$F$59+AQ112/Data!$L$116/Data!$E$59/Data!$L$115,Data!$E$90+Data!$F$59+AQ112/Data!$G$90/Data!$E$59/Data!$D$90) -> 0.30 | AT112: 0.79 | AU112: =IF(Data!$C$59=1,TRUNC(($A112*0.9-AP112)/$P$90*2000*PI()*0.8,0),IF(Data!$C$59=2,TRUNC(($A112*0.8-(AP112+0.1))/$P$90*2000*PI()*0.8,0),"")) -> 449 | AX112: 1.57 | AY112: 7531 | AZ112: 2510 | BA112: 1.20 | BB112: =IF(Data!$C$59=1,TRUNC(($A46*0.9-BA112)/$P$92*2000*PI()*0.8,0),IF(Data!$C$59=2,TRUNC(($A46*0.8-(BA112+0.1))/$P$92*2000*PI()*0.8,0),"")) -> 51 | BD112: 1.57 | BE112: 7531 | BF112: 1255 | BG112: 0.802464 | BH112: =IF(Data!$C$59=1,TRUNC(($A46*0.9-BG112)/$P$91*2000*PI()*0.8,0),IF(Data!$C$59=2,TRUNC(($A46*0.8-(BG112+0.1))/$P$91*2000*PI()*0.8,0),"")) -> 305 | BJ112: 1.57 | BK112: 7531 | BL112: 628 | BM112: 0.401232 | BN112: =IF(Data!$C$59=1,TRUNC(($A46*0.9-BM112)/$P$90*2000*PI()*0.8,0),IF(Data!$C$59=2,TRUNC(($A46*0.8-(BM112+0.1))/$P$90*2000*PI()*0.8,0),"")) -> 1013
A113: 0.7889333333 | B113: =0.54*$B$84 -> 4320.00 | C113: -2.444444444e-05 | D113: 0.7889333333 | M113: 1666 | N113: 0 | U113: 1440 | V113: 4320 | W113: 0.82 | X113: 0.82 | Z113: =IF(Data!$E$83=1,Data!$L$117+Data!$F$59+X113/Data!$L$116/Data!$E$59/Data!$L$115,Data!$E$90+Data!$F$59+X113/Data!$G$90/Data!$E$59/Data!$D$90) -> 0.91 | AA113: 0.79 | AB113: =IF(Data!$C$59=1,TRUNC(($A113*0.9-W113)/$P$92*2000*PI()*0.8,0),IF(Data!$C$59=2,TRUNC(($A113*0.8-(W113+0.1))/$P$92*2000*PI()*0.8,0),"")) -> -27 | AE113: 720 | AF113: 4320 | AG113: 0.55 | AH113: 0.55 | AI113: 0.61 | AJ113: =IF(Data!$E$83=1,Data!$L$117+Data!$F$59+AH113/Data!$L$116/Data!$E$59/Data!$L$115,Data!$E$90+Data!$F$59+AH113/Data!$G$90/Data!$E$59/Data!$D$90) -> 0.61 | AK113: 0.79 | AL113: =IF(Data!$C$59=1,TRUNC(($A113*0.9-AG113)/$P$91*2000*PI()*0.8,0),IF(Data!$C$59=2,TRUNC(($A113*0.8-(AG113+0.1))/$P$91*2000*PI()*0.8,0),"")) -> 82 | AN113: 360 | AO113: 4320 | AP113: 0.27 | AQ113: 0.27 | AR113: 0.30 | AS113: =IF(Data!$E$83=1,Data!$L$117+Data!$F$59+AQ113/Data!$L$116/Data!$E$59/Data!$L$115,Data!$E$90+Data!$F$59+AQ113/Data!$G$90/Data!$E$59/Data!$D$90) -> 0.30 | AT113: 0.79 | AU113: =IF(Data!$C$59=1,TRUNC(($A113*0.9-AP113)/$P$90*2000*PI()*0.8,0),IF(Data!$C$59=2,TRUNC(($A113*0.8-(AP113+0.1))/$P$90*2000*PI()*0.8,0),"")) -> 439 | AX113: 1.51 | AY113: 7644 | AZ113: 2548 | BA113: 1.22 | BB113: =IF(Data!$C$59=1,TRUNC(($A47*0.9-BA113)/$P$92*2000*PI()*0.8,0),IF(Data!$C$59=2,TRUNC(($A47*0.8-(BA113+0.1))/$P$92*2000*PI()*0.8,0),"")) -> 35 | BD113: 1.51 | BE113: 7644 | BF113: 1274 | BG113: 0.811496 | BH113: =IF(Data!$C$59=1,TRUNC(($A47*0.9-BG113)/$P$91*2000*PI()*0.8,0),IF(Data!$C$59=2,TRUNC(($A47*0.8-(BG113+0.1))/$P$91*2000*PI()*0.8,0),"")) -> 275 | BJ113: 1.51 | BK113: 7644 | BL113: 637 | BM113: 0.405748 | BN113: =IF(Data!$C$59=1,TRUNC(($A47*0.9-BM113)/$P$90*2000*PI()*0.8,0),IF(Data!$C$59=2,TRUNC(($A47*0.8-(BM113+0.1))/$P$90*2000*PI()*0.8,0),"")) -> 959
A114: 0.7850222222 | B114: =0.56*$B$84 -> 4480.00 | C114: -2.444444444e-05 | D114: 0.7850222222 | M114: 1666 | N114: 55 | U114: 1493 | V114: 4480 | W114: 0.84 | X114: 0.84 | Z114: =IF(Data!$E$83=1,Data!$L$117+Data!$F$59+X114/Data!$L$116/Data!$E$59/Data!$L$115,Data!$E$90+Data!$F$59+X114/Data!$G$90/Data!$E$59/Data!$D$90) -> 0.93 | AA114: 0.79 | AB114: =IF(Data!$C$59=1,TRUNC(($A114*0.9-W114)/$P$92*2000*PI()*0.8,0),IF(Data!$C$59=2,TRUNC(($A114*0.8-(W114+0.1))/$P$92*2000*PI()*0.8,0),"")) -> -32 | AE114: 747 | AF114: 4480 | AG114: 0.56 | AH114: 0.56 | AI114: 0.62 | AJ114: =IF(Data!$E$83=1,Data!$L$117+Data!$F$59+AH114/Data!$L$116/Data!$E$59/Data!$L$115,Data!$E$90+Data!$F$59+AH114/Data!$G$90/Data!$E$59/Data!$D$90) -> 0.62 | AK114: 0.79 | AL114: =IF(Data!$C$59=1,TRUNC(($A114*0.9-AG114)/$P$91*2000*PI()*0.8,0),IF(Data!$C$59=2,TRUNC(($A114*0.8-(AG114+0.1))/$P$91*2000*PI()*0.8,0),"")) -> 74 | AN114: 373 | AO114: 4480 | AP114: 0.28 | AQ114: 0.28 | AR114: 0.31 | AS114: =IF(Data!$E$83=1,Data!$L$117+Data!$F$59+AQ114/Data!$L$116/Data!$E$59/Data!$L$115,Data!$E$90+Data!$F$59+AQ114/Data!$G$90/Data!$E$59/Data!$D$90) -> 0.31 | AT114: 0.79 | AU114: =IF(Data!$C$59=1,TRUNC(($A114*0.9-AP114)/$P$90*2000*PI()*0.8,0),IF(Data!$C$59=2,TRUNC(($A114*0.8-(AP114+0.1))/$P$90*2000*PI()*0.8,0),"")) -> 429 | AX114: 1.45 | AY114: 7757 | AZ114: 2586 | BA114: 1.23 | BB114: =IF(Data!$C$59=1,TRUNC(($A48*0.9-BA114)/$P$92*2000*PI()*0.8,0),IF(Data!$C$59=2,TRUNC(($A48*0.8-(BA114+0.1))/$P$92*2000*PI()*0.8,0),"")) -> 19 | BD114: 1.45 | BE114: 7757 | BF114: 1293 | BG114: 0.820576 | BH114: =IF(Data!$C$59=1,TRUNC(($A48*0.9-BG114)/$P$91*2000*PI()*0.8,0),IF(Data!$C$59=2,TRUNC(($A48*0.8-(BG114+0.1))/$P$91*2000*PI()*0.8,0),"")) -> 245 | BJ114: 1.45 | BK114: 7757 | BL114: 646 | BM114: 0.410288 | BN114: =IF(Data!$C$59=1,TRUNC(($A48*0.9-BM114)/$P$90*2000*PI()*0.8,0),IF(Data!$C$59=2,TRUNC(($A48*0.8-(BM114+0.1))/$P$90*2000*PI()*0.8,0),"")) -> 903
A115: 0.7811111111 | B115: =0.58*$B$84 -> 4640.00 | C115: -2.444444444e-05 | D115: 0.7811111111 | M115: 1500 | N115: 70 | U115: 1547 | V115: 4640 | W115: 0.86 | X115: 0.86 | Z115: =IF(Data!$E$83=1,Data!$L$117+Data!$F$59+X115/Data!$L$116/Data!$E$59/Data!$L$115,Data!$E$90+Data!$F$59+X115/Data!$G$90/Data!$E$59/Data!$D$90) -> 0.95 | AA115: 0.78 | AB115: =IF(Data!$C$59=1,TRUNC(($A115*0.9-W115)/$P$92*2000*PI()*0.8,0),IF(Data!$C$59=2,TRUNC(($A115*0.8-(W115+0.1))/$P$92*2000*PI()*0.8,0),"")) -> -38 | AE115: 773 | AF115: 4640 | AG115: 0.57 | AH115: 0.57 | AI115: 0.63 | AJ115: =IF(Data!$E$83=1,Data!$L$117+Data!$F$59+AH115/Data!$L$116/Data!$E$59/Data!$L$115,Data!$E$90+Data!$F$59+AH115/Data!$G$90/Data!$E$59/Data!$D$90) -> 0.63 | AK115: 0.78 | AL115: =IF(Data!$C$59=1,TRUNC(($A115*0.9-AG115)/$P$91*2000*PI()*0.8,0),IF(Data!$C$59=2,TRUNC(($A115*0.8-(AG115+0.1))/$P$91*2000*PI()*0.8,0),"")) -> 66 | AN115: 387 | AO115: 4640 | AP115: 0.29 | AQ115: 0.29 | AR115: 0.32 | AS115: =IF(Data!$E$83=1,Data!$L$117+Data!$F$59+AQ115/Data!$L$116/Data!$E$59/Data!$L$115,Data!$E$90+Data!$F$59+AQ115/Data!$G$90/Data!$E$59/Data!$D$90) -> 0.32 | AT115: 0.78 | AU115: =IF(Data!$C$59=1,TRUNC(($A115*0.9-AP115)/$P$90*2000*PI()*0.8,0),IF(Data!$C$59=2,TRUNC(($A115*0.8-(AP115+0.1))/$P$90*2000*PI()*0.8,0),"")) -> 419 | AX115: 1.40 | AY115: 7871 | AZ115: 2624 | BA115: 1.24 | BB115: =IF(Data!$C$59=1,TRUNC(($A49*0.9-BA115)/$P$92*2000*PI()*0.8,0),IF(Data!$C$59=2,TRUNC(($A49*0.8-(BA115+0.1))/$P$92*2000*PI()*0.8,0),"")) -> 3 | BD115: 1.40 | BE115: 7871 | BF115: 1312 | BG115: 0.829688 | BH115: =IF(Data!$C$59=1,TRUNC(($A49*0.9-BG115)/$P$91*2000*PI()*0.8,0),IF(Data!$C$59=2,TRUNC(($A49*0.8-(BG115+0.1))/$P$91*2000*PI()*0.8,0),"")) -> 215 | BJ115: 1.40 | BK115: 7871 | BL115: 656 | BM115: 0.414844 | BN115: =IF(Data!$C$59=1,TRUNC(($A49*0.9-BM115)/$P$90*2000*PI()*0.8,0),IF(Data!$C$59=2,TRUNC(($A49*0.8-(BM115+0.1))/$P$90*2000*PI()*0.8,0),"")) -> 847
A116: 0.7772 | B116: =0.6*$B$84 -> 4800.00 | C116: -2.444444444e-05 | D116: 0.7772 | M116: 1400 | N116: 79 | U116: 1600 | V116: 4800 | W116: 0.88 | X116: 0.88 | Z116: =IF(Data!$E$83=1,Data!$L$117+Data!$F$59+X116/Data!$L$116/Data!$E$59/Data!$L$115,Data!$E$90+Data!$F$59+X116/Data!$G$90/Data!$E$59/Data!$D$90) -> 0.97 | AA116: 0.78 | AB116: =IF(Data!$C$59=1,TRUNC(($A116*0.9-W116)/$P$92*2000*PI()*0.8,0),IF(Data!$C$59=2,TRUNC(($A116*0.8-(W116+0.1))/$P$92*2000*PI()*0.8,0),"")) -> -44 | AE116: 800 | AF116: 4800 | AG116: 0.58 | AH116: 0.58 | AI116: 0.65 | AJ116: =IF(Data!$E$83=1,Data!$L$117+Data!$F$59+AH116/Data!$L$116/Data!$E$59/Data!$L$115,Data!$E$90+Data!$F$59+AH116/Data!$G$90/Data!$E$59/Data!$D$90) -> 0.65 | AK116: 0.78 | AL116: =IF(Data!$C$59=1,TRUNC(($A116*0.9-AG116)/$P$91*2000*PI()*0.8,0),IF(Data!$C$59=2,TRUNC(($A116*0.8-(AG116+0.1))/$P$91*2000*PI()*0.8,0),"")) -> 58 | AN116: 400 | AO116: 4800 | AP116: 0.29 | AQ116: 0.29 | AR116: 0.32 | AS116: =IF(Data!$E$83=1,Data!$L$117+Data!$F$59+AQ116/Data!$L$116/Data!$E$59/Data!$L$115,Data!$E$90+Data!$F$59+AQ116/Data!$G$90/Data!$E$59/Data!$D$90) -> 0.32 | AT116: 0.78 | AU116: =IF(Data!$C$59=1,TRUNC(($A116*0.9-AP116)/$P$90*2000*PI()*0.8,0),IF(Data!$C$59=2,TRUNC(($A116*0.8-(AP116+0.1))/$P$90*2000*PI()*0.8,0),"")) -> 409 | AX116: 1.34 | AY116: 7985 | AZ116: 2662 | BA116: 1.26 | BB116: =IF(Data!$C$59=1,TRUNC(($A50*0.9-BA116)/$P$92*2000*PI()*0.8,0),IF(Data!$C$59=2,TRUNC(($A50*0.8-(BA116+0.1))/$P$92*2000*PI()*0.8,0),"")) -> -12 | BD116: 1.34 | BE116: 7985 | BF116: 1331 | BG116: 0.838816 | BH116: =IF(Data!$C$59=1,TRUNC(($A50*0.9-BG116)/$P$91*2000*PI()*0.8,0),IF(Data!$C$59=2,TRUNC(($A50*0.8-(BG116+0.1))/$P$91*2000*PI()*0.8,0),"")) -> 184 | BJ116: 1.34 | BK116: 7985 | BL116: 665 | BM116: 0.419408 | BN116: =IF(Data!$C$59=1,TRUNC(($A50*0.9-BM116)/$P$90*2000*PI()*0.8,0),IF(Data!$C$59=2,TRUNC(($A50*0.8-(BM116+0.1))/$P$90*2000*PI()*0.8,0),"")) -> 791
A117: 0.7732888889 | B117: =0.62*$B$84 -> 4960.00 | C117: -2.444444444e-05 | D117: 0.7732888889 | M117: 1300 | U117: 1653 | V117: 4960 | W117: 0.90 | X117: 0.90 | Z117: =IF(Data!$E$83=1,Data!$L$117+Data!$F$59+X117/Data!$L$116/Data!$E$59/Data!$L$115,Data!$E$90+Data!$F$59+X117/Data!$G$90/Data!$E$59/Data!$D$90) -> 0.99 | AA117: 0.77 | AB117: =IF(Data!$C$59=1,TRUNC(($A117*0.9-W117)/$P$92*2000*PI()*0.8,0),IF(Data!$C$59=2,TRUNC(($A117*0.8-(W117+0.1))/$P$92*2000*PI()*0.8,0),"")) -> -50 | AE117: 827 | AF117: 4960 | AG117: 0.60 | AH117: 0.60 | AI117: 0.66 | AJ117: =IF(Data!$E$83=1,Data!$L$117+Data!$F$59+AH117/Data!$L$116/Data!$E$59/Data!$L$115,Data!$E$90+Data!$F$59+AH117/Data!$G$90/Data!$E$59/Data!$D$90) -> 0.66 | AK117: 0.77 | AL117: =IF(Data!$C$59=1,TRUNC(($A117*0.9-AG117)/$P$91*2000*PI()*0.8,0),IF(Data!$C$59=2,TRUNC(($A117*0.8-(AG117+0.1))/$P$91*2000*PI()*0.8,0),"")) -> 49 | AN117: 413 | AO117: 4960 | AP117: 0.30 | AQ117: 0.30 | AR117: 0.33 | AS117: =IF(Data!$E$83=1,Data!$L$117+Data!$F$59+AQ117/Data!$L$116/Data!$E$59/Data!$L$115,Data!$E$90+Data!$F$59+AQ117/Data!$G$90/Data!$E$59/Data!$D$90) -> 0.33 | AT117: 0.77 | AU117: =IF(Data!$C$59=1,TRUNC(($A117*0.9-AP117)/$P$90*2000*PI()*0.8,0),IF(Data!$C$59=2,TRUNC(($A117*0.8-(AP117+0.1))/$P$90*2000*PI()*0.8,0),"")) -> 399 | AX117: 1.28 | AY117: 8000 | AZ117: 2667 | BA117: 1.26 | BB117: =IF(Data!$C$59=1,TRUNC(($A51*0.9-BA117)/$P$92*2000*PI()*0.8,0),IF(Data!$C$59=2,TRUNC(($A51*0.8-(BA117+0.1))/$P$92*2000*PI()*0.8,0),"")) -> -26 | BD117: 1.28 | BE117: 8000 | BF117: 1333 | BG117: 0.84 | BH117: =IF(Data!$C$59=1,TRUNC(($A51*0.9-BG117)/$P$91*2000*PI()*0.8,0),IF(Data!$C$59=2,TRUNC(($A51*0.8-(BG117+0.1))/$P$91*2000*PI()*0.8,0),"")) -> 158 | BJ117: 1.28 | BK117: 8000 | BL117: 667 | BM117: 0.42 | BN117: =IF(Data!$C$59=1,TRUNC(($A51*0.9-BM117)/$P$90*2000*PI()*0.8,0),IF(Data!$C$59=2,TRUNC(($A51*0.8-(BM117+0.1))/$P$90*2000*PI()*0.8,0),"")) -> 738
A118: 0.7693777778 | B118: =0.64*$B$84 -> 5120.00 | C118: -2.444444444e-05 | D118: 0.7693777778 | M118: 1200 | U118: 1707 | V118: 5120 | W118: 0.91 | X118: 0.91 | Z118: =IF(Data!$E$83=1,Data!$L$117+Data!$F$59+X118/Data!$L$116/Data!$E$59/Data!$L$115,Data!$E$90+Data!$F$59+X118/Data!$G$90/Data!$E$59/Data!$D$90) -> 1.02 | AA118: 0.77 | AB118: =IF(Data!$C$59=1,TRUNC(($A118*0.9-W118)/$P$92*2000*PI()*0.8,0),IF(Data!$C$59=2,TRUNC(($A118*0.8-(W118+0.1))/$P$92*2000*PI()*0.8,0),"")) -> -55 | AE118: 853 | AF118: 5120 | AG118: 0.61 | AH118: 0.61 | AI118: 0.68 | AJ118: =IF(Data!$E$83=1,Data!$L$117+Data!$F$59+AH118/Data!$L$116/Data!$E$59/Data!$L$115,Data!$E$90+Data!$F$59+AH118/Data!$G$90/Data!$E$59/Data!$D$90) -> 0.68 | AK118: 0.77 | AL118: =IF(Data!$C$59=1,TRUNC(($A118*0.9-AG118)/$P$91*2000*PI()*0.8,0),IF(Data!$C$59=2,TRUNC(($A118*0.8-(AG118+0.1))/$P$91*2000*PI()*0.8,0),"")) -> 41 | AN118: 427 | AO118: 5120 | AP118: 0.30 | AQ118: 0.30 | AR118: 0.34 | AS118: =IF(Data!$E$83=1,Data!$L$117+Data!$F$59+AQ118/Data!$L$116/Data!$E$59/Data!$L$115,Data!$E$90+Data!$F$59+AQ118/Data!$G$90/Data!$E$59/Data!$D$90) -> 0.34 | AT118: 0.77 | AU118: =IF(Data!$C$59=1,TRUNC(($A118*0.9-AP118)/$P$90*2000*PI()*0.8,0),IF(Data!$C$59=2,TRUNC(($A118*0.8-(AP118+0.1))/$P$90*2000*PI()*0.8,0),"")) -> 389 | AX118: 1.22 | AY118: 8000 | AZ118: 2667 | BA118: 1.26 | BB118: =IF(Data!$C$59=1,TRUNC(($A52*0.9-BA118)/$P$92*2000*PI()*0.8,0),IF(Data!$C$59=2,TRUNC(($A52*0.8-(BA118+0.1))/$P$92*2000*PI()*0.8,0),"")) -> -39 | BD118: 1.22 | BE118: 8000 | BF118: 1333 | BG118: 0.84 | BH118: =IF(Data!$C$59=1,TRUNC(($A52*0.9-BG118)/$P$91*2000*PI()*0.8,0),IF(Data!$C$59=2,TRUNC(($A52*0.8-(BG118+0.1))/$P$91*2000*PI()*0.8,0),"")) -> 131 | BJ118: 1.22 | BK118: 8000 | BL118: 667 | BM118: 0.42 | BN118: =IF(Data!$C$59=1,TRUNC(($A52*0.9-BM118)/$P$90*2000*PI()*0.8,0),IF(Data!$C$59=2,TRUNC(($A52*0.8-(BM118+0.1))/$P$90*2000*PI()*0.8,0),"")) -> 685
A119: 0.7654666667 | B119: =0.66*$B$84 -> 5280.00 | C119: -2.444444444e-05 | D119: 0.7654666667 | M119: 1100 | U119: 1760 | V119: 5280 | W119: 0.93 | X119: 0.93 | Z119: =IF(Data!$E$83=1,Data!$L$117+Data!$F$59+X119/Data!$L$116/Data!$E$59/Data!$L$115,Data!$E$90+Data!$F$59+X119/Data!$G$90/Data!$E$59/Data!$D$90) -> 1.04 | AA119: 0.77 | AB119: =IF(Data!$C$59=1,TRUNC(($A119*0.9-W119)/$P$92*2000*PI()*0.8,0),IF(Data!$C$59=2,TRUNC(($A119*0.8-(W119+0.1))/$P$92*2000*PI()*0.8,0),"")) -> -61 | AE119: 880 | AF119: 5280 | AG119: 0.62 | AH119: 0.62 | AI119: 0.69 | AJ119: =IF(Data!$E$83=1,Data!$L$117+Data!$F$59+AH119/Data!$L$116/Data!$E$59/Data!$L$115,Data!$E$90+Data!$F$59+AH119/Data!$G$90/Data!$E$59/Data!$D$90) -> 0.69 | AK119: 0.77 | AL119: =IF(Data!$C$59=1,TRUNC(($A119*0.9-AG119)/$P$91*2000*PI()*0.8,0),IF(Data!$C$59=2,TRUNC(($A119*0.8-(AG119+0.1))/$P$91*2000*PI()*0.8,0),"")) -> 33 | AN119: 440 | AO119: 5280 | AP119: 0.31 | AQ119: 0.31 | AR119: 0.35 | AS119: =IF(Data!$E$83=1,Data!$L$117+Data!$F$59+AQ119/Data!$L$116/Data!$E$59/Data!$L$115,Data!$E$90+Data!$F$59+AQ119/Data!$G$90/Data!$E$59/Data!$D$90) -> 0.35 | AT119: 0.77 | AU119: =IF(Data!$C$59=1,TRUNC(($A119*0.9-AP119)/$P$90*2000*PI()*0.8,0),IF(Data!$C$59=2,TRUNC(($A119*0.8-(AP119+0.1))/$P$90*2000*PI()*0.8,0),"")) -> 379 | AX119: 1.17 | AY119: 8000 | AZ119: 2667 | BA119: 1.26 | BB119: =IF(Data!$C$59=1,TRUNC(($A53*0.9-BA119)/$P$92*2000*PI()*0.8,0),IF(Data!$C$59=2,TRUNC(($A53*0.8-(BA119+0.1))/$P$92*2000*PI()*0.8,0),"")) -> -53 | BD119: 1.17 | BE119: 8000 | BF119: 1333 | BG119: 0.84 | BH119: =IF(Data!$C$59=1,TRUNC(($A53*0.9-BG119)/$P$91*2000*PI()*0.8,0),IF(Data!$C$59=2,TRUNC(($A53*0.8-(BG119+0.1))/$P$91*2000*PI()*0.8,0),"")) -> 104 | BJ119: 1.17 | BK119: 8000 | BL119: 667 | BM119: 0.42 | BN119: =IF(Data!$C$59=1,TRUNC(($A53*0.9-BM119)/$P$90*2000*PI()*0.8,0),IF(Data!$C$59=2,TRUNC(($A53*0.8-(BM119+0.1))/$P$90*2000*PI()*0.8,0),"")) -> 632
A120: 0.7615555556 | B120: =0.68*$B$84 -> 5440.00 | C120: -2.444444444e-05 | D120: 0.7615555556 | M120: 1000 | U120: 1813 | V120: 5440 | W120: 0.95 | X120: 0.95 | Z120: =IF(Data!$E$83=1,Data!$L$117+Data!$F$59+X120/Data!$L$116/Data!$E$59/Data!$L$115,Data!$E$90+Data!$F$59+X120/Data!$G$90/Data!$E$59/Data!$D$90) -> 1.06 | AA120: 0.76 | AB120: =IF(Data!$C$59=1,TRUNC(($A120*0.9-W120)/$P$92*2000*PI()*0.8,0),IF(Data!$C$59=2,TRUNC(($A120*0.8-(W120+0.1))/$P$92*2000*PI()*0.8,0),"")) -> -67 | AE120: 907 | AF120: 5440 | AG120: 0.64 | AH120: 0.64 | AI120: 0.71 | AJ120: =IF(Data!$E$83=1,Data!$L$117+Data!$F$59+AH120/Data!$L$116/Data!$E$59/Data!$L$115,Data!$E$90+Data!$F$59+AH120/Data!$G$90/Data!$E$59/Data!$D$90) -> 0.71 | AK120: 0.76 | AL120: =IF(Data!$C$59=1,TRUNC(($A120*0.9-AG120)/$P$91*2000*PI()*0.8,0),IF(Data!$C$59=2,TRUNC(($A120*0.8-(AG120+0.1))/$P$91*2000*PI()*0.8,0),"")) -> 25 | AN120: 453 | AO120: 5440 | AP120: 0.32 | AQ120: 0.32 | AR120: 0.35 | AS120: =IF(Data!$E$83=1,Data!$L$117+Data!$F$59+AQ120/Data!$L$116/Data!$E$59/Data!$L$115,Data!$E$90+Data!$F$59+AQ120/Data!$G$90/Data!$E$59/Data!$D$90) -> 0.35 | AT120: 0.76 | AU120: =IF(Data!$C$59=1,TRUNC(($A120*0.9-AP120)/$P$90*2000*PI()*0.8,0),IF(Data!$C$59=2,TRUNC(($A120*0.8-(AP120+0.1))/$P$90*2000*PI()*0.8,0),"")) -> 369 | AX120: 1.11 | AY120: 8000 | AZ120: 2667 | BA120: 1.26 | BB120: =IF(Data!$C$59=1,TRUNC(($A54*0.9-BA120)/$P$92*2000*PI()*0.8,0),IF(Data!$C$59=2,TRUNC(($A54*0.8-(BA120+0.1))/$P$92*2000*PI()*0.8,0),"")) -> -66 | BD120: 1.11 | BE120: 8000 | BF120: 1333 | BG120: 0.84 | BH120: =IF(Data!$C$59=1,TRUNC(($A54*0.9-BG120)/$P$91*2000*PI()*0.8,0),IF(Data!$C$59=2,TRUNC(($A54*0.8-(BG120+0.1))/$P$91*2000*PI()*0.8,0),"")) -> 77 | BJ120: 1.11 | BK120: 8000 | BL120: 667 | BM120: 0.42 | BN120: =IF(Data!$C$59=1,TRUNC(($A54*0.9-BM120)/$P$90*2000*PI()*0.8,0),IF(Data!$C$59=2,TRUNC(($A54*0.8-(BM120+0.1))/$P$90*2000*PI()*0.8,0),"")) -> 578
A121: 0.7576444444 | B121: =0.7*$B$84 -> 5600.00 | C121: -2.444444444e-05 | D121: 0.7576444444 | M121: 900 | U121: 1867 | V121: 5600 | W121: 0.97 | X121: 0.97 | Z121: =IF(Data!$E$83=1,Data!$L$117+Data!$F$59+X121/Data!$L$116/Data!$E$59/Data!$L$115,Data!$E$90+Data!$F$59+X121/Data!$G$90/Data!$E$59/Data!$D$90) -> 1.08 | AA121: 0.76 | AB121: =IF(Data!$C$59=1,TRUNC(($A121*0.9-W121)/$P$92*2000*PI()*0.8,0),IF(Data!$C$59=2,TRUNC(($A121*0.8-(W121+0.1))/$P$92*2000*PI()*0.8,0),"")) -> -72 | AE121: 933 | AF121: 5600 | AG121: 0.65 | AH121: 0.65 | AI121: 0.72 | AJ121: =IF(Data!$E$83=1,Data!$L$117+Data!$F$59+AH121/Data!$L$116/Data!$E$59/Data!$L$115,Data!$E$90+Data!$F$59+AH121/Data!$G$90/Data!$E$59/Data!$D$90) -> 0.72 | AK121: 0.76 | AL121: =IF(Data!$C$59=1,TRUNC(($A121*0.9-AG121)/$P$91*2000*PI()*0.8,0),IF(Data!$C$59=2,TRUNC(($A121*0.8-(AG121+0.1))/$P$91*2000*PI()*0.8,0),"")) -> 17 | AN121: 467 | AO121: 5600 | AP121: 0.32 | AQ121: 0.32 | AR121: 0.36 | AS121: =IF(Data!$E$83=1,Data!$L$117+Data!$F$59+AQ121/Data!$L$116/Data!$E$59/Data!$L$115,Data!$E$90+Data!$F$59+AQ121/Data!$G$90/Data!$E$59/Data!$D$90) -> 0.36 | AT121: 0.76 | AU121: =IF(Data!$C$59=1,TRUNC(($A121*0.9-AP121)/$P$90*2000*PI()*0.8,0),IF(Data!$C$59=2,TRUNC(($A121*0.8-(AP121+0.1))/$P$90*2000*PI()*0.8,0),"")) -> 359 | AX121: 1.05 | AY121: 8000 | AZ121: 2667 | BA121: 1.26 | BB121: =IF(Data!$C$59=1,TRUNC(($A55*0.9-BA121)/$P$92*2000*PI()*0.8,0),IF(Data!$C$59=2,TRUNC(($A55*0.8-(BA121+0.1))/$P$92*2000*PI()*0.8,0),"")) -> -80 | BD121: 1.05 | BE121: 8000 | BF121: 1333 | BG121: 0.84 | BH121: =IF(Data!$C$59=1,TRUNC(($A55*0.9-BG121)/$P$91*2000*PI()*0.8,0),IF(Data!$C$59=2,TRUNC(($A55*0.8-(BG121+0.1))/$P$91*2000*PI()*0.8,0),"")) -> 50 | BJ121: 1.05 | BK121: 8000 | BL121: 667 | BM121: 0.42 | BN121: =IF(Data!$C$59=1,TRUNC(($A55*0.9-BM121)/$P$90*2000*PI()*0.8,0),IF(Data!$C$59=2,TRUNC(($A55*0.8-(BM121+0.1))/$P$90*2000*PI()*0.8,0),"")) -> 523
